Workbook

Sheet Two-ways
A2: ='MGD2'!$AD$1 -> MG 0.5
A3: R' | B3: ='MGD2'!$AD11 -> 0 | E3: R' | F3: ='MGD2'!$AD11 -> 0 | AH3: ='MGD2'!$AD11 -> 0
A4: C' | B4: ='MGD2'!$AD12 -> 0 | E4: C' | F4: ='MGD2'!$AD12 -> 0 | AH4: ='MGD2'!$AD12 -> 0
A5: Woofer LP | C5: flp | D5: =ROUND(IF(B9>0,1/(2*PI()*SQRT((B9*10^-3/B6)*SQRT(B7*B8*10^-9))),IF(B8>0,1/(2*PI()*SQRT(B7*B8*10^-9)),B6*500/PI()*$B7)), -1) -> 840 | E5: Woofer LP
A6: R | B6: ='MGD2'!$AD3 -> 3.9 | C6: Qlp | D6: =IF(B9>0, "NC", IF(B8>0, B6*SQRT((B8*10^-6)/(B7*10^-3))," NA")) -> 0.4110960958 | E6: W | F6: ='MGD2'!$AD3 -> 3.9 | AH6: ='MGD2'!$AD3 -> 3.9
A7: L1 | B7: ='MGD2'!$AD4 -> 1.8 | E7: L1 | F7: ='MGD2'!$AD4 -> 1.8 | AH7: ='MGD2'!$AD4 -> 1.8
A8: C | B8: ='MGD2'!$AD5 -> 20 | E8: C | F8: ='MGD2'!#REF! ->  | AH8: ='MGD2'!$AD5 -> 20
A9: L2 | B9: ='MGD2'!$AD6 -> 0 | E9: L2 | F9: ='MGD2'!$AD6 -> 0 | AH9: ='MGD2'!$AD6 -> 0
A10: Tweeter HP | C10: fhp | D10: =ROUND(IF(B14>0,(500/PI())*SQRT(1/(B11*B14*SQRT(B12*B13*10^-9))),IF(B13>0,1/(2*PI()*SQRT(B12*B13*10^-9)),1/(2*PI()*B11*B12*10^-6))),-1) -> 3930 | E10: Tweeter HP
A11: W | B11: ='MGD2'!$AD7 -> 2.7 | E11: W | F11: ='MGD2'!$AD7 -> 2.7 | AH11: ='MGD2'!$AD7 -> 2.7
A12: C1 | B12: ='MGD2'!$AD8 -> 15 | E12: C1 | F12: ='MGD2'!$AD8 -> 15 | AH12: ='MGD2'!$AD8 -> 15
A13: L | B13: ='MGD2'!$AD$9 -> 0 | E13: L | F13: ='MGD2'!$AD$9 -> 0 | AH13: ='MGD2'!$AD$9 -> 0
A14: C2 | B14: ='MGD2'!$AD10 -> 0 | C14: fxo | D14: =ROUND('MGD2'!$AU$4, -1) -> 1170 | E14: C2 | F14: ='MGD2'!$AD10 -> 0 | AH14: ='MGD2'!$AD10 -> 0
J30: fc | K30: Δ db at 20kHz | L30: Δ db at 15kHz
G31: Choke: | H31: 0 | I31: uh | J31: =IF($H$31>0,ROUND($B$11*10^6/(2*PI()*$H$31),-1),"") ->  | K31: =ROUND('MGD2'!Y518,3) -> 0 | L31: =ROUND('MGD2'!Y520,3) -> 0

Sheet MGD2 (hidden)
C1: WOOFER | L1: MG 2.5/2.6 | N1: TWEETER | AB1: WOOFER | AD1: MG 0.5 | AE1: MG 10.1 | AF1: MMG-1st | AG1: MG I | AH1: MG I Impr | AI1: MG II b/c | AJ1: MMG-2nd | AK1: MG 1.6 | AL1: MG 1.5 | AM1: MG 12 | AN1: MG 0.5 | AO1: MG 0.6 | AP1: MG IIA | AQ1: MG 2.5 | AR1: MG 2.6 | AU1: Cross over
C2: L1 | D2: C | E2: L2 | F2: R | L2: C' | M2: R' | N2: C1 | O2: L | P2: C2 | Q2: Choke | R2: R | AB2: TWEETER | AU2: frequency
C3: ='Two-ways'!B7 -> 1.8 | D3: ='Two-ways'!B8 -> 20 | E3: ='Two-ways'!B9 -> 0 | F3: ='Two-ways'!B6 -> 3.9 | L3: ='Two-ways'!$B$4 -> 0 | M3: ='Two-ways'!$B$3 -> 0 | N3: ='Two-ways'!B12 -> 15 | O3: ='Two-ways'!B13 -> 0 | P3: ='Two-ways'!B14 -> 0 | Q3: ='Two-ways'!$H$31 -> 0 | R3: ='Two-ways'!B11 -> 2.7 | Y3: Summed | AA3: Speaker | AB3: NET OUTPUT | AD3: 3.9 | AE3: 4.3 | AF3: 4 | AG3: 4 | AH3: 5 | AI3: 5 | AJ3: 4 | AK3: 4.1 | AL3: 3.9 | AM3: 3.9 | AN3: 3.9 | AO3: 3.9 | AP3: 6 | AQ3: 3.9 | AR3: 3.9 | AU3: =MIN($AU$5:$AU$516) -> 0.08447400245
A4: f | B4: w | C4: XL1 | D4: XC | E4: XL2 | F4: X(R+L2) | G4: Z(L2+R||C) | H4: Z [L1+Rg+(R+L2||C)] | I4: Volt Div | J4: Phase | K4: OUTPUT | L4: Xc' | M4: ZR'||C' | N4: XC1 | O4: XL | P4: Xc2 | Q4: Xchoke | R4: R | S4: X(R+C2) | T4: X(L||R+C2) | U4: Z | V4: Volt Div | W4: Phase | X4: OUTPUT | Y4: Output | Z4: Phase | AA4: Impedance | AB4: IMPEDANCE | AD4: 1.8 | AE4: 1.8 | AF4: 2.2 | AG4: 0.33 | AH4: 0.67 | AI4: 2.2 | AJ4: 2.2 | AK4: 3.5 | AL4: 3.75 | AM4: 2.8 | AN4: 1.8 | AO4: 1.8 | AP4: 0.68 | AQ4: 3.25 | AR4: 2.17 | AU4: =ROUND(VLOOKUP($AU$3,$AU$5:$AV$516,2,0),-1) -> 1170
A5: 10 | B5: =2*PI()*$A5 -> 62.83185307 | C5: =COMPLEX(0,10^-3*$C$3*$B5) -> 0.113097335529233i | D5: =IF($D$3>0,COMPLEX(0,-1*10^6/($B5*$D$3)),"") -> -795.774715459477i | E5: =IF($E$3>0,COMPLEX(0,10^-3*$E$3*$B5),"") ->  | F5: =IF($E$3>0,IMSUM($E5,$F$3),$F$3) -> 3.9 | G5: =IF($D$3>0,IMPARA($F5,$D5),$F5) -> 3.89990632943969-0.0191129906358394i | H5: =IMSUM($C5,$G5) -> 3.89990632943969+0.0939843448933936i | I5: =IMPRODUCT(IMDIV($G5,$H5),IMDIV($F$3,$F5)) -> 0.999301530592663-0.028983180823165i | J5: =IMARGUMENT($I5)*180/PI() -> -1.661308911 | K5: =20*LOG(IMABS($I5)) -> -0.002417200775 | L5: =IF($L$3>0,COMPLEX(0,-1*10^6/($B5*$L$3)),0) -> 0 | M5: =IF($L$3>0,IMPARA($M$3,$L5), 0) -> 0 | N5: =COMPLEX(0,-1*10^6/($B5*$N$3)) -> -1061.03295394597i | O5: =IF($O$3>0,COMPLEX(0,10^-3*$O$3*$B5), 0) -> 0 | P5: =IF($P$3>0, COMPLEX(0,-1*10^6/($B5*$P$3)),0) -> 0 | Q5: =COMPLEX(0,10^-6*$Q$3*$B5) -> 0 | R5: =$R$3 -> 2.7 | S5: =IMSUM($R5,$P5) -> 2.7 | T5: =IF($O$3>0,IMPARA($S5,$O5), $S5) -> 2.7 | U5: =IMSUM($T5,$Q5,$N5,$M5) -> 2.7-1061.03295394597i | V5: =IMPRODUCT( IMDIV($R5,$S5 ),IMDIV($T5,$U5)) -> 6.47540551640659E-06+0.00254467357150775i | W5: =IMARGUMENT($V5)*180/PI() -> 89.85420031 | X5: =20*LOG(IMABS($V5)) -> -51.88733029 | Y5: =20*LOG(IMABS(IMSUB($I5,$V5))) -> -0.001804377932 | Z5: =IMARGUMENT(IMSUM($I5,IMPRODUCT(-1,$V5)))*180/PI() -> -1.807087876 | AA5: =IMABS(IMDIV(IMPRODUCT($U5,$H5),IMSUM($U5,$H5))) -> 3.901321357 | AD5: 20 | AJ5: 25 | AK5: 25 | AL5: 10 | AM5: 50 | AN5: 20 | AO5: 20 | AP5: 17 | AQ5: 25 | AR5: 75 | AU5: =ABS($K5-$X5) -> 51.88491309 | AV5: =$A5 -> 10
A6: =$A5*1.015 -> 10.15 | B6: 63.77433087 | C6: 0.114793795562171i | D6: -784.014497989632i | F6: 3.9 | G6: 3.89990349831705-0.0193996714122468i | H6: 3.89990349831705+0.0953941241499242i | I6: 0.99928043082837-0.0294174337751655i | J6: -1.686221504 | K6: -0.002490242456 | L6: 0 | M6: 0 | N6: -1045.35266398618i | O6: 0 | P6: 0 | Q6: 0 | R6: 2.7 | S6: 2.7 | T6: 2.7 | U6: 2.7-1045.35266398618i | V6: 6.67112334247348E-06+0.00258284316956853i | W6: 89.85201333 | X6: -51.7580103 | Y6: -0.001858897776 | Z6: -1.834186509 | AA6: 3.901361295 | AP6: 0.22 | AR6: 0.7 | AU6: 51.75552005 | AV6: 10.15
A7: 10.30225 | B7: 64.73094583 | C7: 0.116515702495604i | D7: -772.428076837076i | F7: 3.9 | G7: 3.89990058162805-0.0196906517570276i | H7: 3.89990058162805+0.0968250507385764i | I7: 0.999258694027371-0.0298581779381106i | J7: -1.711507465 | K7: -0.002565490704 | L7: 0 | M7: 0 | N7: -1029.90410244943i | O7: 0 | P7: 0 | Q7: 0 | R7: 2.7 | S7: 2.7 | T7: 2.7 | U7: 2.7-1029.90410244943i | V7: 6.87275665971361E-06+0.00262158528850951i | W7: 89.84979354 | X7: -51.62869033 | Y7: -0.001915064411 | Z7: -1.86169127 | AA7: 3.901402439 | AD7: 2.7 | AE7: 4 | AF7: 4 | AG7: 5 | AH7: 5 | AI7: 5 | AJ7: 2.6 | AK7: 4.5 | AL7: 3.5 | AM7: 3.5 | AN7: 2.7 | AO7: 2.7 | AP7: 5 | AQ7: 1.45 | AR7: 1.45 | AU7: 51.62612484 | AV7: 10.30225
A8: 10.45678375 | B8: 65.70191002 | C8: 0.118263438033038i | D8: -761.012883583327i | F8: 3.9 | G8: 3.89989757678667-0.0199859961343252i | H8: 3.89989757678667+0.0982774418987128i | I8: 0.999236300978376-0.0303055096498698i | J8: -1.73717238 | K8: -0.002643012146 | L8: 0 | M8: 0 | N8: -1014.68384477777i | O8: 0 | P8: 0 | Q8: 0 | R8: 2.7 | S8: 2.7 | T8: 2.7 | U8: 2.7-1014.68384477777i | V8: 7.08048425893095E-06+0.00266090851508909i | W8: 89.84754045 | X8: -51.49937038 | Y8: -0.001972927544 | Z8: -1.889608236 | AA8: 3.901444826 | AD8: 15 | AE8: 12 | AF8: 12 | AG8: 13 | AH8: 20 | AI8: 20 | AJ8: 24 | AK8: 21.9 | AL8: 15 | AM8: 33.1 | AN8: 15 | AO8: 25 | AP8: 10 | AQ8: 15 | AR8: 35 | AU8: 51.49672737 | AV8: 10.45678375
A9: 10.61363551 | B9: 66.68743867 | C9: 0.120037389603533i | D9: -749.766387766824i | F9: 3.9 | G9: 3.8998944811288-0.0202857699739035i | H9: 3.8998944811288+0.0997516196296295i | I9: 0.999213231892076-0.0307595266464167i | J9: -1.763221916 | K9: -0.002722875414 | L9: 0 | M9: 0 | N9: -999.688517022432i | O9: 0 | P9: 0 | Q9: 0 | R9: 2.7 | S9: 2.7 | T9: 2.7 | U9: 2.7-999.688517022432i | V9: 7.29449033458052E-06+0.00270082156481899i | W9: 89.84525357 | X9: -51.37005047 | Y9: -0.002032538382 | Z9: -1.917943573 | AA9: 3.901488495 | AP9: 0.28 | AQ9: 1 | AR9: 0.75 | AU9: 51.36732759 | AV9: 10.61363551
A10: 10.77284004 | B10: 67.68775025 | C10: 0.121837950447586i | D10: -738.686096321994i | F10: 3.9 | G10: 3.89989129190982-0.0205900396855696i | H10: 3.89989129190982+0.101247910762016i | I10: 0.999189466383838-0.0312203280806634i | J10: -1.789661828 | K10: -0.002805151215 | L10: 0 | M10: 0 | N10: -984.914795095992i | O10: 0 | P10: 0 | Q10: 0 | R10: 2.7 | S10: 2.7 | T10: 2.7 | U10: 2.7-984.914795095992i | V10: 0.0000075149646480741+0.00274133328389316i | W10: 89.84293239 | X10: -51.24073058 | Y10: -0.002093949676 | Z10: -1.946703538 | AA10: 3.901533483 | AP10: 30 | AU10: 51.23792543 | AV10: 10.77284004
A11: 10.93443264 | B11: 68.7030665 | C11: 0.1236655197043i | D11: -727.769553026595i | F11: 3.9 | G11: 3.89988800630215-0.0208988726738099i | H11: 3.89988800630215+0.10276664703049i | I11: 0.999164983455879-0.0316880145414799i | J11: -1.816497955 | K11: -0.002889912383 | L11: 0 | M11: 0 | N11: -970.359404035461i | O11: 0 | P11: 0 | Q11: 0 | R11: 2.7 | S11: 2.7 | T11: 2.7 | U11: 2.7-970.359404035461i | V11: 7.74210269602241E-06+0.00278245265114579i | W11: 89.84057638 | X11: -51.11141072 | Y11: -0.002157215766 | Z11: -1.975894484 | AA11: 3.901579832 | AQ11: 2 | AR11: 2 | AU11: 51.10852081 | AV11: 10.93443264
A12: 11.09844913 | B12: 69.7336125 | C12: 0.125520502499864i | D12: -717.014337957237i | F12: 3.9 | G12: 3.89988462139277-0.0212123373526443i | H12: 3.89988462139277+0.10430816514722i | I12: 0.999139761478921-0.0321626880728965i | J12: -1.843736222 | K12: -0.002977233954 | L12: 0 | M12: 0 | N12: -956.019117276316i | O12: 0 | P12: 0 | Q12: 0 | R12: 2.7 | S12: 2.7 | T12: 2.7 | U12: 2.7-956.019117276316i | V12: 7.97610588356061E-06+0.00282418878003853i | W12: 89.83818504 | X12: -50.98209089 | Y12: -0.002222392631 | Z12: -2.005522855 | AA12: 3.901627581 | AQ12: 2 | AR12: 2 | AU12: 50.97911366 | AV12: 11.09844913
A13: 11.26492587 | B13: 70.77961669 | C13: 0.127403310037362i | D13: -706.418066952943i | F13: 3.9 | G13: 3.89988113418066-0.0215305031606981i | H13: 3.89988113418066+0.105872806876664i | I13: 0.999113778173292-0.0326444521934898i | J13: -1.871382642 | K13: -0.003067193223 | L13: 0 | M13: 0 | N13: -941.890755937257i | O13: 0 | P13: 0 | Q13: 0 | R13: 2.7 | S13: 2.7 | T13: 2.7 | U13: 2.7-941.890755937257i | V13: 8.21718170291114E-06+0.00286655092067732i | W13: 89.83575783 | X13: -50.8527711 | Y13: -0.002289537933 | Z13: -2.035595193 | AA13: 3.901676773 | AU13: 50.8497039 | AV13: 11.26492587
A14: 11.43389975 | B14: 71.84131094 | C14: 0.129314359687923i | D14: -695.978391086643i | F14: 3.9 | G14: 3.89987754157408-0.0218534405764984i | H14: 3.89987754157408+0.107460919111425i | I14: 0.999087010589479-0.0331334119159483i | J14: -1.89944332 | K14: -0.003159869816 | L14: 0 | M14: 0 | N14: -927.971188115524i | O14: 0 | P14: 0 | Q14: 0 | R14: 2.7 | S14: 2.7 | T14: 2.7 | U14: 2.7-927.971188115524i | V14: 0.0000084655439173426+0.00290954846185947i | W14: 89.83329421 | X14: -50.72345133 | Y14: -0.002358711076 | Z14: -2.066118136 | AA14: 3.901727452 | AU14: 50.72029146 | AV14: 11.43389975
A15: 11.60540825 | B15: 72.9189306 | C15: 0.131254075083242i | D15: -685.692996144476i | F15: 3.9 | G15: 3.89987384038789-0.0221812211339958i | H15: 3.89987384038789+0.109072853949246i | I15: 0.999059435088094-0.0336296737668137i | J15: -1.927924448 | K15: -0.00325534576 | L15: 0 | M15: 0 | N15: -914.257328192635i | O15: 0 | P15: 0 | Q15: 0 | R15: 2.7 | S15: 2.7 | T15: 2.7 | U15: 2.7-914.257328192635i | V15: 0.0000087214127506871+0.00295319093315125i | W15: 89.83079364 | X15: -50.5941316 | Y15: -0.002429973251 | Z15: -2.097098423 | AA15: 3.901779662 | AU15: 50.59087625 | AV15: 11.60540825
A16: 11.77948937 | B16: 74.01271456 | C16: 0.13322288620949i | D16: -675.559602112784i | F16: 3.9 | G16: 3.89987002734069-0.0225139174383158i | H16: 3.89987002734069+0.110708968771174i | I16: 0.999031027319258-0.0341333458064008i | J16: -1.956832313 | K16: -0.003353705556 | L16: 0 | M16: 0 | N16: -900.746136150379i | O16: 0 | P16: 0 | Q16: 0 | R16: 2.7 | S16: 2.7 | T16: 2.7 | U16: 2.7-900.746136150379i | V16: 8.98501508258441E-06+0.00299748800699659i | W16: 89.82825556 | X16: -50.4648119 | Y16: -0.002503387493 | Z16: -2.128542889 | AA16: 3.901833451 | AU16: 50.46145819 | AV16: 11.77948937
A17: 11.95618171 | B17: 75.12290528 | C17: 0.135221229502633i | D17: -665.575962672694i | F17: 3.9 | G17: 3.89986609905194-0.0228516031817424i | H17: 3.89986609905194+0.112369626320891i | I17: 0.999001762201371-0.0346445376488868i | J17: -1.986173294 | K17: -0.003455036251 | L17: 0 | M17: 0 | N17: -887.434616896925i | O17: 0 | P17: 0 | Q17: 0 | R17: 2.7 | S17: 2.7 | T17: 2.7 | U17: 2.7-887.434616896925i | V17: 9.25658464962557E-06+0.0030424495008572i | W17: 89.82567941 | X17: -50.33549223 | Y17: -0.002579018737 | Z17: -2.160458473 | AA17: 3.901888865 | AU17: 50.33203719 | AV17: 11.95618171
A18: 12.13552444 | B18: 76.24974886 | C18: 0.137249547945172i | D18: -655.739864702162i | F18: 3.9 | G18: 3.89986205203893-0.0231943531599379i | H18: 3.89986205203893+0.114055194785234i | I18: 0.998971613899254-0.0351633604825692i | J18: -2.015953864 | K18: -0.003559427517 | L18: 0 | M18: 0 | N18: -874.319819602882i | O18: 0 | P18: 0 | Q18: 0 | R18: 2.7 | S18: 2.7 | T18: 2.7 | U18: 2.7-874.319819602882i | V18: 9.53636225257449E-06+0.00308808537938469i | W18: 89.82306462 | X18: -50.2061726 | Y18: -0.002656933872 | Z18: -2.192852218 | AA18: 3.901945954 | AU18: 50.20261317 | AV18: 12.13552444
A19: 12.31755731 | B19: 77.39349509 | C19: 0.13930829116435i | D19: -646.049127785381i | F19: 3.9 | G19: 3.89985788271376-0.0235422432884025i | H19: 3.89985788271376+0.115766047875948i | I19: 0.998940555801652-0.035689927090294i | J19: -2.046180594 | K19: -0.003666971726 | L19: 0 | M19: 0 | N19: -861.398837047175i | O19: 0 | P19: 0 | Q19: 0 | R19: 2.7 | S19: 2.7 | T19: 2.7 | U19: 2.7-861.398837047175i | V19: 0.0000098245959698509+0.00313440575662516i | W19: 89.8204106 | X19: -50.07685301 | Y19: -0.002737201802 | Z19: -2.22573127 | AA19: 3.902004768 | AU19: 50.07318603 | AV19: 12.31755731
A20: 12.50232067 | B20: 78.55439752 | C20: 0.141397915531815i | D20: -636.50160372944i | F20: 3.9 | G20: 3.89985358738004-0.023895350619175i | H20: 3.89985358738004+0.11750256491264i | I20: 0.998908560498065-0.0362243518700396i | J20: -2.07686015 | K20: -0.003777764038 | L20: 0 | M20: 0 | N20: -848.668804972586i | O20: 0 | P20: 0 | Q20: 0 | R20: 2.7 | S20: 2.7 | T20: 2.7 | U20: 2.7-848.668804972586i | V20: 0.000010121541377464+0.00318142089825665i | W20: 89.81771678 | X20: -49.94753345 | Y20: -0.002819893505 | Z20: -2.259102881 | AA20: 3.90206536 | AU20: 49.94375569 | AV20: 12.50232067
A21: 12.68985548 | B21: 79.73271348 | C21: 0.143518884264792i | D21: -627.095176088118i | F21: 3.9 | G21: 3.89984916222975-0.0242537533577819i | H21: 3.89984916222975+0.11926513090701i | I21: 0.99887559975491-0.0367667508556635i | J21: -2.107999299 | K21: -0.003891902477 | L21: 0 | M21: 0 | N21: -836.126901450824i | O21: 0 | P21: 0 | Q21: 0 | R21: 2.7 | S21: 2.7 | T21: 2.7 | U21: 2.7-836.126901450824i | V21: 0.0000104274617755913+0.00322914122386003i | W21: 89.81498255 | X21: -49.81821393 | Y21: -0.002905082099 | Z21: -2.29297441 | AA21: 3.902127783 | AU21: 49.81432203 | AV21: 12.68985548
A22: 12.88020331 | B22: 80.92870418 | C22: 0.145671667528764i | D22: -617.827759692727i | F22: 3.9 | G22: 3.89984460333981-0.0246175308804343i | H22: 3.89984460333981+0.12105413664833i | I22: 0.998841644490963-0.0373172417377999i | J22: -2.139604908 | K22: -0.004009488022 | L22: 0 | M22: 0 | N22: -823.77034625697i | O22: 0 | P22: 0 | Q22: 0 | R22: 2.7 | S22: 2.7 | T22: 2.7 | U22: 2.7-823.77034625697i | V22: 0.000010742628422004+0.00327757730922378i | W22: 89.81220731 | X22: -49.68889446 | Y22: -0.002992842901 | Z22: -2.327353327 | AA22: 3.902192093 | AU22: 49.68488497 | AV22: 12.88020331
A23: 13.07340636 | B23: 82.14263475 | C23: 0.147856742541695i | D23: -608.697300189879i | F23: 3.9 | G23: 3.89983990666856-0.0249867637514786i | H23: 3.89983990666856+0.122869978790216i | I23: 0.998806664752099-0.037875943884906i | J23: -2.171683944 | K23: -0.004130624695 | L23: 0 | M23: 0 | N23: -811.596400253172i | O23: 0 | P23: 0 | Q23: 0 | R23: 2.7 | S23: 2.7 | T23: 2.7 | U23: 2.7-811.596400253172i | V23: 0.0000110673207725449+0.00332673988868319i | W23: 89.80939044 | X23: -49.55957502 | Y23: -0.003083253494 | Z23: -2.362247211 | AA23: 3.902258347 | AU23: 49.5554444 | AV23: 13.07340636
A24: 13.26950745 | B24: 83.37477427 | C24: 0.150074593679821i | D24: -599.701773586088i | F24: 3.9 | G24: 3.89983506805224-0.0253615337411044i | H24: 3.89983506805224+0.124713059938717i | I24: 0.998770629685274-0.0384429783644547i | J24: -2.20424348 | K24: -0.004255419652 | L24: 0 | M24: 0 | N24: -799.60236478145i | O24: 0 | P24: 0 | Q24: 0 | R24: 2.7 | S24: 2.7 | T24: 2.7 | U24: 2.7-799.60236478145i | V24: 0.0000114018267288727+0.00337663985749441i | W24: 89.80653132 | X24: -49.43025563 | Y24: -0.003176393798 | Z24: -2.397663754 | AA24: 3.902326602 | AU24: 49.42600021 | AV24: 13.26950745
A25: 13.46855007 | B25: 84.62539588 | C25: 0.152325712585018i | D25: -590.839185799101i | F25: 3.9 | G25: 3.89983008320131-0.0257419238433123i | H25: 3.89983008320131+0.126583788741706i | I25: 0.998733507511753-0.0390184679642588i | J25: -2.237290691 | K25: -0.004383983275 | L25: 0 | M25: 0 | N25: -787.785581065468i | O25: 0 | P25: 0 | Q25: 0 | R25: 2.7 | S25: 2.7 | T25: 2.7 | U25: 2.7-787.785581065468i | V25: 0.0000117464428936912+0.00342728827424402i | W25: 89.80362931 | X25: -49.30093628 | Y25: -0.003272346139 | Z25: -2.433610762 | AA25: 3.902396921 | AU25: 49.2965523 | AV25: 13.46855007
A26: 13.67057832 | B26: 85.89477682 | C26: 0.154610598273793i | D26: -582.107572215863i | F26: 3.9 | G26: 3.8998249476966-0.0261280182941456i | H26: 3.8998249476966+0.128482579979647i | I26: 0.998695265499547-0.0396025372139348i | J26: -2.27083286 | K26: -0.004516429273 | L26: 0 | M26: 0 | N26: -776.143429621151i | O26: 0 | P26: 0 | Q26: 0 | R26: 2.7 | S26: 2.7 | T26: 2.7 | U26: 2.7-776.143429621151i | V26: 0.0000121014748336909+0.00347869636329441i | W26: 89.80068377 | X26: -49.17161698 | Y26: -0.003371195317 | Z26: -2.470096155 | AA26: 3.902469365 | AU26: 49.16710055 | AV26: 13.67057832
A27: 13.87563699 | B27: 87.18319847 | C27: 0.1569297572479i | D27: -573.504997257008i | F27: 3.9 | G27: 3.89981965698538-0.0265199025901899i | H27: 3.89981965698538+0.13040985465771i | I27: 0.998655869935046-0.0401953124064875i | J27: -2.304877376 | K27: -0.004652874778 | L27: 0 | M27: 0 | N27: -764.673329676011i | O27: 0 | P27: 0 | Q27: 0 | R27: 2.7 | S27: 2.7 | T27: 2.7 | U27: 2.7-764.673329676011i | V27: 0.0000124672373504342+0.00353087551726581i | W27: 89.79769405 | X27: -49.04229772 | Y27: -0.003473028688 | Z27: -2.507127973 | AA27: 3.902543998 | AU27: 49.03764485 | AV27: 13.87563699
A28: 14.08377155 | B28: 88.49094645 | C28: 0.159283703606619i | D28: -565.029553947792i | F28: 3.9 | G28: 3.89981420637745-0.0269176635073452i | H28: 3.89981420637745+0.132366040099274i | I28: 0.998615286093822-0.0407969216200115i | J28: -2.33943174 | K28: -0.00479344045 | L28: 0 | M28: 0 | N28: -753.372738597056i | O28: 0 | P28: 0 | Q28: 0 | R28: 2.7 | S28: 2.7 | T28: 2.7 | U28: 2.7-753.372738597056i | V28: 0.0000128440547594255+0.00358383729955516i | W28: 89.79465949 | X28: -48.91297852 | Y28: -0.00357793623 | Z28: -2.544714372 | AA28: 3.902620886 | AU28: 48.90818507 | AV28: 14.08377155
A29: 14.29502812 | B29: 89.81831064 | C29: 0.161672959160718i | D29: -556.679363495361i | F29: 3.9 | G29: 3.89980859104082-0.0273213891198716i | H29: 3.89980859104082+0.134351570040846i | I29: 0.998573478210574-0.041407494739508i | J29: -2.374503561 | K29: -0.004938250583 | L29: 0 | M29: 0 | N29: -742.239151327148i | O29: 0 | P29: 0 | Q29: 0 | R29: 2.7 | S29: 2.7 | T29: 2.7 | U29: 2.7-742.239151327148i | V29: 0.0000132322611776125+0.00363759344689268i | W29: 89.79157941 | X29: -48.78365936 | Y29: -0.003686010633 | Z29: -2.58286363 | AA29: 3.902700099 | AU29: 48.77872111 | AV29: 14.29502812
A30: 14.50945354 | B30: 91.1655853 | C30: 0.164098053548129i | D30: -548.452574872277i | F30: 3.9 | G30: 3.89980280599754-0.0277311688197149i | H30: 3.89980280599754+0.136366884728414i | I30: 0.9985304094482-0.0420271634788031i | J30: -2.410100563 | K30: -0.005087433211 | L30: 0 | M30: 0 | N30: -731.270099829703i | O30: 0 | P30: 0 | Q30: 0 | R30: 2.7 | S30: 2.7 | T30: 2.7 | U30: 2.7-731.270099829703i | V30: 0.0000136322008195739+0.00369215587193644i | W30: 89.78845313 | X30: -48.65434025 | Y30: -0.003797347371 | Z30: -2.621584148 | AA30: 3.902781705 | AU30: 48.64925282 | AV30: 14.50945354
A31: 14.72709534 | B31: 92.53306908 | C31: 0.166559524351351i | D31: -540.347364406184i | F31: 3.9 | G31: 3.89979684611929-0.0281470933361162i | H31: 3.89979684611929+0.138412431015235i | I31: 0.998486041865966-0.0426560614025574i | J31: -2.446230581 | K31: -0.005241120224 | L31: 0 | M31: 0 | N31: -720.463152541579i | O31: 0 | P31: 0 | Q31: 0 | R31: 2.7 | S31: 2.7 | T31: 2.7 | U31: 2.7-720.463152541579i | V31: 0.0000140442283026563+0.00374753666590571i | W31: 89.78527996 | X31: -48.52502119 | Y31: -0.00391204479 | Z31: -2.66088445 | AA31: 3.902865778 | AU31: 48.51978007 | AV31: 14.72709534
A32: 14.94800177 | B32: 93.92106512 | C32: 0.169057917216621i | D32: -532.361935375551i | F32: 3.9 | G32: 3.89979070612277-0.0285692547555069i | H32: 3.89979070612277+0.140488662461114i | I32: 0.998440336386741-0.0432943239483657i | J32: -2.48290157 | K32: -0.005399447482 | L32: 0 | M32: 0 | N32: -709.815913834068i | O32: 0 | P32: 0 | Q32: 0 | R32: 2.7 | S32: 2.7 | T32: 2.7 | U32: 2.7-709.815913834068i | V32: 0.0000144687089613281+0.00380374810125343i | W32: 89.78205919 | X32: -48.39570219 | Y32: -0.004030204192 | Z32: -2.700773186 | AA32: 3.902952392 | AU32: 48.39030274 | AV32: 14.94800177
A33: 15.1722218 | B33: 95.3298811 | C33: 0.17159378597487i | D33: -524.494517611381i | F33: 3.9 | G33: 3.89978438056508-0.0289977465416957i | H33: 3.89978438056508+0.142596039433174i | I33: 0.998393252763289-0.0439420884489295i | J33: -2.520121597 | K33: -0.005562554932 | L33: 0 | M33: 0 | N33: -699.326023481841i | O33: 0 | P33: 0 | Q33: 0 | R33: 2.7 | S33: 2.7 | T33: 2.7 | U33: 2.7-699.326023481841i | V33: 0.0000149060191710327+0.00386080263437865i | W33: 89.77879011 | X33: -48.26638325 | Y33: -0.004151929926 | Z33: -2.741259133 | AA33: 3.903041623 | AU33: 48.26082069 | AV33: 15.1722218
A34: 15.39980513 | B34: 96.75982931 | C34: 0.174167692764493i | D34: -516.743367104808i | F34: 3.9 | G34: 3.89977786383885-0.0294326635563504i | H34: 3.89977786383885+0.144735029208143i | I34: 0.998344749543571-0.0445994941542964i | J34: -2.557898853 | K34: -0.005730586734 | L34: 0 | M34: 0 | N34: -688.991156139744i | O34: 0 | P34: 0 | Q34: 0 | R34: 2.7 | S34: 2.7 | T34: 2.7 | U34: 2.7-688.991156139744i | V34: 0.0000153565466818242+0.00391871290837925i | W34: 89.77547199 | X34: -48.13706436 | Y34: -0.004277329473 | Z34: -2.782351198 | AA34: 3.903133551 | AU34: 48.13133377 | AV34: 15.39980513
A35: 15.6308022 | B35: 98.21122675 | C35: 0.176780208155961i | D35: -509.106765620501i | F35: 3.9 | G35: 3.89977115016735-0.0298741020797784i | H35: 3.89977115016735+0.146906106076183i | I35: 0.998294784035043-0.045266682254151i | J35: -2.596241646 | K35: -0.005903691387 | L35: 0 | M35: 0 | N35: -678.809020827335i | O35: 0 | P35: 0 | Q35: 0 | R35: 2.7 | S35: 2.7 | T35: 2.7 | U35: 2.7-678.809020827335i | V35: 0.0000158206909620829+0.00397749175584568i | W35: 89.77210411 | X35: -48.00774553 | Y35: -0.004406513549 | Z35: -2.824058421 | AA35: 3.903228257 | AU35: 48.00184184 | AV35: 15.6308022
A36: 15.86526424 | B36: 99.68439515 | C36: 0.1794319112783i | D36: -501.583020315764i | F36: 3.9 | G36: 3.89976423359932-0.0303221598320108i | H36: 3.89976423359932+0.149109751446289i | I36: 0.998243312267919-0.0459437959001522i | J36: -2.63515841 | K36: -0.006082021853 | L36: 0 | M36: 0 | N36: -668.777360421019i | O36: 0 | P36: 0 | Q36: 0 | R36: 2.7 | S36: 2.7 | T36: 2.7 | U36: 2.7-668.777360421019i | V36: 0.000016298863552615+0.00403715220169638i | W36: 89.7686857 | X36: -47.87842676 | Y36: -0.004539596193 | Z36: -2.866389972 | AA36: 3.903325825 | AU36: 47.87234474 | AV36: 15.86526424
A37: 16.1032432 | B37: 101.1796611 | C37: 0.182123389947474i | D37: -494.170463365285i | F37: 3.9 | G37: 3.89975710800366-0.0307769359941934i | H37: 3.89975710800366+0.151346453953281i | I37: 0.998190288957373-0.0466309802283004i | J37: -2.674657698 | K37: -0.006265735699 | L37: 0 | M37: 0 | N37: -658.893951153714i | O37: 0 | P37: 0 | Q37: 0 | R37: 2.7 | S37: 2.7 | T37: 2.7 | U37: 2.7-658.893951153714i | V37: 0.0000167914884314489+0.00409770746605528i | W37: 89.76521603 | X37: -47.74910805 | Y37: -0.004676694869 | Z37: -2.909355158 | AA37: 3.903426342 | AU37: 47.74284232 | AV37: 16.1032432
A38: 16.34479185 | B38: 102.697356 | C38: 0.184855240796687i | D38: -486.867451591414i | F38: 3.9 | G38: 3.89974976706411-0.0312385312302898i | H38: 3.89974976706411+0.153616709566397i | I38: 0.998135667464635-0.0473283823813181i | J38: -2.714748195 | K38: -0.006454995229 | L38: 0 | M38: 0 | N38: -649.156602121885i | O38: 0 | P38: 0 | Q38: 0 | R38: 2.7 | S38: 2.7 | T38: 2.7 | U38: 2.7-649.156602121885i | V38: 0.0000172990023896524+0.00415917096717227i | W38: 89.76169431 | X38: -47.61978941 | Y38: -0.004817930572 | Z38: -2.952963423 | AA38: 3.903529897 | AU38: 47.61333442 | AV38: 16.34479185
A39: 16.58996373 | B39: 104.2378163 | C39: 0.187628069408637i | D39: -479.672366099915i | F39: 3.9 | G39: 3.89974220427358-0.0317070477091001i | H39: 3.89974220427358+0.155921021699537i | I39: 0.998079399756983-0.0480361515310379i | J39: -2.755438709 | K39: -0.006649967629 | L39: 0 | M39: 0 | N39: -639.563154799887i | O39: 0 | P39: 0 | Q39: 0 | R39: 2.7 | S39: 2.7 | T39: 2.7 | U39: 2.7-639.563154799887i | V39: 0.0000178218554185025+0.00422155632438701i | W39: 89.75811977 | X39: -47.49047084 | Y39: -0.004963427926 | Z39: -2.997224348 | AA39: 3.903636581 | AU39: 47.48382087 | AV39: 16.58996373
A40: 16.83881318 | B40: 105.8013836 | C40: 0.190442490449766i | D40: -472.583611921099i | F40: 3.9 | G40: 3.89973441292837-0.0321825891265986i | H40: 3.89973441292837+0.158259901323167i | I40: 0.998021436366558-0.0487544389007774i | J40: -2.79673818 | K40: -0.006850825111 | L40: 0 | M40: 0 | N40: -630.111482561465i | O40: 0 | P40: 0 | Q40: 0 | R40: 2.7 | S40: 2.7 | T40: 2.7 | U40: 2.7-630.111482561465i | V40: 0.0000183605111083514+0.00428487736113686i | W40: 89.75449161 | X40: -47.36115233 | Y40: -0.0051133153 | Z40: -3.042147658 | AA40: 3.90374649 | AU40: 47.35430151 | AV40: 16.83881318
A41: 17.09139538 | B41: 107.3884043 | C41: 0.193299127806513i | D41: -465.599617656255i | F41: 3.9 | G41: 3.89972638612229-0.0326652607285976i | H41: 3.89972638612229+0.160633867077915i | I41: 0.997961726348013-0.0494833977876877i | J41: -2.838655677 | K41: -0.007057745064 | L41: 0 | M41: 0 | N41: -620.79949020834i | O41: 0 | P41: 0 | Q41: 0 | R41: 2.7 | S41: 2.7 | T41: 2.7 | U41: 2.7-620.79949020834i | V41: 0.0000189154470595411+0.00434914810800962i | W41: 89.75080903 | X41: -47.2318339 | Y41: -0.005267724914 | Z41: -3.087743218 | AA41: 3.903859719 | AU41: 47.22477615 | AV41: 17.09139538
A42: 17.34776631 | B42: 108.9992304 | C42: 0.196198614723611i | D42: -458.718835129315i | F42: 3.9 | G42: 3.89971811674059-0.0331551693337398i | H42: 3.89971811674059+0.163043445389871i | I42: 0.997900217234932-0.050223183585054i | J42: -2.881200406 | K42: -0.007270910207 | L42: 0 | M42: 0 | N42: -611.625113505754i | O42: 0 | P42: 0 | Q42: 0 | R42: 2.7 | S42: 2.7 | T42: 2.7 | U42: 2.7-611.625113505754i | V42: 0.0000194871553057312+0.00441438280584153i | W42: 89.74707121 | X42: -47.10251554 | Y42: -0.005426792956 | Z42: -3.134021039 | AA42: 3.903976371 | AU42: 47.09524463 | AV42: 17.34776631
A43: 17.60798281 | B43: 110.6342189 | C43: 0.199141593944465i | D43: -451.939739043661i | F43: 3.9 | G43: 3.89970959745349-0.0336524233568212i | H43: 3.89970959745349+0.165489170587644i | I43: 0.997836854994999-0.0509739538045429i | J43: -2.924381703 | K43: -0.007490508754 | L43: 0 | M43: 0 | N43: -602.586318724881i | O43: 0 | P43: 0 | Q43: 0 | R43: 2.7 | S43: 2.7 | T43: 2.7 | U43: 2.7-602.586318724881i | V43: 0.0000200761427500136+0.00448059590886144i | W43: 89.74327733 | X43: -46.97319725 | Y43: -0.005590659699 | Z43: -3.180991278 | AA43: 3.904096548 | AU43: 46.96570674 | AV43: 17.60798281
A44: 17.87210255 | B44: 112.2937321 | C44: 0.202128717853632i | D44: -445.260826644001i | F44: 3.9 | G44: 3.89970082070984-0.0341571328324562i | H44: 3.89970082070984+0.167971585021176i | I44: 0.997771583983885-0.0517358680983621i | J44: -2.968209046 | K44: -0.00771673457 | L44: 0 | M44: 0 | N44: -593.681102192001i | O44: 0 | P44: 0 | Q44: 0 | R44: 2.7 | S44: 2.7 | T44: 2.7 | U44: 2.7-593.681102192001i | V44: 0.0000206829316142005+0.00454780208788162i | W44: 89.73942654 | X44: -46.84387904 | Y44: -0.005759469626 | Z44: -3.228664242 | AA44: 3.904220357 | AU44: 46.83616231 | AV44: 17.87210255
A45: 18.14018409 | B45: 113.9781381 | C45: 0.205160648621436i | D45: -438.680617383252i | F45: 3.9 | G45: 3.89969177873045-0.0346694094390809i | H45: 3.89969177873045+0.170491239182355i | I45: 0.997704346897812-0.0525090882813241i | J45: -3.012692047 | K45: -0.007949787347 | L45: 0 | M45: 0 | N45: -584.907489844336i | O45: 0 | P45: 0 | Q45: 0 | R45: 2.7 | S45: 2.7 | T45: 2.7 | U45: 2.7-584.907489844336i | V45: 0.0000213080599016849+0.00461601623353603i | W45: 89.73551799 | X45: -46.71456091 | Y45: -0.005933371551 | Z45: -3.27705039 | AA45: 3.904347908 | AU45: 46.70661112 | AV45: 18.14018409
A46: 18.41228685 | B46: 115.6878102 | C46: 0.208238058350758i | D46: -432.197652594337i | F46: 3.9 | G46: 3.89968246350108-0.0351893665233051i | H46: 3.89968246350108+0.173048691827453i | I46: 0.997635084724767-0.0532937783527919i | J46: -3.057840463 | K46: -0.008189872772 | L46: 0 | M46: 0 | N46: -576.263536792449i | O46: 0 | P46: 0 | Q46: 0 | R46: 2.7 | S46: 2.7 | T46: 2.7 | U46: 2.7-576.263536792449i | V46: 0.0000219520818742799+0.00468525345956666i | W46: 89.73155082 | X46: -46.58524286 | Y46: -0.006112518748 | Z46: -3.32616033 | AA46: 3.904479313 | AU46: 46.57705299 | AV46: 18.41228685
A47: 18.68847115 | B47: 117.4231273 | C47: 0.211361629226019i | D47: -425.810495166834i | F47: 3.9 | G47: 3.89967286676545-0.0357171191246154i | H47: 3.89967286676545+0.175644510101404i | I47: 0.997563736694314-0.0540901045184775i | J47: -3.103664191 | K47: -0.008437202712 | L47: 0 | M47: 0 | N47: -567.747326889113i | O47: 0 | P47: 0 | Q47: 0 | R47: 2.7 | S47: 2.7 | T47: 2.7 | U47: 2.7-567.747326889113i | V47: 0.0000226155685434624+0.00475552910615863i | W47: 89.72752414 | X47: -46.4559249 | Y47: -0.00629706909 | Z47: -3.37600483 | AA47: 3.904614689 | AU47: 46.4474877 | AV47: 18.68847115
A48: 18.96879822 | B48: 119.1844743 | C48: 0.214532053664409i | D48: -419.517729228408i | F48: 3.9 | G48: 3.89966298001788-0.0362527840004333i | H48: 3.89966298001788+0.178279269663976i | I48: 0.997490240225988-0.0548982352120811i | J48: -3.150173273 | K48: -0.008691995392 | L48: 0 | M48: 0 | N48: -559.356972304544i | O48: 0 | P48: 0 | Q48: 0 | R48: 2.7 | S48: 2.7 | T48: 2.7 | U48: 2.7-559.356972304544i | V48: 0.0000232991081764537+0.00482685874332488i | W48: 89.72343707 | X48: -46.32660702 | Y48: -0.006487185175 | Z48: -3.426594812 | AA48: 3.904754156 | AU48: 46.31791503 | AV48: 18.96879822
A49: 19.25333019 | B49: 120.9722414 | C49: 0.217750034469375i | D49: -413.317959830944i | F49: 3.9 | G49: 3.89965279449579-0.0367964796515357i | H49: 3.89965279449579+0.180953554817839i | I49: 0.997414530876221-0.0557183411167375i | J49: -3.197377899 | K49: -0.008954475589 | L49: 0 | M49: 0 | N49: -551.090613107926i | O49: 0 | P49: 0 | Q49: 0 | R49: 2.7 | S49: 2.7 | T49: 2.7 | U49: 2.7-551.090613107926i | V49: 0.0000240033068175852+0.00489925817434099i | W49: 89.71928869 | X49: -46.19728924 | Y49: -0.006683034476 | Z49: -3.477941359 | AA49: 3.904897838 | AU49: 46.18833476 | AV49: 19.25333019
A50: 19.54213014 | B50: 122.786825 | C50: 0.221016284986416i | D50: -407.209812641325i | F50: 3.9 | G50: 3.89964230117195-0.037348326347839i | H50: 3.89964230117195+0.183667958638577i | I50: 0.997336542283754-0.0565505951862504i | J50: -3.245288407 | K50: -0.009224874827 | L50: 0 | M50: 0 | N50: -542.946416855099i | O50: 0 | P50: 0 | Q50: 0 | R50: 2.7 | S50: 2.7 | T50: 2.7 | U50: 2.7-542.946416855099i | V50: 0.0000247287888254117+0.004972743439231i | W50: 89.71507809 | X50: -46.06797154 | Y50: -0.00688478948 | Z50: -3.530055715 | AA50: 3.905045862 | AU50: 46.05874667 | AV50: 19.54213014
A51: 19.8352621 | B51: 124.6286274 | C51: 0.224331529261212i | D51: -401.191933636773i | F51: 3.9 | G51: 3.89963149074642-0.0379084461545541i | H51: 3.89963149074642+0.186423083106658i | I51: 0.997256206113516-0.0573951726660828i | J51: -3.293915284 | K51: -0.009503431574 | L51: 0 | M51: 0 | N51: -534.922578182364i | O51: 0 | P51: 0 | Q51: 0 | R51: 2.7 | S51: 2.7 | T51: 2.7 | U51: 2.7-534.922578182364i | V51: 0.0000254761974260455+0.00504733081830488i | W51: 89.71080433 | X51: -45.93865394 | Y51: -0.007092627841 | Z51: -3.582949288 | AA51: 3.905198359 | AU51: 45.92915051 | AV51: 19.8352621
A52: 20.13279103 | B52: 126.4980568 | C52: 0.22769650220013i | D52: -395.262988804702i | F52: 3.9 | G52: 3.8996203536385-0.0384769629587166i | H52: 3.8996203536385+0.189219539241413i | I52: 0.997173451998911-0.0582522511140781i | J52: -3.343269173 | K52: -0.009790391455 | L52: 0 | M52: 0 | N52: -527.01731840627i | O52: 0 | P52: 0 | Q52: 0 | R52: 2.7 | S52: 2.7 | T52: 2.7 | U52: 2.7-527.01731840627i | V52: 0.0000262461952832032+0.00512303683574853i | W52: 89.70646647 | X52: -45.80933644 | Y52: -0.007306732527 | Z52: -3.636633653 | AA52: 3.905355464 | AU52: 45.79954605 | AV52: 20.13279103
A53: 20.43478289 | B53: 128.3955276 | C53: 0.231111949733132i | D53: -389.421663846998i | F53: 3.9 | G53: 3.89960887997798-0.039054002496095i | H53: 3.89960887997798+0.192057947237037i | I53: 0.997088207482483-0.059122010420886i | J53: -3.393360869 | K53: -0.01008600746 | L53: 0 | M53: 0 | N53: -519.22888512933i | O53: 0 | P53: 0 | Q53: 0 | R53: 2.7 | S53: 2.7 | T53: 2.7 | U53: 2.7-519.22888512933i | V53: 0.0000270394650854669+0.00519987826326682i | W53: 89.70206355 | X53: -45.68001904 | Y53: -0.007527291985 | Z53: -3.691120554 | AA53: 3.905517317 | AU53: 45.66993303 | AV53: 20.43478289
A54: 20.74130464 | B54: 130.3214605 | C54: 0.234578628979129i | D54: -383.666663888667i | F54: 3.9 | G54: 3.89959705959671-0.0396396923784871i | H54: 3.89959705959671+0.194938936600642i | I54: 0.997000397954908-0.0600046328300476i | J54: -3.444201326 | K54: -0.01039054016 | L54: 0 | M54: 0 | N54: -511.555551851557i | O54: 0 | P54: 0 | Q54: 0 | R54: 2.7 | S54: 2.7 | T54: 2.7 | U54: 2.7-511.555551851557i | V54: 0.000027856710151282+0.00527787212378071i | W54: 89.69759459 | X54: -45.55070175 | Y54: -0.007754500296 | Z54: -3.746421902 | AA54: 3.905684062 | AU54: 45.54031121 | AV54: 20.74130464
A55: 21.05242421 | B55: 132.2762825 | C55: 0.238097308413816i | D55: -377.996713190805i | F55: 3.9 | G55: 3.89958488201935-0.0402341621214007i | H55: 3.89958488201935+0.197863146292415i | I55: 0.99690994659228-0.0609003029577275i | J55: -3.495801657 | K55: -0.01070425795 | L55: 0 | M55: 0 | N55: -503.995617587741i | O55: 0 | P55: 0 | Q55: 0 | R55: 2.7 | S55: 2.7 | T55: 2.7 | U55: 2.7-503.995617587741i | V55: 0.0000286986550522247+0.00535703569517909i | W55: 89.69305859 | X55: -45.42138456 | Y55: -0.007988557348 | Z55: -3.802549786 | AA55: 3.905855844 | AU55: 45.4106803 | AV55: 21.05242421
A56: 21.36821057 | B56: 134.2604267 | C56: 0.241668768040023i | D56: -372.410554867789i | F56: 3.9 | G56: 3.89957233645425-0.0408375431721337i | H56: 3.89957233645425+0.200831224867889i | I56: 0.996816774291641-0.0618092078120397i | J56: -3.548173133 | K56: -0.01102743725 | L56: 0 | M56: 0 | N56: -496.547406490385i | O56: 0 | P56: 0 | Q56: 0 | R56: 2.7 | S56: 2.7 | T56: 2.7 | U56: 2.7-496.547406490385i | V56: 0.0000295660462550916+0.0054373865141261i | W56: 89.68845456 | X56: -45.29206748 | Y56: -0.008229669003 | Z56: -3.859516467 | AA56: 3.906032818 | AU56: 45.28104004 | AV56: 21.36821057
A57: 21.68873373 | B57: 136.2743331 | C57: 0.245293799560624i | D57: -366.906950608659i | F57: 3.9 | G57: 3.89955941178386-0.0414499689382503i | H57: 3.89955941178386+0.203843830622374i | I57: 0.996720799604711-0.062731536811941i | J57: -3.601327194 | K57: -0.01136036279 | L57: 0 | M57: 0 | N57: -489.209267478212i | O57: 0 | P57: 0 | Q57: 0 | R57: 2.7 | S57: 2.7 | T57: 2.7 | U57: 2.7-489.209267478212i | V57: 0.000030459652783378+0.00551894237992483i | W57: 89.68378147 | X57: -45.16275052 | Y57: -0.008478047276 | Z57: -3.917334386 | AA57: 3.90621514 | AU57: 45.15139015 | AV57: 21.68873373
A58: 22.01406473 | B58: 138.3184481 | C58: 0.248973206554033i | D58: -361.48468040262i | F58: 3.9 | G58: 3.89954609655491-0.0420715748164633i | H58: 3.89954609655491+0.20690163173757i | I58: 0.996621938669773-0.0636674818056491i | J58: -3.65527544 | K58: -0.0117033278 | L58: 0 | M58: 0 | N58: -481.979573870159i | O58: 0 | P58: 0 | Q58: 0 | R58: 2.7 | S58: 2.7 | T58: 2.7 | U58: 2.7-481.979573870159i | V58: 0.0000313802668987325+0.00560172135843812i | W58: 89.67903829 | X58: -45.03343367 | Y58: -0.008733910517 | Z58: -3.976016161 | AA58: 3.906402972 | AU58: 45.02173034 | AV58: 22.01406473
A59: 22.3442757 | B59: 140.3932248 | C59: 0.252707804652343i | D59: -356.142542268591i | F59: 3.9 | G59: 3.89953237896824-0.0427024982219243i | H59: 3.89953237896824+0.210005306430419i | I59: 0.996520105141669-0.0646172370885514i | J59: -3.710029644 | K59: -0.0120566343 | L59: 0 | M59: 0 | N59: -474.856723024788i | O59: 0 | P59: 0 | Q59: 0 | R59: 2.7 | S59: 2.7 | T59: 2.7 | U59: 2.7-474.856723024788i | V59: 0.0000323287048029862+0.00568574178606732i | W59: 89.67422397 | X59: -44.90411694 | Y59: -0.008997483595 | Z59: -4.035574595 | AA59: 3.906596479 | AU59: 44.89206031 | AV59: 22.3442757
A60: 22.67943984 | B60: 142.4991232 | C60: 0.256498421722129i | D60: -350.879351988759i | F60: 3.9 | G60: 3.89951824686847-0.0433428786179309i | H60: 3.89951824686847+0.213155543104198i | I60: 0.996415210119858-0.0655809994205519i | J60: -3.765601745 | K60: -0.01242059335 | L60: 0 | M60: 0 | N60: -467.839135985013i | O60: 0 | P60: 0 | Q60: 0 | R60: 2.7 | S60: 2.7 | T60: 2.7 | U60: 2.7-467.839135985013i | V60: 0.000033305807361383+0.00577102227378988i | W60: 89.66933744 | X60: -44.77480034 | Y60: -0.009268998096 | Z60: -4.096022676 | AA60: 3.906795833 | AU60: 44.76237975 | AV60: 22.67943984
A61: 23.01963144 | B61: 144.63661 | C61: 0.26034589804796i | D61: -345.693942846068i | F61: 3.9 | G61: 3.89950368773311-0.0439928575460491i | H61: 3.89950368773311+0.216353040501911i | I61: 0.996307162074488-0.0665589680428221i | J61: -3.822003857 | K61: -0.01279552534 | L61: 0 | M61: 0 | N61: -460.925257128091i | O61: 0 | P61: 0 | Q61: 0 | R61: 2.7 | S61: 2.7 | T61: 2.7 | U61: 2.7-460.925257128091i | V61: 0.0000343124408476437+0.00585758171125651i | W61: 89.66437761 | X61: -44.64548387 | Y61: -0.009548692514 | Z61: -4.157373579 | AA61: 3.907001212 | AU61: 44.63268834 | AV61: 23.01963144
A62: 23.36492591 | B62: 146.8061592 | C62: 0.26425108651868i | D62: -340.585165365585i | F62: 3.9 | G62: 3.89948868866154-0.0446525786566649i | H62: 3.89948868866154+0.219598507862015i | I62: 0.996195866770434-0.0675513446939049i | J62: -3.879248267 | K62: -0.01318176023 | L62: 0 | M62: 0 | N62: -454.11355382078i | O62: 0 | P62: 0 | Q62: 0 | R62: 2.7 | S62: 2.7 | T62: 2.7 | U62: 2.7-454.11355382078i | V62: 0.0000353494977115285+0.00594543927094878i | W62: 89.65934339 | X62: -44.51616753 | Y62: -0.009836812458 | Z62: -4.219640669 | AA62: 3.907212797 | AU62: 44.50298577 | AV62: 23.36492591
A63: 23.7153998 | B63: 149.0082516 | C63: 0.26821485281646i | D63: -335.551887059689i | F63: 3.9 | G63: 3.89947323636374-0.0453221877399644i | H63: 3.89947323636374+0.222892665076496i | I63: 0.996081227189251-0.0685583336251178i | J63: -3.937347439 | K63: -0.01357963783 | L63: 0 | M63: 0 | N63: -447.402516079586i | O63: 0 | P63: 0 | Q63: 0 | R63: 2.7 | S63: 2.7 | T63: 2.7 | U63: 2.7-447.402516079586i | V63: 0.0000364178973695733+0.00603461441239823i | W63: 89.65423367 | X63: -44.38685132 | Y63: -0.01013361086 | Z63: -4.282837503 | AA63: 3.907430775 | AU63: 44.37327169 | AV63: 23.7153998
A64: 24.07113079 | B64: 151.2433753 | C64: 0.272238075608707i | D64: -330.592992177034i | F64: 3.9 | G64: 3.89945731714827-0.0460018327573452i | H64: 3.89945731714827+0.226236242851362i | I64: 0.995963143448995-0.0695801416152189i | J64: -3.996314019 | K64: -0.01398950815 | L64: 0 | M64: 0 | N64: -440.790656236045i | O64: 0 | P64: 0 | Q64: 0 | R64: 2.7 | S64: 2.7 | T64: 2.7 | U64: 2.7-440.790656236045i | V64: 0.0000375185870196989+0.00612512688646749i | W64: 89.6490473 | X64: -44.25753526 | Y64: -0.0104393482 | Z64: -4.346977832 | AA64: 3.90765534 | AU64: 44.24354575 | AV64: 24.07113079
A65: 24.43219776 | B65: 153.512026 | C65: 0.276321646742838i | D65: -325.707381455206i | F65: 3.9 | G65: 3.89944091691046-0.0466916638732743i | H65: 3.89944091691046+0.229629982869564i | I65: 0.995841512721861-0.0706169779842619i | J65: -4.05616083 | K65: -0.01441173164 | L65: 0 | M65: 0 | N65: -434.276508606941i | O65: 0 | P65: 0 | Q65: 0 | R65: 2.7 | S65: 2.7 | T65: 2.7 | U65: 2.7-434.276508606941i | V65: 0.0000386525424804134+0.00621699673969459i | W65: 89.64378315 | X65: -44.12821934 | Y65: -0.01075429271 | Z65: -4.412075608 | AA65: 3.90788669 | AU65: 44.11380761 | AV65: 24.43219776
A66: 24.79868072 | B66: 155.8147064 | C66: 0.28046647144398i | D66: -320.89397187705i | F66: 3.9 | G66: 3.89942402111973-0.047391833487585i | H66: 3.89942402111973+0.233074637956395i | I66: 0.995716229149577-0.071669054606603i | J66: -4.116900883 | K66: -0.01484667951 | L66: 0 | M66: 0 | N66: -427.8586291694i | O66: 0 | P66: 0 | Q66: 0 | R66: 2.7 | S66: 2.7 | T66: 2.7 | U66: 2.7-427.8586291694i | V66: 0.0000398207690553507+0.00631024431870134i | W66: 89.63844003 | X66: -43.99890357 | Y66: -0.01107872061 | Z66: -4.478144978 | AA66: 3.908125031 | AU66: 43.98405689 | AV66: 24.79868072
A67: 25.17066093 | B67: 158.151927 | C67: 0.28467346851564i | D67: -316.151696430591i | F67: 3.9 | G67: 3.89940661480688-0.0481024962682292i | H67: 3.89940661480688+0.236570972247411i | I67: 0.995587183756519-0.0727365859229886i | J67: -4.178547372 | K67: -0.01529473408 | L67: 0 | M67: 0 | N67: -421.535595240788i | O67: 0 | P67: 0 | Q67: 0 | R67: 2.7 | S67: 2.7 | T67: 2.7 | U67: 2.7-421.535595240788i | V67: 0.0000410243024239062+0.00640489027466645i | W67: 89.63301678 | X67: -43.86958795 | Y67: -0.01141291634 | Z67: -4.545200296 | AA67: 3.908370574 | AU67: 43.85429322 | AV67: 25.17066093
A68: 25.54822085 | B68: 160.5242059 | C68: 0.288943570543374i | D68: -311.479503872504i | F68: 3.9 | G68: 3.89938868255071-0.0488238091844804i | H68: 3.89938868255071+0.240119761358894i | I68: 0.995454264360473-0.0738197889516666i | J68: -4.241113683 | K68: -0.01575628909 | L68: 0 | M68: 0 | N68: -415.306005163338i | O68: 0 | P68: 0 | Q68: 0 | R68: 2.7 | S68: 2.7 | T68: 2.7 | U68: 2.7-415.306005163338i | V68: 0.0000422642095587589+0.00650095556786456i | W68: 89.62751219 | X68: -43.74027249 | Y68: -0.01175717282 | Z68: -4.613256119 | AA68: 3.908623536 | AU68: 43.7245162 | AV68: 25.54822085
A69: 25.93144416 | B69: =2*PI()*$A69 -> 162.9320689 | C69: =COMPLEX(0,10^-3*$C$3*$B69) -> 0.293277724101525i | D69: =IF($D$3>0,COMPLEX(0,-1*10^6/($B69*$D$3)),"") -> -306.876358495078i | E69: =IF($E$3>0,COMPLEX(0,10^-3*$E$3*$B69),"") ->  | F69: =IF($E$3>0,IMSUM($E69,$F$3),$F$3) -> 3.9 | G69: =IF($D$3>0,IMPARA($F69,$D69),$F69) -> 3.89937020846454-0.0495559315406033i | H69: =IMSUM($C69,$G69) -> 3.89937020846454+0.243721792560922i | I69: =IMPRODUCT(IMDIV($G69,$H69),IMDIV($F$3,$F69)) -> 0.995317355481014-0.0749188832984564i | J69: =IMARGUMENT($I69)*180/PI() -> -4.304613392 | K69: =20*LOG(IMABS($I69)) -> -0.01623175 | L69: =IF($L$3>0,COMPLEX(0,-1*10^6/($B69*$L$3)),0) -> 0 | M69: =IF($L$3>0,IMPARA($M$3,$L69), 0) -> 0 | N69: =COMPLEX(0,-1*10^6/($B69*$N$3)) -> -409.168477993437i | O69: =IF($O$3>0,COMPLEX(0,10^-3*$O$3*$B69), 0) -> 0 | P69: =IF($P$3>0, COMPLEX(0,-1*10^6/($B69*$P$3)),0) -> 0 | Q69: =COMPLEX(0,10^-6*$Q$3*$B69) -> 0 | R69: =$R$3 -> 2.7 | S69: =IMSUM($R69,$P69) -> 2.7 | T69: =IF($O$3>0,IMPARA($S69,$O69), $S69) -> 2.7 | U69: =IMSUM($T69,$Q69,$N69,$M69) -> 2.7-409.168477993437i | V69: =IMPRODUCT( IMDIV($R69,$S69 ),IMDIV($T69,$U69)) -> 0.0000435415896710897+0.00659846147227205i | W69: =IMARGUMENT($V69)*180/PI() -> 89.62192503 | X69: =20*LOG(IMABS($V69)) -> -43.61095719 | Y69: =20*LOG(IMABS(IMSUB($I69,$V69))) -> -0.01211179167 | Z69: =IMARGUMENT(IMSUM($I69,IMPRODUCT(-1,$V69)))*180/PI() -> -4.682327213 | AA69: =IMABS(IMDIV(IMPRODUCT($U69,$H69),IMSUM($U69,$H69))) -> 3.908884141 | AU69: =ABS($K69-$X69) -> 43.59472544 | AV69: =$A69 -> 25.93144416
A70: =$A69*1.015 -> 26.32041582 | B70: 165.37605 | C70: 0.297676889963048i | D70: -302.341239896628i | F70: 3.9 | G70: 3.89935117618223-0.0502990250099861i | H70: 3.89935117618223+0.247377864953062i | I70: 0.995176338245422-0.0760340911657066i | J70: -4.369060266 | K70: -0.0167215344 | L70: 0 | M70: 0 | N70: -403.121653195504i | O70: 0 | P70: 0 | Q70: 0 | R70: 2.7 | S70: 2.7 | T70: 2.7 | U70: 2.7-403.121653195504i | V70: 0.0000448575751843313+0.00669742958024046i | W70: 89.61625408 | X70: -43.48164206 | Y70: -0.01247708346 | Z70: -4.752428552 | AA70: 3.909152621 | AU70: 43.46492053 | AV70: 26.32041582
A71: 26.71522206 | B71: 167.8566907 | C71: 0.302142043312493i | D71: -297.873142755299i | F71: 3.9 | G71: 3.89933156884348-0.0510532536697421i | H71: 3.89933156884348+0.251088789642751i | I71: 0.995031090292098-0.0771656373600811i | J71: -4.434468272 | K71: -0.01722607232 | L71: 0 | M71: 0 | N71: -397.164190340398i | O71: 0 | P71: 0 | Q71: 0 | R71: 2.7 | S71: 2.7 | T71: 2.7 | U71: 2.7-397.164190340398i | V71: 0.0000462133327373072+0.00679788180723852i | W71: 89.61049806 | X71: -43.35232711 | Y71: -0.01285336803 | Z71: -4.823575327 | AA71: 3.909429213 | AU71: 43.33510103 | AV71: 26.71522206
A72: 27.11595039 | B72: 170.3745411 | C72: 0.306674173962181i | D72: -293.471076606206i | F72: 3.9 | G72: 3.89931136907909-0.0518187840357923i | H72: 3.89931136907909+0.254855389926389i | I72: 0.994881485671423-0.078313749299084i | J72: -4.500851573 | K72: -0.01774580663 | L72: 0 | M72: 0 | N72: -391.294768808274i | O72: 0 | P72: 0 | Q72: 0 | R72: 2.7 | S72: 2.7 | T72: 2.7 | U72: 2.7-391.294768808274i | V72: 0.0000476100642176506+0.00689984039666396i | W72: 89.60465572 | X72: -43.22301233 | Y72: -0.01324097467 | Z72: -4.895782943 | AA72: 3.909714162 | AU72: 43.20526652 | AV72: 27.11595039
A73: 27.52268965 | B73: 172.9301592 | C73: 0.311274286571613i | D73: -289.134065621878i | F73: 3.9 | G73: 3.89929055899571-0.0525957850984287i | H73: 3.89929055899571+0.258678501473184i | I73: 0.994727394743991-0.0794786570162518i | J73: -4.568224534 | K73: -0.01828119336 | L73: 0 | M73: 0 | N73: -385.512087495837i | O73: 0 | P73: 0 | Q73: 0 | R73: 2.7 | S73: 2.7 | T73: 2.7 | U73: 2.7-385.512087495837i | V73: 0.0000490490078264107+0.00700332792472564i | W73: 89.59872575 | X73: -43.09369773 | Y73: -0.01364024248 | Z73: -4.969067021 | AA73: 3.910007721 | AU73: 43.07541654 | AV73: 27.52268965
A74: 27.93552999 | B74: 175.5241116 | C74: 0.315943400870188i | D74: -284.861148395939i | F74: 3.9 | G74: 3.89926912015987-0.0533844283583611i | H74: 3.89926912015987+0.262558972511827i | I74: 0.99456868407618-0.0806605931649436i | J74: -4.636601723 | K74: -0.01883270217 | L74: 0 | M74: 0 | N74: -379.814864527918i | O74: 0 | P74: 0 | Q74: 0 | R74: 2.7 | S74: 2.7 | T74: 2.7 | U74: 2.7-379.814864527918i | V74: 0.000050531439174789+0.00710836730539749i | W74: 89.59270683 | X74: -42.96438333 | Y74: -0.01405152059 | Z74: -5.043443408 | AA74: 3.910310149 | AU74: 42.94555062 | AV74: 27.93552999
A75: 28.35456294 | B75: 178.1569733 | C75: 0.32068255188324i | D75: -280.651377729989i | F75: 3.9 | G75: 3.89924703358176-0.0541848878632599i | H75: 3.89924703358176+0.26649766401998i | I75: 0.994405216332981-0.0818597930206233i | J75: -4.705997915 | K75: -0.01940081668 | L75: 0 | M75: 0 | N75: -374.201836973318i | O75: 0 | P75: 0 | Q75: 0 | R75: 2.7 | S75: 2.7 | T75: 2.7 | U75: 2.7-374.201836973318i | V75: 0.000052058672413973+0.00721498179544477i | W75: 89.58659765 | X75: -42.83506911 | Y75: -0.01447516851 | Z75: -5.118928172 | AA75: 3.910621715 | AU75: 42.8156683 | AV75: 28.35456294
A76: 28.77988139 | B76: 180.8293279 | C76: 0.325492790161489i | D76: -276.503820423634i | F76: 3.9 | G76: 3.89922427969845-0.0549973402447938i | H76: 3.89922427969845+0.270495449916695i | I76: 0.994236850168047-0.0830764944815662i | J76: -4.776428091 | K76: -0.01998603489 | L76: 0 | M76: 0 | N76: -368.671760564846i | O76: 0 | P76: 0 | Q76: 0 | R76: 2.7 | S76: 2.7 | T76: 2.7 | U76: 2.7-368.671760564846i | V76: 0.0000536320613990645+0.00732319499952409i | W76: 89.58039683 | X76: -42.7057551 | Y76: -0.01491155637 | Z76: -5.195537607 | AA76: 3.910942695 | AU76: 42.68576907 | AV76: 28.77988139
A77: 29.21157961 | B77: 183.5417678 | C77: 0.330375182013911i | D77: -272.41755706762i | F77: 3.9 | G77: 3.89920083835678-0.0558219647561731i | H77: 3.89920083835678+0.274553217257738i | I77: 0.994063440110895-0.0843109380678774i | J77: -4.847907446 | K77: -0.02058886965 | L77: 0 | M77: 0 | N77: -363.223409423493i | O77: 0 | P77: 0 | Q77: 0 | R77: 2.7 | S77: 2.7 | T77: 2.7 | U77: 2.7-363.223409423493i | V77: 0.0000552530008881316+0.00743303087535794i | W77: 89.57410301 | X77: -42.5764413 | Y77: -0.01536106528 | Z77: -5.27328824 | AA77: 3.911273372 | AU77: 42.55585243 | AV77: 29.21157961
A78: 29.6497533 | B78: 186.2948943 | C78: 0.33533080974412i | D78: -268.39168184002i | F78: 3.9 | G78: 3.8991766887953-0.0566589433101953i | H78: 3.8991766887953+0.278671866433925i | I78: 0.993884836451208-0.0855633669187502i | J78: -4.920451386 | K78: -0.02120984904 | L78: 0 | M78: 0 | N78: -357.855575786693i | O78: 0 | P78: 0 | Q78: 0 | R78: 2.7 | S78: 2.7 | T78: 2.7 | U78: 2.7-357.855575786693i | V78: 0.0000569229277774363+0.00754451373898474i | W78: 89.5677148 | X78: -42.4471277 | Y78: -0.01582408763 | Z78: -5.352196826 | AA78: 3.91161404 | AU78: 42.42591786 | AV78: 29.6497533
A79: 30.0944996 | B79: 189.0893177 | C79: 0.340360771890282i | D79: -264.425302305438i | F79: 3.9 | G79: 3.89915180962615-0.057508460517809i | H79: 3.89915180962615+0.282852311372473i | I79: 0.993700885120173-0.0868340267878375i | J79: -4.994075537 | K79: -0.02184951683 | L79: 0 | M79: 0 | N79: -352.567069740584i | O79: 0 | P79: 0 | Q79: 0 | R79: 2.7 | S79: 2.7 | T79: 2.7 | U79: 2.7-352.567069740584i | V79: 0.0000586433223739376+0.00765766827008578i | W79: 89.56123077 | X79: -42.31781433 | Y79: -0.0163010274 | Z79: -5.432280358 | AA79: 3.911965001 | AU79: 42.29596482 | AV79: 30.0944996
A80: 30.54591709 | B80: 191.9256575 | C80: 0.345466183468636i | D80: -260.517539217181i | F80: 3.9 | G80: 3.89912617881615-0.0583707037271912i | H80: 3.89912617881615+0.287095479741445i | I80: 0.993511427568803-0.08812316603665i | J80: -5.068795738 | K80: -0.02250843295 | L80: 0 | M80: 0 | N80: -347.356718956241i | O80: 0 | P80: 0 | Q80: 0 | R80: 2.7 | S80: 2.7 | T80: 2.7 | U80: 2.7-347.356718956241i | V80: 0.0000604157097061814+0.00777251951738959i | W80: 89.5546495 | X80: -42.18850118 | Y80: -0.01679230052 | Z80: -5.513556066 | AA80: 3.912326564 | AU80: 42.16599275 | AV80: 30.54591709
A81: 31.00410585 | B81: 194.8045423 | C81: 0.350648176220665i | D81: -256.667526322345i | F81: 3.9 | G81: 3.89909977366731-0.0592458630633503i | H81: 3.89909977366731+0.291402313157315i | I81: 0.993316300643182-0.0894310356258642i | J81: -5.144628056 | K81: -0.02318717395 | L81: 0 | M81: 0 | N81: -342.223368429794i | O81: 0 | P81: 0 | Q81: 0 | R81: 2.7 | S81: 2.7 | T81: 2.7 | U81: 2.7-342.223368429794i | V81: 0.0000622416608747431+0.00788909290415537i | W81: 89.54796952 | X81: -42.05918827 | Y81: -0.01729833519 | Z81: -5.59604142 | AA81: 3.912699052 | AU81: 42.0360011 | AV81: 31.00410585
A82: 31.46916744 | B82: 197.7266105 | C82: 0.355907898863975i | D82: -252.874410169798i | F82: 3.9 | G82: 3.89907257079683-0.0601341314682532i | H82: 3.89907257079683+0.295773767395722i | I82: 0.993115336456584-0.0907578891044258i | J82: -5.221588775 | K82: -0.02388633349 | L82: 0 | M82: 0 | N82: -337.165880226398i | O82: 0 | P82: 0 | Q82: 0 | R82: 2.7 | S82: 2.7 | T82: 2.7 | U82: 2.7-337.165880226398i | V82: 0.0000641227944434059+0.00800741423373605i | W82: 89.54118935 | X82: -41.9298756 | Y82: -0.01781957227 | Z82: -5.679754134 | AA82: 3.913082792 | AU82: 41.90598926 | AV82: 31.46916744
A83: 31.94120495 | B83: 200.6925096 | C83: 0.361246517346935i | D83: -249.137349920984i | F83: 3.9 | G83: 3.89904454611656-0.0610357047414905i | H83: 3.89904454611656+0.300210812605445i | I83: 0.992908362258394-0.0921039825963273i | J83: -5.299694412 | K83: -0.02460652284 | L83: 0 | M83: 0 | N83: -332.183133227978i | O83: 0 | P83: 0 | Q83: 0 | R83: 2.7 | S83: 2.7 | T83: 2.7 | U83: 2.7-332.183133227978i | V83: 0.0000660607778723072+0.0081275096952224i | W83: 89.53430749 | X83: -41.80056317 | Y83: -0.0183564656 | Z83: -5.764712169 | AA83: 3.913478126 | AU83: 41.77595664 | AV83: 31.94120495
A84: 32.42032302 | B84: 203.7028973 | C84: 0.366665215107139i | D84: -245.455517163531i | F84: 3.9 | G84: 3.89901567481163-0.0619507815814729i | H84: 3.89901567481163+0.304714433525666i | I84: 0.99269520029979-0.0934695747849431i | J84: -5.378961708 | K84: -0.02534837138 | L84: 0 | M84: 0 | N84: -327.274022884708i | O84: 0 | P84: 0 | Q84: 0 | R84: 2.7 | S84: 2.7 | T84: 2.7 | U84: 2.7-327.274022884708i | V84: 0.0000680573289943126+0.00824940586916917i | W84: 89.52732241 | X84: -41.67125099 | Y84: -0.0189094824 | Z84: -5.850933733 | AA84: 3.913885404 | AU84: 41.64590262 | AV84: 32.42032302
A85: 32.90662787 | B85: 206.7584407 | C85: 0.372165193333746i | D85: -241.828095727617i | F85: 3.9 | G85: 3.89898593131866-0.0628795636271729i | H85: 3.89898593131866+0.309285629706573i | I85: 0.992475667696113-0.0948549268947824i | J85: -5.459407639 | K85: -0.02611252713 | L85: 0 | M85: 0 | N85: -322.437460970155i | O85: 0 | P85: 0 | Q85: 0 | R85: 2.7 | S85: 2.7 | T85: 2.7 | U85: 2.7-322.437460970155i | V85: 0.000070114217535923+0.00837312973340449i | W85: 89.52023258 | X85: -41.54193908 | Y85: -0.01947910365 | Z85: -5.938437287 | AA85: 3.914304985 | AU85: 41.51582656 | AV85: 32.90662787
A86: 33.40022729 | B86: 209.8598174 | C86: 0.377747671233752i | D86: -238.254281505041i | F86: 3.9 | G86: 3.89895528930318-0.0638222555004145i | H86: 3.89895528930318+0.313925415733338i | I86: 0.992249576285892-0.0962603026705309i | J86: -5.541049414 | K86: -0.0268996573 | L86: 0 | M86: 0 | N86: -317.672375340055i | O86: 0 | P86: 0 | Q86: 0 | R86: 2.7 | S86: 2.7 | T86: 2.7 | U86: 2.7-317.672375340055i | V86: 0.0000722332666840464+0.00849870866892321i | W86: 89.51303641 | X86: -41.41262744 | Y86: -0.02006582448 | Z86: -6.027241547 | AA86: 3.914737241 | AU86: 41.38572778 | AV86: 33.40022729
A87: 33.9012307 | B87: 213.0077146 | C87: 0.383413886302258i | D87: -234.733282270976i | F87: 3.9 | G87: 3.89892372163646-0.0647790648487104i | H87: 3.89892372163646+0.318634821453548i | I87: 0.99201673248645-0.0976859683532365i | J87: -5.623904478 | K87: -0.02771044885 | L87: 0 | M87: 0 | N87: -312.977709694635i | O87: 0 | P87: 0 | Q87: 0 | R87: 2.7 | S87: 2.7 | T87: 2.7 | U87: 2.7-312.977709694635i | V87: 0.0000744163547000294+0.00862617046586621i | W87: 89.50573232 | X87: -41.28331608 | Y87: -0.02067015457 | Z87: -6.117365487 | AA87: 3.915182556 | AU87: 41.25560563 | AV87: 33.9012307
A88: 34.40974916 | B88: 216.2028303 | C88: 0.389165094596792i | D88: -231.264317508351i | F88: 3.9 | G88: 3.8988912003716-0.0657502023886593i | H88: 3.8988912003716+0.323414892208133i | I88: 0.991776937146045-0.0991321926534965i | J88: -5.707990518 | K88: -0.02854560902 | L88: 0 | M88: 0 | N88: -308.352423344468i | O88: 0 | P88: 0 | Q88: 0 | R88: 2.7 | S88: 2.7 | T88: 2.7 | U88: 2.7-308.352423344468i | V88: 0.0000766654165823516+0.00875554332958565i | W88: 89.49831868 | X88: -41.154005 | Y88: -0.02129261859 | Z88: -6.208828339 | AA88: 3.915641323 | AU88: 41.12545939 | AV88: 34.40974916
A89: 34.9258954 | B89: 219.4458728 | C89: 0.395002571015744i | D89: -227.846618234829i | F89: 3.9 | G89: 3.89885769671887-0.0667358819499004i | H89: 3.89885769671887+0.328266689065844i | I89: 0.991529985392498-0.10059924672149i | J89: -5.79332546 | K89: -0.02940586598 | L89: 0 | M89: 0 | N89: -303.795490979772i | O89: 0 | P89: 0 | Q89: 0 | R89: 2.7 | S89: 2.7 | T89: 2.7 | U89: 2.7-303.795490979772i | V89: 0.0000789824457794646+0.00888685588679839i | W89: 89.49079385 | X89: -41.02469422 | Y89: -0.02193375657 | Z89: -6.301649602 | AA89: 3.916113949 | AU89: 40.99528835 | AV89: 34.9258954
A90: 35.44978383 | B90: 222.7375609 | C90: 0.40092760958098i | D90: -224.479426832344i | F90: 3.9 | G90: 3.8988231810204-0.0677363205196348i | H90: 3.8988231810204+0.333191289061345i | I90: 0.991275666478246-0.102087404113693i | J90: -5.879927478 | K90: -0.03029196937 | L90: 0 | M90: 0 | N90: -299.305902443125i | O90: 0 | P90: 0 | Q90: 0 | R90: 2.7 | S90: 2.7 | T90: 2.7 | U90: 2.7-299.305902443125i | V90: 0.0000813694959542735+0.00902013719182816i | W90: 89.48315617 | X90: -40.89538374 | Y90: -0.02259412441 | Z90: -6.395849037 | AA90: 3.916600852 | AU90: 40.86509177 | AV90: 35.44978383
A91: 35.98153058 | B91: 226.0786243 | C91: 0.406941523724695i | D91: -221.161996879156i | F91: 3.9 | G91: 3.89878762272404-0.0687517382877131i | H91: 3.89878762272404+0.338189785436982i | I91: 0.991013763621789-0.103596940756127i | J91: -5.96781499 | K91: -0.03120469096 | L91: 0 | M91: 0 | N91: -294.882662505542i | O91: 0 | P91: 0 | Q91: 0 | R91: 2.7 | S91: 2.7 | T91: 2.7 | U91: 2.7-294.882662505542i | V91: 0.0000838286828018144+0.00915541673293762i | W91: 89.47540394 | X91: -40.76607358 | Y91: -0.02327429427 | Z91: -6.491446676 | AA91: 3.917102463 | AU91: 40.73486889 | AV91: 35.98153058
A92: 36.52125354 | B92: 229.4698037 | C92: 0.413045646580565i | D92: -217.89359298439i | F92: 3.9 | G92: 3.89875099035647-0.0697823586922978i | H92: 3.89875099035647+0.343263287888267i | I92: 0.990744053845463-0.105128134903934i | J92: -6.057006667 | K92: -0.03214482528 | L92: 0 | M92: 0 | N92: -290.524790645854i | O92: 0 | P92: 0 | Q92: 0 | R92: 2.7 | S92: 2.7 | T92: 2.7 | U92: 2.7-290.524790645854i | V92: 0.0000863621859217343+0.00929272443875192i | W92: 89.46753545 | X92: -40.63676374 | Y92: -0.02397485507 | Z92: -6.588462822 | AA92: 3.917619226 | AU92: 40.60461891 | AV92: 36.52125354
A93: 37.06907235 | B93: 232.9118507 | C93: 0.419241331279274i | D93: -214.673490625015i | F93: 3.9 | G93: 3.8987132514955-0.0708284084661019i | H93: 3.8987132514955+0.348412922813172i | I93: 0.990466307809513-0.106681267097149i | J93: -6.147521431 | K93: -0.03311319025 | L93: 0 | M93: 0 | N93: -286.231320833354i | O93: 0 | P93: 0 | Q93: 0 | R93: 2.7 | S93: 2.7 | T93: 2.7 | U93: 2.7-286.231320833354i | V93: 0.0000889722507472131+0.00943209068477451i | W93: 89.45954895 | X93: -40.50745423 | Y93: -0.02469641295 | Z93: -6.686918053 | AA93: 3.918151598 | AU93: 40.47434104 | AV93: 37.06907235
A94: 37.62510843 | B94: 236.4055285 | C94: 0.425529951248463i | D94: -211.500975985237i | F94: 3.9 | G94: 3.8986743727415-0.0718901176832072i | H94: 3.8986743727415+0.353639833565256i | I94: 0.990180289642406-0.10825662011243i | J94: -6.239378458 | K94: -0.03411062788 | L94: 0 | M94: 0 | N94: -282.001301313649i | O94: 0 | P94: 0 | Q94: 0 | R94: 2.7 | S94: 2.7 | T94: 2.7 | U94: 2.7-282.001301313649i | V94: 0.000091661190532032+0.00957354629999679i | W94: 89.45144268 | X94: -40.37814506 | Y94: -0.02543959172 | Z94: -6.786833224 | AA94: 3.918700052 | AU94: 40.34403443 | AV94: 37.62510843
A95: 38.18948506 | B95: 239.9516114 | C95: 0.43191290051719i | D95: -208.375345798263i | F95: 3.9 | G95: 3.89863431968809-0.072967719806468i | H95: 3.89863431968809+0.358945180710722i | I95: 0.989885756767359-0.109854478910595i | J95: -6.332597183 | K95: -0.03513800495 | L95: 0 | M95: 0 | N95: -277.833794397684i | O95: 0 | P95: 0 | Q95: 0 | R95: 2.7 | S95: 2.7 | T95: 2.7 | U95: 2.7-277.833794397684i | V95: 0.0000944313883975268+0.00971712257360234i | W95: 89.44321484 | X95: -40.24883625 | Y95: -0.02620503342 | Z95: -6.888229468 | AA95: 3.919265071 | AU95: 40.21369824 | AV95: 38.18948506
A96: 38.76232733 | B96: 243.5508856 | C96: 0.438391594024947i | D96: -205.295907190407i | F96: 3.9 | G96: 3.89859305689177-0.0740614517354995i | H96: 3.89859305689177+0.364330142289447i | I96: 0.98958245972504-0.111475130579737i | J96: -6.427197301 | K96: -0.03619621369 | L96: 0 | M96: 0 | N96: -273.727876253876i | O96: 0 | P96: 0 | Q96: 0 | R96: 2.7 | S96: 2.7 | T96: 2.7 | U96: 2.7-273.727876253876i | V96: 0.0000972852994412383+0.00986285126176761i | W96: 89.4348636 | X96: -40.1195278 | Y96: -0.0269933988 | Z96: -6.991128204 | AA96: 3.919847157 | AU96: 40.08333159 | AV96: 38.76232733
A97: 39.34376224 | B97: 247.2041489 | C97: 0.444967467935322i | D97: -202.261977527494i | F97: 3.9 | G97: 3.89855054784088-0.0751715538552601i | H97: 3.89855054784088+0.369795914080062i | I97: 0.989270141992396-0.11311886427372i | J97: -6.52319877 | K97: -0.03728617256 | L97: 0 | M97: 0 | N97: -269.682636703326i | O97: 0 | P97: 0 | Q97: 0 | R97: 2.7 | S97: 2.7 | T97: 2.7 | U97: 2.7-269.682636703326i | V97: 0.0001002254529091+0.0100107645945596i | W97: 89.42638711 | X97: -39.99021973 | Y97: -0.02780536782 | Z97: -7.095551133 | AA97: 3.920446824 | AU97: 39.95293355 | AV97: 39.34376224
A98: 39.93391868 | B98: 250.9122111 | C98: 0.451641979954351i | D98: -199.272884263541i | F98: 3.9 | G98: 3.89850675492337-0.0762982700852236i | H98: 3.89850675492337+0.375343709869127i | I98: 0.988948539797603-0.114785971145844i | J98: -6.620621811 | K98: -0.03840882693 | L98: 0 | M98: 0 | N98: -265.697179018055i | O98: 0 | P98: 0 | Q98: 0 | R98: 2.7 | S98: 2.7 | T98: 2.7 | U98: 2.7-265.697179018055i | V98: 0.00010325445443308+0.0101608952829325i | W98: 89.41778351 | X98: -39.86091204 | Y98: -0.02864164024 | Z98: -7.201520247 | AA98: 3.921064604 | AU98: 39.82250321 | AV98: 39.93391868
A99: 40.53292746 | B99: 254.6758943 | C99: 0.458416609653667i | D99: -196.327964791666i | F99: 3.9 | G99: 3.89846163939383-0.0774418479291512i | H99: 3.89846163939383+0.380974761724516i | I99: 0.988617381931083-0.116476744277434i | J99: -6.719486915 | K99: -0.03956514991 | L99: 0 | M99: 0 | N99: -261.770619722221i | O99: 0 | P99: 0 | Q99: 0 | R99: 2.7 | S99: 2.7 | T99: 2.7 | U99: 2.7-261.770619722221i | V99: 0.000106374988336249+0.0103132765258237i | W99: 89.40905087 | X99: -39.73160475 | Y99: -0.02950293613 | Z99: -7.309057825 | AA99: 3.921701041 | AU99: 39.6920396 | AV99: 40.53292746
A100: 41.14092137 | B100: 258.4960327 | C100: 0.465292858798472i | D100: -193.426566297208i | F100: 3.9 | G100: 3.89841516133943-0.0786025385254602i | H100: 3.89841516133943+0.386690320273012i | I100: 0.988276389552591-0.11819147860114i | J100: -6.819814842 | K100: -0.0407561431 | L100: 0 | M100: 0 | N100: -257.902088396277i | O100: 0 | P100: 0 | Q100: 0 | R100: 2.7 | S100: 2.7 | T100: 2.7 | U100: 2.7-257.902088396277i | V100: 0.000109589820007273+0.0104679420173511i | W100: 89.40018728 | X100: -39.60229786 | Y100: -0.03038999643 | Z100: -7.418186444 | AA100: 3.922356701 | AU100: 39.56154172 | AV100: 41.14092137
A101: 41.75803519 | B101: 262.3734732 | C101: 0.472272251680449i | D101: -190.568045613013i | F101: 3.9 | G101: 3.8983672796448-0.0797805966981935i | H101: 3.8983672796448+0.392491654982256i | I101: 0.987925275994333-0.119930470818699i | J101: -6.921626623 | K101: -0.0419828374 | L101: 0 | M101: 0 | N101: -254.090727484017i | O101: 0 | P101: 0 | Q101: 0 | R101: 2.7 | S101: 2.7 | T101: 2.7 | U101: 2.7-254.090727484017i | V101: 0.000112901798346461+0.0106249259541133i | W101: 89.39119076 | X101: -39.4729914 | Y101: -0.03130358357 | Z101: -7.528928973 | AA101: 3.923032163 | AU101: 39.43100857 | AV101: 41.75803519
A102: 42.38440572 | B102: 266.3090753 | C102: 0.479356335455655i | D102: -187.75176907686i | F102: 3.9 | G102: 3.898317951956-0.0809762810085936i | H102: 3.898317951956+0.398380054447061i | I102: 0.987563746560121-0.1216940193129i | J102: -7.024943567 | K102: -0.04324629381 | L102: 0 | M102: 0 | N102: -250.33569210248i | O102: 0 | P102: 0 | Q102: 0 | R102: 2.7 | S102: 2.7 | T102: 2.7 | U102: 2.7-250.33569210248i | V102: 0.000116313858285459+0.0107842630425927i | W102: 89.38205933 | X102: -39.34368538 | Y102: -0.03224448201 | Z102: -7.641308581 | AA102: 3.923728024 | AU102: 39.30043909 | AV102: 42.38440572
A103: 43.0201718 | B103: 270.3037114 | C103: 0.48654668048749i | D103: -184.977112390995i | F103: 3.9 | G103: 3.89826713464328-0.0821898538072806i | H103: 3.89826713464328+0.404356826680209i | I103: 0.987191498320542-0.123482424053503i | J103: -7.129787256 | K103: -0.04454760436 | L103: 0 | M103: 0 | N103: -246.63614985466i | O103: 0 | P103: 0 | Q103: 0 | R103: 2.7 | S103: 2.7 | T103: 2.7 | U103: 2.7-246.63614985466i | V103: 0.000119829023382856+0.0109459885066636i | W103: 89.37279095 | X103: -39.2143798 | Y103: -0.03321349891 | Z103: -7.755348738 | AA103: 3.924444901 | AU103: 39.1698322 | AV103: 43.0201718
A104: 43.66547438 | B104: 274.3582671 | C104: 0.493844880694802i | D104: -182.243460483739i | F104: 3.9 | G104: 3.89821478276282-0.0834215812870361i | H104: 3.89821478276282+0.410423299407766i | I104: 0.986808219904155-0.125295986496833i | J104: -7.236179554 | K104: -0.04588789289 | L104: 0 | M104: 0 | N104: -242.991280644985i | O104: 0 | P104: 0 | Q104: 0 | R104: 2.7 | S104: 2.7 | T104: 2.7 | U104: 2.7-242.991280644985i | V104: 0.000123450408497935+0.0111101380952073i | W104: 89.36338358 | X104: -39.08507469 | Y104: -0.03421146468 | Z104: -7.871073216 | AA104: 3.925183427 | AU104: 39.03918679 | AV104: 43.66547438
A105: 44.3204565 | B105: 278.4736411 | C105: 0.501252553905224i | D105: -179.550207373142i | F105: 3.9 | G105: 3.89816085001726-0.0846717335361955i | H105: 3.89816085001726+0.416580820369029i | I105: 0.986413591284706-0.127135009478776i | J105: -7.344142607 | K105: -0.047268316 | L105: 0 | M105: 0 | N105: -239.400276497523i | O105: 0 | P105: 0 | Q105: 0 | R105: 2.7 | S105: 2.7 | T105: 2.7 | U105: 2.7-239.400276497523i | V105: 0.000127181222544939+0.0112767480898338i | W105: 89.35383514 | X105: -38.95577005 | Y105: -0.03523923368 | Z105: -7.988506095 | AA105: 3.925944255 | AU105: 38.90850173 | AV105: 44.3204565
A106: 44.98526334 | B106: 282.6507457 | C106: 0.508771342213803i | D106: -176.896756032652i | F106: 3.9 | G106: 3.89810528871513-0.0859405845926473i | H106: 3.89810528871513+0.422830757621156i | I106: 0.986007283564389-0.12899979710089i | J106: -7.453698842 | K106: -0.04869006394 | L106: 0 | M106: 0 | N106: -235.862341376869i | O106: 0 | P106: 0 | Q106: 0 | R106: 2.7 | S106: 2.7 | T106: 2.7 | U106: 2.7-235.862341376869i | V106: 0.000131024771330267+0.0114458553127132i | W106: 89.34414351 | X106: -38.8264659 | Y106: -0.03629768483 | Z106: -8.107671761 | AA106: 3.926728059 | AU106: 38.77777583 | AV106: 44.98526334
A107: 45.66004229 | B107: 286.8905069 | C107: 0.51640291234701i | D107: -174.282518258771i | F107: 3.9 | G107: 3.89804804972901-0.0872284124984409i | H107: 3.89804804972901+0.429174499848569i | I107: 0.985588958753161-0.130890654609317i | J107: -7.564870974 | K107: -0.05015436154 | L107: 0 | M107: 0 | N107: -232.376691011694i | O107: 0 | P107: 0 | Q107: 0 | R107: 2.7 | S107: 2.7 | T107: 2.7 | U107: 2.7-232.376691011694i | V107: 0.000134984460475063+0.0116174971345162i | W107: 89.33430654 | X107: -38.69716225 | Y107: -0.0373877223 | Z107: -8.228594912 | AA107: 3.927535532 | AU107: 38.64700789 | AV107: 45.66004229
A108: 46.34494293 | B108: 291.1938645 | C108: 0.524148956032215i | D108: -171.706914540661i | F108: 3.9 | G108: 3.89798908245246-0.0885354993550049i | H108: 3.89798908245246+0.43561345667721i | I108: 0.98515826954414-0.132807888266213i | J108: -7.677682007 | K108: -0.05166246924 | L108: 0 | M108: 0 | N108: -228.942552720881i | O108: 0 | P108: 0 | Q108: 0 | R108: 2.7 | S108: 2.7 | T108: 2.7 | U108: 2.7-228.942552720881i | V108: 0.00013906379842579+0.0117917114824676i | W108: 89.32432206 | X108: -38.56785912 | Y108: -0.03851027619 | Z108: -8.351300559 | AA108: 3.928367388 | AU108: 38.51619665 | AV108: 46.34494293
A109: 47.04011707 | B109: 295.5617724 | C109: 0.532011190372698i | D109: -169.169373931685i | F109: 3.9 | G109: 3.89792833475568-0.0898621313789697i | H109: 3.89792833475568+0.442149058993728i | I109: 0.984714859085134-0.134751805213352i | J109: -7.792155231 | K109: -0.05321568396 | L109: 0 | M109: 0 | N109: -225.559165242247i | O109: 0 | P109: 0 | Q109: 0 | R109: 2.7 | S109: 2.7 | T109: 2.7 | U109: 2.7-225.559165242247i | V109: 0.000143266399555406+0.0119685368485109i | W109: 89.31418785 | X109: -38.43855653 | Y109: -0.03966630323 | Z109: -8.475814024 | AA109: 3.929224362 | AU109: 38.38534085 | AV109: 47.04011707
A110: 47.74571883 | B110: 299.995199 | C110: 0.539991358228288i | D110: -166.669333922843i | F110: 3.9 | G110: 3.89786575293987-0.0912085989585996i | H110: 3.89786575293987+0.448782759269688i | I110: 0.984258360746336-0.136722713327583i | J110: -7.908314231 | K110: -0.05481534025 | L110: 0 | M110: 0 | N110: -222.22577856379i | O110: 0 | P110: 0 | Q110: 0 | R110: 2.7 | S110: 2.7 | T110: 2.7 | U110: 2.7-222.22577856379i | V110: 0.000147595987357849+0.0121480122975887i | W110: 89.30390167 | X110: -38.30925449 | Y110: -0.04085678748 | Z110: -8.602160951 | AA110: 3.930107212 | AU110: 38.25443915 | AV110: 47.74571883
A111: 48.46190461 | B111: 304.495127 | C111: 0.548091228601712i | D111: -164.206240318072i | F111: 3.9 | G111: 3.89780128169019-0.0925751967108325i | H111: 3.89780128169019+0.45551603189088i | I111: 0.983788397884241-0.138720921067809i | J111: -8.026182885 | K111: -0.05646281119 | L111: 0 | M111: 0 | N111: -218.941653757429i | O111: 0 | P111: 0 | Q111: 0 | R111: 2.7 | S111: 2.7 | T111: 2.7 | U111: 2.7-218.941653757429i | V111: 0.000152056397738659+0.0123301774760368i | W111: 89.29346125 | X111: -38.17995302 | Y111: -0.04208274111 | Z111: -8.730367299 | AA111: 3.931016719 | AU111: 38.12349021 | AV111: 48.46190461
A112: 49.18883318 | B112: 309.0625539 | C112: 0.556312597030738i | D112: -161.779547111401i | F112: 3.9 | G112: 3.89773486402735-0.0939622235389197i | H112: 3.89773486402735+0.462350373491818i | I112: 0.983304583601862-0.140746737313123i | J112: -8.145785367 | K112: -0.05815950956 | L112: 0 | M112: 0 | N112: -215.706062815201i | O112: 0 | P112: 0 | Q112: 0 | R112: 2.7 | S112: 2.7 | T112: 2.7 | U112: 2.7-215.706062815201i | V112: 0.000156651582404579+0.0125150726200973i | W112: 89.28286426 | X112: -38.05065214 | Y112: -0.04334520508 | Z112: -8.86045935 | AA112: 3.931953687 | AU112: 37.99249263 | AV112: 49.18883318
A113: 49.92666568 | B113: 313.6984922 | C113: 0.564657285986199i | D113: -159.388716365912i | F113: 3.9 | G113: 3.89766644125774-0.0953699826906703i | H113: 3.89766644125774+0.469287303295529i | I113: 0.98280652050531-0.142800471191748i | J113: -8.267146146 | K113: -0.05990688889 | L113: 0 | M113: 0 | N113: -212.518288487883i | O113: 0 | P113: 0 | Q113: 0 | R113: 2.7 | S113: 2.7 | T113: 2.7 | U113: 2.7-212.518288487883i | V113: 0.000161385612355115+0.0127027385645474i | W113: 89.27210838 | X113: -37.92135186 | Y113: -0.04464524996 | Z113: -8.992463706 | AA113: 3.932918945 | AU113: 37.86144497 | AV113: 49.92666568
A114: 50.67556566 | B114: 318.4039696 | C114: 0.573127145275992i | D114: -157.033218094495i | F114: 3.9 | G114: 3.89759595292213-0.0967987818172925i | H114: 3.89759595292213+0.476328363458699i | I114: 0.982293800456844-0.144882431900403i | J114: -8.390289993 | K114: -0.06170644455 | L114: 0 | M114: 0 | N114: -209.377624125993i | O114: 0 | P114: 0 | Q114: 0 | R114: 2.7 | S114: 2.7 | T114: 2.7 | U114: 2.7-209.377624125993i | V114: 0.000166262681479118+0.0128932167514498i | W114: 89.2611912 | X114: -37.79205219 | Y114: -0.04598397671 | Z114: -9.126407296 | AA114: 3.933913344 | AU114: 37.73034575 | AV114: 50.67556566
A115: 51.43569915 | B115: 323.1800291 | C115: 0.581724052455132i | D115: -154.712530142359i | F115: 3.9 | G115: 3.89752333674283-0.0982489330328345i | H115: 3.89752333674283+0.483475119422298i | I115: 0.981766004324482-0.146992928513713i | J115: -8.515241977 | K115: -0.06355971492 | L115: 0 | M115: 0 | N115: -206.283373523146i | O115: 0 | P115: 0 | Q115: 0 | R115: 2.7 | S115: 2.7 | T115: 2.7 | U115: 2.7-206.283373523146i | V115: 0.000171287110259499+0.0130865492390224i | W115: 89.25011033 | X115: -37.66275317 | Y115: -0.04736251742 | Z115: -9.262317374 | AA115: 3.934937765 | AU115: 37.59919346 | AV115: 51.43569915
A116: 52.20723463 | B116: 328.0277296 | C116: 0.590449913241959i | D116: -152.42613807129i | F116: 3.9 | G116: 3.89744852856918-0.099720752974209i | H116: 3.89744852856918+0.49072916026775i | I116: 0.981222701728293-0.14913226978327i | J116: -8.642027469 | K116: -0.06546828257 | L116: 0 | M116: 0 | N116: -203.23485076172i | O116: 0 | P116: 0 | Q116: 0 | R116: 2.7 | S116: 2.7 | T116: 2.7 | U116: 2.7-203.23485076172i | V116: 0.000176463349589349+0.0132827787106313i | W116: 89.2388633 | X116: -37.53345481 | Y116: -0.04878203622 | Z116: -9.400221519 | AA116: 3.935993112 | AU116: 37.46798653 | AV116: 52.20723463
A117: 52.99034315 | B117: 332.9481455 | C117: 0.599306661940588i | D117: -150.173535045606i | F117: 3.9 | G117: 3.89737146232163-0.101214562861814i | H117: 3.89737146232163+0.498092099078774i | I117: 0.980663450783519-0.151300763925937i | J117: -8.770672144 | K117: -0.06743377543 | L117: 0 | M117: 0 | N117: -200.231380060808i | O117: 0 | P117: 0 | Q117: 0 | R117: 2.7 | S117: 2.7 | T117: 2.7 | U117: 2.7-200.231380060808i | V117: 0.000181795984702761+0.0134819484839064i | W117: 89.22744762 | X117: -37.40415713 | Y117: -0.05024373005 | Z117: -9.540147642 | AA117: 3.937080319 | AU117: 37.33672336 | AV117: 52.99034315
A118: 53.7851983 | B118: 337.9423677 | C118: 0.608296261869697i | D118: -147.954221719809i | F118: 3.9 | G118: 3.897292069934-0.102730688560728i | H118: 3.897292069934+0.505565573308969i | I118: 0.980087797840644-0.153498718400977i | J118: -8.90120198 | K118: -0.06945786803 | L118: 0 | M118: 0 | N118: -197.272295626412i | O118: 0 | P118: 0 | Q118: 0 | R118: 2.7 | S118: 2.7 | T118: 2.7 | U118: 2.7-197.272295626412i | V118: 0.000187289739223807+0.0136841025199824i | W118: 89.21586077 | X118: -37.27486015 | Y118: -0.05174882952 | Z118: -9.682123982 | AA118: 3.938200346 | AU118: 37.20540228 | AV118: 53.7851983
A119: 54.59197627 | B119: 343.0115032 | C119: 0.617420705797742i | D119: -145.76770612789i | F119: 3.9 | G119: 3.89721028129407-0.104269460642482i | H119: 3.89721028129407+0.51315124515526i | I119: 0.979495277222613-0.155726439675573i | J119: -9.033643261 | K119: -0.07154228273 | L119: 0 | M119: 0 | N119: -194.356941503854i | O119: 0 | P119: 0 | Q119: 0 | R119: 2.7 | S119: 2.7 | T119: 2.7 | U119: 2.7-194.356941503854i | V119: 0.000192949479337189+0.0138892854328656i | W119: 89.20410018 | X119: -37.14556389 | Y119: -0.05329859981 | Z119: -9.826179108 | AA119: 3.939354182 | AU119: 37.07402161 | AV119: 54.59197627
A120: 55.41085592 | B120: 348.1566758 | C120: 0.626682016384708i | D120: -143.613503574276i | F120: 3.9 | G120: 3.89712602418246-0.105831214447399i | H120: 3.89712602418246+0.520850801937309i | I120: 0.978885410959357-0.157984232978319i | J120: -9.168022578 | K120: -0.07368879105 | L120: 0 | M120: 0 | N120: -191.484671432368i | O120: 0 | P120: 0 | Q120: 0 | R120: 2.7 | S120: 2.7 | T120: 2.7 | U120: 2.7-191.484671432368i | V120: 0.000198780218084198+0.0140975424989285i | W120: 89.19216326 | X120: -37.01626837 | Y120: -0.05489434151 | Z120: -9.972341924 | AA120: 3.940542847 | AU120: 36.94257958 | AV120: 55.41085592
A121: 56.24201876 | B121: 353.3790259 | C121: 0.636082246630479i | D121: -141.491136526381i | F121: 3.9 | G121: 3.89703922420966-0.107416290147503i | H121: 3.89703922420966+0.528665956482976i | I121: 0.978257708519833-0.160272402040206i | J121: -9.304366827 | K121: -0.07589921495 | L121: 0 | M121: 0 | N121: -188.654848701841i | O121: 0 | P121: 0 | Q121: 0 | R121: 2.7 | S121: 2.7 | T121: 2.7 | U121: 2.7-188.654848701841i | V121: 0.000204787119787725+0.014308919666533i | W121: 89.18004735 | X121: -36.88697362 | Y121: -0.05653739158 | Z121: -10.12064166 | AA121: 3.941767391 | AU121: 36.81107441 | AV121: 56.24201876
A122: 57.08564904 | B122: 358.6797113 | C122: 0.645623480329936i | D122: -139.400134508749i | F122: 3.9 | G122: 3.89694980475121-0.109025032809964i | H122: 3.89694980475121+0.536598447519972i | I122: 0.977611666541817-0.162591248822659i | J122: -9.442703212 | K122: -0.07817542816 | L122: 0 | M122: 0 | N122: -185.866846011666i | O122: 0 | P122: 0 | Q122: 0 | R122: 2.7 | S122: 2.7 | T122: 2.7 | U122: 2.7-185.866846011666i | V122: 0.000210975504610191+0.0145234635657837i | W122: 89.16774977 | X122: -36.75767966 | Y122: -0.05822912423 | Z122: -10.2711079 | AA122: 3.943028896 | AU122: 36.67950423 | AV122: 57.08564904
A123: 57.94193377 | B123: 364.059907 | C123: 0.655307832534885i | D123: -137.340033998768i | F123: 3.9 | G123: 3.896857686881-0.110657792461099i | H123: 3.896857686881+0.544650040073786i | I123: 0.976946768559669-0.164941073232143i | J123: -9.583059248 | K123: -0.08051935758 | L123: 0 | M123: 0 | N123: -183.120045331691i | O123: 0 | P123: 0 | Q123: 0 | R123: 2.7 | S123: 2.7 | T123: 2.7 | U123: 2.7-183.120045331691i | V123: 0.000217350853248321+0.0147412215184127i | W123: 89.15526782 | X123: -36.62838651 | Y123: -0.05997095188 | Z123: -10.42377052 | AA123: 3.944328475 | AU123: 36.54786715 | AV123: 57.94193377
A124: 58.81106278 | B124: 369.5208056 | C124: 0.665137450022908i | D124: -135.310378323909i | F124: 3.9 | G124: 3.89676278930253-0.112314924150903i | H124: 3.89676278930253+0.552822525872005i | I124: 0.976262484730362-0.167322172820872i | J124: -9.725462755 | K124: -0.08293298465 | L124: 0 | M124: 0 | N124: -180.413837765212i | O124: 0 | P124: 0 | Q124: 0 | R124: 2.7 | S124: 2.7 | T124: 2.7 | U124: 2.7-180.413837765212i | V124: 0.000223918811768897+0.0149622415477973i | W124: 89.14259871 | X124: -36.49909419 | Y124: -0.06176432611 | Z124: -10.57865978 | AA124: 3.945667276 | AU124: 36.41616121 | AV124: 58.81106278
A125: 59.69322872 | B125: 375.0636177 | C125: 0.675114511773252i | D125: -133.310717560502i | F125: 3.9 | G125: 3.89666502827825-0.113996788018099i | H125: 3.89666502827825+0.561117723755153i | I125: 0.975558271558043-0.169734842473103i | J125: -9.869941862 | K125: -0.08541834682 | L125: 0 | M125: 0 | N125: -177.747623414002i | O125: 0 | P125: 0 | Q125: 0 | R125: 2.7 | S125: 2.7 | T125: 2.7 | U125: 2.7-177.747623414002i | V125: 0.000230685196589639+0.0151865723891111i | W125: 89.12973966 | X125: -36.36980274 | Y125: -0.06361073865 | Z125: -10.73580624 | AA125: 3.947046482 | AU125: 36.28438439 | AV125: 59.69322872
A126: 60.58862715 | B126: 380.6895719 | C126: 0.68524122944985i | D126: -131.340608433992i | F126: 3.9 | G126: 3.89656431755672-0.115703749355696i | H126: 3.89656431755672+0.569537480094154i | I126: 0.974833571617463-0.172179374076538i | J126: -10.01652501 | K126: -0.08797753897 | L126: 0 | M126: 0 | N126: -175.120811245323i | O126: 0 | P126: 0 | Q126: 0 | R126: 2.7 | S126: 2.7 | T126: 2.7 | U126: 2.7-175.120811245323i | V126: 0.000237655999609591+0.015414263499611i | W126: 89.1166878 | X126: -36.24051217 | Y126: -0.06551172236 | Z126: -10.8952408 | AA126: 3.94846731 | AU126: 36.15253464 | AV126: 60.58862715
A127: 61.49745656 | B127: 386.3999155 | C127: 0.695519847891598i | D127: -129.399614220682i | F127: 3.9 | G127: 3.89646056829768-0.117436178677047i | H127: 3.89646056829768+0.578083669214551i | I127: 0.974087813276599-0.174656056178308i | J127: -10.16524094 | K127: -0.09061271496 | L127: 0 | M127: 0 | N127: -172.532818960909i | O127: 0 | P127: 0 | Q127: 0 | R127: 2.7 | S127: 2.7 | T127: 2.7 | U127: 2.7-172.532818960909i | V127: 0.000244837393493435+0.0156453650690606i | W127: 89.10344027 | X127: -36.11122253 | Y127: -0.06746885224 | Z127: -11.05699471 | AA127: 3.949931015 | AU127: 36.02060981 | AV127: 61.49745656
A128: 62.41991841 | B128: 392.1959142 | C128: 0.705952645609972i | D128: -127.487304650918i | F128: 3.9 | G128: 3.89635368899496-0.119194451782387i | H128: 3.89635368899496+0.586758193827585i | I128: 0.973320410418855-0.17716517362502i | J128: -10.31611872 | K128: -0.09332608908 | L128: 0 | M128: 0 | N128: -169.983072867891i | O128: 0 | P128: 0 | Q128: 0 | R128: 2.7 | S128: 2.7 | T128: 2.7 | U128: 2.7-169.983072867891i | V128: 0.000252235737114294+0.0158799280302908i | W128: 89.08999412 | X128: -35.98193382 | Y128: -0.06948374648 | Z128: -11.22109953 | AA128: 3.951438887 | AU128: 35.88860773 | AV128: 62.41991841
A129: 63.35621719 | B129: 398.0788529 | C129: 0.716541935294122i | D129: -125.603255813712i | F129: 3.9 | G129: 3.89624358539702-0.120978949825833i | H129: 3.89624358539702+0.595562985468289i | I129: 0.972530762165229-0.179707007186349i | J129: -10.4691877 | K129: -0.09611993767 | L129: 0 | M129: 0 | N129: -167.471007751616i | O129: 0 | P129: 0 | Q129: 0 | R129: 2.7 | S129: 2.7 | T129: 2.7 | U129: 2.7-167.471007751616i | V129: 0.000259857581159812+0.0161180040699004i | W129: 89.07634637 | X129: -35.85264608 | Y129: -0.07155806747 | Z129: -11.38758717 | AA129: 3.952992259 | AU129: 35.75652615 | AV129: 63.35621719
A130: 64.30656044 | B130: 404.0500357 | C130: 0.727290064323533i | D130: -123.747050062771i | F130: 3.9 | G130: 3.89613016042524-0.122790059382836i | H130: 3.89613016042524+0.604500004940697i | I130: 0.971718252596885-0.182281833161628i | J130: -10.62447755 | K130: -0.09899660068 | L130: 0 | M130: 0 | N130: -164.996066750361i | O130: 0 | P130: 0 | Q130: 0 | R130: 2.7 | S130: 2.7 | T130: 2.7 | U130: 2.7-164.996066750361i | V130: 0.000267709673906279+0.0163596456390955i | W130: 89.06249402 | X130: -35.72335935 | Y130: -0.07369352289 | Z130: -11.55648986 | AA130: 3.954592501 | AU130: 35.62436275 | AV130: 64.30656044
A131: 65.27115885 | B131: 410.1107863 | C131: 0.738199415288386i | D131: -121.918275923912i | F131: 3.9 | G131: 3.89601331408981-0.124628172518064i | H131: 3.89601331408981+0.613571242770322i | I131: 0.970882250478593-0.184889922968897i | J131: -10.78201825 | K131: -0.1019584833 | L131: 0 | M131: 0 | N131: -162.557701231883i | O131: 0 | P131: 0 | Q131: 0 | R131: 2.7 | S131: 2.7 | T131: 2.7 | U131: 2.7-162.557701231883i | V131: 0.000275798967165887+0.0166049059646719i | W131: 89.048434 | X131: -35.59407365 | Y131: -0.07589186678 | Z131: -11.72784017 | AA131: 3.956241026 | AU131: 35.49211516 | AV131: 65.27115885
A132: 66.25022623 | B132: 416.2624481 | C132: 0.749272406517712i | D132: -120.116528003854i | F132: 3.9 | G132: 3.89589294340315-0.126493686853692i | H132: 3.89589294340315+0.62277871966402i | I132: 0.970022108983522-0.187531542715864i | J132: -10.94184008 | K132: -0.1050080576 | L132: 0 | M132: 0 | N132: -160.155370671806i | O132: 0 | P132: 0 | Q132: 0 | R132: 2.7 | S132: 2.7 | T132: 2.7 | U132: 2.7-160.155370671806i | V132: 0.000284132622412178+0.0168538390601388i | W132: 89.0341632 | X132: -35.464789 | Y132: -0.07815490063 | Z132: -11.90167099 | AA132: 3.957939286 | AU132: 35.35978095 | AV132: 66.25022623
A133: 67.24397963 | B133: =2*PI()*$A133 -> 422.5063848 | C133: =COMPLEX(0,10^-3*$C$3*$B133) -> 0.760511492615478i | D133: =IF($D$3>0,COMPLEX(0,-1*10^6/($B133*$D$3)),"") -> -118.341406900349i | E133: =IF($E$3>0,COMPLEX(0,10^-3*$E$3*$B133),"") ->  | F133: =IF($E$3>0,IMSUM($E133,$F$3),$F$3) -> 3.9 | G133: =IF($D$3>0,IMPARA($F133,$D133),$F133) -> 3.89576894229076-0.128387005638084i | H133: =IMSUM($C133,$G133) -> 3.89576894229076+0.632124486977394i | I133: =IMPRODUCT(IMDIV($G133,$H133),IMDIV($F$3,$F133)) -> 0.969137165419945-0.190206952752227i | J133: =IMARGUMENT($I133)*180/PI() -> -11.10397361 | K133: =20*LOG(IMABS($I133)) -> -0.1081478641 | L133: =IF($L$3>0,COMPLEX(0,-1*10^6/($B133*$L$3)),0) -> 0 | M133: =IF($L$3>0,IMPARA($M$3,$L133), 0) -> 0 | N133: =COMPLEX(0,-1*10^6/($B133*$N$3)) -> -157.788542533799i | O133: =IF($O$3>0,COMPLEX(0,10^-3*$O$3*$B133), 0) -> 0 | P133: =IF($P$3>0, COMPLEX(0,-1*10^6/($B133*$P$3)),0) -> 0 | Q133: =COMPLEX(0,10^-6*$Q$3*$B133) -> 0 | R133: =$R$3 -> 2.7 | S133: =IMSUM($R133,$P133) -> 2.7 | T133: =IF($O$3>0,IMPARA($S133,$O133), $S133) -> 2.7 | U133: =IMSUM($T133,$Q133,$N133,$M133) -> 2.7-157.788542533799i | V133: =IMPRODUCT( IMDIV($R133,$S133 ),IMDIV($T133,$U133)) -> 0.000292718017089036+0.0171064997369861i | W133: =IMARGUMENT($V133)*180/PI() -> 89.01967845 | X133: =20*LOG(IMABS($V133)) -> -35.33550545 | Y133: =20*LOG(IMABS(IMSUB($I133,$V133))) -> -0.08048447451 | Z133: =IMARGUMENT(IMSUM($I133,IMPRODUCT(-1,$V133)))*180/PI() -> -12.07801554 | AA133: =IMABS(IMDIV(IMPRODUCT($U133,$H133),IMSUM($U133,$H133))) -> 3.959688781 | AU133: =ABS($K133-$X133) -> 35.22735759 | AV133: =$A133 -> 67.24397963
A134: =$A133*1.015 -> 68.25263932 | B134: 428.8439806 | C134: 0.77191916500471i | D134: -116.592519113644i | F134: 3.9 | G134: 3.89564120149954-0.130308537814844i | H134: 3.89564120149954+0.641610627189866i | I134: 0.968226740960397-0.192916407202788i | J134: -11.26844974 | K134: -0.1113805139 | L134: 0 | M134: 0 | N134: -155.456692151526i | O134: 0 | P134: 0 | Q134: 0 | R134: 2.7 | S134: 2.7 | T134: 2.7 | U134: 2.7-155.456692151526i | V134: 0.000301562751108645+0.0173629436160977i | W134: 89.00497656 | X134: -35.20622303 | Y134: -0.08288248817 | Z134: -12.25690737 | AA134: 3.961491054 | AU134: 35.09484252 | AV134: 68.25263932
A135: 69.27642891 | B135: 435.2766403 | C135: 0.78349795247978i | D135: -114.869476959256i | F135: 3.9 | G135: 3.89550960850337-0.1322586980922i | H135: 3.89550960850337+0.65123925438758i | I135: 0.967290140373916-0.195660153480817i | J135: -11.43529964 | K135: -0.1147086897 | L135: 0 | M135: 0 | N135: -153.159302612341i | O135: 0 | P135: 0 | Q135: 0 | R135: 2.7 | S135: 2.7 | T135: 2.7 | U135: 2.7-153.159302612341i | V135: 0.000310674653544028+0.0176232271393089i | W135: 88.99005428 | X135: -35.07694177 | Y135: -0.08535089218 | Z135: -12.43838035 | AA135: 3.963347695 | AU135: 34.96223308 | AV135: 69.27642891
A136: 70.31557534 | B136: 441.8057899 | C136: 0.795250421766977i | D136: -113.171898482025i | F136: 3.9 | G136: 3.89537404740601-0.134237907012723i | H136: 3.89537404740601+0.661012514754254i | I136: 0.966326651762016-0.198438431781086i | J136: -11.60455478 | K136: -0.1181351485 | L136: 0 | M136: 0 | N136: -150.8958646427i | O136: 0 | P136: 0 | Q136: 0 | R136: 2.7 | S136: 2.7 | T136: 2.7 | U136: 2.7-150.8958646427i | V136: 0.000320061789521937+0.0178874075811121i | W136: 88.9749083 | X136: -34.94766171 | Y136: -0.08789168911 | Z136: -12.62246866 | AA136: 3.965260339 | AU136: 34.82952656 | AV136: 70.31557534
A137: 71.37030897 | B137: 448.4328767 | C137: 0.807179178093482i | D137: -111.499407371453i | F137: 3.9 | G137: 3.89523439884106-0.136246591023313i | H137: 3.89523439884106+0.670932587070169i | I137: 0.965335546299074-0.201251474552028i | J137: -11.77624695 | K137: -0.1216627224 | L137: 0 | M137: 0 | N137: -148.665876495271i | O137: 0 | P137: 0 | Q137: 0 | R137: 2.7 | S137: 2.7 | T137: 2.7 | U137: 2.7-148.665876495271i | V137: 0.000329732467322009+0.0181555430605092i | W137: 88.95953528 | X137: -34.81838288 | Y137: -0.09050693469 | Z137: -12.8092068 | AA137: 3.967230675 | AU137: 34.69672015 | AV137: 71.37030897
A138: 72.44086361 | B138: 455.1593699 | C138: 0.819286865764884i | D138: -109.851632878279i | F138: 3.9 | G138: 3.89509053986913-0.138285182545459i | H138: 3.89509053986913+0.681001683219425i | I138: 0.964316077977882-0.204099505946442i | J138: -11.9504082 | K138: -0.1252943214 | L138: 0 | M138: 0 | N138: -146.468843837706i | O138: 0 | P138: 0 | Q138: 0 | R138: 2.7 | S138: 2.7 | T138: 2.7 | U138: 2.7-146.468843837706i | V138: 0.000339695245688345+0.0184276925530138i | W138: 88.94393182 | X138: -34.68910531 | Y138: -0.09319873897 | Z138: -12.99862959 | AA138: 3.969260438 | AU138: 34.56381099 | AV138: 72.44086361
A139: 73.52747656 | B139: 461.9867604 | C139: 0.831576168751357i | D139: -108.228209732295i | F139: 3.9 | G139: 3.89494234387196-0.140354120045727i | H139: 3.89494234387196+0.69122204870563i | I139: 0.96326748336114-0.206982741250209i | J139: -12.12707089 | K139: -0.1290329345 | L139: 0 | M139: 0 | N139: -144.30427964306i | O139: 0 | P139: 0 | Q139: 0 | R139: 2.7 | S139: 2.7 | T139: 2.7 | U139: 2.7-144.30427964306i | V139: 0.000349958941359756+0.0187039159028028i | W139: 88.92809446 | X139: -34.55982906 | Y139: -0.09596926754 | Z139: -13.19077216 | AA139: 3.971351418 | AU139: 34.43079612 | AV139: 73.52747656
A140: 74.63038871 | B140: 468.9165618 | C140: 0.844049811282627i | D140: -106.628778061374i | F140: 3.9 | G140: 3.89478968044354-0.142453848106436i | H140: 3.89478968044354+0.701595963176191i | I140: 0.962188981339736-0.209901386288439i | J140: -12.30626764 | K140: -0.132881632 | L140: 0 | M140: 0 | N140: -142.171704081832i | O140: 0 | P140: 0 | Q140: 0 | R140: 2.7 | S140: 2.7 | T140: 2.7 | U140: 2.7-142.171704081832i | V140: 0.000360532636825146+0.0189842738350175i | W140: 88.91201972 | X140: -34.43055415 | Y140: -0.0988207427 | Z140: -13.38566993 | AA140: 3.973505457 | AU140: 34.29767252 | AV140: 74.63038871
A141: 75.74984454 | B141: 475.9503103 | C141: 0.856710558451866i | D141: -105.052983311699i | F141: 3.9 | G141: 3.89463241527789-0.144584817496489i | H141: 3.89463241527789+0.712125740955377i | I141: 0.961079772898671-0.212855636808546i | J141: -12.48803137 | K141: -0.1368435675 | L141: 0 | M141: 0 | N141: -140.070644415598i | O141: 0 | P141: 0 | Q141: 0 | R141: 2.7 | S141: 2.7 | T141: 2.7 | U141: 2.7-140.070644415598i | V141: 0.000371425688310709+0.0192688279682178i | W141: 88.89570403 | X141: -34.30128063 | Y141: -0.1017554447 | Z141: -13.58335864 | AA141: 3.975724455 | AU141: 34.16443706 | AV141: 75.74984454
A142: 76.88609221 | B142: 483.0895649 | C142: 0.869561216828644i | D142: -103.500476169161i | F142: 3.9 | G142: 3.89447041005387-0.146747485242349i | H142: 3.89447041005387+0.722813731586295i | I142: 0.959939040891596-0.215845677839659i | J142: -12.67239528 | K142: -0.1409219795 | L142: 0 | M142: 0 | N142: -138.000634892215i | O142: 0 | P142: 0 | Q142: 0 | R142: 2.7 | S142: 2.7 | T142: 2.7 | U142: 2.7-138.000634892215i | V142: 0.000382647734005789+0.0195576408269875i | W142: 88.87914378 | X142: -34.17200854 | Y142: -0.104775713 | Z142: -13.78387431 | AA142: 3.978010365 | AU142: 34.03108656 | AV142: 76.88609221
A143: 78.03938359 | B143: 490.3359084 | C143: 0.882604635081074i | D143: -101.970912481932i | F143: 3.9 | G143: 3.89430352231643-0.148942314699059i | H143: 3.89430352231643+0.733662320382015i | I143: 0.958765949824925-0.218871683027901i | J143: -12.85939281 | K143: -0.1451201936 | L143: 0 | M143: 0 | N143: -135.961216642576i | O143: 0 | P143: 0 | Q143: 0 | R143: 2.7 | S143: 2.7 | T143: 2.7 | U143: 2.7-135.961216642576i | V143: 0.000394208702534424+0.0198507758546932i | W143: 88.86233532 | X143: -34.04273792 | Y143: -0.1078839474 | Z143: -13.98725325 | AA143: 3.980365202 | AU143: 33.89761773 | AV143: 78.03938359
A144: 79.20997435 | B144: 497.690947 | C144: 0.89584370460729i | D144: -100.46395318417i | F144: 3.9 | G144: 3.89413160535459-0.151169775621331i | H144: 3.89413160535459+0.744673928985959i | I144: 0.957559645652579-0.221933813946985i | J144: -13.04905769 | K144: -0.1494416248 | L144: 0 | M144: 0 | N144: -133.951937578893i | O144: 0 | P144: 0 | Q144: 0 | R144: 2.7 | S144: 2.7 | T144: 2.7 | U144: 2.7-133.951937578893i | V144: 0.000406118821679807+0.0201482974263952i | W144: 88.84527494 | X144: -33.91346883 | Y144: -0.1110826094 | Z144: -14.19353206 | AA144: 3.982791039 | AU144: 33.7640272 | AV144: 79.20997435
A145: 80.39812396 | B145: 505.1563112 | C145: 0.909281360176399i | D145: -98.979264220857i | F145: 3.9 | G145: 3.89395450807575-0.153430344234619i | H145: 3.89395450807575+0.75585101594178i | I145: 0.956319255582462-0.225032219383664i | J145: -13.24142391 | K145: -0.1538897789 | L145: 0 | M145: 0 | N145: -131.972352294476i | O145: 0 | P145: 0 | Q145: 0 | R145: 2.7 | S145: 2.7 | T145: 2.7 | U145: 2.7-131.972352294476i | V145: 0.000418388627369201+0.020450270861915i | W145: 88.82795886 | X145: -33.78420129 | Y145: -0.1143742232 | Z145: -14.40274762 | AA145: 3.985290014 | AU145: 33.63031151 | AV145: 80.39812396
A146: 81.60409582 | B146: 512.7336559 | C146: 0.922920580579045i | D146: -97.5165164737507i | F146: 3.9 | G146: 3.8937720748766-0.155724503306129i | H146: 3.8937720748766+0.767196077272916i | I146: 0.955043887895834-0.228167034597536i | J146: -13.43652571 | K146: -0.158468255 | L146: 0 | M146: 0 | N146: -130.022021965001i | O146: 0 | P146: 0 | Q146: 0 | R146: 2.7 | S146: 2.7 | T146: 2.7 | U146: 2.7-130.022021965001i | V146: 0.000431028972926861+0.0207567624390549i | W146: 88.81038326 | X146: -33.65493536 | Y146: -0.1177613775 | Z146: -14.61493707 | AA146: 3.987864326 | AU146: 33.49646711 | AV146: 81.60409582
A147: 82.82815726 | B147: 520.4246607 | C147: 0.936764389287731i | D147: -96.0753856884243i | F147: 3.9 | G147: 3.89358414551007-0.158052742215729i | H147: 3.89358414551007+0.778711647072002i | I147: 0.953732631780793-0.23133838055478i | J147: -13.63439757 | K147: -0.1631807477 | L147: 0 | M147: 0 | N147: -128.100514251232i | O147: 0 | P147: 0 | Q147: 0 | R147: 2.7 | S147: 2.7 | T147: 2.7 | U147: 2.7-128.100514251232i | V147: 0.000444051038602942+0.0210678394069743i | W147: 88.79254425 | X147: -33.5256711 | Y147: -0.1212467259 | Z147: -14.83013783 | AA147: 3.990516242 | AU147: 33.36249035 | AV147: 82.82815726
A148: 84.07057962 | B148: 528.2310306 | C148: 0.950815855127046i | D148: -94.6555524023885i | F148: 3.9 | G148: 3.8933905549487-0.160415557026708i | H148: 3.8933905549487+0.790400298100338i | I148: 0.952384557181164-0.234546363135381i | J148: -13.83507423 | K148: -0.1680310489 | L148: 0 | M148: 0 | N148: -126.207403203185i | O148: 0 | P148: 0 | Q148: 0 | R148: 2.7 | S148: 2.7 | T148: 2.7 | U148: 2.7-126.207403203185i | V148: 0.000457466341386448+0.0213835699997205i | W148: 88.7744379 | X148: -33.39640854 | Y148: -0.1248329889 | Z148: -15.04838756 | AA148: 3.993248096 | AU148: 33.22837749 | AV148: 84.07057962
A149: 85.33163831 | B149: 536.1544961 | C149: 0.965078092953952i | D149: -93.2567018742744i | F149: 3.9 | G149: 3.89319113324396-0.162813450556307i | H149: 3.89319113324396+0.802264642397645i | I149: 0.95099871466214-0.237791072313463i | J149: -14.03859063 | K149: -0.1730230499 | L149: 0 | M149: 0 | N149: -124.342269165699i | O149: 0 | P149: 0 | Q149: 0 | R149: 2.7 | S149: 2.7 | T149: 2.7 | U149: 2.7-124.342269165699i | V149: 0.000471286745110657+0.0217040234499168i | W149: 88.7560602 | X149: -33.26714775 | Y149: -0.1285229549 | Z149: -15.26972416 | AA149: 3.996062293 | AU149: 33.0941247 | AV149: 85.33163831
A150: 86.61161289 | B150: 544.1968135 | C150: 0.979554264348261i | D150: -91.8785240140635i | F150: 3.9 | G150: 3.89298570538159-0.165246932445979i | H150: 3.89298570538159+0.814307331902282i | I150: 0.949574135294082-0.241072581310372i | J150: -14.24498197 | K150: -0.1781607441 | L150: 0 | M150: 0 | N150: -122.504698685418i | O150: 0 | P150: 0 | Q150: 0 | R150: 2.7 | S150: 2.7 | T150: 2.7 | U150: 2.7-122.504698685418i | V150: 0.000485524470859417+0.0220292700026037i | W150: 88.7374071 | X150: -33.13788876 | Y150: -0.1323194814 | Z150: -15.49418579 | AA150: 3.99896131 | AU150: 32.95972802 | AV150: 86.61161289
A151: 87.91078708 | B151: 552.3597657 | C151: 0.994247578313485i | D151: -90.5207133143483i | F151: 3.9 | G151: 3.89277409113281-0.167716519231312i | H151: 3.89277409113281+0.826531059082173i | I151: 0.948109830555974-0.24439094572018i | J151: -14.45428364 | K151: -0.1834482285 | L151: 0 | M151: 0 | N151: -120.694284419131i | O151: 0 | P151: 0 | Q151: 0 | R151: 2.7 | S151: 2.7 | T151: 2.7 | U151: 2.7-120.694284419131i | V151: 0.000500192107683402+0.0223593809292389i | W151: 88.71847447 | X151: -33.00863165 | Y151: -0.136225496 | Z151: -15.72181083 | AA151: 4.001947696 | AU151: 32.82518342 | AV151: 87.91078708
A152: 89.22944889 | B152: 560.6451622 | C152: 1.00916129198819i | D152: -89.1829687826091i | F152: 3.9 | G152: 3.89255610490133-0.170222734411545i | H152: 3.89255610490133+0.838938557576645i | I152: 0.94660479226008-0.247746202607349i | J152: -14.66653125 | K152: -0.1888897062 | L152: 0 | M152: 0 | N152: -118.910625043479i | O152: 0 | P152: 0 | Q152: 0 | R152: 2.7 | S152: 2.7 | T152: 2.7 | U152: 2.7-118.910625043479i | V152: 0.00051530262363515+0.022694428541852i | W152: 88.69925814 | X152: -32.87937646 | Y152: -0.1402439981 | Z152: -15.95263786 | AA152: 4.005024079 | AU152: 32.69048676 | AV152: 89.22944889
A153: 90.56789062 | B153: 569.0548396 | C153: 1.02429871136801i | D153: -87.8649938744918i | F153: 3.9 | G153: 3.89233155556597-0.172766108518608i | H153: 3.89233155556597+0.851532602849402i | I153: 0.945057992499414-0.251138369576311i | J153: -14.88176062 | K153: -0.1944894889 | L153: 0 | M153: 0 | N153: -117.153325165989i | O153: 0 | P153: 0 | Q153: 0 | R153: 2.7 | S153: 2.7 | T153: 2.7 | U153: 2.7-117.153325165989i | V153: 0.000530869377132402+0.0230344862073549i | W153: 88.67975387 | X153: -32.75012326 | Y153: -0.14437806 | Z153: -16.18670569 | AA153: 4.008193166 | AU153: 32.55563377 | AV153: 90.56789062
A154: 91.92640898 | B154: 577.5906622 | C154: 1.03966319203853i | D154: -86.5664964280707i | F154: 3.9 | G154: 3.89210024631883-0.175347179185611i | H154: 3.89210024631883+0.864316012852919i | I154: 0.94346838361973-0.254567443812813i | J154: -15.10000774 | K154: -0.2002519987 | L154: 0 | M154: 0 | N154: -115.421995237428i | O154: 0 | P154: 0 | Q154: 0 | R154: 2.7 | S154: 2.7 | T154: 2.7 | U154: 2.7-115.421995237428i | V154: 0.000546906128659213+0.0233796283620088i | W154: 88.65995735 | X154: -32.6208721 | Y154: -0.1486308277 | Z154: -16.42405331 | AA154: 4.011457742 | AU154: 32.4206201 | AV154: 91.92640898
A155: 93.30530511 | B155: 586.2545222 | C155: 1.05525813991911i | D155: -85.2871885990845i | F155: 3.9 | G155: 3.89186197449889-0.177966491214703i | H155: 3.89186197449889+0.877291648704407i | I155: 0.94183489821778-0.25803340109687i | J155: -15.32130878 | K155: -0.2061817703 | L155: 0 | M155: 0 | N155: -113.716251465446i | O155: 0 | P155: 0 | Q155: 0 | R155: 2.7 | S155: 2.7 | T155: 2.7 | U155: 2.7-113.716251465446i | V155: 0.000563427052814809+0.0237299305260459i | W155: 88.6398642 | X155: -32.49162304 | Y155: -0.1530055228 | Z155: -16.6647199 | AA155: 4.014820679 | AU155: 32.28544127 | AV155: 93.30530511
A156: 94.70488469 | B156: 595.04834 | C156: 1.07108701201789i | D156: -84.0267867971276i | F156: 3.9 | G156: 3.89161653142095-0.180624596644228i | H156: 3.89161653142095+0.890462415373662i | I156: 0.940156449167691-0.261536194787308i | J156: -15.54570007 | K156: -0.2122834538 | L156: 0 | M156: 0 | N156: -112.035715729503i | O156: 0 | P156: 0 | Q156: 0 | R156: 2.7 | S156: 2.7 | T156: 2.7 | U156: 2.7-112.035715729503i | V156: 0.000580446750720214+0.0240854693184458i | W156: 88.61947 | X156: -32.36237616 | Y156: -0.1575054428 | Z156: -16.90874482 | AA156: 4.018284933 | AU156: 32.1500927 | AV156: 94.70488469
A157: 96.12545796 | B157: 603.9740651 | C157: 1.08715331719816i | D157: -82.7850116227858i | F157: 3.9 | G157: 3.89136370219967-0.183322054815072i | H157: 3.89136370219967+0.903831262383088i | I157: 0.938431929677342-0.26507575477791i | J157: -15.77321812 | K157: -0.2185618163 | L157: 0 | M157: 0 | N157: -110.380015497048i | O157: 0 | P157: 0 | Q157: 0 | R157: 2.7 | S157: 2.7 | T157: 2.7 | U157: 2.7-110.380015497048i | V157: 0.000597980262793176+0.0244463224718665i | W157: 88.59877025 | X157: -32.2331315 | Y157: -0.1621339631 | Z157: -17.15616756 | AA157: 4.02185355 | AU157: 32.01456969 | AV157: 96.12545796
A158: 97.56733983 | B158: 613.0336761 | C158: 1.10346061695614i | D158: -81.5615878057003i | F158: 3.9 | G158: 3.89110326556872-0.186059432436128i | H158: 3.89110326556872+0.917401184520012i | I158: 0.936660213376749-0.268651986425227i | J158: -16.00389956 | K158: -0.2250217446 | L158: 0 | M158: 0 | N158: -108.748783740934i | O158: 0 | P158: 0 | Q158: 0 | R158: 2.7 | S158: 2.7 | T158: 2.7 | U158: 2.7-108.748783740934i | V158: 0.000616043081902118+0.0248125688477304i | W158: 88.57776037 | X158: -32.10388915 | Y158: -0.1668945376 | Z158: -17.40702777 | AA158: 4.025529665 | AU158: 31.87886741 | AV158: 97.56733983
A159: 99.03084993 | B159: 622.2291812 | C159: 1.12001252621048i | D159: -80.3562441435471i | F159: 3.9 | G159: 3.8908349936949-0.188837303648775i | H159: 3.8908349936949+0.931175222561705i | I159: 0.934840154440493-0.272264769448249i | J159: -16.23778114 | K159: -0.2316682473 | L159: 0 | M159: 0 | N159: -107.141658858063i | O159: 0 | P159: 0 | Q159: 0 | R159: 2.7 | S159: 2.7 | T159: 2.7 | U159: 2.7-107.141658858063i | V159: 0.000634651166909983+0.0251842884514596i | W159: 88.55643574 | X159: -31.97464917 | Y159: -0.1717906999 | Z159: -17.66136522 | AA159: 4.02931651 | AU159: 31.74298092 | AV159: 99.03084993
A160: 100.5163127 | B160: 631.5626189 | C160: 1.13681271410363i | D160: -79.1687134419183i | F160: 3.9 | G160: 3.89055865198693-0.191656250090267i | H160: 3.89055865198693+0.945156464013363i | I160: 0.932970587746301-0.275913956800216i | J160: -16.47489976 | K160: -0.2385064573 | L160: 0 | M160: 0 | N160: -105.558284589224i | O160: 0 | P160: 0 | Q160: 0 | R160: 2.7 | S160: 2.7 | T160: 2.7 | U160: 2.7-105.558284589224i | V160: 0.0006538209566195+0.0255615624478666i | W160: 88.53479164 | X160: -31.84541163 | Y160: -0.1768260647 | Z160: -17.9192198 | AA160: 4.033217412 | AU160: 31.60690518 | AV160: 100.5163127
A161: 102.0240574 | B161: 641.0360582 | C161: 1.15386490481519i | D161: -77.9987324550919i | F161: 3.9 | G161: 3.89027399889908-0.194516860955937i | H161: 3.89027399889908+0.959348043859253i | I161: 0.931050329071996-0.27959937351289i | J161: -16.71529238 | K161: -0.2455416335 | L161: 0 | M161: 0 | N161: -103.998309940123i | O161: 0 | P161: 0 | Q161: 0 | R161: 2.7 | S161: 2.7 | T161: 2.7 | U161: 2.7-103.998309940123i | V161: 0.000673569384131342+0.0259444731766922i | W161: 88.51282331 | X161: -31.71617661 | Y161: -0.1820043282 | Z161: -18.18063149 | AA161: 4.037235797 | AU161: 31.47063498 | AV161: 102.0240574
A162: 103.5544182 | B162: 650.6515991 | C162: 1.17117287838742i | D162: -76.8460418276768i | F162: 3.9 | G162: 3.88998078572919-0.197419733060082i | H162: 3.88998078572919+0.973753145327338i | I162: 0.929078175333066-0.283320815513757i | J162: -16.95899606 | K162: -0.2527791636 | L162: 0 | M162: 0 | N162: -102.461389103569i | O162: 0 | P162: 0 | Q162: 0 | R162: 2.7 | S162: 2.7 | T162: 2.7 | U162: 2.7-102.461389103569i | V162: 0.000693913891627329+0.0263331041682961i | W162: 88.49052591 | X162: -31.58694418 | Y162: -0.1873292696 | Z162: -18.44564034 | AA162: 4.041375195 | AU162: 31.33416502 | AV162: 103.5544182
A163: 105.1077345 | B163: 660.4113731 | C163: 1.18874047156323i | D163: -75.71038603712i | F163: 3.9 | G163: 3.88967875641119-0.200365470895447i | H163: 3.88967875641119+0.988375000667783i | I163: 0.927052904863173-0.28707804841676i | J163: -17.20604795 | K163: -0.2602245662 | L163: 0 | M163: 0 | N163: -100.947181382827i | O163: 0 | P163: 0 | Q163: 0 | R163: 2.7 | S163: 2.7 | T163: 2.7 | U163: 2.7-100.947181382827i | V163: 0.000714872445590655+0.0267275401594907i | W163: 88.46789451 | X163: -31.45771442 | Y163: -0.1928047518 | Z163: -18.71428646 | AA163: 4.045639242 | AU163: 31.19748986 | AV163: 105.1077345
A164: 106.6843505 | B164: 670.3175437 | C164: 1.20657157863668i | D164: -74.591513337064i | F164: 3.9 | G164: 3.88936764730176-0.203354686691143i | H164: 3.88936764730176+1.00321689194554i | I164: 0.924973277739992-0.290870806287232i | J164: -17.45648521 | K164: -0.2678834929 | L164: 0 | M164: 0 | N164: -99.4553511160854i | O164: 0 | P164: 0 | Q164: 0 | R164: 2.7 | S164: 2.7 | T164: 2.7 | U164: 2.7-99.4553511160854i | V164: 0.000736463552476175+0.027127867109525i | W164: 88.44492413 | X164: -31.32848741 | Y164: -0.1984347227 | Z164: -18.98661 | AA164: 4.050031682 | AU164: 31.06060392 | AV164: 106.6843505
A165: 108.2846158 | B165: 680.3723068 | C165: 1.22467015231623i | D165: -73.4891757015409i | F165: 3.9 | G165: 3.88904718696129-0.206388000468904i | H165: 3.88904718696129+1.01828215184733i | I165: 0.922838036158858-0.294698790381819i | J165: -17.71034507 | K165: -0.2757617306 | L165: 0 | M165: 0 | N165: -97.9855676020546i | O165: 0 | P165: 0 | Q165: 0 | R165: 2.7 | S165: 2.7 | T165: 2.7 | U165: 2.7-97.9855676020546i | V165: 0.000758706274843321+0.0275341722162086i | W165: 88.4216097 | X165: -31.19926324 | Y165: -0.2042232152 | Z165: -19.26265112 | AA165: 4.054556372 | AU165: 30.92350151 | AV165: 108.2846158
A166: 109.908885 | B166: 690.5778914 | C166: 1.24304020460097i | D166: -72.4031287699911i | F166: 3.9 | G166: 3.88871709592861-0.20946604009753i | H166: 3.88871709592861+1.03357416450344i | I166: 0.920645904856695-0.298561667864413i | J166: -17.96766476 | K166: -0.2838652038 | L166: 0 | M166: 0 | N166: -96.5375050266548i | O166: 0 | P166: 0 | Q166: 0 | R166: 2.7 | S166: 2.7 | T166: 2.7 | U166: 2.7-96.5375050266548i | V166: 0.000781620247965318+0.0279465439321804i | W166: 88.3979461 | X166: -31.07004199 | Y166: -0.210174349 | Z166: -19.54245 | AA166: 4.059217285 | AU166: 30.78617678 | AV166: 109.908885
A167: 111.5575183 | B167: 700.9365598 | C167: 1.26168580766998i | D167: -71.3331317930947i | F167: 3.9 | G167: 3.88837708648974-0.212589441345375i | H167: 3.88837708648974+1.0490963663246i | I167: 0.918395591588831-0.302459070499116i | J167: -18.2284815 | K167: -0.2921999764 | L167: 0 | M167: 0 | N167: -95.1108423907929i | O167: 0 | P167: 0 | Q167: 0 | R167: 2.7 | S167: 2.7 | T167: 2.7 | U167: 2.7-95.1108423907929i | V167: 0.000805225696928144+0.0283650719813145i | W167: 88.37392809 | X167: -30.94082374 | Y167: -0.2162923305 | Z167: -19.82604677 | AA167: 4.064018511 | AU167: 30.64862376 | AV167: 111.5575183
A168: 113.2308811 | B168: 711.4506082 | C168: 1.28061109478503i | D168: -70.2789475794036i | F168: 3.9 | G168: 3.88802686244015-0.215758847930734i | H168: 3.88802686244015+1.0648522468543i | I168: 0.916085787661276-0.306390593321543i | J168: -18.49283251 | K168: -0.3007722543 | L168: 0 | M168: 0 | N168: -93.7052634392048i | O168: 0 | P168: 0 | Q168: 0 | R168: 2.7 | S168: 2.7 | T168: 2.7 | U168: 2.7-93.7052634392048i | V168: 0.000829543454233431+0.0287898473752636i | W168: 88.34955041 | X168: -30.81160859 | Y168: -0.2225814541 | Z168: -20.11348152 | AA168: 4.068964265 | AU168: 30.51083634 | AV168: 113.2308811
A169: 114.9293443 | B169: 722.1223673 | C169: 1.29982026120681i | D169: -69.2403424427622i | F169: 3.9 | G169: 3.88766611884064-0.218974911569973i | H169: 3.88766611884064+1.08084534963684i | I169: 0.913715168521164-0.310355793289813i | J169: -18.76075493 | K169: -0.3095883871 | L169: 0 | M169: 0 | N169: -92.3204565903496i | O169: 0 | P169: 0 | Q169: 0 | R169: 2.7 | S169: 2.7 | T169: 2.7 | U169: 2.7-92.3204565903496i | V169: 0.000854594977919712+0.0292209624301361i | W169: 88.32480766 | X169: -30.68239664 | Y169: -0.2290461021 | Z169: -20.40479427 | AA169: 4.074058887 | AU169: 30.37280825 | AV169: 114.9293443
A170: 116.6532844 | B170: 732.9542028 | C170: 1.31931756512491i | D170: -68.2170861505046i | F170: 3.9 | G170: 3.88729454176658-0.22223829202323i | H170: 3.88729454176658+1.09707927310168i | I170: 0.911282394408017-0.314354187916876i | J170: -19.03228587 | K170: -0.3186548704 | L170: 0 | M170: 0 | N170: -90.9561148673395i | O170: 0 | P170: 0 | Q170: 0 | R170: 2.7 | S170: 2.7 | T170: 2.7 | U170: 2.7-90.9561148673395i | V170: 0.000880402370216836+0.0296585107833039i | W170: 88.29969442 | X170: -30.55318797 | Y170: -0.2356907459 | Z170: -20.70002494 | AA170: 4.079306849 | AU170: 30.2345331 | AV170: 116.6532844
A171: 118.4030837 | B171: 743.9485159 | C171: 1.33910732860178i | D171: -67.2089518724184i | F171: 3.9 | G171: 3.88691180805042-0.225549657137529i | H171: 3.88691180805042+1.11355767146425i | I171: 0.908786111068588-0.31838525388587i | J171: -19.30746233 | K171: -0.3279783476 | L171: 0 | M171: 0 | N171: -89.6119358298912i | O171: 0 | P171: 0 | Q171: 0 | R171: 2.7 | S171: 2.7 | T171: 2.7 | U171: 2.7-89.6119358298912i | V171: 0.000906988396748796+0.0301025874103367i | W171: 88.27420515 | X171: -30.42398269 | Y171: -0.242519946 | Z171: -20.99921332 | AA171: 4.084712754 | AU171: 30.09600434 | AV171: 118.4030837
A172: 120.17913 | B172: 755.1077436 | C172: 1.35919393853081i | D172: -66.2157161304614i | F172: 3.9 | G172: 3.88651758501711-0.228909682887109i | H172: 3.88651758501711+1.1302842556437i | I172: 0.906224950538016-0.322448425650492i | J172: -19.5863212 | K172: -0.3375656121 | L172: 0 | M172: 0 | N172: -88.2876215072819i | O172: 0 | P172: 0 | Q172: 0 | R172: 2.7 | S172: 2.7 | T172: 2.7 | U172: 2.7-88.2876215072819i | V172: 0.000934376506300601+0.0305532886420607i | W172: 88.24833423 | X172: -30.2947809 | Y172: -0.2495383522 | Z172: -21.30239905 | AA172: 4.090281348 | AU172: 29.95721529 | AV172: 120.17913
A173: 121.9818169 | B173: 766.4343598 | C173: 1.37958184760877i | D173: -65.2371587492231i | F173: 3.9 | G173: 3.88611153021263-0.232319053410795i | H173: 3.88611153021263+1.14726279419797i | I173: 0.903597531990082-0.326543094022495i | J173: -19.86889925 | K173: -0.347423609 | L173: 0 | M173: 0 | N173: -86.9828783322975i | O173: 0 | P173: 0 | Q173: 0 | R173: 2.7 | S173: 2.7 | T173: 2.7 | U173: 2.7-86.9828783322975i | V173: 0.000962590851165228+0.0310107121817362i | W173: 88.22207598 | X173: -30.1655827 | Y173: -0.2567507042 | Z173: -21.60962161 | AA173: 4.096017514 | AU173: 29.81815909 | AV173: 121.9818169
A174: 123.8115442 | B174: 777.9308752 | C174: 1.4002755753229i | D174: -64.2730628071164i | F174: 3.9 | G174: 3.88569329112509-0.235778461046203i | H174: 3.88569329112509+1.1644971142767i | I174: 0.900902462659302-0.330668604748704i | J174: -20.15523307 | K174: -0.3575594367 | L174: 0 | M174: 0 | N174: -85.6974170761551i | O174: 0 | P174: 0 | Q174: 0 | R174: 2.7 | S174: 2.7 | T174: 2.7 | U174: 2.7-85.6974170761551i | V174: 0.000991656308087168+0.0314749571223504i | W174: 88.19542463 | X174: -30.03638821 | Y174: -0.2641618315 | Z174: -21.92092024 | AA174: 4.101926285 | AU174: 29.67882877 | AV174: 123.8115442
A175: 125.6687173 | B175: 789.5998383 | C175: 1.42127970895275i | D175: -63.323214588292i | F175: 3.9 | G175: 3.8852625048985-0.239288606360577i | H175: 3.8852625048985+1.18199110259217i | I175: 0.898138338837676-0.334824257080052i | J175: -20.44535906 | K175: -0.3679803492 | L175: 0 | M175: 0 | N175: -84.4309527843893i | O175: 0 | P175: 0 | Q175: 0 | R175: 2.7 | S175: 2.7 | T175: 2.7 | U175: 2.7-84.4309527843893i | V175: 0.00102159849981942+0.0319461239640208i | W175: 88.1683743 | X175: -29.90719753 | Y175: -0.2717766533 | Z175: -22.23633395 | AA175: 4.108012846 | AU175: 29.53921719 | AV175: 125.6687173
A176: 127.5537481 | B176: 801.4438359 | C176: 1.44259890458704i | D176: -62.3874035352631i | F176: 3.9 | G176: 3.88481879803895-0.242850198178038i | H176: 3.88481879803895+1.199748706409i | I176: 0.895303746948781-0.339009302335487i | J176: -20.73931342 | K176: -0.3786937575 | L176: 0 | M176: 0 | N176: -83.1832047136841i | O176: 0 | P176: 0 | Q176: 0 | R176: 2.7 | S176: 2.7 | T176: 2.7 | U176: 2.7-83.1832047136841i | V176: 0.00105244381731133+0.0324243146315035i | W176: 88.14091905 | X176: -29.77801079 | Y176: -0.2796001787 | Z176: -22.5559015 | AA176: 4.114282535 | AU176: 29.39931703 | AV176: 127.5537481
A177: 129.4670543 | B177: 813.4654934 | C177: 1.46423788815584i | D177: -61.4654222022296i | F177: 3.9 | G177: 3.88436178611302-0.246463953603027i | H177: 3.88436178611302+1.21777393455281i | I177: 0.892397264701988-0.343222942463717i | J177: -21.03713211 | K177: -0.3897072309 | L177: 0 | M177: 0 | N177: -81.9538962696395i | O177: 0 | P177: 0 | Q177: 0 | R177: 2.7 | S177: 2.7 | T177: 2.7 | U177: 2.7-81.9538962696395i | V177: 0.00108421944254509+0.0329096324918024i | W177: 88.11305285 | X177: -29.64882809 | Y177: -0.2876375061 | Z177: -22.87966131 | AA177: 4.120740853 | AU177: 29.25912086 | AV177: 129.4670543
A178: 131.4090601 | B178: 825.6674758 | C178: 1.48620145647818i | D178: -60.5570662090932i | F178: 3.9 | G178: 3.88389107343828-0.250130598039685i | H178: 3.88389107343828+1.23607085843849i | I178: 0.88941746232943-0.347464328606087i | J178: -21.3388508 | K178: -0.4010284989 | L178: 0 | M178: 0 | N178: -80.7427549454576i | O178: 0 | P178: 0 | Q178: 0 | R178: 2.7 | S178: 2.7 | T178: 2.7 | U178: 2.7-80.7427549454576i | V178: 0.00111695337203906+0.0334021823718714i | W178: 88.08476956 | X178: -29.51964956 | Y178: -0.295893823 | Z178: -23.20765149 | AA178: 4.127393466 | AU178: 29.11862107 | AV178: 131.4090601
A179: 133.380196 | B179: 838.052488 | C179: 1.50849447832535i | D179: -59.662134196151i | F179: 3.9 | G179: 3.88340625276575-0.253850865206955i | H179: 3.88340625276575+1.25464361311839i | I179: 0.886362903908393-0.351732559664054i | J179: -21.64450487 | K179: -0.4126654525 | L179: 0 | M179: 0 | N179: -79.5495122615346i | O179: 0 | P179: 0 | Q179: 0 | R179: 2.7 | S179: 2.7 | T179: 2.7 | U179: 2.7-79.5495122615346i | V179: 0.00115067444103685+0.0339020705764057i | W179: 88.05606298 | X179: -29.39047533 | Y179: -0.3043744052 | Z179: -23.53990976 | AA179: 4.134246209 | AU179: 28.97780988 | AV179: 133.380196
A180: 135.380899 | B180: 850.6232753 | C180: 1.53112189550023i | D180: -58.7804277794591i | F180: 3.9 | G180: 3.88290690495395-0.257625497149108i | H180: 3.88290690495395+1.27349639835112i | I180: 0.883232148771618-0.35602668087508i | J180: -21.95412937 | K180: -0.4246261454 | L180: 0 | M180: 0 | N180: -78.3739037059454i | O180: 0 | P180: 0 | Q180: 0 | R180: 2.7 | S180: 2.7 | T180: 2.7 | U180: 2.7-78.3739037059454i | V180: 0.00118541234840112+0.034409404905714i | W180: 88.02692681 | X180: -29.26130553 | Y180: -0.3130846166 | Z180: -23.87647344 | AA180: 4.141305095 | AU180: 28.83667939 | AV180: 135.380899
A181: 137.4116125 | B181: 863.3826244 | C181: 1.55408872393274i | D181: -57.9117515068562i | F181: 3.9 | G181: 3.88239259863482-0.261455244241459i | H181: 3.88239259863482+1.29263347969128i | I181: 0.880023753008035-0.360345682400887i | J181: -22.26775899 | K181: -0.4369187951 | L181: 0 | M181: 0 | N181: -77.2156686758083i | O181: 0 | P181: 0 | Q181: 0 | R181: 2.7 | S181: 2.7 | T181: 2.7 | U181: 2.7-77.2156686758083i | V181: 0.00122119768223204+0.0349242946736645i | W181: 87.99735463 | X181: -29.13214029 | Y181: -0.322029908 | Z181: -24.2173794 | AA181: 4.148576317 | AU181: 28.69522149 | AV181: 137.4116125
A182: 139.4727866 | B182: 876.3333638 | C182: 1.57740005479173i | D182: -57.0559128146367i | F182: 3.9 | G182: 3.88186288987073-0.265340865190963i | H182: 3.88186288987073+1.31205918960077i | I182: 0.87673627105622-0.364688497932427i | J182: -22.58542801 | K182: -0.4495517842 | L182: 0 | M182: 0 | N182: -76.0745504195156i | O182: 0 | P182: 0 | Q182: 0 | R182: 2.7 | S182: 2.7 | T182: 2.7 | U182: 2.7-76.0745504195156i | V182: 0.00125806194623049+0.0354468507256983i | W182: 87.96733996 | X182: -29.00297974 | Y182: -0.3312158159 | Z182: -24.56266402 | AA182: 4.156066257 | AU182: 28.55342796 | AV182: 139.4727866
A183: 141.5648784 | B183: 889.4783642 | C183: 1.6010610556136i | D183: -56.2127219848637i | F183: 3.9 | G183: 3.88131732180296-0.269283127031413i | H183: 3.88131732180296+1.33177792858219i | I183: 0.873368257392838-0.369054003316094i | J183: -22.9071703 | K183: -0.462533661 | L183: 0 | M183: 0 | N183: -74.9502959798183i | O183: 0 | P183: 0 | Q183: 0 | R183: 2.7 | S183: 2.7 | T183: 2.7 | U183: 2.7-74.9502959798183i | V183: 0.00129603758682674+0.0359771854569013i | W183: 87.93687622 | X183: -28.87382403 | Y183: -0.3406479619 | Z183: -24.91236315 | AA183: 4.163781486 | AU183: 28.41129037 | AV183: 141.5648784
A184: 143.6883516 | B184: 902.8205397 | C184: 1.62507697144781i | D184: -55.381992103314i | F184: 3.9 | G184: 3.88075542429114-0.273282805112923i | H184: 3.88075542429114+1.35179416633489i | I184: 0.869918268318115-0.373441015206007i | J184: -23.23301924 | K184: -0.4758731404 | L184: 0 | M184: 0 | N184: -73.8426561377521i | O184: 0 | P184: 0 | Q184: 0 | R184: 2.7 | S184: 2.7 | T184: 2.7 | U184: 2.7-73.8426561377521i | V184: 0.00133515802109581+0.0365154128301258i | W184: 87.90595671 | X184: -28.74467331 | Y184: -0.3503320505 | Z184: -25.26651209 | AA184: 4.171728776 | AU184: 28.26880017 | AV184: 143.6883516
A185: 145.8436769 | B185: 916.3628478 | C185: 1.64945312601952i | D185: -54.5635390180434i | F185: 3.9 | G185: 3.88017671354353-0.277340683085377i | H185: 3.88017671354353+1.37211244293414i | I185: 0.866384863840278-0.377848289747481i | J185: -23.56300775 | K185: -0.4895791048 | L185: 0 | M185: 0 | N185: -72.7513853573912i | O185: 0 | P185: 0 | Q185: 0 | R185: 2.7 | S185: 2.7 | T185: 2.7 | U185: 2.7-72.7513853573912i | V185: 0.00137545766548139+0.0370616483941535i | W185: 87.87457465 | X185: -28.61552772 | Y185: -0.3602738684 | Z185: -25.62514551 | AA185: 4.179915106 | AU185: 28.12594862 | AV185: 145.8436769
A186: 148.031332 | B186: 930.1082905 | C186: 1.67419492290982i | D186: -53.7571812985649i | F186: 3.9 | G186: 3.87958069173832-0.281457552875514i | H186: 3.87958069173832+1.39273737003431i | I186: 0.862766609660626-0.382274521297083i | J186: -23.89716818 | K186: -0.5036606041 | L186: 0 | M186: 0 | N186: -71.6762417314199i | O186: 0 | P186: 0 | Q186: 0 | R186: 2.7 | S186: 2.7 | T186: 2.7 | U186: 2.7-71.6762417314199i | V186: 0.00141697196535041+0.0376160093018893i | W186: 87.84272317 | X186: -28.48638742 | Y186: -0.3704792819 | Z186: -25.98829745 | AA186: 4.188347662 | AU186: 27.98272682 | AV186: 148.031332
A187: 150.251802 | B187: 944.0599149 | C187: 1.69930784675346i | D187: -52.9627401956305i | F187: 3.9 | G187: 3.87896684663504-0.285634214657283i | H187: 3.87896684663504+1.41367363209618i | I187: 0.859062079260787-0.386718341184913i | J187: -24.23553233 | K187: -0.5181268562 | L187: 0 | M187: 0 | N187: -70.6169869275073i | O187: 0 | P187: 0 | Q187: 0 | R187: 2.7 | S187: 2.7 | T187: 2.7 | U187: 2.7-70.6169869275073i | V187: 0.00145973742540129+0.0381786143285763i | W187: 87.81039528 | X187: -28.35725257 | Y187: -0.3809542354 | Z187: -26.35600123 | AA187: 4.197033851 | AU187: 27.83912572 | AV187: 150.251802
A188: 152.5055791 | B188: 958.2208136 | C188: 1.72479746445477i | D188: -52.1800396016064i | F188: 3.9 | G188: 3.87833465117677-0.289871476815126i | H188: 3.87833465117677+1.43492598763964i | I188: 0.855269856093343-0.391178316525097i | J188: -24.57813137 | K188: -0.5329872472 | L188: 0 | M188: 0 | N188: -69.5733861354752i | O188: 0 | P188: 0 | Q188: 0 | R188: 2.7 | S188: 2.7 | T188: 2.7 | U188: 2.7-69.5733861354752i | V188: 0.00150379164094918+0.0387495838900212i | W188: 87.7775839 | X188: -28.22812334 | Y188: -0.3917047487 | Z188: -26.72828943 | AA188: 4.205981304 | AU188: 27.69513609 | AV188: 152.5055791
A189: 154.7931627 | B189: 972.5941258 | C189: 1.75066942642159i | D189: -51.4089060114349i | F189: 3.9 | G189: 3.87768356308236-0.294170155899785i | H189: 3.87768356308236+1.4564992705218i | I189: 0.851388535876895-0.395652949080652i | J189: -24.92499586 | K189: -0.5482513311 | L189: 0 | M189: 0 | N189: -68.5452080152465i | O189: 0 | P189: 0 | Q189: 0 | R189: 2.7 | S189: 2.7 | T189: 2.7 | U189: 2.7-68.5452080152465i | V189: 0.00154917333011212+0.0393290400608175i | W189: 87.74428185 | X189: -28.09899988 | Y189: -0.4027369151 | Z189: -27.10519387 | AA189: 4.215197884 | AU189: 27.55074855 | AV189: 154.7931627
A190: 157.1150602 | B190: 987.1830377 | C190: 1.77692946781791i | D190: -50.6491684841723i | F190: 3.9 | G190: 3.8770130244288-0.29853107657626i | H190: 3.8770130244288+1.47839839124165i | I190: 0.847416728996183-0.400140674189259i | J190: -25.27615564 | K190: -0.5639288301 | L190: 0 | M190: 0 | N190: -67.5322246455631i | O190: 0 | P190: 0 | Q190: 0 | R190: 2.7 | S190: 2.7 | T190: 2.7 | U190: 2.7-67.5322246455631i | V190: 0.00159592236692264+0.039917106592555i | W190: 87.71048181 | X190: -27.96988239 | Y190: -0.4140568983 | Z190: -27.48674549 | AA190: 4.224691694 | AU190: 27.40595356 | AV190: 157.1150602
A191: 159.4717861 | B191: 1001.990783 | C191: 1.80358340983518i | D191: -49.9006586050959i | F191: 3.9 | G191: 3.87632246122345-0.302955071563477i | H191: 3.87632246122345+1.5006283382717i | I191: 0.843353063007693-0.404639859756663i | J191: -25.63163984 | K191: -0.5800296331 | L191: 0 | M191: 0 | N191: -66.5342114734612i | O191: 0 | P191: 0 | Q191: 0 | R191: 2.7 | S191: 2.7 | T191: 2.7 | U191: 2.7-66.5342114734612i | V191: 0.00164407981539002+0.0405139089320032i | W191: 87.67617641 | X191: -27.84077103 | Y191: -0.4256709292 | Z191: -27.87297438 | AA191: 4.234471083 | AU191: 27.26074139 | AV191: 159.4717861
A192: 161.8638629 | B192: 1017.020645 | C192: 1.83063716098271i | D192: -49.1632104483703i | F192: 3.9 | G192: 3.87561128296607-0.307442981565268i | H192: 3.87561128296607+1.52319417941744i | I192: 0.839196185250746-0.409148805324707i | J192: -25.9914768 | K192: -0.5965637963 | L192: 0 | M192: 0 | N192: -65.5509472644938i | O192: 0 | P192: 0 | Q192: 0 | R192: 2.7 | S192: 2.7 | T192: 2.7 | U192: 2.7-65.5509472644938i | V192: 0.00169368796453871+0.0411195742392535i | W192: 87.64135814 | X192: -27.71166599 | Y192: -0.4375853032 | Z192: -28.26390967 | AA192: 4.244544656 | AU192: 27.11510219 | AV192: 161.8638629
A193: 164.2918208 | B193: 1032.275955 | C193: 1.85809671839745i | D193: -48.4366605402663i | F193: 3.9 | G193: 3.87487888220044-0.311995655192183i | H193: 3.87487888220044+1.54610106320527i | I193: 0.834944765563731-0.413665741221232i | J193: -26.3556941 | K193: -0.6135415411 | L193: 0 | M193: 0 | N193: -64.5822140536884i | O193: 0 | P193: 0 | Q193: 0 | R193: 2.7 | S193: 2.7 | T193: 2.7 | U193: 2.7-64.5822140536884i | V193: 0.00174479036444931+0.0417342314058069i | W193: 87.60601937 | X193: -27.58256746 | Y193: -0.4498063761 | Z193: -28.6595795 | AA193: 4.254921281 | AU193: 26.96902592 | AV193: 164.2918208
A194: 166.7561981 | B194: 1047.760094 | C194: 1.88596816917341i | D194: -47.7208478229225i | F194: 3.9 | G194: 3.87412463405535-0.316613948873689i | H194: 3.87412463405535+1.56935422029972i | I194: 0.830597499104705-0.418188827799313i | J194: -26.72431842 | K194: -0.6309732538 | L194: 0 | M194: 0 | N194: -63.62779709723i | O194: 0 | P194: 0 | Q194: 0 | R194: 2.7 | S194: 2.7 | T194: 2.7 | U194: 2.7-63.62779709723i | V194: 0.00179743186332901+0.0423580110725905i | W194: 87.57015238 | X194: -27.45347564 | Y194: -0.4623405609 | Z194: -29.06001098 | AA194: 4.265610098 | AU194: 26.82250238 | AV194: 166.7561981
A195: 169.2575411 | B195: 1063.476495 | C195: 1.91425769171101i | D195: -47.0156136186429i | F195: 3.9 | G195: 3.87334789577502-0.321298726760266i | H195: 3.87334789577502+1.59295896495074i | I195: 0.826153109275189-0.422716154773516i | J195: -27.09737557 | K195: -0.6488694838 | L195: 0 | M195: 0 | N195: -62.6874848248571i | O195: 0 | P195: 0 | Q195: 0 | R195: 2.7 | S195: 2.7 | T195: 2.7 | U195: 2.7-62.6874848248571i | V195: 0.00185165864563884+0.0429910456478889i | W195: 87.53374934 | X195: -27.32439073 | Y195: -0.475194323 | Z195: -29.46523014 | AA195: 4.276620527 | AU195: 26.67552124 | AV195: 169.2575411
A196: 171.7964042 | B196: 1079.428643 | C196: 1.94297155708668i | D196: -46.320801594722i | F196: 3.9 | G196: 3.87254800623868-0.326050860614893i | H196: 3.87254800623868+1.61692069647179i | I196: 0.821610350745486-0.427245740660998i | J196: -27.47489043 | K196: -0.6672409423 | L196: 0 | M196: 0 | N196: -61.7610687929627i | O196: 0 | P196: 0 | Q196: 0 | R196: 2.7 | S196: 2.7 | T196: 2.7 | U196: 2.7-61.7610687929627i | V196: 0.00190751827130595+0.0436334693251704i | W196: 87.49680229 | X196: -27.19531293 | Y196: -0.4883741762 | Z196: -29.87526183 | AA196: 4.287962279 | AU196: 26.52807199 | AV196: 171.7964042
A197: 174.3733503 | B197: =2*PI()*$A197 -> 1095.620072 | C197: =COMPLEX(0,10^-3*$C$3*$B197) -> 1.97211613044298i | D197: =IF($D$3>0,COMPLEX(0,-1*10^6/($B197*$D$3)),"") -> -45.6362577287902i | E197: =IF($E$3>0,COMPLEX(0,10^-3*$E$3*$B197),"") ->  | F197: =IF($E$3>0,IMSUM($E197,$F$3),$F$3) -> 3.9 | G197: =IF($D$3>0,IMPARA($F197,$D197),$F197) -> 3.87172428546897-0.330871229693383i | H197: =IMSUM($C197,$G197) -> 3.87172428546897+1.6412449007496i | I197: =IMPRODUCT(IMDIV($G197,$H197),IMDIV($F$3,$F197)) -> 0.81696801257936-0.431775532335537i | J197: =IMARGUMENT($I197)*180/PI() -> -27.85688691 | K197: =20*LOG(IMABS($I197)) -> -0.6860985 | L197: =IF($L$3>0,COMPLEX(0,-1*10^6/($B197*$L$3)),0) -> 0 | M197: =IF($L$3>0,IMPARA($M$3,$L197), 0) -> 0 | N197: =COMPLEX(0,-1*10^6/($B197*$N$3)) -> -60.8483436383869i | O197: =IF($O$3>0,COMPLEX(0,10^-3*$O$3*$B197), 0) -> 0 | P197: =IF($P$3>0, COMPLEX(0,-1*10^6/($B197*$P$3)),0) -> 0 | Q197: =COMPLEX(0,10^-6*$Q$3*$B197) -> 0 | R197: =$R$3 -> 2.7 | S197: =IMSUM($R197,$P197) -> 2.7 | T197: =IF($O$3>0,IMPARA($S197,$O197), $S197) -> 2.7 | U197: =IMSUM($T197,$Q197,$N197,$M197) -> 2.7-60.8483436383869i | V197: =IMPRODUCT( IMDIV($R197,$S197 ),IMDIV($T197,$U197)) -> 0.00196505971604965+0.0442854181007926i | W197: =IMARGUMENT($V197)*180/PI() -> 87.45930316 | X197: =20*LOG(IMABS($V197)) -> -27.06624247 | Y197: =20*LOG(IMABS(IMSUB($I197,$V197))) -> -0.5018866781 | Z197: =IMARGUMENT(IMSUM($I197,IMPRODUCT(-1,$V197)))*180/PI() -> -30.29012973 | AA197: =IMABS(IMDIV(IMPRODUCT($U197,$H197),IMSUM($U197,$H197))) -> 4.299645364 | AU197: =ABS($K197-$X197) -> 26.38014397 | AV197: =$A197 -> 174.3733503
A198: =$A197*1.015 -> 176.9889505 | B198: 1112.054374 | C198: 2.00169787239962i | D198: -44.9618302746701i | F198: 3.9 | G198: 3.87087603412958-0.33576072061306i | H198: 3.87087603412958+1.66593715178656i | I198: 0.812224921455405-0.436303404702627i | J198: -28.24338786 | K198: -0.7054531851 | L198: 0 | M198: 0 | N198: -59.9491070328935i | O198: 0 | P198: 0 | Q198: 0 | R198: 2.7 | S198: 2.7 | T198: 2.7 | U198: 2.7-59.9491070328935i | V198: 0.0020243334128504+0.044947029791567i | W198: 87.42124378 | X198: -26.93717957 | Y198: -0.5157384245 | Z198: -30.70985624 | AA198: 4.311680101 | AU198: 26.23172638 | AV198: 176.9889505
A199: 179.6437848 | B199: 1128.735189 | C199: 2.03172334048561i | D199: -44.297369728739i | F199: 3.9 | G199: 3.87000253301149-0.340720227209175i | H199: 3.87000253301149+1.69100311327643i | I199: 0.807379944981875-0.440827160503932i | J199: -28.63441511 | K199: -0.7253161811 | L199: 0 | M199: 0 | N199: -59.0631596383187i | O199: 0 | P199: 0 | Q199: 0 | R199: 2.7 | S199: 2.7 | T199: 2.7 | U199: 2.7-59.0631596383187i | V199: 0.00208539129459187+0.0456184440521628i | W199: 87.38261583 | X199: -26.80812444 | Y199: -0.5299360446 | Z199: -31.13446245 | AA199: 4.32407713 | AU199: 26.08280826 | AV199: 179.6437848
A200: 182.3384416 | B200: 1145.666217 | C200: 2.0621991905929i | D200: -43.6427287967872i | F200: 3.9 | G200: 3.86910304250784-0.345750650378475i | H200: 3.86910304250784+1.71644854021442i | I200: 0.802431995101145-0.44534453025948i | J200: -29.02998935 | K200: -0.7456988237 | L200: 0 | M200: 0 | N200: -58.190305062383i | O200: 0 | P200: 0 | Q200: 0 | R200: 2.7 | S200: 2.7 | T200: 2.7 | U200: 2.7-58.190305062383i | V200: 0.0021482868379066+0.0462998023923286i | W200: 87.3434109 | X200: -26.67907732 | Y200: -0.5444861948 | Z200: -31.56396809 | AA200: 4.33684742 | AU200: 25.9333785 | AV200: 182.3384416
... 320 more rows

Sheet Three-ways
A1: Driver | B1: W | T1: Driver | U1: W
A2: Woofer | B2: ='MGD3'!$AU$2 -> 4 | T2: Woofer | U2: ='MGD3'!$AU$2 -> 4 | AH2: ='MGD3'!$AU$2 -> 4
A3: Mid | B3: 3.9 | T3: Mid | U3: ='MGD3'!$AU$3 -> 3.9 | AH3: ='MGD3'!$AU$3 -> 3.9
A4: Tweeter | B4: 3 | T4: Tweeter | U4: ='MGD3'!$AU$4 -> 3 | AH4: ='MGD3'!$AU$4 -> 3
A5: Resist. | B5: 0 | T5: Resist. | U5: ='MGD3'!$AU$5 -> 0 | AH5: ='MGD3'!$AU$5 -> 0
A6: Mid LP | C6: fc | D6: =ROUND(IF(B9>0, 1/(2*PI()*SQRT((B9*10^-3/B3)*SQRT(B7*B8*10^-9))), IF(B8>0, 1/(2*PI()*SQRT(B7*B8*10^-9)), B3*1000/(B7*2*PI()))), -1) -> 1190 | T6: Mid LP
A7: L1 | B7: 0.96 | T7: L1 | U7: ='MGD3'!$AU$7 -> 0.96 | AH7: ='MGD3'!$AU$7 -> 0.96
A8: C | B8: 50 | T8: C | U8: ='MGD3'!$AU$8 -> 50 | AH8: ='MGD3'!$AU$8 -> 50
A9: L2 | B9: 0.32 | T9: L2 | U9: ='MGD3'!$AU$9 -> 0.32 | AH9: ='MGD3'!$AU$9 -> 0.32
A10: Tweeter HP | T10: Tweeter HP
A11: L | B11: 0.4 | C11: fc | D11: =ROUND(IF(B11 >0, 1/(2*PI()*SQRT(B11*B12*10^-9)), 10^6/(2*PI()*B4*B12)),-1) -> 1930 | T11: L | U11: ='MGD3'!$AU$11 -> 0.4 | AH11: ='MGD3'!$AU$11 -> 0.4
A12: C | B12: 17 | T12: C | U12: ='MGD3'!$AU$12 -> 17 | AH12: ='MGD3'!$AU$12 -> 17
A13: External XO | T13: External XO
A14: Woofer LP | C14: fc | D14: =ROUND(IF(B18>0, 1/(2*PI()*SQRT(SQRT(B15*B16*10^-9)*SQRT(B17*B18*10^-9))), IF(B17>0, 1/(2*PI()*SQRT((B17*10^-3/B2)*SQRT(B15*B16*10^-9))), IF(B16>0, 1/(2*PI()*SQRT(B15*B15*10^-9)), B2*1000/(2*PI()*B11)))),-1) -> 230 | T14: Woofer LP
A15: L1 | B15: 5.6 | T15: L1 | U15: ='MGD3'!$AU$15 -> 5.6 | AH15: ='MGD3'!$AU$15 -> 5.6
A16: C1 | B16: 225 | T16: C1 | U16: ='MGD3'!$AU$16 -> 225 | AH16: ='MGD3'!$AU$16 -> 225
A17: L2 | B17: 1.7 | T17: L2 | U17: ='MGD3'!$AU$17 -> 1.7 | AH17: ='MGD3'!$AU$17 -> 1.7
A18: C2 | B18: 0 | T18: C2 | U18: ='MGD3'!$AU$18 -> 0 | AH18: ='MGD3'!$AU$18 -> 0
A19: Mid HP | T19: Mid HP
A20: L | B20: 8.5 | C20: fc | D20: =ROUND(IF(B20>0, 1/(2*PI()*SQRT(B20*B21*10^-9)), 1/(2*PI()*B3*B21*10^-6)),-1) -> 180 | T20: L | U20: ='MGD3'!$AU$20 -> 8.5 | AH20: ='MGD3'!$AU$20 -> 8.5
A21: C | B21: 90 | T21: C | U21: ='MGD3'!$AU$21 -> 90 | AH21: ='MGD3'!$AU$21 -> 90
B22: ='MGD3'!$AU$1 -> MG 3.3
H29: fc | I29: Δ db at 20 kHz | J29: Δ db at 15 kHz | L29: XO Frequency | M29: Bass-Mid | N29: =ROUND('MGD3'!$BI4,-1) -> 240
E30: Choke | F30: 0 | G30: uH | H30: =(IF(F30=0, "NA", ROUND((B4+B5)*10^6/(F30*2*PI()),-1))) -> NA | I30: =ROUND('MGD3'!U523, 3) -> 0 | J30: =ROUND('MGD3'!U521,3) -> 0 | M30: Mid-Tweeter | N30: =ROUND('MGD3'!$BJ$4,-1) -> 1190

Sheet MGD3 (hidden)
G1: WOOFER | S1: Tweeter High Pass | V1: Mid Bandpass – Internal (LP) | AF1: External Mid | AP1: Sum response of all 3 drivers | AT1: Impedance | AU1: MG 3.3 | AV1: MG III | AW1: MG IIIA | AX1: MG 3.3 | AY1: MG 3.5 | AZ1: MG 3.6 | BA1: MG 20 | BB1: MG 20.1 | BC1: T-IVA | BD1: MG 2.7 | BG1: WOOFER | BI1: Crossover Frequencies | BK1: =MAX(BK5:BK516) -> 0.5901048795 | BL1: =BK1-3.01 -> -2.41989512 | BM1: =ROUND(VLOOKUP(BL1,BK5:BM516,3),-1) -> 420 | BN1: MIN
E2: R= | F2: ='Three-ways'!B2 -> 4 | G2: 2nd Order LP | H2: 3rd Order LP | J2: 4th Order LP (3.6) | P2: C | Q2: L | R2: R | S2: Re | T2: Choke | V2: Internal LP components | Y2: 2nd Order LP | Z2: 3rd Order LP | AF2: Mid HP | AP2: Note: Mid driver out of phase | AT2: Rw | AU2: 4 | AV2: 3.9 | AW2: 3.9 | AX2: 4 | AY2: 4 | AZ2: 3.9 | BA2: 4 | BB2: 4 | BC2: 4 | BD2: 4.2 | BG2: MID RANGE | BI2: Woofer-Mid | BJ2: Mid-Tweeter | BK2: =ROUND(VLOOKUP(BK1, BK5:BM516,3),-2) -> 20100 | BL2: =ABS(BL1) -> 2.41989512 | BM2: =ROUND(VLOOKUP(BL2,BL301:BM516,2),-2) -> 900 | BN2: MAX
C3: ='Three-ways'!$B$15 -> 5.6 | D3: ='Three-ways'!B16 -> 225 | E3: ='Three-ways'!B17 -> 1.7 | F3: ='Three-ways'!B18 -> 0 | P3: ='Three-ways'!B12 -> 17 | Q3: ='Three-ways'!B11 -> 0.4 | R3: ='Three-ways'!B4 -> 3 | S3: ='Three-ways'!B5 -> 0 | T3: ='Three-ways'!$F$30 -> 0 | V3: ='Three-ways'!$B$7 -> 0.96 | W3: ='Three-ways'!$B$8 -> 50 | X3: ='Three-ways'!$B$9 -> 0.32 | Y3: ='Three-ways'!$B$3 -> 3.9 | AC3: Mid Internal | AD3: Mid LP | AF3: ='Three-ways'!$B$21 -> 90 | AG3: ='Three-ways'!$B$20 -> 8.5 | AM3: ext hp + int lp | AP3: NET | AT3: Rm | AU3: 3.9 | AV3: 3.3 | AW3: 3.3 | AX3: 3.9 | AY3: 3.9 | AZ3: 3.5 | BA3: 3.9 | BB3: 3.7 | BC3: 5 | BD3: 4.1 | BG3: TWEETER | BI3: =MIN($BI5:$BI516) -> 0.07373999891 | BJ3: =IF($AU$1<> "MG 2.7",MIN($BJ5:$BJ516), MIN($BJ250:$BJ516)) -> 0.03602831467 | BM3: =ROUND(VLOOKUP(BK1, BK5:BM516,3),-2) -> 20100 | BN3: MID
A4: f | B4: w | C4: XL1 | D4: XC1 | E4: XL2 | F4: XC2 | G4: Z(C||R) | H4: Z(R +L2) | I4: Z[C1 || (R+L2)] | J4: Z(R || C2) | K4: Z[L2+(R || C2)] | L4: Z{C1 || [L2+(R || C2)]} | M4: ZWoofer | N4: Volt Div | O4: Woofer Out | P4: Xc | Q4: XL | R4: Zp | S4: ZTweeter | T4: Volt Div | U4: Tweet Out | V4: XLint1 | W4: XCint | X4: XLint2 | Y4: Z(C || R) | Z4: Z(L2 + R) | AA4: Z (C || L2+R) | AB4: Zintermediate | AC4: ZTotal | AD4: Voltage Div | AE4: Output LP | AF4: XCext | AG4: XLext | AH4: Zint_net | AI4: Z (Int || L) | AJ4: Z Mid HP | AK4: Volt Div | AL4: Output HP | AM4: Zbandpass | AN4: Volt Div BandPass | AO4: Mid Out | AP4: Voltage | AQ4: Output | AR4: Phase | AS4: Z | AT4: Rt | AU4: 3 | AV4: 3 | AW4: 2.2 | AX4: 3 | AY4: 3 | AZ4: 3 | BA4: 3 | BB4: 3 | BC4: 2 | BD4: 4.1 | BG4: NET OUTPUT | BI4: =VLOOKUP(BI3,BI5:BM516,5,0) -> 238.3784541 | BJ4: =IF($AU$1<>"MG 2.7", VLOOKUP(BJ3,BJ5:BM516,4,0),VLOOKUP(BJ3,BJ250:BM516,4,0)) -> 1190.144138
A5: 10 | B5: =$A5*2*PI() -> 62.83185307 | C5: =COMPLEX(0,10^-3*$B5*$C$3) -> 0.351858377202057i | D5: =COMPLEX(0,-1*10^6/($B5*$D$3)) -> -70.7355302630646i | E5: =IF($E$3>0,COMPLEX(0,10^-3*$B5*$E$3),"") -> 0.106814150222053i | F5: =IF($F$3>0,COMPLEX(0,-1*10^6/($B5*$F$3)),"") ->  | G5: =IF($E$3=0,IMDIV(IMPRODUCT($F$2,$D5),IMSUM($F$2,$D5)),"") ->  | H5: =IF($F$3>0,"",IF($E$3>0,IMSUM($F$2,$E5),"")) -> 4+0.106814150222053i | I5: =IF($H5<>"",IMPARA($D5,$H5)) -> 3.99928039696589-0.119520309824421i | J5: =IF($F$3>0,IMDIV(IMPRODUCT($F$2,$F5),IMSUM($F$2,$F5)),"") ->  | K5: =IF($F$3>0,IMSUM($J5,$E5),"") ->  | L5: =IF($F$3>0,IMDIV(IMPRODUCT($K5,$D5),IMSUM($K5,$D5)),"") ->  | M5: =IMSUM($C5,IF($F$3>0,$L5,IF($E$3>0,$I5,$G5))) -> 3.99928039696589+0.232338067377636i | N5: =IF($F$3>0,IMPRODUCT(IMDIV($J5,$K5),IMDIV($L5,$M5)), IF($E$3>0, IMPRODUCT(IMDIV($F$2,$H5),IMDIV($I5,$M5)), IMDIV($G5,$M5))) -> 0.991857214253683-0.114170581059092i | O5: =20*LOG(IMABS($N5)) -> -0.01385150012 | P5: =COMPLEX(0,(-1*10^6)/($B5*$P$3)) -> -936.205547599384i | Q5: =IF($Q$3>0, COMPLEX(0,10^-3*$B5*$Q$3), "") -> 0.0251327412287183i | R5: =IF($Q$3>0,IMPARA($R$3,$Q5),$R$3) -> 0.000210536784273744+0.0251309774398789i | S5: =IMSUM($P5,$R5,$S$3,COMPLEX(0,$T$3*B5*10^-6)) -> 0.000210536784273744-936.180416621944i | T5: =IMPRODUCT(IMDIV($R5,$S5),IF($AU$1="MG 2.7",1,$AK5)) -> 7.96758767537453E-08-1.16180126772884E-08i | U5: =20*LOG(IMABS($T5)) -> -141.88209 | V5: =COMPLEX(0,(10^-3)*$B5*$V$3) -> 0.060318578948924i | W5: =IF($W$3>0,COMPLEX(0,(-1*10^6)/($B5*$W$3)), "") -> -318.309886183791i | X5: =IF($X$3>0,COMPLEX(0,(10^-3)*$B5*$X$3),"") -> 0.0201061929829747i | Y5: =IF($X$3>0,"", IF($W$3>0,IMPARA($Y$3,$W5), "")) ->  | Z5: =IF($X$3>0,IMSUM($X5,$Y$3),"") -> 3.9+0.0201061929829747i | AA5: =IF($X$3>0,IMDIV(1,(IMSUM(IMDIV(1,$Z$5),IMDIV(1,$W5)))),"") -> 3.89990722223488-0.0276780428418732i | AB5: =IF($X$3>0, $AA5, IF($W$3>0, $Y5,$Y$3)) -> 3.89990722223488-0.0276780428418732i | AC5: =IMSUM($V5,$AB5) -> 3.89990722223488+0.0326405361070508i | AD5: =IF($X$3>0, IMPRODUCT(IMDIV($AB5,$AC5),IMDIV($Y$3,$Z5)), IF($W$3>0, IMDIV($Y5,$AC5), IMDIV($Y$3,$AC5))) -> 0.999764255680302-0.0206198056086839i | AE5: =20*LOG(IMABS($AD5)) -> -0.0002008948581 | AF5: =COMPLEX(0,-1*10^6/($B5*$AF$3)) -> -176.838825657661i | AG5: =IF($AG$3>0,COMPLEX(0,(10^-3)*$AG$3*$B5), "") -> 0.534070751110265i | AH5: =IF($AU$1<>"MG 2.7",IMPARA($S5,$AC5), $Y$3) -> 3.90011149270917+0.0163941613306905i | AI5: =IF($AG$3>0,IMPARA($AG5,$AH5),$AH5) -> 0.0717057771385406+0.523950139325738i | AJ5: =IMSUM($AF5,$AI5) -> 0.0717057771385406-176.314875518335i | AK5: =IMDIV($AI5,$AJ5) -> -0.00297150702113739+0.000407900077332301i | AL5: =20*LOG(IMABS($AK5)) -> -50.45939138 | AM5: =IF($AU$1<>"MG 2.7",$AJ5, IMSUM($V5,$AJ5)) -> 0.0717057771385406-176.314875518335i | AN5: =IF($AU$1<>"MG 2.7",IMPRODUCT($AD5,$AK5),IMDIV($Y$3,$AM5)) -> -0.00296239568493385+0.000469075814346758i | AO5: =20*LOG(IMABS($AN5)) -> -50.45959228 | AP5: =IF($AU$1="MG 2.7", IMSUM(IMPRODUCT(-1,$N5),$AN5,$T5), IMSUM($N5,IMPRODUCT(-1,$AN5),$T5)) -> 0.994819689614494-0.114639668491451i | AQ5: =20*LOG(IMABS($AP5)) -> 0.01217992797 | AR5: =IMARGUMENT(IMSUM($N5,$T5,IMPRODUCT(-1,$AN5)))*180/PI() -> -6.573576979 | AS5: =IF($AU$1<>"MG 2.7",IMABS(IMPARA($M5,$AM5)),IMABS(IMDIV(1,IMSUM(IMDIV(1,$M5),IMDIV(1,$AM5),IMDIV(1,$S5))))) -> 4.010238124 | AT5: Re | AU5: 0 | AV5: 0 | AW5: 1 | AX5: 0 | AY5: 0 | AZ5: 0 | BA5: 0 | BB5: 0 | BC5: 1 | BG5: IMPEDANCE | BI5: =ABS($O5-$AL5) -> 50.44553988 | BJ5: =ABS($AE5-$U5) -> 141.8818891 | BK5: =AO5 -> -50.45959228 | BL5: =ABS(AO5) -> 50.45959228 | BM5: =$A5 -> 10
A6: =$A5*1.015 -> 10.15 | B6: 63.77433087 | C6: 0.357136252860088i | D6: -69.6901775990784i | E6: 0.108416362475384i | H6: 4+0.108416362475384i | I6: 3.99925836708593-0.121317393563582i | M6: 3.99925836708593+0.235818859296506i | N6: 0.991612080802412-0.115867946234464i | O6: -0.01426870856 | P6: -922.369997634862i | Q6: 0.0255097323471491i | R6: 0.000216899798499654+0.0255078879952138i | S6: 0.000216899798499654-922.344489746867i | T6: 8.45216564144208E-08-1.25109327717508E-08i | U6: -141.3665133 | V6: 0.0612233576331579i | W6: -313.605799195853i | X6: 0.0204077858777193i | Z6: =IF($X$3=0,"",IMSUM($X6,$Y$3)) -> 3.9+0.0204077858777193i | AA6: =IF($X$3=0,"",IMDIV(1,(IMSUM(IMDIV(1,$Z$5),IMDIV(1,$W6))))) -> 3.89989691726258-0.0283947241752217i | AB6: 3.89989691726258-0.0283947241752217i | AC6: 3.89989691726258+0.0328286334579362i | AD6: 0.999758343343192-0.0209291005187882i | AE6: -0.0001964257047 | AF6: -174.225443997696i | AG6: 0.542081812376919i | AH6: 3.90010481190685+0.0163386228681167i | AI6: 0.0738312225667104+0.531510593030582i | AJ6: 0.0738312225667104-173.693933404665i | AK6: -0.00305985997041911+0.000426365701539351i | AL6: -50.20245419 | AM6: 0.0738312225667104-173.693933404665i | AN6: -0.00305019708426308+0.000490302784323657i | AO6: -50.20265061 | AP6: 0.994662362408332-0.11635826152972i | AQ6: 0.01254366283 | AR6: -6.672287073 | AS6: =IF($AU$1<>"MG 2.7",IMABS(IMPARA($M6,$AM6)),IMABS(IMDIV(1,IMSUM(IMDIV(1,$M6),IMDIV(1,$AM6),IMDIV(1,$S6))))) -> 4.010546262 | AT6: Mid LP | BG6: Stock Woofer | BI6: 50.18818548 | BJ6: 141.3663169 | BK6: -50.20265061 | BL6: 50.20265061 | BM6: 10.15
A7: 10.30225 | B7: 64.73094583 | C7: 0.362493296652989i | D7: -68.660273496629i | E7: 0.110042607912515i | H7: 4+0.110042607912515i | I7: 3.99923565418514-0.123141628434317i | M7: 3.99923565418514+0.239351668218672i | N7: 0.991359598134622-0.117590082237941i | O7: -0.01469843837 | P7: -908.738913925972i | Q7: 0.0258923783323564i | R7: 0.000223455106600579+0.0258904497376363i | S7: 0.000223455106600579-908.713023476234i | T7: 8.96607833158952E-08-1.34723244746862E-08i | U7: -140.8509862 | V7: 0.0621417079976552i | W7: -308.97123073483i | X7: 0.0207139026658851i | Z7: 3.9+0.0207139026658851i | AA7: 3.89988618836779-0.0291221498437175i | AB7: 3.89988618836779-0.0291221498437175i | AC7: 3.89988618836779+0.0330195581539377i | AD7: 0.999752270449086-0.0212430354292065i | AE7: -0.0001916634985 | AF7: -171.650683741572i | AG7: 0.550213039562573i | AH7: 3.90009777852366+0.0162822610303843i | AI7: 0.0760184183215554+0.539171245437613i | AJ7: 0.0760184183215554-171.111512496134i | AK7: -0.00315079540257468+0.000445662221624257i | AL7: -49.94556652 | AM7: 0.0760184183215554-171.111512496134i | AN7: -0.00314054763908116+0.00051248427628931i | AO7: -49.94575819 | AP7: 0.994500235434487-0.118102579986555i | AQ7: 0.01291813034 | AR7: -6.772482486 | AS7: =IF($AU$1<>"MG 2.7",IMABS(IMPARA($M7,$AM7)),IMABS(IMDIV(1,IMSUM(IMDIV(1,$M7),IMDIV(1,$AM7),IMDIV(1,$S7))))) -> 4.010863634 | AT7: L1 | AU7: 0.96 | AV7: 0.4 | AW7: 0.4 | AX7: 0.96 | AY7: 0.96 | AZ7: 0.88 | BA7: 0.7 | BB7: 1.12 | BC7: 0.6 | BD7: 0.67 | BG7: Stock Mid | BI7: 49.93086808 | BJ7: 140.8507945 | BK7: -49.94575819 | BL7: 49.94575819 | BM7: 10.30225
A8: 10.45678375 | B8: 65.70191002 | C8: 0.367930696102784i | D8: -67.6455896518513i | E8: 0.111693247031202i | H8: 4+0.111693247031202i | I8: 3.99921223656642-0.124993430559823i | M8: 3.99921223656642+0.242937265542961i | N8: 0.991099547767641-0.119337329465005i | O8: -0.01514106259 | P8: -895.309274803913i | Q8: 0.0262807640073417i | R8: 0.000230208518926794+0.0262787473220889i | S8: 0.000230208518926794-895.282996056591i | T8: 9.51108893494859E-08-1.45074215765614E-08i | U8: -140.3355101 | V8: 0.06307383361762i | W8: -304.405153433331i | X8: 0.0210246112058734i | Z8: 3.9+0.0210246112058734i | AA8: 3.89987502105521-0.0298604806792491i | AB8: 3.89987502105521-0.0298604806792491i | AC8: 3.89987502105521+0.0332133529383709i | AD8: 0.999746032413792-0.0215616799866684i | AE8: -0.0001865970216 | AF8: -169.113974129628i | AG8: 0.558466235156011i | AH8: 3.90009037965143+0.0162250640071031i | AI8: 0.0782690837010606+0.546933025148583i | AJ8: 0.0782690837010606-168.567041104479i | AK8: -0.00324438610146289+0.000465826642704878i | AL8: -49.68872984 | AM8: 0.0782690837010606-168.567041104479i | AN8: -0.00323351812755671+0.000535662752709776i | AO8: -49.68891643 | AP8: 0.994333161006087-0.119873006725136i | AQ8: 0.01330363947 | AR8: -6.874185696 | AS8: =IF($AU$1<>"MG 2.7",IMABS(IMPARA($M8,$AM8)),IMABS(IMDIV(1,IMSUM(IMDIV(1,$M8),IMDIV(1,$AM8),IMDIV(1,$S8))))) -> 4.011190514 | AT8: C1 | AU8: 50 | AW8: 12 | AX8: 50 | AY8: 50 | AZ8: 50 | BA8: 7 | BB8: 12.1 | BC8: 10 | BG8: Stock Tweeter | BI8: 49.67358877 | BJ8: 140.3353235 | BK8: -49.68891643 | BL8: 49.68891643 | BM8: 10.45678375
A9: 10.61363551 | B9: 66.68743867 | C9: 0.373449656544325i | D9: -66.6459011348288i | E9: 0.11336864573667i | H9: 4+0.11336864573667i | I9: 3.99918809181227-0.126873222706162i | M9: 3.99918809181227+0.246576433838163i | N9: 0.990831704836102-0.121110032019057i | O9: -0.01559696523 | P9: -882.078103255087i | Q9: 0.0266749754674518i | R9: 0.000237166021340148+0.0266728666681848i | S9: 0.000237166021340148-882.051430388419i | T9: 1.00890654514076E-07-1.56218561076681E-08i | U9: -139.8200866 | V9: 0.0640199411218844i | W9: -299.90655510673i | X9: 0.0213399803739615i | Z9: 3.9+0.0213399803739615i | AA9: 3.89986340036651-0.0306098799090268i | AB9: 3.89986340036651-0.0306098799090268i | AC9: 3.89986340036651+0.0334100612128576i | AD9: 0.999739624518359-0.021885104885351i | AE9: -0.0001812146821 | AF9: -166.614752837072i | AG9: 0.566843228683351i | AH9: 3.90008260195873+0.0161670198383288i | AI9: 0.0805849814047364+0.554796850482978i | AJ9: 0.0805849814047364-166.059955986589i | AK9: -0.00334070673784008+0.000486897588974513i | AL9: -49.43194561 | AM9: 0.0805849814047364-166.059955986589i | AN9: -0.00332918109491106+0.000559882530129103i | AO9: -49.43212683 | AP9: 0.994160986821668-0.121669930171042i | AQ9: 0.01370050759 | AR9: -6.977419525 | AS9: =IF($AU$1<>"MG 2.7",IMABS(IMPARA($M9,$AM9)),IMABS(IMDIV(1,IMSUM(IMDIV(1,$M9),IMDIV(1,$AM9),IMDIV(1,$S9))))) -> 4.011527184 | AT9: L2 | AU9: 0.32 | AX9: 0.32 | AY9: 0.32 | AZ9: 0.28 | BG9: Stock Out | BI9: 49.41634865 | BJ9: 139.8199053 | BK9: -49.43212683 | BL9: 49.43212683 | BM9: 10.61363551
A10: 10.77284004 | B10: 67.68775025 | C10: 0.37905140139249i | D10: -65.6609863397328i | E10: 0.11506917542272i | H10: 4+0.11506917542272i | I10: 3.99916319675912-0.128781434399962i | M10: 3.99916319675912+0.250269966992528i | N10: 0.990555837912343-0.122908537705134i | O10: -0.01606654152 | P10: -869.04246626117i | Q10: 0.0270751000994636i | R10: 0.000244333780512373+0.0270728949789419i | S10: 0.000244333780512373-869.015393366191i | T10: 1.07019868142212E-07-1.68216884440831E-08i | U10: -139.3047171 | V10: 0.0649802402387126i | W10: -295.474438528798i | X10: 0.0216600800795709i | Z10: 3.9+0.0216600800795709i | AA10: 3.89985131086601-0.0313705131906701i | AB10: 3.89985131086601-0.0313705131906701i | AC10: 3.89985131086601+0.0336097270480425i | AD10: 0.999733041905049-0.0222133818827344i | AE10: -0.0001755045026 | AF10: -164.152465849332i | AG10: 0.575345877113601i | AH10: 3.90007443167753+0.0161081164136683i | AI10: 0.0829679183586606+0.562763628362321i | AJ10: 0.0829679183586606-163.58970222097i | AK10: -0.00343983390808522+0.000508915372344519i | AL10: -49.17521538 | AM10: 0.0829679183586606-163.58970222097i | AN10: -0.00342761088506629+0.000585189857479702i | AO10: -49.17539088 | AP10: 0.993983555817277-0.123493744384302i | AQ10: 0.01410906073 | AR10: -7.082207149 | AS10: =IF($AU$1<>"MG 2.7",IMABS(IMPARA($M10,$AM10)),IMABS(IMDIV(1,IMSUM(IMDIV(1,$M10),IMDIV(1,$AM10),IMDIV(1,$S10))))) -> 4.011873934 | AT10: Tweeter | BG10: PHASE | BI10: 49.15914884 | BJ10: 139.3045416 | BK10: -49.17539088 | BL10: 49.17539088 | BM10: 10.77284004
A11: 10.93443264 | B11: 68.7030665 | C11: 0.384737172413378i | D11: -64.6906269356974i | E11: 0.116795213054061i | H11: 4+0.116795213054061i | I11: 3.99913752747061-0.130718502048671i | M11: 3.99913752747061+0.254018670364707i | N11: 0.990271708822123-0.124733198020847i | O11: -0.01655019832 | P11: -856.199474148936i | Q11: 0.0274812266009555i | R11: 0.000251718149383144+0.0274789207597879i | S11: 0.000251718149383144-856.171995228176i | T11: 1.13519493603281E-07-1.81134396684446E-08i | U11: -138.7894032 | V11: 0.0659549438422933i | W11: -291.107821210638i | X11: 0.0219849812807644i | Z11: 3.9+0.0219849812807644i | AA11: 3.89983873662587-0.0321425486477813i | AB11: 3.89983873662587-0.0321425486477813i | AC11: 3.89983873662587+0.033812395194512i | AD11: 0.999726279573178-0.0225465838157024i | AE11: -0.0001694541076 | AF11: -161.726567339243i | AG11: 0.583976065270305i | AH11: 3.9000658545896+0.0160483414714365i | AI11: 0.0854197465388896+0.570834253144052i | AJ11: 0.0854197465388896-161.155733086099i | AK11: -0.00354184617305071+0.000531922063830477i | AL11: -48.9185407 | AM11: 0.0854197465388896-161.155733086099i | AN11: -0.00352888367200891+0.000611632997499142i | AO11: -48.91871015 | AP11: 0.993800706013625-0.125344849131786i | AQ11: 0.01452963374 | AR11: -7.188572098 | AS11: =IF($AU$1<>"MG 2.7",IMABS(IMPARA($M11,$AM11)),IMABS(IMDIV(1,IMSUM(IMDIV(1,$M11),IMDIV(1,$AM11),IMDIV(1,$S11))))) -> 4.012231064 | AT11: L | AU11: 0.4 | AV11: 0.7 | AW11: 0.7 | AX11: 0.4 | AY11: 0.4 | AZ11: 0.45 | BA11: 0.7 | BB11: 0.6 | BC11: 0.3 | BI11: 48.9019905 | BJ11: 138.7892338 | BK11: -48.91871015 | BL11: 48.91871015 | BM11: 10.93443264
A12: 11.09844913 | B12: 69.7336125 | C12: 0.390508229999578i | D12: -63.7346078184211i | E12: 0.118547141249872i | H12: 4+0.118547141249872i | I12: 3.99911105920969-0.132684869063454i | M12: 3.99911105920969+0.257823360936124i | N12: 0.98997907245565-0.126584368144396i | O12: -0.01704835434 | P12: -843.546279949691i | Q12: 0.0278934449999699i | R12: 0.000259325672782693+0.0278910338378396i | S12: 0.000259325672782693-843.518388915853i | T12: 1.20411736672018E-07-1.95041263521572E-08i | U12: -138.2741466 | V12: 0.0669442679999277i | W12: -286.805735182895i | X12: 0.0223147559999759i | Z12: 3.9+0.0223147559999759i | AA12: 3.89982566121087-0.0329261569060118i | AB12: 3.89982566121087-0.0329261569060118i | AC12: 3.89982566121087+0.0340181110939159i | AD12: 0.99971933237485-0.0228847846168913i | AE12: -0.0001630507116 | AF12: -159.336519546053i | AG12: 0.59273570624936i | AH12: 3.9000568560124+0.015987682597866i | AI12: 0.0879423637918435+0.5790096054034i | AJ12: 0.0879423637918435-158.75750994065i | AK12: -0.00364682409698534+0.00055596156777882i | AL12: -48.66192319 | AM12: 0.0879423637918435-158.75750994065i | AN12: -0.00363307749079281+0.000639262311361116i | AO12: -48.66208624 | AP12: 0.993612270358179-0.127223649959883i | AQ12: 0.01496257054 | AR12: -7.296538263 | AS12: =IF($AU$1<>"MG 2.7",IMABS(IMPARA($M12,$AM12)),IMABS(IMDIV(1,IMSUM(IMDIV(1,$M12),IMDIV(1,$AM12),IMDIV(1,$S12))))) -> 4.01259888 | AT12: C | AU12: 17 | AV12: 12 | AW12: 12 | AX12: 17 | AY12: 17 | AZ12: 17.1 | BA12: 10 | BB12: 10.1 | BC12: 12 | BD12: 20 | BI12: 48.64487484 | BJ12: 138.2739836 | BK12: -48.66208624 | BL12: 48.66208624 | BM12: 11.09844913
A13: 11.26492587 | B13: 70.77961669 | C13: 0.396365853449572i | D13: -62.7927170624838i | E13: 0.12032534836862i | H13: 4+0.12032534836862i | I13: 3.99908376640983-0.134680985984818i | M13: 3.99908376640983+0.261684867464754i | N13: 0.989677676573752-0.128462406919492i | O13: -0.01756144058 | P13: -831.080078768168i | Q13: 0.0283118466749694i | R13: 0.000267163093223891+0.0283093253814585i | S13: 0.000267163093223891-831.051769442787i | T13: 1.27720117759916E-07-2.10012979377008E-08i | U13: -137.7589489 | V13: 0.0679484320199266i | W13: -282.567226781177i | X13: 0.0226494773399755i | Z13: 3.9+0.0226494773399755i | AA13: 3.89981206766269-0.0337215111296246i | AB13: 3.89981206766269-0.0337215111296246i | AC13: 3.89981206766269+0.034226920890302i | AD13: 0.999712195010536-0.0232280593312925i | AE13: -0.0001562811054 | AF13: -156.98179265621i | AG13: 0.6016267418431i | AH13: 3.90004742078458+0.0159261272263756i | AI13: 0.0905377146501617+0.587290550661621i | AJ13: 0.0905377146501617-156.394502105548i | AK13: -0.00375485028647186+0.000581079699033285i | AL13: -48.40536452 | AM13: 0.0905377146501617-156.394502105548i | AN13: -0.00374027226809937+0.000668130346630916i | AO13: -48.4055208 | AP13: 0.993418076561969-0.129130558267421i | AQ13: 0.01540822431 | AR13: -7.406129906 | AS13: =IF($AU$1<>"MG 2.7",IMABS(IMPARA($M13,$AM13)),IMABS(IMDIV(1,IMSUM(IMDIV(1,$M13),IMDIV(1,$AM13),IMDIV(1,$S13))))) -> 4.0129777 | BI13: 48.38780308 | BJ13: 137.7587926 | BK13: -48.4055208 | BL13: 48.4055208 | BM13: 11.26492587
A14: 11.43389975 | B14: 71.84131094 | C14: 0.402311341251315i | D14: -61.8647458743683i | E14: 0.122130228594149i | H14: 4+0.122130228594149i | I14: 3.99905562264478-0.136707310611019i | M14: 3.99905562264478+0.265604030640296i | N14: 0.989367261609141-0.130367676837037i | O14: -0.0180899006 | P14: -818.798107160757i | Q14: 0.028736524375094i | R14: 0.000275237356868953+0.0287338879200891i | S14: 0.000275237356868953-818.769373272837i | T14: 1.35469548216838E-07-2.26130769126394E-08i | U14: -137.2438118 | V14: 0.0689676585002255i | W14: -278.391356434657i | X14: 0.0229892195000752i | Z14: 3.9+0.0229892195000752i | AA14: 3.89979793848379-0.0345287870585584i | AB14: 3.89979793848379-0.0345287870585584i | AC14: 3.89979793848379+0.0344388714416671i | AD14: 0.99970486202454-0.0235764841331117i | AE14: -0.0001491316438 | AF14: -154.661864685921i | AG14: 0.610651142970747i | AH14: 3.90003753325112+0.0158636626369023i | AI14: 0.0932077911424274+0.59567793805904i | AJ14: 0.0932077911424274-154.066186747862i | AK14: -0.00386600942931581+0.000607324263142822i | AL14: -48.14886638 | AM14: 0.0932077911424274-154.066186747862i | AN14: -0.00385054985226609+0.000698291928658075i | AO14: -48.14901551 | AP14: 0.993217946930955-0.131065991378772i | AQ14: 0.0158669577 | AR14: -7.517371658 | AS14: =IF($AU$1<>"MG 2.7",IMABS(IMPARA($M14,$AM14)),IMABS(IMDIV(1,IMSUM(IMDIV(1,$M14),IMDIV(1,$AM14),IMDIV(1,$S14))))) -> 4.013367849 | AT14: Woofer | BI14: 48.13077648 | BJ14: 137.2436627 | BK14: -48.14901551 | BL14: 48.14901551 | BM14: 11.43389975
A15: 11.60540825 | B15: 72.9189306 | C15: 0.408346011370085i | D15: -60.9504885461757i | E15: 0.123962182023062i | H15: 4+0.123962182023062i | I15: 3.9990266005974-0.138764308129362i | M15: 3.9990266005974+0.269581703240723i | N15: 0.989047560462665-0.132300544013365i | O15: -0.01863419089 | P15: -806.697642522913i | Q15: 0.0291675722407204i | R15: 0.000283555619675942+0.02916481536438i | S15: 0.000283555619675942-806.668477707549i | T15: 1.43686410920209E-07-2.4348201980747E-08i | U15: -136.7287371 | V15: 0.0700021733777289i | W15: -274.27719845779i | X15: 0.0233340577925763i | Z15: 3.9+0.0233340577925763i | AA15: 3.89978325562065-0.035348163046001i | AB15: 3.89978325562065-0.035348163046001i | AC15: 3.89978325562065+0.0346540103317279i | AD15: 0.999697327800311-0.0239301363428904i | AE15: -0.0001415882308 | AF15: -152.376221365439i | AG15: 0.619810910115308i | AH15: 3.90002717724776+0.0158002759553002i | AI15: 0.0959546335950415+0.604172598971191i | AJ15: 0.0959546335950415-151.772048766468i | AK15: -0.00398038833331842+0.000634745139715181i | AL15: -47.89243054 | AM15: 0.0959546335950415-151.772048766468i | AN15: -0.00396399404268959+0.000729804255521462i | AO15: -47.89257213 | AP15: 0.993011698191765-0.133030372617088i | AQ15: 0.01633914307 | AR15: -7.630288534 | AS15: =IF($AU$1<>"MG 2.7",IMABS(IMPARA($M15,$AM15)),IMABS(IMDIV(1,IMSUM(IMDIV(1,$M15),IMDIV(1,$AM15),IMDIV(1,$S15))))) -> 4.013769661 | AT15: L1 | AU15: 5.6 | AV15: 3.6 | AW15: 3.6 | AX15: 5.6 | AY15: 5.6 | AZ15: 4.94 | BA15: 7 | BB15: 8.84 | BC15: 4.1 | BD15: 2.5 | BI15: 47.87379635 | BJ15: 136.7285955 | BK15: -47.89257213 | BL15: 47.89257213 | BM15: 11.60540825
A16: 11.77948937 | B16: 74.01271456 | C16: 0.414471201540636i | D16: -60.0497424100253i | E16: 0.125821614753407i | H16: 4+0.125821614753407i | I16: 3.99899667202696-0.140852451250457i | M16: 3.99899667202696+0.273618750290179i | N16: 0.988718298294447-0.13426137816489i | O16: -0.01919478128 | P16: -794.776002485629i | Q16: 0.0296050858243312i | R16: 0.000292125253730542+0.0296022030265952i | S16: 0.000292125253730542-794.746400282602i | T16: 1.52398645379673E-07-2.62160744504506E-08i | U16: -136.2137266 | V16: 0.0710522059783948i | W16: -270.223840845114i | X16: 0.0236840686594649i | Z16: 3.9+0.0236840686594649i | AA16: 3.89976800044669-0.0361798200964742i | AB16: 3.89976800044669-0.0361798200964742i | AC16: 3.89976800044669+0.0348723858819206i | AD16: 0.999689586555627-0.0242890944448916i | AE16: -0.0001336363064 | AF16: -150.124356025063i | AG16: 0.629108073767037i | AH16: 3.90001633608529+0.0157359541528099i | AI16: 0.098780331424408+0.612775345566489i | AJ16: 0.098780331424408-149.511580679497i | AK16: -0.00409807596485986+0.000663394369022418i | AL16: -47.6360588 | AM16: 0.098780331424408-149.511580679497i | AN16: -0.00408069061850091+0.000762726996644173i | AO16: -47.63619244 | AP16: 0.992799141311593-0.135024131377609i | AQ16: 0.01682516267 | AR16: -7.74490593 | AS16: =IF($AU$1<>"MG 2.7",IMABS(IMPARA($M16,$AM16)),IMABS(IMDIV(1,IMSUM(IMDIV(1,$M16),IMDIV(1,$AM16),IMDIV(1,$S16))))) -> 4.014183483 | AT16: C1 | AU16: 225 | AV16: 150 | AW16: 150 | AX16: 225 | AY16: 275 | AZ16: 200 | BA16: 400 | BB16: 450 | BC16: 200 | BD16: 50 | BI16: 47.61686402 | BJ16: 136.213593 | BK16: -47.63619244 | BL16: 47.63619244 | BM16: 11.77948937
A17: 11.95618171 | B17: 75.12290528 | C17: 0.420688269563746i | D17: -59.1623077931284i | E17: 0.127708938974709i | H17: 4+0.127708938974709i | I17: 3.99896580773533-0.142972220345525i | M17: 3.99896580773533+0.277716049218221i | N17: 0.988379192309827-0.136250552578949i | O17: -0.01977215524 | P17: -783.030544320817i | Q17: 0.0300491621116961i | R17: 0.000300953853768621+0.0300461476413161i | S17: 0.000300953853768621-783.000498173176i | T17: 1.61635837595984E-07-2.82268080766148E-08i | U17: -135.6987822 | V17: 0.0721179890680707i | W17: -266.230385069078i | X17: 0.0240393296893569i | Z17: 3.9+0.0240393296893569i | AA17: 3.89975215374451-0.0370239419044388i | AB17: 3.89975215374451-0.0370239419044388i | AC17: 3.89975215374451+0.0350940471636319i | AD17: 0.999681632337625-0.0246534381047578i | AE17: -0.0001252608315 | AF17: -147.905769482821i | AG17: 0.638544694873543i | AH17: 3.90000499253316+0.0156706840456052i | AI17: 0.101687023917483+0.621486969303779i | AJ17: 0.101687023917483-147.284282513517i | AK17: -0.00421916348721459+0.000693326241967112i | AL17: -47.37975302 | AM17: 0.101687023917483-147.284282513517i | AN17: -0.00420072736640525+0.000797122395198093i | AO17: -47.37987828 | AP17: 0.99258008131207-0.137047703200955i | AQ17: 0.01732540892 | AR17: -7.861249637 | AS17: =IF($AU$1<>"MG 2.7",IMABS(IMPARA($M17,$AM17)),IMABS(IMDIV(1,IMSUM(IMDIV(1,$M17),IMDIV(1,$AM17),IMDIV(1,$S17))))) -> 4.014609668 | AT17: L2 | AU17: 1.7 | AV17: 1.17 | AW17: 1.17 | AX17: 1.7 | AY17: 1.7 | AZ17: 2.18 | BA17: 2.35 | BB17: 2.95 | BC17: 1.3 | BI17: 47.35998087 | BJ17: 135.6986569 | BK17: -47.37987828 | BL17: 47.37987828 | BM17: 11.95618171
A18: 12.13552444 | B18: 76.24974886 | C18: 0.426998593607202i | D18: -58.2879879735255i | E18: 0.129624573059329i | H18: 4+0.129624573059329i | I18: 3.9989339775316-0.145124103586849i | M18: 3.9989339775316+0.281874490020353i | N18: 0.988029951540007-0.138268444080659i | O18: -0.02036681032 | P18: -771.458664355484i | Q18: 0.0304998995433716i | R18: 0.000310049243895342+0.0304967473864408i | S18: 0.000310049243895342-771.428167608098i | T18: 1.71429314924175E-07-3.03912826086001E-08i | U18: -135.1839056 | V18: 0.0731997589040918i | W18: -262.295945880865i | X18: 0.0243999196346973i | Z18: 3.9+0.0243999196346973i | AA18: 3.89973569568767-0.0378807148934213i | AB18: 3.89973569568767-0.0378807148934213i | AC18: 3.89973569568767+0.0353190440106705i | AD18: 0.999673459017682-0.0250232481874417i | AE18: -0.000116446273 | AF18: -145.719969933814i | AG18: 0.648122865296646i | AH18: 3.89999312880255+0.0156044522944218i | AI18: 0.104676900998601+0.630308239368092i | AJ18: 0.104676900998601-145.089661694446i | AK18: -0.00434374429851325+0.000724597393520038i | AL18: -47.12351511 | AM18: 0.104676900998601-145.089661694446i | AN18: -0.00432419410756905+0.000833055374419855i | AO18: -47.12363156 | AP18: 0.992354317076891-0.139101529846361i | AQ18: 0.01784028458 | AR18: -7.979345841 | AS18: =IF($AU$1<>"MG 2.7",IMABS(IMPARA($M18,$AM18)),IMABS(IMDIV(1,IMSUM(IMDIV(1,$M18),IMDIV(1,$AM18),IMDIV(1,$S18))))) -> 4.015048582 | AT18: C2 | AZ18: 50 | BI18: 47.1031483 | BJ18: 135.1837892 | BK18: -47.12363156 | BL18: 47.12363156 | BM18: 12.13552444
A19: 12.31755731 | B19: 77.39349509 | C19: 0.43340357251131i | D19: -57.4265891364783i | E19: 0.131568941655219i | H19: 4+0.131568941655219i | I19: 3.99890115019541-0.147308597091457i | M19: 3.99890115019541+0.286094975419853i | N19: 0.987670276617312-0.140315432995578i | O19: -0.0209792585 | P19: -760.057797394566i | Q19: 0.0309573980365221i | R19: 0.000319419484506698+0.0309541019044813i | S19: 0.000319419484506698-760.026843292662i | T19: 1.8181224620278E-07-3.27212013156123E-08i | U19: -134.6690991 | V19: 0.0742977552876531i | W19: -258.419651114152i | X19: 0.0247659184292177i | Z19: 3.9+0.0247659184292177i | AA19: 3.89971860582191-0.0387503282556709i | AB19: 3.89971860582191-0.0387503282556709i | AC19: 3.89971860582191+0.0355474270319822i | AD19: 0.999665060286134-0.0253986067754171i | AE19: -0.0001071765885 | AF19: -143.566472841196i | AG19: 0.657844708276095i | AH19: 3.8999807265291+0.0155372454042718i | AI19: 0.107752203980358+0.639239901043052i | AJ19: 0.107752203980358-142.927232940153i | AK19: -0.00447191406926092+0.000757266899742275i | AL19: -46.86734703 | AM19: 0.107752203980358-142.927232940153i | AN19: -0.00445118272343154+0.000870593647962169i | AO19: -46.86745421 | AP19: 0.99212164115299-0.141186059364741i | AQ19: 0.01837020304 | AR19: -8.099221134 | AS19: =IF($AU$1<>"MG 2.7",IMABS(IMPARA($M19,$AM19)),IMABS(IMDIV(1,IMSUM(IMDIV(1,$M19),IMDIV(1,$AM19),IMDIV(1,$S19))))) -> 4.0155006 | AT19: Mid HP | BI19: 46.84636777 | BJ19: 134.6689919 | BK19: -46.86745421 | BL19: 46.86745421 | BM19: 12.31755731
A20: 12.50232067 | B20: 78.55439752 | C20: 0.43990462609898i | D20: -56.5779203315057i | E20: 0.133542475780047i | H20: 4+0.133542475780047i | I20: 3.99886729343858-0.14952620506814i | M20: 3.99886729343858+0.29037842103084i | N20: 0.987299859544979-0.142391903107967i | O20: -0.02161002663 | P20: -748.825416152282i | Q20: 0.03142175900707i | R20: 0.000329072879419597+0.0314183123241657i | S20: 0.000329072879419597-748.793997839958i | T20: 1.92819747422964E-07-3.52291527796968E-08i | U20: -134.1543644 | V20: 0.0754122216169679i | W20: -254.600641491776i | X20: 0.025137407205656i | Z20: 3.9+0.025137407205656i | AA20: 3.89970086304577-0.0396329739923502i | AB20: 3.89970086304577-0.0396329739923502i | AC20: 3.89970086304577+0.0357792476246177i | AD20: 0.999656429646845-0.0257795971871741i | AE20: -9.743521022e-05 | AF20: -141.444800828764i | AG20: 0.667712378900237i | AH20: 3.89996776675502+0.0154690497242522i | AI20: 0.110915226296219+0.648282674018264i | AJ20: 0.110915226296219-140.796518154746i | AK20: -0.00460377077931314+0.000791396378506726i | AL20: -46.6112508 | AM20: 0.110915226296219-140.796518154746i | AN20: -0.00458178718030736+0.000909807834406252i | AO20: -46.61134823 | AP20: 0.991881839545034-0.143301746171526i | AQ20: 0.01891558849 | AR20: -8.220902517 | AS20: =IF($AU$1<>"MG 2.7",IMABS(IMPARA($M20,$AM20)),IMABS(IMDIV(1,IMSUM(IMDIV(1,$M20),IMDIV(1,$AM20),IMDIV(1,$S20))))) -> 4.015966107 | AT20: L | AU20: 8.5 | AW20: 3.5 | AX20: 8.5 | AY20: 8.5 | BC20: 3 | BI20: 46.58964077 | BJ20: 134.154267 | BK20: -46.61134823 | BL20: 46.61134823 | BM20: 12.50232067
A21: 12.68985548 | B21: 79.73271348 | C21: 0.446503195490464i | D21: -55.7417934300549i | E21: 0.135545612916748i | H21: 4+0.135545612916748i | I21: 3.9988323738653-0.151777439967896i | M21: 3.9988323738653+0.294725755522568i | N21: 0.986918383461373-0.144498241614407i | O21: -0.0222596568 | P21: -737.759030691904i | Q21: 0.031893085392176i | R21: 0.000339017983216693+0.0318894812823466i | S21: 0.000339017983216693-737.727141210622i | T21: 2.0448899322391E-07-3.79286772673788E-08i | U21: -133.6397038 | V21: 0.0765434049412224i | W21: -250.838070435247i | X21: 0.0255144683137408i | Z21: 3.9+0.0255144683137408i | AA21: 3.89968244559066-0.0405288469542667i | AB21: 3.89968244559066-0.0405288469542667i | AC21: 3.89968244559066+0.0360145579869557i | AD21: 0.999647560411608-0.0261663039960019i | AE21: -8.720502867e-05 | AF21: -139.354483575137i | AG21: 0.67772806458374i | AH21: 3.89995422991057+0.0153998514474491i | AI21: 0.114168314212338+0.657437250630109i | AJ21: 0.114168314212338-138.697046324507i | AK21: -0.00473941475420558+0.000827050094035854i | AL21: -46.35522849 | AM21: 0.114168314212338-138.697046324507i | AN21: -0.00471610355263992+0.000950771576062812i | AO21: -46.3553157 | AP21: 0.991634691503006-0.145449051119147i | AQ21: 0.01947687617 | AR21: -8.344417408 | AS21: =IF($AU$1<>"MG 2.7",IMABS(IMPARA($M21,$AM21)),IMABS(IMDIV(1,IMSUM(IMDIV(1,$M21),IMDIV(1,$AM21),IMDIV(1,$S21))))) -> 4.016445502 | AT21: C | AU21: 90 | AV21: 60 | AW21: 60 | AX21: 90 | AY21: 115 | AZ21: 200 | BA21: 132 | BB21: 120.3 | BC21: 75 | BD21: 20 | BI21: 46.33296883 | BJ21: 133.6396166 | BK21: -46.3553157 | BL21: 46.3553157 | BM21: 12.68985548
A22: 12.88020331 | B22: 80.92870418 | C22: 0.453200743422821i | D22: -54.918023083798i | E22: 0.137578797110499i | H22: 4+0.137578797110499i | I22: 3.9987963569305-0.154062822637921i | M22: 3.9987963569305+0.2991379207849i | N22: 0.986525522398548-0.146634839072586i | O22: -0.02292870681 | P22: -726.856187873797i | Q22: 0.0323714816730586i | R22: 0.000349263608812475+0.0323677129462214i | S22: 0.000349263608812475-726.823820160851i | T22: 2.16859334513789E-07-4.08343380130257E-08i | U22: -133.1251194 | V22: 0.0776915560153407i | W22: -247.131103877091i | X22: 0.0258971853384469i | Z22: 3.9+0.0258971853384469i | AA22: 3.89966333100028-0.0414381448831456i | AB22: 3.89966333100028-0.0414381448831456i | AC22: 3.89966333100028+0.0362534111321951i | AD22: 0.999638445694364-0.0265588130490661i | AE22: -7.646837568e-05 | AF22: -137.295057709495i | AG22: 0.687893985552496i | AH22: 3.89994009579522+0.01532963661095i | AI22: 0.117513867515947+0.666704294034389i | AJ22: 0.117513867515947-136.628353415461i | AK22: -0.00487894870072516+0.00086429506537417i | AL22: -46.09928224 | AM22: 0.117513867515947-136.628353415461i | AN22: -0.00485423004475493+0.000993561662190488i | AO22: -46.09935871 | AP22: 0.991379969302637-0.147628441569115i | AQ22: 0.02005451264 | AR22: -8.46979365 | AS22: =IF($AU$1<>"MG 2.7",IMABS(IMPARA($M22,$AM22)),IMABS(IMDIV(1,IMSUM(IMDIV(1,$M22),IMDIV(1,$AM22),IMDIV(1,$S22))))) -> 4.016939194 | BI22: 46.07635354 | BJ22: 133.1250429 | BK22: -46.09935871 | BL22: 46.09935871 | BM22: 12.88020331
A23: 13.07340636 | B23: 82.14263475 | C23: 0.459998754574163i | D23: -54.1064266835448i | E23: 0.139642479067157i | H23: 4+0.139642479067157i | I23: 3.9987592068967-0.156382882479238i | M23: 3.9987592068967+0.303615872094925i | N23: 0.986120941035078-0.148802089344957i | O23: -0.02361775055 | P23: -716.114470811622i | Q23: 0.0328570538981545i | R23: 0.000359818835247212+0.0328531130358667i | S23: 0.000359818835247212-716.081617698586i | T23: 2.29972422528854E-07-4.39617977705865E-08i | U23: -132.6106133 | V23: 0.0788569293555709i | W23: -243.478920075952i | X23: 0.0262856431185236i | Z23: 3.9+0.0262856431185236i | AA23: 3.89964349610946-0.0423610684534555i | AB23: 3.89964349610946-0.0423610684534555i | AC23: 3.89964349610946+0.0364958609021154i | AD23: 0.999629078405264-0.0269572114867844i | AE23: -6.520700695e-05 | AF23: -135.266066708862i | AG23: 0.698212395335784i | AH23: 3.8999253435579+0.015258391095965i | AI23: 0.120954340177547+0.676084436309245i | AJ23: 0.120954340177547-134.589982272553i | AK23: -0.00502247774160272+0.000903201178915893i | AL23: -45.84341425 | AM23: 0.120954340177547-134.589982272553i | AN23: -0.00499626701095413+0.00103825815676229i | AO23: -45.84347945 | AP23: 0.991117438018455-0.149840391463517i | AQ23: 0.02064895598 | AR23: -8.597059515 | AS23: =IF($AU$1<>"MG 2.7",IMABS(IMPARA($M23,$AM23)),IMABS(IMDIV(1,IMSUM(IMDIV(1,$M23),IMDIV(1,$AM23),IMDIV(1,$S23))))) -> 4.017447601 | BI23: 45.8197965 | BJ23: 132.6105481 | BK23: -45.84347945 | BL23: 45.84347945 | BM23: 13.07340636
A24: 13.26950745 | B24: 83.37477427 | C24: 0.466898735892776i | D24: -53.3068243187634i | E24: 0.141737116253164i | H24: 4+0.141737116253164i | I24: 3.99872088678873-0.158738157608079i | M24: 3.99872088678873+0.308160578284697i | N24: 0.985704294443055-0.15100038953709i | O24: -0.02432737849 | P24: -705.531498336574i | Q24: 0.0333499097066268i | R24: 0.000370693015715591+0.0333457888470923i | S24: 0.000370693015715591-705.498152547727i | T24: 2.43872339656976E-07-4.73279010155155E-08i | U24: -132.0961878 | V24: 0.0800397832959044i | W24: -239.880709434435i | X24: 0.0266799277653015i | Z24: 3.9+0.0266799277653015i | AA24: 3.89962291702234-0.0432978213147873i | AB24: 3.89962291702234-0.0432978213147873i | AC24: 3.89962291702234+0.0367419619811171i | AD24: 0.999619451244531-0.0273615877625051i | AE24: -5.340208418e-05 | AF24: -133.267060796908i | AG24: 0.70868558126582i | AH24: 3.89990995167702+0.0151861006280652i | AI24: 0.124492240983908+0.685578276486895i | AJ24: 0.124492240983908-132.581482520421i | AK24: -0.00517010944919936+0.000943841305109081i | AL24: -45.58762676 | AM24: 0.124492240983908-132.581482520421i | AN24: -0.00514231697377921+0.00108494453091109i | AO24: -45.58768016 | AP24: 0.990846855289174-0.152085381395902i | AQ24: 0.02126067603 | AR24: -8.726243713 | AS24: =IF($AU$1<>"MG 2.7",IMABS(IMPARA($M24,$AM24)),IMABS(IMDIV(1,IMSUM(IMDIV(1,$M24),IMDIV(1,$AM24),IMDIV(1,$S24))))) -> 4.017971158 | BI24: 45.56329938 | BJ24: 132.0961344 | BK24: -45.58768016 | BL24: 45.58768016 | BM24: 13.26950745
A25: 13.46855007 | B25: 84.62539588 | C25: 0.473902216931167i | D25: -52.5190387376979i | E25: 0.143863172996962i | H25: 4+0.143863172996962i | I25: 3.99868135834674-0.161129195021145i | M25: 3.99868135834674+0.312773021910022i | N25: 0.985275227829176-0.153230139930391i | O25: -0.02505819808 | P25: -695.104924469531i | Q25: 0.0338501583522262i | R25: 0.000381895785837135+0.0338458492746181i | S25: 0.000381895785837135-695.071078620256i | T25: 2.58605737366012E-07-5.09507622055875E-08i | U25: -131.5818452 | V25: 0.081240380045343i | W25: -236.335674319641i | X25: 0.027080126681781i | Z25: 3.9+0.027080126681781i | AA25: 3.89960156908985-0.0442486101347914i | AB25: 3.89960156908985-0.0442486101347914i | AC25: 3.89960156908985+0.0369917699105516i | AD25: 0.999609556696149-0.0277720316624951i | AE25: -4.103415648e-05 | AF25: -131.297596844245i | AG25: 0.719315864984808i | AH25: 3.89989389793957+0.0151127507775498i | AI25: 0.128130134138797+0.695186378512698i | AJ25: 0.128130134138797-130.602410465732i | AK25: -0.00532195387805033+0.000986291419459447i | AL25: -45.33192209 | AM25: 0.128130134138797-130.602410465732i | AN25: -0.00529248464026557+0.00113370780018663i | AO25: -45.33196312 | AP25: 0.990567971075179-0.15436389868134i | AQ25: 0.02189015465 | AR25: -8.857375397 | AS25: =IF($AU$1<>"MG 2.7",IMABS(IMPARA($M25,$AM25)),IMABS(IMDIV(1,IMSUM(IMDIV(1,$M25),IMDIV(1,$AM25),IMDIV(1,$S25))))) -> 4.018510308 | BI25: 45.30686389 | BJ25: 131.5818042 | BK25: -45.33196312 | BL25: 45.33196312 | BM25: 13.46855007
A26: 13.67057832 | B26: 85.89477682 | C26: 0.481010750185135i | D26: -51.7428953080768i | E26: 0.146021120591916i | H26: 4+0.146021120591916i | I26: 3.99864058197717-0.163556550764853i | M26: 3.99864058197717+0.317454199420282i | N26: 0.984833376269854-0.155491743908967i | O26: -0.02581083429 | P26: -684.832437901016i | Q26: 0.0343579107275096i | R26: 0.000393437072175566+0.0343534048355754i | S26: 0.000393437072175566-684.79808449618i | T26: 2.74221981591766E-07-5.48498605379568E-08i | U26: -131.067588 | V26: 0.0824589857460231i | W26: -232.843028886345i | X26: 0.0274863285820077i | Z26: 3.9+0.0274863285820077i | AA26: 3.89957942688658-0.0452136446426827i | AB26: 3.89957942688658-0.0452136446426827i | AC26: 3.89957942688658+0.0372453411033404i | AD26: 0.999599387021355-0.0281886343262426i | AE26: -2.808314133e-05 | AF26: -129.357238270192i | AG26: 0.73010560295958i | AH26: 3.89987715941978+0.0150383269599403i | AI26: 0.131870639828116+0.704909269130146i | AJ26: 0.131870639828116-128.652329001062i | AK26: -0.00547812359612087+0.00103063072795751i | AL26: -45.07630263 | AM26: 0.131870639828116-128.652329001062i | AN26: -0.00544687691599386+0.00118463866675671i | AO26: -45.07633071 | AP26: 0.990280527407829-0.156676437425584i | AQ26: 0.02253788595 | AR26: -8.990484171 | AS26: =IF($AU$1<>"MG 2.7",IMABS(IMPARA($M26,$AM26)),IMABS(IMDIV(1,IMSUM(IMDIV(1,$M26),IMDIV(1,$AM26),IMDIV(1,$S26))))) -> 4.019065508 | BI26: 45.0504918 | BJ26: 131.0675599 | BK26: -45.07633071 | BL26: 45.07633071 | BM26: 13.67057832
A27: 13.87563699 | B27: 87.18319847 | C27: 0.488225911437912i | D27: -50.9782219784007i | E27: 0.148211437400795i | H27: 4+0.148211437400795i | I27: 3.99859851670159-0.166020790108708i | M27: 3.99859851670159+0.322205121329204i | N27: 0.984378364440267-0.157785607880348i | O27: -0.02658593 | P27: -674.711761478833i | Q27: 0.0348732793884223i | R27: 0.000405327101014691+0.0348685676933432i | S27: 0.000405327101014691-674.67689291114i | T27: 2.90773305955251E-07-5.90461416704468E-08i | U27: -130.5534186 | V27: 0.0836958705322135i | W27: -229.401998902803i | X27: 0.0278986235107378i | Z27: 3.9+0.0278986235107378i | AA27: 3.89955646418691-0.0461931376733095i | AB27: 3.89955646418691-0.0461931376733095i | AC27: 3.89955646418691+0.037502732858904i | AD27: 0.999588934251922-0.0286114882670768i | AE27: -1.452830497e-05 | AF27: -127.445554946002i | AG27: 0.741057187003973i | AH27: 3.89985971245708+0.0149628144366213i | AI27: 0.135716434746023+0.714747435690495i | AJ27: 0.135716434746023-126.730807510312i | AK27: -0.00563873371461965+0.00107694179705395i | AL27: -44.82077082 | AM27: 0.135716434746023-126.730807510312i | AN27: -0.0056056029167363+0.00123783166668552i | AO27: -44.82078535 | AP27: 0.989984258130309-0.159023498593175i | AQ27: 0.0232043765 | AR27: -9.125600098 | AS27: =IF($AU$1<>"MG 2.7",IMABS(IMPARA($M27,$AM27)),IMABS(IMDIV(1,IMSUM(IMDIV(1,$M27),IMDIV(1,$AM27),IMDIV(1,$S27))))) -> 4.01963723 | BI27: 44.79418489 | BJ27: 130.553404 | BK27: -44.82078535 | BL27: 44.82078535 | BM27: 13.87563699
A28: 14.08377155 | B28: 88.49094645 | C28: 0.49554930010948i | D28: -50.2248492398037i | E28: 0.150434608961807i | H28: 4+0.150434608961807i | I28: 3.9985551201032-0.168522487722895i | M28: 3.9985551201032+0.327026812386585i | N28: 0.983909806337255-0.160112141189759i | O28: -0.02738414654 | P28: -664.740651703284i | Q28: 0.0353963785792486i | R28: 0.000417576407398385+0.0353914516817146i | S28: 0.000417576407398385-664.705260251602i | T28: 3.08314973193877E-07-6.356212690765E-08i | U28: -130.0393394 | V28: 0.0849513085901966i | W28: -226.011821579117i | X28: 0.0283171028633989i | Z28: 3.9+0.0283171028633989i | AA28: 3.89953265394038-0.0471873052118016i | AB28: 3.89953265394038-0.0471873052118016i | AC28: 3.89953265394038+0.037764003378395i | AD28: 0.999578190183256-0.0290406873931152i | AE28: -3.482420922e-07 | AF28: -125.562123099509i | AG28: 0.752173044809033i | AH28: 3.89984153263336+0.0148861983156255i | AI28: 0.139670252578364+0.724701323885684i | AJ28: 0.139670252578364-124.837421775623i | AK28: -0.00580390191620491+0.00112531068830814i | AL28: -44.56532919 | AM28: 0.139670252578364-124.837421775623i | AN28: -0.00576877397748195+0.00129338532242173i | AO28: -44.56532953 | AP28: 0.98967888862971-0.161405590074308i | AQ28: 0.02389014565 | AR28: -9.262753707 | AS28: =IF($AU$1<>"MG 2.7",IMABS(IMPARA($M28,$AM28)),IMABS(IMDIV(1,IMSUM(IMDIV(1,$M28),IMDIV(1,$AM28),IMDIV(1,$S28))))) -> 4.020225957 | BI28: 44.53794504 | BJ28: 130.0393391 | BK28: -44.56532953 | BL28: 44.56532953 | BM28: 14.08377155
A29: 14.29502812 | B29: 89.81831064 | C29: 0.502982539611122i | D29: -49.4826100884765i | E29: 0.152691128096234i | H29: 4+0.152691128096234i | I29: 3.99851034827129-0.171062227860278i | M29: 3.99851034827129+0.331920311750844i | N29: 0.983427304996032-0.162471756027674i | O29: -0.0282061642 | P29: -654.916898229837i | Q29: 0.0359273242579373i | R29: 0.000430195844442676+0.0359221723294048i | S29: 0.000430195844442676-654.880976057508i | T29: 3.26905445206803E-07-6.8422030387257E-08i | U29: -129.5253531 | V29: 0.0862255782190496i | W29: -222.671745398144i | X29: 0.0287418594063499i | Z29: 3.9+0.0287418594063499i | AA29: 3.89950796824641-0.0481963664387941i | AB29: 3.89950796824641-0.0481963664387941i | AC29: 3.89950796824641+0.0380292117802555i | AD29: 0.999567146367272-0.02947632702854i | AE29: 1.447914501e-05 | AF29: -123.706525221191i | AG29: 0.763455640481168i | AH29: 3.89982259474961+0.0148084635525767i | AI29: 0.143734884439623+0.734771335403444i | AJ29: 0.143734884439623-122.971753885788i | AK29: -0.0059737484814089+0.00117582709783552i | AL29: -44.3099803 | AM29: 0.143734884439623-122.971753885788i | AN29: -0.0059365036586129+0.00135140230062901i | AO29: -44.30996583 | AP29: 0.98936413556009-0.163823226750333i | AQ29: 0.02459572568 | AR29: -9.401975999 | AS29: =IF($AU$1<>"MG 2.7",IMABS(IMPARA($M29,$AM29)),IMABS(IMDIV(1,IMSUM(IMDIV(1,$M29),IMDIV(1,$AM29),IMDIV(1,$S29))))) -> 4.020832185 | BI29: 44.28177414 | BJ29: 129.5253676 | BK29: -44.30996583 | BL29: 44.30996583 | BM29: 14.29502812
A30: 14.50945354 | B30: 91.1655853 | C30: 0.510527277705289i | D30: -48.7513399886469i | E30: 0.154981495017677i | H30: 4+0.154981495017677i | I30: 3.99846415574307-0.173640604542888i | M30: 3.99846415574307+0.336886673162401i | N30: 0.982930452200629-0.164864867330311i | O30: -0.02905268267 | P30: -645.23832337915i | Q30: 0.0364662341218064i | R30: 0.00044319659292803+0.0364608468848998i | S30: 0.00044319659292803-645.201862532265i | T30: 3.46606562130318E-07-7.3651884839097E-08i | U30: -129.0114624 | V30: 0.0875189618923353i | W30: -219.381029948911i | X30: 0.0291729872974451i | Z30: 3.9+0.0291729872974451i | AA30: 3.89948237832815-0.0492205437762313i | AB30: 3.89948237832815-0.0492205437762313i | AC30: 3.89948237832815+0.038298418116104i | AD30: 0.999555794105039-0.0299185039352099i | AE30: 2.997666786e-05 | AF30: -121.878349971617i | AG30: 0.774907475088386i | AH30: 3.89980287280179+0.0147295949518039i | AI30: 0.147913179259358+0.744957825503463i | AJ30: 0.147913179259358-121.133392146114i | AK30: -0.006148396313096+0.0012285845006789i | AL30: -44.05472683 | AM30: 0.147913179259358-121.133392146114i | AN30: -0.00610890774899087+0.00141198957548983i | AO30: -44.05469686 | AP30: 0.989039706556182-0.166276930557686i | AQ30: 0.0253216621 | AR30: -9.543298455 | AS30: =IF($AU$1<>"MG 2.7",IMABS(IMPARA($M30,$AM30)),IMABS(IMDIV(1,IMSUM(IMDIV(1,$M30),IMDIV(1,$AM30),IMDIV(1,$S30))))) -> 4.021456427 | BI30: 44.02567415 | BJ30: 129.0114924 | BK30: -44.05469686 | BL30: 44.05469686 | BM30: 14.50945354
A31: 14.72709534 | B31: 92.53306908 | C31: 0.518185186870869i | D31: -48.0308768361053i | E31: 0.157306217442942i | H31: 4+0.157306217442942i | I31: 3.99841649544287-0.17625822175308i | M31: 3.99841649544287+0.341926965117789i | N31: 0.982418828187982-0.167291892672772i | O31: -0.02992442165 | P31: -635.702781654335i | Q31: 0.0370132276336335i | R31: 0.00045659017118026+0.0370075943416533i | S31: 0.00045659017118026-635.665774059993i | T31: 3.67483730874944E-07-7.92796765289054E-08i | U31: -128.4976699 | V31: 0.0888317463207203i | W31: -216.138945762474i | X31: 0.0296105821069068i | Z31: 3.9+0.0296105821069068i | AA31: 3.8994558545056-0.0502600629337647i | AB31: 3.8994558545056-0.0502600629337647i | AC31: 3.8994558545056+0.0385716833869556i | AD31: 0.999544124439227-0.0303673163346166i | AE31: 4.616787399e-05 | AF31: -120.077192090263i | AG31: 0.786531087214711i | AH31: 3.899782339956+0.014649577167624i | AI31: 0.152208044113932+0.755261100513629i | AJ31: 0.152208044113932-119.321930989749i | AK31: -0.00632797095875637+0.00128368030022857i | AL31: -43.79957151 | AM31: 0.152208044113932-119.321930989749i | AN31: -0.00628610426569744+0.00147525859761267i | AO31: -43.79952534 | AP31: 0.98870529993741-0.168767230550061i | AQ31: 0.02606851388 | AR31: -9.686753044 | AS31: =IF($AU$1<>"MG 2.7",IMABS(IMPARA($M31,$AM31)),IMABS(IMDIV(1,IMSUM(IMDIV(1,$M31),IMDIV(1,$AM31),IMDIV(1,$S31))))) -> 4.022099208 | BI31: 43.76964708 | BJ31: 128.4977161 | BK31: -43.79952534 | BL31: 43.79952534 | BM31: 14.72709534
A32: 14.94800177 | B32: 93.92106512 | C32: 0.525957964673932i | D32: -47.3210609222712i | E32: 0.159665810704586i | H32: 4+0.159665810704586i | I32: 3.99836731861903-0.178915693629494i | M32: 3.99836731861903+0.347042271044438i | N32: 0.981892001345669-0.169753252154472i | O32: -0.0308221213 | P32: -626.308159265354i | Q32: 0.037568426048138i | R32: 0.000470388445248668+0.0375625354636316i | S32: 0.000470388445248668-626.27059672989i | T32: 3.89606123572254E-07-8.53354900409387E-08i | U32: -127.9839786 | V32: 0.0901642225155311i | W32: -212.94477415022i | X32: 0.0300547408385104i | Z32: 3.9+0.0300547408385104i | AA32: 3.8994283661679-0.0513151529557341i | AB32: 3.8994283661679-0.0513151529557341i | AC32: 3.8994283661679+0.038849069559797i | AD32: 0.999532128146301-0.0308228639301862i | AE32: 6.307706978e-05 | AF32: -118.302652305678i | AG32: 0.798329053522932i | AH32: 3.89976096852292+0.0145683947058183i | AI32: 0.156622444499146+0.765681415245521i | AJ32: 0.156622444499146-117.536970890432i | AK32: -0.00651260063042856+0.00134121598281518i | AL32: -43.54451712 | AM32: 0.156622444499146-117.536970890432i | AN32: -0.0064682134501599+0.00154132546867043i | AO32: -43.54445405 | AP32: 0.988360604401953-0.171294662958632i | AQ32: 0.02683685369 | AR32: -9.832372231 | AS32: =IF($AU$1<>"MG 2.7",IMABS(IMPARA($M32,$AM32)),IMABS(IMDIV(1,IMSUM(IMDIV(1,$M32),IMDIV(1,$AM32),IMDIV(1,$S32))))) -> 4.022761068 | BI32: 43.513695 | BJ32: 127.9840416 | BK32: -43.54445405 | BL32: 43.54445405 | BM32: 14.94800177
A33: 15.1722218 | B33: 95.3298811 | C33: 0.533847334144041i | D33: -46.6217348987894i | E33: 0.162060797865155i | H33: 4+0.162060797865155i | I33: 3.9983165747775-0.18161364466796i | M33: 3.9983165747775+0.352233689476081i | N33: 0.981349527903193-0.172249368276535i | O33: -0.03174654286 | P33: -617.052373660448i | Q33: 0.03813195243886i | R33: 0.000484603639390386+0.038125792811217i | S33: 0.000484603639390386-617.014247867637i | T33: 4.13046886395555E-07-9.18516635983885E-08i | U33: -127.4703912 | V33: 0.0915166858532641i | W33: -209.797807044552i | X33: 0.030505561951088i | Z33: 3.9+0.030505561951088i | AA33: 3.8993998817448-0.052386046268749i | AB33: 3.8993998817448-0.052386046268749i | AC33: 3.8993998817448+0.0391306395845151i | AD33: 0.999519795728484-0.031285247929937i | AE33: 8.072934388e-05 | AF33: -116.554337246973i | AG33: 0.810303989325776i | AH33: 3.89973872993145+0.0144860319253009i | AI33: 0.161159404539159+0.776218970328362i | AJ33: 0.161159404539159-115.778118276645i | AK33: -0.00670241622203025+0.00140129727759794i | AL33: -43.28956657 | AM33: 0.161159404539159-115.778118276645i | AN33: -0.00665535776037776+0.00161031112189542i | AO33: -43.28948584 | AP33: 0.988005298710457-0.173859771250094i | AQ33: 0.02762726812 | AR33: -9.980188984 | AS33: =IF($AU$1<>"MG 2.7",IMABS(IMPARA($M33,$AM33)),IMABS(IMDIV(1,IMSUM(IMDIV(1,$M33),IMDIV(1,$AM33),IMDIV(1,$S33))))) -> 4.023442563 | BI33: 43.25782002 | BJ33: 127.4704719 | BK33: -43.28948584 | BL33: 43.28948584 | BM33: 15.1722218
A34: 15.39980513 | B34: 96.75982931 | C34: 0.541855044156201i | D34: -45.9327437426496i | E34: 0.164491709833132i | H34: 4+0.164491709833132i | I34: 3.99826421161286-0.18435270992753i | M34: 3.99826421161286+0.357502334228671i | N34: 0.980790951616785-0.174780665810774i | O34: -0.03269846916 | P34: -607.933373064481i | Q34: 0.0387039317254429i | R34: 0.000499248346869986+0.0386974907674659i | S34: 0.000499248346869986-607.894675573713i | T34: 4.37883359234921E-07-9.88629556682567E-08i | U34: -126.9569107 | V34: 0.092889436141063i | W34: -206.697346841923i | X34: 0.0309631453803543i | Z34: 3.9+0.0309631453803543i | AA34: 3.89937036867725-0.0534729787298686i | AB34: 3.89937036867725-0.0534729787298686i | AC34: 3.89937036867725+0.0394164574111944i | AD34: 0.999507117405471-0.0317545710694961i | AE34: 9.915059148e-05 | AF34: -114.831859356624i | AG34: 0.822458549165662i | AH34: 3.89971559470159+0.0144024730399948i | AI34: 0.165822007126917+0.78687390946092i | AJ34: 0.165822007126917-114.044985447163i | AK34: -0.00689755132386431+0.00146403432186903i | AL34: -43.0347228 | AM34: 0.165822007126917-114.044985447163i | AN34: -0.00684766185894994+0.00168234150855313i | AO34: -43.03462365 | AP34: 0.987639051359094-0.176463106182283i | AQ34: 0.02844035794 | AR34: -10.13023678 | AS34: =IF($AU$1<>"MG 2.7",IMABS(IMPARA($M34,$AM34)),IMABS(IMDIV(1,IMSUM(IMDIV(1,$M34),IMDIV(1,$AM34),IMDIV(1,$S34))))) -> 4.024144265 | BI34: 43.00202433 | BJ34: 126.9570098 | BK34: -43.03462365 | BL34: 43.03462365 | BM34: 15.39980513
A35: 15.6308022 | B35: 98.21122675 | C35: 0.549982869818544i | D35: -45.2539347218223i | E35: 0.166959085480629i | H35: 4+0.166959085480629i | I35: 3.9982101749362-0.187133535241794i | M35: 3.9982101749362+0.36284933457675i | N35: 0.980215803447709-0.177347571659906i | O35: -0.03367870518 | P35: -598.949136024119i | Q35: 0.0392844907013246i | R35: 0.000514335541083858+0.039277755564731i | S35: 0.000514335541083858-598.909858268554i | T35: 4.64197306723458E-07-1.06406723648141E-07i | U35: -126.4435402 | V35: 0.094282777683179i | W35: -203.6427062482i | X35: 0.0314275925610597i | Z35: 3.9+0.0314275925610597i | AA35: 3.89933979338706-0.0545761896753821i | AB35: 3.89933979338706-0.0545761896753821i | AC35: 3.89933979338706+0.0397065880077969i | AD35: 0.999494083105893-0.0322309376354839i | AE35: 0.0001183675392 | AF35: -113.134836804556i | AG35: 0.834795427403147i | AH35: 3.89969153241649+0.014317702120932i | AI35: 0.170613393991079+0.797646316580857i | AJ35: 0.170613393991079-112.337190487975i | AK35: -0.00709814223405402+0.00152954183189275i | AL35: -42.77998886 | AM35: 0.170613393991079-112.337190487975i | AN35: -0.00704525259658644+0.00175754779051334i | AO35: -42.77987049 | AP35: 0.987261520241602-0.179105225857143i | AQ35: 0.02927673833 | AR35: -10.28254963 | AS35: =IF($AU$1<>"MG 2.7",IMABS(IMPARA($M35,$AM35)),IMABS(IMDIV(1,IMSUM(IMDIV(1,$M35),IMDIV(1,$AM35),IMDIV(1,$S35))))) -> 4.02486676 | BI35: 42.74631015 | BJ35: 126.4436586 | BK35: -42.77987049 | BL35: 42.77987049 | BM35: 15.6308022
A36: 15.86526424 | B36: 99.68439515 | C36: 0.558232612865822i | D36: -44.5851573614013i | E36: 0.169463471762839i | H36: 4+0.169463471762839i | I36: 3.99815440859947-0.189956777435611i | M36: 3.99815440859947+0.368275835430211i | N36: 0.979623601234002-0.179950514708613i | O36: -0.03468807869 | P36: -590.097670959723i | Q36: 0.0398737580618444i | R36: 0.000529878587019062+0.0398667153116507i | S36: 0.000529878587019062-590.057804244411i | T36: 4.92075161128091E-07-1.14523115486396E-07i | U36: -125.9302828 | V36: 0.0956970193484267i | W36: -200.633208126306i | X36: 0.0318990064494756i | Z36: 3.9+0.0318990064494756i | AA36: 3.89930812124576-0.0556959219701974i | AB36: 3.89930812124576-0.0556959219701974i | AC36: 3.89930812124576+0.0400010973782293i | AD36: 0.999480682458514-0.0327144534892708i | AE36: 0.0001384077709 | AF36: -111.462893403503i | AG36: 0.847317358814194i | AH36: 3.89966651169357+0.0142317030985793i | AI36: 0.175536765684237+0.808536212951345i | AJ36: 0.175536765684237-110.654357190552i | AK36: -0.00730432796664867+0.00159793927939511i | AL36: -42.52536787 | AM36: 0.175536765684237-110.654357190552i | AN36: -0.00724825899077237+0.0018360665390324i | AO36: -42.52522946 | AP36: 0.986872352299936-0.181786695770761i | AQ36: 0.03013703908 | AR36: -10.43716204 | AS36: =IF($AU$1<>"MG 2.7",IMABS(IMPARA($M36,$AM36)),IMABS(IMDIV(1,IMSUM(IMDIV(1,$M36),IMDIV(1,$AM36),IMDIV(1,$S36))))) -> 4.025610652 | BI36: 42.49067979 | BJ36: 125.9304212 | BK36: -42.52522946 | BL36: 42.52522946 | BM36: 15.86526424
A37: 16.1032432 | B37: 101.1796611 | C37: 0.566606102058809i | D37: -43.9262634102476i | E37: 0.172005423839281i | H37: 4+0.172005423839281i | I37: 3.9980968544168-0.192823104547503i | M37: 3.9980968544168+0.373782997511306i | N37: 0.979013849355663-0.182589925665042i | O37: -0.03572744078 | P37: -581.377015723865i | Q37: 0.0404718644327721i | R37: 0.000545891253056649+0.0404645000205091i | S37: 0.000545891253056649-581.336551223844i | T37: 5.21608277634203E-07-1.23255275144515E-07i | U37: -125.4171417 | V37: 0.097132474638653i | W37: -197.668185346114i | X37: 0.0323774915462177i | Z37: 3.9+0.0323774915462177i | AA37: 3.89927531654239-0.0568324220578391i | AB37: 3.89927531654239-0.0568324220578391i | AC37: 3.89927531654239+0.0403000525808139i | AD37: 0.999466904783156-0.0332052260911143i | AE37: 0.0001592997539 | AF37: -109.815658525619i | AG37: 0.860027119196407i | AH37: 3.89964050015501+0.0141444597654106i | AI37: 0.180595381486997+0.819543554164855i | AJ37: 0.180595381486997-108.996114971454i | AK37: -0.00751625025612521+0.00166935107381586i | AL37: -42.27086304 | AM37: 0.180595381486997-108.996114971454i | AN37: -0.00745681219923357+0.00191803993985521i | AO37: -42.27070374 | AP37: 0.986471183163174-0.184508088860172i | AQ37: 0.0310219049 | AR37: -10.59410908 | AS37: =IF($AU$1<>"MG 2.7",IMABS(IMPARA($M37,$AM37)),IMABS(IMDIV(1,IMSUM(IMDIV(1,$M37),IMDIV(1,$AM37),IMDIV(1,$S37))))) -> 4.02637656 | BI37: 42.2351356 | BJ37: 125.417301 | BK37: -42.27070374 | BL37: 42.27070374 | BM37: 16.1032432
A38: 16.34479185 | B38: 102.697356 | C38: 0.575105193589692i | D38: -43.2771068081257i | E38: 0.174585505196871i | H38: 4+0.174585505196871i | I38: 3.998037452082-0.195733196057818i | M38: 3.998037452082+0.379371997531874i | N38: 0.97838603839325-0.185266236892357i | O38: -0.03679766652 | P38: -572.785237166369i | Q38: 0.0410789423992637i | R38: 0.000562387723129709+0.0410712416349688i | S38: 0.000562387723129709-572.744165924734i | T38: 5.52893202569489E-07-1.32649562871671E-07i | U38: -124.9041203 | V38: 0.0985894617582328i | W38: -194.746980636566i | X38: 0.0328631539194109i | Z38: 3.9+0.0328631539194109i | AA38: 3.89924134245039-0.0579859400110561i | AB38: 3.89924134245039-0.0579859400110561i | AC38: 3.89924134245039+0.0406035217471767i | AD38: 0.999452739081353-0.0337033645246829i | AE38: 0.0001810728665 | AF38: -108.192767020314i | AG38: 0.872927525984353i | AH38: 3.89961346439706+0.0140559557787404i | AI38: 0.185792559222326+0.830668227064281i | AJ38: 0.185792559222326-107.36209879325i | AK38: -0.00773405355799805+0.00174390675043138i | AL38: -42.01647766 | AM38: 0.185792559222326-107.36209879325i | AN38: -0.00767104548783619+0.00200361600473973i | AO38: -42.01629658 | AP38: 0.986057636774289-0.18726998554666i | AQ38: 0.03193199555 | AR38: -10.75342637 | AS38: =IF($AU$1<>"MG 2.7",IMABS(IMPARA($M38,$AM38)),IMABS(IMDIV(1,IMSUM(IMDIV(1,$M38),IMDIV(1,$AM38),IMDIV(1,$S38))))) -> 4.027165123 | BI38: 41.97967999 | BJ38: 124.9043013 | BK38: -42.01629658 | BL38: 42.01629658 | BM38: 16.34479185
A39: 16.58996373 | B39: 104.2378163 | C39: 0.583731771493537i | D39: -42.6375436533258i | E39: 0.177204287774824i | H39: 4+0.177204287774824i | I39: 3.99797613908234-0.198687743122901i | M39: 3.99797613908234+0.385044028370636i | N39: 0.977739644779905-0.187979882229897i | O39: -0.03789965552 | P39: -564.320430705783i | Q39: 0.0416951265352526i | R39: 0.000579382609246814+0.0416870740581844i | S39: 0.000579382609246814-564.278743631725i | T39: 5.86031955128114E-07-1.42755791326103E-07i | U39: -124.3912218 | V39: 0.100068303684606i | W39: -191.868946439966i | X39: 0.0333561012282021i | Z39: 3.9+0.0333561012282021i | AA39: 3.8992061609935-0.0591567295830505i | AB39: 3.8992061609935-0.0591567295830505i | AC39: 3.8992061609935+0.0409115741015555i | AD39: 0.999438174026709-0.0342089795219722i | AE39: 0.000203757426 | AF39: -106.593859133315i | AG39: 0.886021438874119i | AH39: 3.89958536995865+0.0139661746638201i | AI39: 0.191131674974323+0.841910046581797i | AJ39: 0.191131674974323-105.751949086733i | AK39: -0.00795788504523406+0.00182174116445141i | AL39: -41.76221511 | AM39: 0.191131674974323-105.751949086733i | AN39: -0.00789109419253413+0.00209294878949923i | AO39: -41.76201135 | AP39: 0.985631325004394-0.190072973775188i | AQ39: 0.03286798611 | AR39: -10.91515004 | AS39: =IF($AU$1<>"MG 2.7",IMABS(IMPARA($M39,$AM39)),IMABS(IMDIV(1,IMSUM(IMDIV(1,$M39),IMDIV(1,$AM39),IMDIV(1,$S39))))) -> 4.027976995 | BI39: 41.72431545 | BJ39: 124.3914256 | BK39: -41.76201135 | BL39: 41.76201135 | BM39: 16.58996373
A40: 16.83881318 | B40: 105.8013836 | C40: 0.59248774806594i | D40: -42.0074321707644i | E40: 0.179862352091446i | H40: 4+0.179862352091446i | I40: 3.99791285060848-0.201687448815452i | M40: 3.99791285060848+0.390800299250488i | N40: 0.977074130446787-0.190731296803521i | O40: -0.03903433264 | P40: -555.980719907175i | Q40: 0.0423205534332814i | R40: 0.000596890964391736+0.0423121331812972i | S40: 0.000596890964391736-555.938407773994i | T40: 6.21132323171277E-07-1.53627478646941E-07i | U40: -123.8784499 | V40: 0.101569328239875i | W40: -189.03344476844i | X40: 0.0338564427466251i | Z40: 3.9+0.0338564427466251i | AA40: 3.89916973301059-0.0603450482593169i | AB40: 3.89916973301059-0.0603450482593169i | AC40: 3.89916973301059+0.0412242799805581i | AD40: 0.999423197954962-0.0347221834886234i | AE40: 0.0002273847174 | AF40: -105.018580426911i | AG40: 0.89931176045723i | AH40: 3.89955618128901+0.0138750998172308i | AI40: 0.196616162705364+0.853268752496058i | AJ40: 0.196616162705364-104.165311674415i | AK40: -0.0081878946001533+0.0019029946911873i | AL40: -41.50807887 | AM40: 0.196616162705364-104.165311674415i | AN40: -0.00811709567495809+0.00218619861864976i | AO40: -41.50785148 | AP40: 0.985191847254068-0.192917649049649i | AQ40: 0.03383056719 | AR40: -11.07931684 | AS40: =IF($AU$1<>"MG 2.7",IMABS(IMPARA($M40,$AM40)),IMABS(IMDIV(1,IMSUM(IMDIV(1,$M40),IMDIV(1,$AM40),IMDIV(1,$S40))))) -> 4.028812849 | BI40: 41.46904454 | BJ40: 123.8786772 | BK40: -41.50785148 | BL40: 41.50785148 | BM40: 16.83881318
A41: 17.09139538 | B41: 107.3884043 | C41: 0.601375064286929i | D41: -41.386632680556i | E41: 0.182560287372818i | H41: 4+0.182560287372818i | I41: 3.99784751946003-0.204733028371249i | M41: 3.99784751946003+0.39664203591568i | N41: 0.97638894246195-0.193520916824684i | O41: -0.04020264857 | P41: -547.764256066182i | Q41: 0.0429553617347807i | R41: 0.000614928295810658+0.0429465569123182i | S41: 0.000614928295810658-547.72130950927i | T41: 6.58308173695096E-07-1.65322119653053E-07i | U41: -123.3658079 | V41: 0.103092868163474i | W41: -186.239847062502i | X41: 0.0343642893878245i | Z41: 3.9+0.0343642893878245i | AA41: 3.89913201811945-0.0615511573101089i | AB41: 3.89913201811945-0.0615511573101089i | AC41: 3.89913201811945+0.0415417108533651i | AD41: 0.999407798853739-0.0352430905296491i | AE41: 0.0002519870237 | AF41: -103.46658170139i | AG41: 0.912801436864089i | AH41: 3.8995258617142+0.013782714510569i | AI41: 0.202249513765425+0.864744006108677i | AJ41: 0.202249513765425-102.601837695281i | AK41: -0.00842423480148129+0.0019878134323831i | AL41: -41.2540725 | AM41: 0.202249513765425-102.601837695281i | AN41: -0.00834918927122195+0.00228353231674152i | AO41: -41.25382051 | AP41: 0.984738790041346-0.195804614463545i | AQ41: 0.03482044516 | AR41: -11.24596403 | AS41: =IF($AU$1<>"MG 2.7",IMABS(IMPARA($M41,$AM41)),IMABS(IMDIV(1,IMSUM(IMDIV(1,$M41),IMDIV(1,$AM41),IMDIV(1,$S41))))) -> 4.029673376 | BI41: 41.21386985 | BJ41: 123.3660599 | BK41: -41.25382051 | BL41: 41.25382051 | BM41: 17.09139538
A42: 17.34776631 | B42: 108.9992304 | C42: 0.610395690251233i | D42: -40.7750075670503i | E42: 0.18529869168341i | H42: 4+0.18529869168341i | I42: 3.997780075947-0.207825209442481i | M42: 3.997780075947+0.402570480808752i | N42: 0.975683512662681-0.196349179377775i | O42: -0.04140558049 | P42: -539.669217799195i | Q42: 0.0435996921608023i | R42: 0.000633510578698459+0.0435904852053984i | S42: 0.000633510578698459-539.62562731399i | T42: 6.97679778570387E-07-1.77901476423042E-07i | U42: -122.8532997 | V42: 0.104639261185926i | W42: -183.487534051726i | X42: 0.0348797537286419i | Z42: 3.9+0.0348797537286419i | AA42: 3.89909297467949-0.0627753218435227i | AB42: 3.89909297467949-0.0627753218435227i | AC42: 3.89909297467949+0.0418639393424033i | AD42: 0.999391964352003-0.035771816475573i | AE42: 0.0002775976559 | AF42: -101.937518917626i | AG42: 0.92649345841705i | AH42: 3.89949437340287+0.0136890018944528i | AI42: 0.208035276287091+0.876335386841093i | AJ42: 0.208035276287091-101.061183530785i | AK42: -0.00866706090620035+0.00207634942879319i | AL42: -41.00019966 | AM42: 0.208035276287091-101.061183530785i | AN42: -0.00858751623350007+0.002385123446442i | AO42: -40.99992207 | AP42: 0.98427172657596-0.198734480725693i | AQ42: 0.03583834231 | AR42: -11.41512949 | AS42: =IF($AU$1<>"MG 2.7",IMABS(IMPARA($M42,$AM42)),IMABS(IMDIV(1,IMSUM(IMDIV(1,$M42),IMDIV(1,$AM42),IMDIV(1,$S42))))) -> 4.030559287 | BI42: 40.95879408 | BJ42: 122.8535773 | BK42: -40.99992207 | BL42: 40.99992207 | BM42: 17.34776631
A43: 17.60798281 | B43: 110.6342189 | C43: 0.619551625605001i | D43: -40.1724212483254i | E43: 0.188078172058661i | H43: 4+0.188078172058661i | I43: 3.99771044778648-0.210964732357883i | M43: 3.99771044778648+0.408586893247118i | N43: 0.974957257281336-0.199216522195249i | O43: -0.04264413281 | P43: -531.693810639601i | Q43: 0.0442536875432144i | R43: 0.000652654270296022+0.0442440600904972i | S43: 0.000652654270296022-531.649566579511i | T43: 7.39374156172366E-07-1.9143188959271E-07i | U43: -122.340929 | V43: 0.106208850103715i | W43: -180.775895617464i | X43: 0.0354029500345715i | Z43: 3.9+0.0354029500345715i | AA43: 3.89905255975334-0.0640178108592077i | AB43: 3.89905255975334-0.0640178108592077i | AC43: 3.89905255975334+0.0421910392445073i | AD43: 0.999375681709162-0.036308478908995i | AE43: 0.0003042509853 | AF43: -100.431053120813i | AG43: 0.940390860293306i | AH43: 3.89946167733073+0.0135939450028667i | AI43: 0.213977054459688+0.888042388753432i | AJ43: 0.213977054459688-99.5430107320596i | AK43: -0.00891653082583364+0.00216876087908269i | AL43: -40.74646412 | AM43: 0.213977054459688-99.5430107320596i | AN43: -0.00883221966391142+0.00249115255342861i | AO43: -40.74615986 | AP43: 0.983790216319404-0.201707866180567i | AQ43: 0.03688499707 | AR43: -11.58685167 | AS43: =IF($AU$1<>"MG 2.7",IMABS(IMPARA($M43,$AM43)),IMABS(IMDIV(1,IMSUM(IMDIV(1,$M43),IMDIV(1,$AM43),IMDIV(1,$S43))))) -> 4.031471311 | BI43: 40.70381998 | BJ43: 122.3412333 | BK43: -40.74615986 | BL43: 40.74615986 | BM43: 17.60798281
A44: 17.87210255 | B44: 112.2937321 | C44: 0.628844899989076i | D44: -39.5787401461334i | E44: 0.190899344639541i | H44: 4+0.190899344639541i | I44: 3.99763855999444-0.214152350389877i | M44: 3.99763855999444+0.414692549599199i | N44: 0.974209576564749-0.202123383420054i | O44: -0.04391933776 | P44: -523.836266640001i | Q44: 0.0449174928563626i | R44: 0.000672376324410731+0.0449074257034465i | S44: 0.000672376324410731-523.791359214298i | T44: 7.83525429529589E-07-2.05984611793276E-07i | U44: -121.8286996 | V44: 0.10780198285527i | W44: -178.1043306576i | X44: 0.0359339942850901i | Z44: 3.9+0.0359339942850901i | AA44: 3.89901072906724-0.0652788973027015i | AB44: 3.89901072906724-0.0652788973027015i | AC44: 3.89901072906724+0.0425230855525685i | AD44: 0.999358937803852-0.0368531971915847i | AE44: 0.0003319824756 | AF44: -98.9468503653335i | AG44: 0.954496723197705i | AH44: 3.8994277332442+0.01349752675785i | AI44: 0.220078507675656+0.89986441698707i | AJ44: 0.220078507675656-98.0469859483464i | AK44: -0.00917280509677263+0.00226521236511604i | AL44: -40.49286971 | AM44: 0.220078507675656-98.0469859483464i | AN44: -0.00908344444022002+0.00260180741813385i | AO44: -40.49253773 | AP44: 0.983293804530399-0.2047253968228i | AQ44: 0.03796116421 | AR44: -11.76116963 | AS44: =IF($AU$1<>"MG 2.7",IMABS(IMPARA($M44,$AM44)),IMABS(IMDIV(1,IMSUM(IMDIV(1,$M44),IMDIV(1,$AM44),IMDIV(1,$S44))))) -> 4.032410197 | BI44: 40.44895038 | BJ44: 121.8290316 | BK44: -40.49253773 | BL44: 40.49253773 | BM44: 17.87210255
A45: 18.14018409 | B45: 113.9781381 | C45: 0.638277573488912i | D45: -38.9938326562891i | E45: 0.193762834809134i | H45: 4+0.193762834809134i | I45: 3.99756433477272-0.217388830029007i | M45: 3.99756433477272+0.420888743459905i | N45: 0.973439854387237-0.205070201354843i | O45: -0.04523225617 | P45: -516.094843980296i | Q45: 0.045591255249208i | R45: 0.00069269420637286+0.0455807283164172i | S45: 0.00069269420637286-516.04926325198i | T45: 8.30275201633038E-07-2.21636164746075E-07i | U45: -121.3166156 | V45: 0.109419012598099i | W45: -175.472246953301i | X45: 0.0364730041993664i | Z45: 3.9+0.0364730041993664i | AA45: 3.89896743697027-0.0665588581203904i | AB45: 3.89896743697027-0.0665588581203904i | AC45: 3.89896743697027+0.0428601544777086i | AD45: 0.999341719122366-0.0374060924915155i | AE45: 0.0003608287165 | AF45: -97.4845816407226i | AG45: 0.968814174045671i | AH45: 3.8993924996228+0.0133997299745663i | AI45: 0.226343349542214+0.911800784133171i | AJ45: 0.226343349542214-96.5727808565894i | AK45: -0.00943604684424858+0.00236587508369123i | AL45: -40.23942041 | AM45: 0.226343349542214-96.5727808565894i | AN45: -0.00934133713284663+0.002717283314375i | AO45: -40.23905958 | AP45: 0.982782021795285-0.207787706305383i | AQ45: 0.039067615 | AR45: -11.93812301 | AS45: =IF($AU$1<>"MG 2.7",IMABS(IMPARA($M45,$AM45)),IMABS(IMDIV(1,IMSUM(IMDIV(1,$M45),IMDIV(1,$AM45),IMDIV(1,$S45))))) -> 4.033376716 | BI45: 40.19418816 | BJ45: 121.3169764 | BK45: -40.23905958 | BL45: 40.23905958 | BM45: 18.14018409
A46: 18.41228685 | B46: 115.6878102 | C46: 0.647851737091246i | D46: -38.4175691194966i | E46: 0.196669277331271i | H46: 4+0.196669277331271i | I46: 3.99748769139044-0.220674951265836i | M46: 3.99748769139044+0.42717678582541i | N46: 0.972647457857323-0.208057414197454i | O46: -0.04658397811 | P46: -508.467826581573i | Q46: 0.0462751240779461i | R46: 0.000713625908440815+0.0462641163687932i | S46: 0.000713625908440815-508.421562465204i | T46: 8.79772948554722E-07-2.38468721626883E-07i | U46: -120.8046809 | V46: 0.111060297787071i | W46: -172.879061037735i | X46: 0.0370200992623569i | Z46: 3.9+0.0370200992623569i | AA46: 3.89892263639241-0.0678579743151002i | AB46: 3.89892263639241-0.0678579743151002i | AC46: 3.89892263639241+0.0432023234719708i | AD46: 0.999324011746725-0.0379672878113432i | AE46: 0.0003908274584 | AF46: -96.0439227987415i | AG46: 0.983346386656355i | AH46: 3.89935593364053+0.0133005373667502i | AI46: 0.232775346751117+0.923850706529684i | AJ46: 0.232775346751117-95.1200720922118i | AK46: -0.00970642173952187+0.00247092708476291i | AL46: -39.98612028 | AM46: 0.232775346751117-95.1200720922118i | AN46: -0.00960604591265658+0.00283778327488162i | AO46: -39.98572945 | AP46: 0.982254383542928-0.210895435941057i | AQ46: 0.0402051374 | AR46: -12.11775208 | AS46: =IF($AU$1<>"MG 2.7",IMABS(IMPARA($M46,$AM46)),IMABS(IMDIV(1,IMSUM(IMDIV(1,$M46),IMDIV(1,$AM46),IMDIV(1,$S46))))) -> 4.034371658 | BI46: 39.9395363 | BJ46: 120.8050717 | BK46: -39.98572945 | BL46: 39.98572945 | BM46: 18.41228685
A47: 18.68847115 | B47: 117.4231273 | C47: 0.657569513147614i | D47: -37.8498217926075i | E47: 0.19961931649124i | H47: 4+0.19961931649124i | I47: 3.99740854605976-0.224011507880568i | M47: 3.99740854605976+0.433558005267046i | N47: 0.971831736918257-0.211085459762129i | O47: -0.04797562365 | P47: -500.953523725688i | Q47: 0.0469692509391153i | R47: 0.000735189965668574+0.0469577404984535i | S47: 0.000735189965668574-500.90656598519i | T47: 9.3217643103336E-07-2.5657051641652E-07i | U47: -120.2928997 | V47: 0.112726202253877i | W47: -170.324198066734i | X47: 0.0375754007512923i | Z47: 3.9+0.0375754007512923i | AA47: 3.89887627880123-0.0691765310023092i | AB47: 3.89887627880123-0.0691765310023092i | AC47: 3.89887627880123+0.0435496712515678i | AD47: 0.999305801342384-0.0385369080163413i | AE47: 0.0004220176481 | AF47: -94.6245544815188i | AG47: 0.998096582456201i | AH47: 3.89931799112611+0.0131999315525741i | AI47: 0.239378317799204+0.936013300489831i | AJ47: 0.239378317799204-93.688541181029i | AK47: -0.00998409794985199+0.0025805535161875i | AL47: -39.73297347 | AM47: 0.239378317799204-93.688541181029i | AN47: -0.00987772044897313+0.00296351836372024i | AO47: -39.73255146 | AP47: 0.981710389543661-0.214049234696366i | AQ47: 0.04137453619 | AR47: -12.30009774 | AS47: =IF($AU$1<>"MG 2.7",IMABS(IMPARA($M47,$AM47)),IMABS(IMDIV(1,IMSUM(IMDIV(1,$M47),IMDIV(1,$AM47),IMDIV(1,$S47))))) -> 4.035395834 | BI47: 39.68499785 | BJ47: 120.2933217 | BK47: -39.73255146 | BL47: 39.73255146 | BM47: 18.68847115
A48: 18.96879822 | B48: 119.1844743 | C48: 0.667433055844829i | D48: -37.290464820303i | E48: 0.202613606238609i | H48: 4+0.202613606238609i | I48: 3.99732681180594-0.227399307740697i | M48: 3.99732681180594+0.440033748104132i | N48: 0.970992023942434-0.214154775185901i | O48: -0.0494083436 | P48: -493.55026968048i | Q48: 0.0476737897032021i | R48: 0.000757405472249107+0.0476617535734673i | S48: 0.000757405472249107-493.502607926907i | T48: 9.87652125189955E-07-2.76036282063478E-07i | U48: -119.7812764 | V48: 0.114417095287685i | W48: -167.807091691363i | X48: 0.0381390317625616i | Z48: 3.9+0.0381390317625616i | AA48: 3.89882831415736-0.070514817466994i | AB48: 3.89882831415736-0.070514817466994i | AC48: 3.89882831415736+0.043902277820691i | AD48: 0.999287073145552-0.0391150798632997i | AE48: 0.0004544394647 | AF48: -93.2261620507574i | AG48: 1.01306803119304i | AH48: 3.89927862652189+0.0130978950609448i | AI48: 0.246156131552225+0.948287578465377i | AJ48: 0.246156131552225-92.277874472292i | AK48: -0.0102692460807864+0.00269494687500741i | AL48: -39.47998428 | AM48: 0.246156131552225-92.277874472292i | AN48: -0.0101565117972372+0.00309470795559474i | AO48: -39.47952984 | AP48: 0.981149523391796-0.217249759177778i | AQ48: 0.04257663319 | AR48: -12.4852015 | AS48: =IF($AU$1<>"MG 2.7",IMABS(IMPARA($M48,$AM48)),IMABS(IMDIV(1,IMSUM(IMDIV(1,$M48),IMDIV(1,$AM48),IMDIV(1,$S48))))) -> 4.036450077 | BI48: 39.43057593 | BJ48: 119.7817308 | BK48: -39.47952984 | BL48: 39.47952984 | BM48: 18.96879822
A49: 19.25333019 | B49: 120.9722414 | C49: 0.677444551682501i | D49: -36.739374207195i | E49: 0.205652810332188i | H49: 4+0.205652810332188i | I49: 3.997242398331-0.230839173106867i | M49: 3.997242398331+0.446605378575634i | N49: 0.970127633319875-0.217265796619599i | O49: -0.05088332023 | P49: -486.256423330523i | Q49: 0.0483888965487501i | R49: 0.00078029209834797+0.0483763107242084i | S49: 0.00078029209834797-486.208047019799i | T49: 1.04637567303977E-06-2.96967719399893E-07i | U49: -119.2698153 | V49: 0.116133351717i | W49: -165.327183932378i | X49: 0.0387111172390001i | Z49: 3.9+0.0387111172390001i | AA49: 3.8987786908686-0.0718731272210975i | AB49: 3.8987786908686-0.0718731272210975i | AC49: 3.8987786908686+0.0442602244959025i | AD49: 0.999267811950121-0.039701932029795i | AE49: 0.0004881343583 | AF49: -91.8484355179876i | AG49: 1.02826405166094i | AH49: 3.89923779284173+0.012994410338251i | AI49: 0.253112705644406+0.960672445148615i | AJ49: 0.253112705644406-90.887763072839i | AK49: -0.010562039110291+0.00281430726527775i | AL49: -39.22715707 | AM49: 0.253112705644406-90.887763072839i | AN49: -0.0104425722757151+0.00323158002198224i | AO49: -39.22666894 | AP49: 0.980571251971263-0.220497673609301i | AQ49: 0.04381226729 | AR49: -12.67310555 | AS49: =IF($AU$1<>"MG 2.7",IMABS(IMPARA($M49,$AM49)),IMABS(IMDIV(1,IMSUM(IMDIV(1,$M49),IMDIV(1,$AM49),IMDIV(1,$S49))))) -> 4.037535245 | BI49: 39.17627375 | BJ49: 119.2703034 | BK49: -39.22666894 | BL49: 39.22666894 | BM49: 19.25333019
A50: 19.54213014 | B50: 122.786825 | C50: 0.687606219957738i | D50: -36.1964277903399i | E50: 0.208737602487171i | H50: 4+0.208737602487171i | I50: 3.99715521187091-0.234331940947257i | M50: 3.99715521187091+0.453274279010481i | N50: 0.969237861040877-0.220418958902895i | O50: -0.05240176806 | P50: -479.070367813323i | Q50: 0.0491147299969813i | R50: 0.000803870107441597+0.0491015693758881i | S50: 0.000803870107441597-479.021266243947i | T50: 1.10853235346786E-06-3.19473998873922E-07i | U50: -118.7585209 | V50: 0.117875351992755i | W50: -162.88392505653i | X50: 0.0392917839975851i | Z50: 3.9+0.0392917839975851i | AA50: 3.89872735574265-0.0732517580616281i | AB50: 3.89872735574265-0.0732517580616281i | AC50: 3.89872735574265+0.0446235939311269i | AD50: 0.999248002094182-0.0402975951439429i | AE50: 0.0005231450883 | AF50: -90.4910694758499i | AG50: 1.04368801243585i | AH50: 3.89919544162751+0.0128894597555873i | AI50: 0.260252004705906+0.973166693517261i | AJ50: 0.260252004705906-89.5179027823326i | AK50: -0.0108626523142225+0.00293884266242023i | AL50: -38.97449635 | AM50: 0.260252004705906-89.5179027823326i | AN50: -0.0107360553306286+0.00337437142404051i | AO50: -38.97397321 | AP50: 0.979975024903859-0.223793649800934i | AQ50: 0.04508229469 | AR50: -12.86385268 | AS50: =IF($AU$1<>"MG 2.7",IMABS(IMPARA($M50,$AM50)),IMABS(IMDIV(1,IMSUM(IMDIV(1,$M50),IMDIV(1,$AM50),IMDIV(1,$S50))))) -> 4.038652214 | BI50: 38.92209459 | BJ50: 118.759044 | BK50: -38.97397321 | BL50: 38.97397321 | BM50: 19.54213014
A51: 19.8352621 | B51: 124.6286274 | C51: 0.697920313257104i | D51: -35.6615052121576i | E51: 0.211868666524478i | H51: 4+0.211868666524478i | I51: 3.99706515504577-0.237878463260755i | M51: 3.99706515504577+0.460041849996349i | N51: 0.968321984273039-0.223614695222782i | O51: -0.05396493459 | P51: -471.990510160909i | Q51: 0.049851450946936i | R51: 0.000828160374175326+0.0498376892815129i | S51: 0.000828160374175326-471.940672471628i | T51: 1.17431757433367E-06-3.43672297290482E-07i | U51: -118.2473979 | V51: 0.119643482272646i | W51: -160.476773454709i | X51: 0.0398811607575488i | Z51: 3.9+0.0398811607575488i | AA51: 3.89867425393846-0.0746510121293768i | AB51: 3.89867425393846-0.0746510121293768i | AC51: 3.89867425393846+0.0449924701432692i | AD51: 0.999227627446136-0.0409022018146396i | AE51: 0.0005595157632 | AF51: -89.153763030394i | AG51: 1.05934333262239i | AH51: 3.89915152290443+0.0127830256164824i | AI51: 0.267578038410508+0.985769000827235i | AJ51: 0.267578038410508-88.1679940295668i | AK51: -0.0111712631826276+0.00306876918407318i | AL51: -38.72200674 | AM51: 0.267578038410508-88.1679940295668i | AN51: -0.0110371153890638+0.00352332821220155i | AO51: -38.72144723 | AP51: 0.979360273979677-0.227138367107281i | AQ51: 0.04638758893 | AR51: -13.05748639 | AS51: =IF($AU$1<>"MG 2.7",IMABS(IMPARA($M51,$AM51)),IMABS(IMDIV(1,IMSUM(IMDIV(1,$M51),IMDIV(1,$AM51),IMDIV(1,$S51))))) -> 4.039801886 | BI51: 38.66804181 | BJ51: 118.2479574 | BK51: -38.72144723 | BL51: 38.72144723 | BM51: 19.8352621
A52: 20.13279103 | B52: 126.4980568 | C52: 0.708389117955961i | D52: -35.1344878937513i | E52: 0.215046696522345i | H52: 4+0.215046696522345i | I52: 3.99697212670298-0.241479607409225i | M52: 3.99697212670298+0.466909510546736i | N52: 0.967379260932829-0.226853436754885i | O52: -0.05557410114 | P52: -465.015280946709i | Q52: 0.0505992227111401i | R52: 0.000853184402756619+0.0505848325552704i | S52: 0.000853184402756619-464.964696114154i | T52: 1.24393738636456E-06-3.69688371887768E-07i | U52: -117.7364509 | V52: 0.121438134506736i | W52: -158.105195521881i | X52: 0.0404793781689121i | Z52: 3.9+0.0404793781689121i | AA52: 3.89861932891604-0.076071195968261i | AB52: 3.89861932891604-0.076071195968261i | AC52: 3.89861932891604+0.045366938538475i | AD52: 0.999206671390349-0.041515886662305i | AE52: 0.0005972918823 | AF52: -87.8362197343783i | AG52: 1.07523348261173i | AH52: 3.89910598513491+0.012675090165156i | AI52: 0.275094859335503+0.998477924558442i | AJ52: 0.275094859335503-86.8377418098199i | AK52: -0.0114880513263272+0.00320431136738395i | AL52: -38.46969296 | AM52: 0.275094859335503-86.8377418098199i | AN52: -0.0113459076989818+0.00367870593233652i | AO52: -38.46909567 | AP52: 0.978726412569197-0.230532512375593i | AQ52: 0.04772904103 | AR52: -13.25405081 | AS52: =IF($AU$1<>"MG 2.7",IMABS(IMPARA($M52,$AM52)),IMABS(IMDIV(1,IMSUM(IMDIV(1,$M52),IMDIV(1,$AM52),IMDIV(1,$S52))))) -> 4.040985187 | BI52: 38.41411886 | BJ52: 117.7370482 | BK52: -38.46909567 | BL52: 38.46909567 | BM52: 20.13279103
A53: 20.43478289 | B53: 128.3955276 | C53: 0.7190149547253i | D53: -34.615259008622i | E53: 0.21827239697018i | H53: 4+0.21827239697018i | I53: 3.99687602175246-0.245136256459106i | M53: 3.99687602175246+0.473878698266194i | N53: 0.966408929251923-0.230135612286977i | O53: -0.05723058357 | P53: -458.143133937644i | Q53: 0.0513582110518072i | R53: 0.000878964345899337+0.0513431637063461i | S53: 0.000878964345899337-458.091790773938i | T53: 1.31760901949005E-06-3.97657174220163E-07i | U53: -117.2256849 | V53: 0.123259706524337i | W53: -155.768665538799i | X53: 0.0410865688414457i | Z53: 3.9+0.0410865688414457i | AA53: 3.89856252238487-0.0775126205852879i | AB53: 3.89856252238487-0.0775126205852879i | AC53: 3.89856252238487+0.0457470859390491i | AD53: 0.999185116812385-0.0421387863501329i | AE53: 0.000636520378 | AF53: -86.538147521555i | AG53: 1.0913619848509i | AH53: 3.89905877517119+0.0125656355953202i | AI53: 0.282806560625888+1.01129189831967i | AJ53: 0.282806560625888-85.5268556232353i | AK53: -0.0118131983732332+0.00334570245267002i | AL53: -38.21755987 | AM53: 0.282806560625888-85.5268556232353i | AN53: -0.0116625881556427+0.00384076993835199i | AO53: -38.21692335 | AP53: 0.978072835016585-0.233976779882503i | AQ53: 0.04910755954 | AR53: -13.45359078 | AS53: =IF($AU$1<>"MG 2.7",IMABS(IMPARA($M53,$AM53)),IMABS(IMDIV(1,IMSUM(IMDIV(1,$M53),IMDIV(1,$AM53),IMDIV(1,$S53))))) -> 4.042203067 | BI53: 38.16032929 | BJ53: 117.2263214 | BK53: -38.21692335 | BL53: 38.21692335 | BM53: 20.43478289
A54: 20.74130464 | B54: 130.3214605 | C54: 0.72980017904618i | D54: -34.1037034567704i | E54: 0.221546482924733i | H54: 4+0.221546482924733i | I54: 3.99677673099396-0.248849309532707i | M54: 3.99677673099396+0.480950869513473i | N54: 0.965410207338526-0.233461647824076i | O54: -0.05893573318 | P54: -451.372545751374i | Q54: 0.0521285842175843i | R54: 0.000905523024335431+0.0521128496731727i | S54: 0.000905523024335431-451.320432901701i | T54: 1.39556144225477E-06-4.27723506468703E-07i | U54: -116.7151048 | V54: 0.125108602122202i | W54: -153.466665555467i | X54: 0.0417028673740674i | Z54: 3.9+0.0417028673740674i | AA54: 3.8985037742507-0.0789756015111324i | AB54: 3.8985037742507-0.0789756015111324i | AC54: 3.8985037742507+0.0461330006110696i | AD54: 0.999162946083761-0.0427710396158623i | AE54: 0.0006772496591 | AF54: -85.2592586419261i | AG54: 1.10773241462367i | AH54: 3.89900983820648+0.0124546440595733i | AI54: 0.290717273454928+1.02420922771894i | AJ54: 0.290717273454928-84.2350494142072i | AK54: -0.0121468878538161+0.00349318467335194i | AL54: -37.96561244 | AM54: 0.290717273454928-84.2350494142072i | AN54: -0.0119873131137185+0.00400979571104597i | AO54: -37.96493519 | AP54: 0.977398916013687-0.237471871258628i | AQ54: 0.05052407065 | AR54: -13.65615181 | AS54: =IF($AU$1<>"MG 2.7",IMABS(IMPARA($M54,$AM54)),IMABS(IMDIV(1,IMSUM(IMDIV(1,$M54),IMDIV(1,$AM54),IMDIV(1,$S54))))) -> 4.043456499 | BI54: 37.9066767 | BJ54: 116.7157821 | BK54: -37.96493519 | BL54: 37.96493519 | BM54: 20.74130464
A55: 21.05242421 | B55: 132.2762825 | C55: 0.740747181731872i | D55: -33.5997078391827i | E55: 0.224869680168604i | H55: 4+0.224869680168604i | I55: 3.99667414093592-0.252619682169485i | M55: 3.99667414093592+0.488127499562387i | N55: 0.964382292733974-0.236831966174454i | O55: -0.06069093745 | P55: -444.702015518595i | Q55: 0.052910512980848i | R55: 0.000932883946910944+0.0528940598581204i | S55: 0.000932883946910944-444.649121458737i | T55: 1.47803594493203E-06-4.60042722958702E-07i | U55: -116.2047158 | V55: 0.126985231154035i | W55: -151.198685276322i | X55: 0.0423284103846784i | Z55: 3.9+0.0423284103846784i | AA55: 3.89844302256079-0.0804604588613296i | AB55: 3.89844302256079-0.0804604588613296i | AC55: 3.89844302256079+0.0465247722927054i | AD55: 0.999140141046228-0.0434127873040773i | AE55: 0.0007195296563 | AF55: -83.9992695979568i | AG55: 1.12434840084302i | AH55: 3.89895911772476+0.0123420976793988i | AI55: 0.298831164273002+1.0372280862064i | AJ55: 0.298831164273002-82.9620415117504i | AK55: -0.01248930507513+0.00364700955203362i | AL55: -37.71385576 | AM55: 0.298831164273002-82.9620415117504i | AN55: -0.0123202391843564+0.00418606918301816i | AO55: -37.71313623 | AP55: 0.976704009954275-0.241018495400195i | AQ55: 0.05197951817 | AR55: -13.86178012 | AS55: =IF($AU$1<>"MG 2.7",IMABS(IMPARA($M55,$AM55)),IMABS(IMDIV(1,IMSUM(IMDIV(1,$M55),IMDIV(1,$AM55),IMDIV(1,$S55))))) -> 4.044746483 | BI55: 37.65316482 | BJ55: 116.2054353 | BK55: -37.71313623 | BL55: 37.71313623 | BM55: 21.05242421
A56: 21.36821057 | B56: 134.2604267 | C56: 0.75185838945785i | D56: -33.1031604326923i | E56: 0.228242725371133i | H56: 4+0.228242725371133i | I56: 3.99656813360536-0.256448306697613i | M56: 3.99656813360536+0.495410082760237i | N56: 0.963324361964858-0.240246986515903i | O56: -0.06249762089 | P56: -438.13006455034i | Q56: 0.0537041706755607i | R56: 0.000961071331283557+0.0536869661626251i | S56: 0.000961071331283557-438.076377584177i | T56: 1.56528674693651E-06-4.94781479830969E-07i | U56: -115.694523 | V56: 0.128890009621346i | W56: -148.964221947115i | X56: 0.0429633365404486i | Z56: 3.9+0.0429633365404486i | AA56: 3.89838020344747-0.0819675173980752i | AB56: 3.89838020344747-0.0819675173980752i | AC56: 3.89838020344747+0.0469224922232708i | AD56: 0.999116682995563-0.044064172399046i | AE56: 0.0007634118679 | AF56: -82.7579010817308i | AG56: 1.14121362685567i | AH56: 3.89890655544897+0.0122279785558078i | AI56: 0.307152431836949+1.0503465108975i | AJ56: 0.307152431836949-81.7075545708333i | AK56: -0.012840636982777+0.003807438202582i | AL56: -37.46229506 | AM56: 0.307152431836949-81.7075545708333i | AN56: -0.012661523016425+0.00436988706939697i | AO56: -37.46153165 | AP56: 0.97598745026803-0.24461736836678i | AQ56: 0.05347486365 | AR56: -14.07052264 | AS56: =IF($AU$1<>"MG 2.7",IMABS(IMPARA($M56,$AM56)),IMABS(IMDIV(1,IMSUM(IMDIV(1,$M56),IMDIV(1,$AM56),IMDIV(1,$S56))))) -> 4.046074045 | BI56: 37.39979744 | BJ56: 115.6952864 | BK56: -37.46153165 | BL56: 37.46153165 | BM56: 21.36821057
A57: 21.68873373 | B57: 136.2743331 | C57: 0.763136265299718i | D57: -32.6139511652141i | E57: 0.2316663662517i | H57: 4+0.2316663662517i | I57: 3.99645858634836-0.260336132616189i | M57: 3.99645858634836+0.502800132683529i | N57: 0.96223557009102-0.243707123941585i | O57: -0.0643572459 | P57: -431.655236010187i | Q57: 0.0545097332356941i | R57: 0.000990110125239555+0.0544917430227604i | S57: 0.000990110125239555-431.600744267164i | T57: 1.65758162910768E-06-5.32118535987947E-07i | U57: -115.1845318 | V57: 0.130823359765666i | W57: -146.762780243464i | X57: 0.0436077865885553i | Z57: 3.9+0.0436077865885553i | AA57: 3.8983152510701-0.0834971065926288i | AB57: 3.8983152510701-0.0834971065926288i | AC57: 3.8983152510701+0.0473262531730372i | AD57: 0.999092552664859-0.0447253400581101i | AE57: 0.0008089494082 | AF57: -81.5348779130353i | AG57: 1.1583318312585i | AH57: 3.89885209128788+0.0121122687806508i | AI57: 0.315685304011886+1.0635623983848i | AJ57: 0.315685304011886-80.4713155146505i | AK57: -0.0132010720101752+0.00397474163802466i | AL57: -37.2109357 | AM57: 0.315685304011886-80.4713155146505i | AN57: -0.0130113210611548+0.00456155720410405i | AO57: -37.21012675 | AP57: 0.975248548733804-0.248269213264225i | AQ57: 0.05501108628 | AR57: -14.282427 | AS57: =IF($AU$1<>"MG 2.7",IMABS(IMPARA($M57,$AM57)),IMABS(IMDIV(1,IMSUM(IMDIV(1,$M57),IMDIV(1,$AM57),IMDIV(1,$S57))))) -> 4.047440236 | BI57: 37.14657845 | BJ57: 115.1853408 | BK57: -37.21012675 | BL57: 37.21012675 | BM57: 21.68873373
A58: 22.01406473 | B58: 138.3184481 | C58: 0.774583309279214i | D58: -32.131971591344i | E58: 0.235141361745476i | H58: 4+0.235141361745476i | I58: 3.99634537162055-0.264284126988399i | M58: 3.99634537162055+0.510299182290815i | N58: 0.961115050249745-0.247212788984774i | O58: -0.0662713136 | P58: -425.276094591317i | Q58: 0.0553273792342295i | R58: 0.00102002602864857+0.0553085674452574i | S58: 0.00102002602864857-425.220786023872i | T58: 1.75520259140124E-06-5.72245608620141E-07i | U58: -114.6747478 | V58: 0.132785710162151i | W58: -144.593872161048i | X58: 0.0442619033873836i | Z58: 3.9+0.0442619033873836i | AA58: 3.89824809755522-0.0850495606883187i | AB58: 3.89824809755522-0.0850495606883187i | AC58: 3.89824809755522+0.0477361494738323i | AD58: 0.999067730207272-0.0453964376456365i | AE58: 0.0008561970558 | AF58: -80.3299289783599i | AG58: 1.17570680872738i | AH58: 3.89879566328112+0.0119949504486446i | AI58: 0.324434034337901+1.07687350054743i | AJ58: 0.324434034337901-79.2530554778125i | AK58: -0.0135707999144784+0.00414920108405673i | AL58: -36.95978315 | AM58: 0.324434034337901-79.2530554778125i | AN58: -0.0133697893193634+0.00476139888134114i | AO58: -36.95892696 | AP58: 0.9744865947717-0.251974760111724i | AQ58: 0.05658918297 | AR58: -14.49754157 | AS58: =IF($AU$1<>"MG 2.7",IMABS(IMPARA($M58,$AM58)),IMABS(IMDIV(1,IMSUM(IMDIV(1,$M58),IMDIV(1,$AM58),IMDIV(1,$S58))))) -> 4.048846135 | BI58: 36.89351184 | BJ58: 114.675604 | BK58: -36.95892696 | BL58: 36.95892696 | BM58: 22.01406473
A59: 22.3442757 | B59: 140.3932248 | C59: 0.786202058918402i | D59: -31.6571148683192i | E59: 0.238668482171658i | H59: 4+0.238668482171658i | I59: 3.99622835676721-0.268293274846009i | M59: 3.99622835676721+0.517908784072393i | N59: 0.959961913196521-0.250764387121794i | O59: -0.0682413647 | P59: -418.991226198342i | Q59: 0.056157289922743i | R59: 0.00105084551607496+0.0561376190439729i | S59: 0.00105084551607496-418.935088579298i | T59: 1.85844653648557E-06-6.15368286810743E-07i | U59: -114.1651765 | V59: 0.134777495814583i | W59: -142.457016907436i | X59: 0.0449258319381944i | Z59: 3.9+0.0449258319381944i | AA59: 3.89817867293495-0.0866252187641312i | AB59: 3.89817867293495-0.0866252187641312i | AC59: 3.89817867293495+0.0481522770504518i | AD59: 0.999042195178247-0.0460776147675391i | AE59: 0.0009052113048 | AF59: -79.1427871707979i | AG59: 1.19334241085829i | AH59: 3.89873720754284+0.0118760056701347i | AI59: 0.333402898353832+1.09027742036788i | AJ59: 0.333402898353832-78.05250975043i | AK59: -0.013950011598471+0.00433110829791055i | AL59: -36.70884305 | AM59: 0.333402898353832-78.05250975043i | AN59: -0.0137370830704309+0.00496974320193632i | AO59: -36.70793784 | AP59: 0.973700854713488-0.255734745692017i | AQ59: 0.05821016825 | AR59: -14.71591547 | AS59: =IF($AU$1<>"MG 2.7",IMABS(IMPARA($M59,$AM59)),IMABS(IMDIV(1,IMSUM(IMDIV(1,$M59),IMDIV(1,$AM59),IMDIV(1,$S59))))) -> 4.050292848 | BI59: 36.64060169 | BJ59: 114.1660817 | BK59: -36.70793784 | BL59: 36.70793784 | BM59: 22.3442757
A60: 22.67943984 | B60: 142.4991232 | C60: 0.797995089802178i | D60: -31.1892757323342i | E60: 0.242248509404233i | H60: 4+0.242248509404233i | I60: 3.99610740379238-0.272364579605521i | M60: 3.99610740379238+0.525630510196657i | N60: 0.95877524684277-0.254362318252427i | O60: -0.07026898036 | P60: -412.799237633835i | Q60: 0.0569996492715841i | R60: 0.0010825958600652+0.0569790800768085i | S60: 0.0010825958600652-412.742258553758i | T60: 1.96762597969243E-06-6.61707006918562E-07i | U60: -113.6558237 | V60: 0.136799158251802i | W60: -140.351740795504i | X60: 0.0455997194172673i | Z60: 3.9+0.0455997194172673i | AA60: 3.89810690508356-0.0882244247988871i | AB60: 3.89810690508356-0.0882244247988871i | AC60: 3.89810690508356+0.0485747334529149i | AD60: 0.99901592651717-0.046769023306386i | AE60: 0.0009560504163 | AF60: -77.9731893308354i | AG60: 1.21124254702116i | AH60: 3.89867665820366+0.0117554165846431i | AI60: 0.342596189670862+1.10377160776671i | AJ60: 0.342596189670862-76.8694177230687i | AK60: -0.014338898917753+0.00452076589230975i | AL60: -36.45812114 | AM60: 0.342596189670862-76.8694177230687i | AN60: -0.0141133565821749+0.00518693342414535i | AO60: -36.45716509 | AP60: 0.972890571050925-0.259549913383579i | AQ60: 0.05987507426 | AR60: -14.93759855 | AS60: =IF($AU$1<>"MG 2.7",IMABS(IMPARA($M60,$AM60)),IMABS(IMDIV(1,IMSUM(IMDIV(1,$M60),IMDIV(1,$AM60),IMDIV(1,$S60))))) -> 4.051781508 | BI60: 36.38785216 | BJ60: 113.6567798 | BK60: -36.45716509 | BL60: 36.45716509 | BM60: 22.67943984
A61: 23.01963144 | B61: 144.63661 | C61: 0.80996501614921i | D61: -30.7283504752061i | E61: 0.245882237045296i | H61: 4+0.245882237045296i | I61: 3.99598236911631-0.276499063496382i | M61: 3.99598236911631+0.533465952652828i | N61: 0.957554115790994-0.258006976157099i | O61: -0.07235578304 | P61: -406.698756289492i | Q61: 0.0578546440106579i | R61: 0.00111530515513138+0.0578331354830869i | S61: 0.00111530515513138-406.640923154009i | T61: 2.08306978571518E-06-7.11498093650797E-07i | U61: -113.1466953 | V61: 0.138851145625579i | W61: -138.277577138427i | X61: 0.0462837152085263i | Z61: 3.9+0.0462837152085263i | AA61: 3.89803271965213-0.0898475277359995i | AB61: 3.89803271965213-0.0898475277359995i | AC61: 3.89803271965213+0.0490036178895795i | AD61: 0.998988902528454-0.0474708174571007i | AE61: 0.001008774472 | AF61: -76.8208761880152i | AG61: 1.22941118522648i | AH61: 3.89861394735089+0.0116331653752223i | AI61: 0.352018215788663+1.11735335546617i | AJ61: 0.352018215788663-75.703522832549i | AK61: -0.0147376544725037+0.00471848766418835i | AL61: -36.20762333 | AM61: 0.352018215788663-75.703522832549i | AN61: -0.0144987628007498+0.00541332531845161i | AO61: -36.20661456 | AP61: 0.972054961661529-0.263421012973644i | AQ61: 0.06158495061 | AR61: -15.16264143 | AS61: =IF($AU$1<>"MG 2.7",IMABS(IMPARA($M61,$AM61)),IMABS(IMDIV(1,IMSUM(IMDIV(1,$M61),IMDIV(1,$AM61),IMDIV(1,$S61))))) -> 4.053313279 | BI61: 36.13526755 | BJ61: 113.1477041 | BK61: -36.20661456 | BL61: 36.20661456 | BM61: 23.01963144
A62: 23.36492591 | B62: 146.8061592 | C62: 0.822114491391448i | D62: -30.2742369213853i | E62: 0.249570470600975i | H62: 4+0.249570470600975i | I62: 3.99585310332068-0.280697768001583i | M62: 3.99585310332068+0.541416723389865i | N62: 0.956297560867795-0.261698747930075i | O62: -0.07450343743 | P62: -400.688429841864i | Q62: 0.0587224636708177i | R62: 0.00114900234245124+0.0586999729213802i | S62: 0.00114900234245124-400.629729868943i | T62: 0.0000022051239323832-7.64994870958116E-07i | U62: -112.6377974 | V62: 0.140933912809963i | W62: -136.234066146234i | X62: 0.0469779709366542i | Z62: 3.9+0.0469779709366542i | AA62: 3.89795604000132-0.0914948815487848i | AB62: 3.89795604000132-0.0914948815487848i | AC62: 3.89795604000132+0.0494390312611782i | AD62: 0.998961100862013-0.0481831537632724i | AE62: 0.001063445431 | AF62: -75.6855923034633i | AG62: 1.24785235300488i | AH62: 3.89854900496693+0.011509234283686i | AI62: 0.36167329364721+1.13101979489489i | AJ62: 0.36167329364721-74.5545725085684i | AK62: -0.0151464713831066+0.00492459892781594i | AL62: -35.95735565 | AM62: 0.36167329364721-74.5545725085684i | AN62: -0.0148934530196817+0.00564928752585813i | AO62: -35.95629221 | AP62: 0.971193219011409-0.267348800450804i | AQ62: 0.06334086432 | AR62: -15.39109548 | AS62: =IF($AU$1<>"MG 2.7",IMABS(IMPARA($M62,$AM62)),IMABS(IMDIV(1,IMSUM(IMDIV(1,$M62),IMDIV(1,$AM62),IMDIV(1,$S62))))) -> 4.054889352 | BI62: 35.88285221 | BJ62: 112.6388609 | BK62: -35.95629221 | BL62: 35.95629221 | BM62: 23.36492591
A63: 23.7153998 | B63: 149.0082516 | C63: 0.83444620876232i | D63: -29.8268344053057i | E63: 0.25331402765999i | H63: 4+0.25331402765999i | I63: 3.99571945088081-0.284961754311056i | M63: 3.99571945088081+0.549484454451264i | N63: 0.955004598655266-0.265438013387969i | O63: -0.07671365134 | P63: -394.766925952576i | Q63: 0.05960330062588i | R63: 0.00118371723530603+0.0595797828078027i | S63: 0.00118371723530603-394.707346169768i | T63: 2.33415230176731E-06-8.22468847115804E-07i | U63: -112.1291362 | V63: 0.143047921502112i | W63: -134.220754823876i | X63: 0.047682640500704i | Z63: 3.9+0.047682640500704i | AA63: 3.89787678713205-0.0931668453063452i | AB63: 3.89787678713205-0.0931668453063452i | AC63: 3.89787678713205+0.0498810761957668i | AD63: 0.998932498493134-0.0489061911540838i | AE63: 0.001120127181 | AF63: -74.5670860132643i | AG63: 1.26657013829995i | AH63: 3.89848175886613+0.0113836056267183i | AI63: 0.371565744907699+1.1447678921461i | AJ63: 0.371565744907699-73.4223181211182i | AK63: -0.0155655430488934+0.00513943685192661i | AL63: -35.70732428 | AM63: 0.371565744907699-73.4223181211182i | AN63: -0.0152975765271289+0.00589520191910904i | AO63: -35.70620415 | AP63: 0.970304509334697-0.271334037775925i | AQ63: 0.06514389965 | AR63: -15.62301285 | AS63: =IF($AU$1<>"MG 2.7",IMABS(IMPARA($M63,$AM63)),IMABS(IMDIV(1,IMSUM(IMDIV(1,$M63),IMDIV(1,$AM63),IMDIV(1,$S63))))) -> 4.056510947 | BI63: 35.63061063 | BJ63: 112.1302563 | BK63: -35.70620415 | BL63: 35.70620415 | BM63: 23.7153998
A64: 24.07113079 | B64: 151.2433753 | C64: 0.846962901893755i | D64: -29.3860437490697i | E64: 0.25711373807489i | H64: 4+0.25711373807489i | I64: 3.9955812498844-0.289292103788273i | M64: 3.9955812498844+0.557670798105482i | N64: 0.953674221021321-0.269225144452785i | O64: -0.07898817654 | P64: -388.932931972981i | Q64: 0.0604973501352682i | R64: 0.00121948054527775+0.0604727583547581i | S64: 0.00121948054527775-388.872459214626i | T64: 2.47053749878579E-06-8.84210978595562E-07i | U64: -111.620718 | V64: 0.145193640324644i | W64: -132.237196870814i | X64: 0.0483978801082146i | Z64: 3.9+0.0483978801082146i | AA64: 3.89779487961422-0.0948637832399854i | AB64: 3.89779487961422-0.0948637832399854i | AC64: 3.89779487961422+0.0503298570846586i | AD64: 0.998903071701712-0.0496400909818739i | AE64: 0.001178885606 | AF64: -73.4651093726742i | AG64: 1.28556869037445i | AH64: 3.89841213462953+0.011256261812948i | AI64: 0.381699890956478+1.15859444400308i | AJ64: 0.381699890956478-72.3065149286711i | AK64: -0.0159950628892613+0.00536335080040454i | AL64: -35.45753555 | AM64: 0.381699890956478-72.3065149286711i | AN64: -0.0157112802304454+0.00615146396622166i | AO64: -35.45635666 | AP64: 0.969387971789265-0.275377492629985i | AQ64: 0.06699515796 | AR64: -15.85844649 | AS64: =IF($AU$1<>"MG 2.7",IMABS(IMPARA($M64,$AM64)),IMABS(IMDIV(1,IMSUM(IMDIV(1,$M64),IMDIV(1,$AM64),IMDIV(1,$S64))))) -> 4.058179315 | BI64: 35.37854737 | BJ64: 111.6218969 | BK64: -35.45635666 | BL64: 35.45635666 | BM64: 24.07113079
A65: 24.43219776 | B65: 153.512026 | C65: 0.859667345422161i | D65: -28.9517672404627i | E65: 0.260970444146013i | H65: 4+0.260970444146013i | I65: 3.9954383317359-0.293689918450428i | M65: 3.9954383317359+0.565977426971733i | N65: 0.952305394649512-0.273060504508747i | O65: -0.08132880972 | P65: -383.185154653183i | Q65: 0.0614048103872972i | R65: 0.00125632390922842+0.0613790956101536i | S65: 0.00125632390922842-383.123775557573i | T65: 2.61468169738582E-06-9.5053301758379E-07i | U65: -111.1125492 | V65: 0.147371544929513i | W65: -130.282952582082i | X65: 0.0491238483098378i | Z65: 3.9+0.0491238483098378i | AA65: 3.89771023351329-0.0965860648101699i | AB65: 3.89771023351329-0.0965860648101699i | AC65: 3.89771023351329+0.0507854801193431i | AD65: 0.998872796050804-0.0503850170603429i | AE65: 0.001239788638 | AF65: -72.3794181011569i | AG65: 1.30485222073007i | AH65: 3.89834005553785+0.0111271853609931i | AI65: 0.392080047626187+1.17249607404597i | AJ65: 0.392080047626187-71.2069220271109i | AK65: -0.0164352240663995+0.00559670267602855i | AL65: -35.20799593 | AM65: 0.392080047626187-71.2069220271109i | AN65: -0.0161347082571126+0.00641848309564575i | AO65: -35.20675614 | AP65: 0.968442717588322-0.27947993813741i | AQ65: 0.06889575749 | AR65: -16.09745014 | AS65: =IF($AU$1<>"MG 2.7",IMABS(IMPARA($M65,$AM65)),IMABS(IMDIV(1,IMSUM(IMDIV(1,$M65),IMDIV(1,$AM65),IMDIV(1,$S65))))) -> 4.059895738 | BI65: 35.12666712 | BJ65: 111.113789 | BK65: -35.20675614 | BL65: 35.20675614 | BM65: 24.43219776
A66: 24.79868072 | B66: 155.8147064 | C66: 0.872562355603493i | D66: -28.5239086112933i | E66: 0.264885000808203i | H66: 4+0.264885000808203i | I66: 3.99529052084558-0.298156321462593i | M66: 3.99529052084558+0.5744060341409i | N66: 0.95089706056897-0.27694444773219i | O66: -0.08373739338 | P66: -377.522319855353i | Q66: 0.0623258825431067i | R66: 0.00129427991708419+0.0622989934970766i | S66: 0.00129427991708419-377.460020861856i | T66: 2.76700751426599E-06-1.02176894826381E-06i | U66: -110.6046366 | V66: 0.149582118103456i | W66: -128.35758875082i | X66: 0.0498607060344853i | Z66: 3.9+0.0498607060344853i | AA66: 3.89762276231461-0.0983340647739941i | AB66: 3.89762276231461-0.0983340647739941i | AC66: 3.89762276231461+0.0512480533294619i | AD66: 0.998841646364542-0.0511411357034206i | AE66: 0.001302906321 | AF66: -71.3097715282334i | AG66: 1.32442500404102i | AH66: 3.89826544250256+0.010996358918565i | AI66: 0.40271051962902+1.18646922885504i | AJ66: 0.40271051962902-70.1233022993784i | AK66: -0.0168862191888528+0.00583986726672971i | AL66: -34.95871205 | AM66: 0.40271051962902-70.1233022993784i | AN66: -0.0165680015310885+0.00669668306230553i | AO66: -34.95740914 | AP66: 0.967467829107573-0.283642152563444i | AQ66: 0.07084683314 | AR66: -16.34007832 | AS66: =IF($AU$1<>"MG 2.7",IMABS(IMPARA($M66,$AM66)),IMABS(IMDIV(1,IMSUM(IMDIV(1,$M66),IMDIV(1,$AM66),IMDIV(1,$S66))))) -> 4.061661528 | BI66: 34.87497466 | BJ66: 110.6059395 | BK66: -34.95740914 | BL66: 34.95740914 | BM66: 24.79868072
A67: 25.17066093 | B67: 158.151927 | C67: 0.885650790937546i | D67: -28.1023730160526i | E67: 0.268858275820326i | H67: 4+0.268858275820326i | I67: 3.99513763430283-0.302692457646312i | M67: 3.99513763430283+0.582958333291234i | N67: 0.949448133685124-0.280877318393699i | O67: -0.08621581671 | P67: -371.943172271284i | Q67: 0.0632607707812533i | R67: 0.00133338214044807+0.0632326538539364i | S67: 0.00133338214044807-371.87993961743i | T67: 2.92795890998523E-06-1.09827651725128E-06i | U67: -110.0969868 | V67: 0.151825849875008i | W67: -126.460678572237i | X67: 0.0506086166250026i | Z67: 3.9+0.0506086166250026i | AA67: 3.89753237684564-0.10010816325317i | AB67: 3.89753237684564-0.10010816325317i | AC67: 3.89753237684564+0.051717686621838i | AD67: 0.998809596705307-0.0519086157648012i | AE67: 0.001368310878 | AF67: -70.2559325401314i | AG67: 1.34429137910163i | AH67: 3.89818821399495+0.0108637652826391i | AI67: 0.413595594697488+1.20051017432635i | AJ67: 0.413595594697488-69.055422365805i | AK67: -0.0173482399951452+0.0060932325937607i | AL67: -34.70969069 | AM67: 0.413595594697488-69.055422365805i | AN67: -0.0170112973236228+0.00698650231370931i | AO67: -34.70832238 | AP67: 0.966462358967657-0.287864918983926i | AQ67: 0.07284953621 | AR67: -16.5863864 | AS67: =IF($AU$1<>"MG 2.7",IMABS(IMPARA($M67,$AM67)),IMABS(IMDIV(1,IMSUM(IMDIV(1,$M67),IMDIV(1,$AM67),IMDIV(1,$S67))))) -> 4.06347803 | BI67: 34.62347487 | BJ67: 110.0983552 | BK67: -34.70832238 | BL67: 34.70832238 | BM67: 25.17066093
A68: 25.54822085 | B68: 160.5242059 | C68: 0.898935552801609i | D68: -27.6870670108892i | E68: 0.272891149957631i | H68: 4+0.272891149957631i | I68: 3.99497948153248-0.307299494003031i | M68: 3.99497948153248+0.591636058798578i | N68: 0.947957502311893-0.284859450131786i | O68: -0.08876601657 | P68: -366.446475144122i | Q68: 0.064209682342972i | R68: 0.00137366516206562+0.0641802814750714i | S68: 0.00137366516206562-366.382294862647i | T68: 3.09800211716681E-06-1.18043886385442E-06i | U68: -109.589607 | V68: 0.154103237623133i | W68: -124.591801549002i | X68: 0.0513677458743776i | Z68: 3.9+0.0513677458743776i | AA68: 3.89743898519576-0.101908745802498i | AB68: 3.89743898519576-0.101908745802498i | AC68: 3.89743898519576+0.052194491820635i | AD68: 0.998776620350199-0.0526876286781707i | AE68: 0.001436076773 | AF68: -69.2176675272231i | AG68: 1.36445574978816i | AH68: 3.89810828597294+0.0107293874207835i | AI68: 0.4247395374288+1.21461499211631i | AJ68: 0.4247395374288-68.0030525351068i | AK68: -0.0178214770166737+0.00635720026112032i | AL68: -34.46093878 | AM68: 0.4247395374288-68.0030525351068i | AN68: -0.0174647287775714+0.00728839435524221i | AO68: -34.45950271 | AP68: 0.965425329091582-0.292149024925892i | AQ68: 0.07490503412 | AR68: -16.83643055 | AS68: =IF($AU$1<>"MG 2.7",IMABS(IMPARA($M68,$AM68)),IMABS(IMDIV(1,IMSUM(IMDIV(1,$M68),IMDIV(1,$AM68),IMDIV(1,$S68))))) -> 4.065346619 | BI68: 34.37217277 | BJ68: 109.591043 | BK68: -34.45950271 | BL68: 34.45950271 | BM68: 25.54822085
A69: 25.93144416 | B69: =$A69*2*PI() -> 162.9320689 | C69: =COMPLEX(0,10^-3*$B69*$C$3) -> 0.912419586093633i | D69: =COMPLEX(0,-1*10^6/($B69*$D$3)) -> -27.2778985328958i | E69: =IF($E$3>0,COMPLEX(0,10^-3*$B69*$E$3),"") -> 0.276984517206996i | F69: =IF($F$3>0,COMPLEX(0,-1*10^6/($B69*$F$3)),"") ->  | G69: =IF($E$3=0,IMDIV(IMPRODUCT($F$2,$D69),IMSUM($F$2,$D69)),"") ->  | H69: =IF($F$3>0,"",IF($E$3>0,IMSUM($F$2,$E69),"")) -> 4+0.276984517206996i | I69: =IF($H69<>"",IMPARA($D69,$H69)) -> 3.99481586393328-0.311978620252743i | J69: =IF($F$3>0,IMDIV(IMPRODUCT($F$2,$F69),IMSUM($F$2,$F69)),"") ->  | K69: =IF($F$3>0,IMSUM($J69,$E69),"") ->  | L69: =IF($F$3>0,IMDIV(IMPRODUCT($K69,$D69),IMSUM($K69,$D69)),"") ->  | M69: =IMSUM($C69,IF($F$3>0,$L69,IF($E$3>0,$I69,$G69))) -> 3.99481586393328+0.60044096584089i | N69: =IF($F$3>0,IMPRODUCT(IMDIV($J69,$K69),IMDIV($L69,$M69)), IF($E$3>0, IMPRODUCT(IMDIV($F$2,$H69),IMDIV($I69,$M69)), IMDIV($G69,$M69))) -> 0.946424027706108-0.288891165197311i | O69: =20*LOG(IMABS($N69)) -> -0.09138997834 | P69: =COMPLEX(0,(-1*10^6)/($B69*$P$3)) -> -361.031009994209i | Q69: =IF($Q$3>0, COMPLEX(0,10^-3*$B69*$Q$3), "") -> 0.0651728275781166i | R69: =IF($Q$3>0,IMPARA($R$3,$Q69),$R$3) -> 0.0014151646061687+0.0651420841518258i | S69: =IMSUM($P69,$R69,$S$3,COMPLEX(0,$T$3*B69*10^-6)) -> 0.0014151646061687-360.965867910057i | T69: =IMPRODUCT(IMDIV($R69,$S69),IF($AU$1="MG 2.7",1,$AK69)) -> 3.27762659535675E-06-1.26866625612325E-06i | U69: =20*LOG(IMABS($T69)) -> -109.0825041 | V69: =COMPLEX(0,(10^-3)*$B69*$V$3) -> 0.15641478618748i | W69: =IF($W$3>0,COMPLEX(0,(-1*10^6)/($B69*$W$3)), "") -> -122.750543398031i | X69: =IF($X$3>0,COMPLEX(0,(10^-3)*$B69*$X$3),"") -> 0.0521382620624933i | Y69: =IF($X$3>0,"", IF($W$3>0,IMPARA($Y$3,$W69), "")) ->  | Z69: 3.9+0.0521382620624933i | AA69: 3.89734249263377-0.103736203478807i | AB69: =IF($X$3>0, $AA69, IF($W$3>0, $Y69,$Y$3)) -> 3.89734249263377-0.103736203478807i | AC69: =IMSUM($V69,$AB69) -> 3.89734249263377+0.052678582708673i | AD69: =IF($X$3>0, IMPRODUCT(IMDIV($AB69,$AC69),IMDIV($Y$3,$Z69)), IF($W$3>0, IMDIV($Y69,$AC69), IMDIV($Y$3,$AC69))) -> 0.998742689766749-0.053478348498131i | AE69: =20*LOG(IMABS($AD69)) -> 0.001506280779 | AF69: =COMPLEX(0,-1*10^6/($B69*$AF$3)) -> -68.1947463322395i | AG69: =IF($AG$3>0,COMPLEX(0,(10^-3)*$AG$3*$B69), "") -> 1.38492258603498i | AH69: =IF($AU$1<>"MG 2.7",IMPARA($S69,$AC69), $Y$3) -> 3.89802557180627+0.0105932084936834i | AI69: =IF($AG$3>0,IMPARA($AG69,$AH69),$AH69) -> 0.436146582829525+1.22877957623264i | AJ69: =IMSUM($AF69,$AI69) -> 0.436146582829525-66.9659667560069i | AK69: =IMDIV($AI69,$AJ69) -> -0.0183061192190869+0.00663218580551532i | AL69: =20*LOG(IMABS($AK69)) -> -34.21246342 | AM69: =IF($AU$1<>"MG 2.7",$AJ69, IMSUM($V69,$AJ69)) -> 0.436146582829525-66.9659667560069i | AN69: =IF($AU$1<>"MG 2.7",IMPRODUCT($AD69,$AK69),IMDIV($Y$3,$AM69)) -> -0.0179284244042499+0.00760282811367989i | AO69: =20*LOG(IMABS($AN69)) -> -34.21095714 | AP69: =IF($AU$1="MG 2.7", IMSUM(IMPRODUCT(-1,$N69),$AN69,$T69), IMSUM($N69,IMPRODUCT(-1,$AN69),$T69)) -> 0.964355729736953-0.296495261977247i | AQ69: =20*LOG(IMABS($AP69)) -> 0.07701451006 | AR69: =IMARGUMENT(IMSUM($N69,$T69,IMPRODUCT(-1,$AN69)))*180/PI() -> -17.09026778 | AS69: =IF($AU$1<>"MG 2.7",IMABS(IMPARA($M69,$AM69)),IMABS(IMDIV(1,IMSUM(IMDIV(1,$M69),IMDIV(1,$AM69),IMDIV(1,$S69))))) -> 4.067268705 | BI69: =ABS($O69-$AL69) -> 34.12107344 | BJ69: =ABS($AE69-$U69) -> 109.0840103 | BK69: =AO69 -> -34.21095714 | BL69: =ABS(AO69) -> 34.21095714 | BM69: =$A69 -> 25.93144416
A70: =$A69*1.015 -> 26.32041582 | B70: 165.37605 | C70: 0.926105879885037i | D70: -26.8747768797003i | E70: 0.281139284965101i | H70: 4+0.281139284965101i | I70: 3.99464657449789-0.316731049388426i | M70: 3.99464657449789+0.609374830496611i | N70: 0.944846543604943-0.292972773667896i | O70: -0.09408973687 | P70: -355.695576348974i | Q70: 0.0661504199917884i | R70: 0.00145791716972292+0.0661182727140915i | S70: 0.00145791716972292-355.62945807626i | T70: 3.46734601192671E-06-1.36339793895539E-06i | U70: -108.5756854 | V70: 0.158761007980292i | W70: -120.936495958651i | X70: 0.0529203359934307i | Z70: =IF($X$3=0,"",IMSUM($X70,$Y$3)) -> 3.9+0.0529203359934307i | AA70: =IF($X$3=0,"",IMDIV(1,(IMSUM(IMDIV(1,$Z$5),IMDIV(1,$W70))))) -> 3.89724280152291-0.105590932910363i | AB70: 3.89724280152291-0.105590932910363i | AC70: 3.89724280152291+0.053170075069929i | AD70: 0.998707776587856-0.0542809519418422i | AE70: 0.001579002049 | AF70: -67.1869421992507i | AG70: 1.4056964248255i | AH70: 3.89793998219886+0.0104552118789088i | AI70: 0.447820929558381+1.24299962978997i | AJ70: 0.447820929558381-65.9439425694607i | AK70: -0.0188023536213575+0.00691861904608464i | AL70: -33.96427186 | AM70: 0.447820929558381-65.9439425694607i | AN70: -0.0184025075518601+0.00793028829788801i | AO70: -33.96269285 | AP70: 0.963252518502815-0.300904425363723i | AQ70: 0.07917916267 | AR70: -17.34795592 | AS70: =IF($AU$1<>"MG 2.7",IMABS(IMPARA($M70,$AM70)),IMABS(IMDIV(1,IMSUM(IMDIV(1,$M70),IMDIV(1,$AM70),IMDIV(1,$S70))))) -> 4.06924573 | BI70: 33.87018212 | BJ70: 108.5772644 | BK70: -33.96269285 | BL70: 33.96269285 | BM70: 26.32041582
A71: 26.71522206 | B71: 167.8566907 | C71: 0.939997468083313i | D71: -26.4776126893599i | E71: 0.285356374239577i | H71: 4+0.285356374239577i | I71: 3.99447139741284-0.321558018246551i | M71: 3.99447139741284+0.618439449836762i | N71: 0.943223855767191-0.297104572631574i | O71: -0.09686737738 | P71: -350.438991476822i | Q71: 0.0671426762916652i | R71: 0.00150196065460546+0.0671090610723203i | S71: 0.00150196065460546-350.37188241575i | T71: 0.0000036676992482277-1.46510410083876E-06i | U71: -108.0691583 | V71: 0.161142423099996i | W71: -119.14925710212i | X71: 0.0537141410333321i | Z71: 3.9+0.0537141410333321i | AA71: 3.89713981123347-0.107473336366702i | AB71: 3.89713981123347-0.107473336366702i | AC71: 3.89713981123347+0.053669086733294i | AD71: 0.998671851585922-0.055095618431395i | AE71: 0.001654322186 | AF71: -66.1940317233997i | AG71: 1.42678187119789i | AH71: 3.8978514251097+0.0103153811960105i | AI71: 0.459766732865383+1.25727066194897i | AJ71: 0.459766732865383-64.9367610614507i | AK71: -0.0193103648917611+0.00721694443304033i | AL71: -33.7163715 | AM71: 0.459766732865383-64.9367610614507i | AN71: -0.0188870958445315+0.00827127575558457i | AO71: -33.71471717 | AP71: 0.962114619310971-0.305377313491259i | AQ71: 0.08140020559 | AR71: -17.60955367 | AS71: =IF($AU$1<>"MG 2.7",IMABS(IMPARA($M71,$AM71)),IMABS(IMDIV(1,IMSUM(IMDIV(1,$M71),IMDIV(1,$AM71),IMDIV(1,$S71))))) -> 4.071279167 | BI71: 33.61950412 | BJ71: 108.0708126 | BK71: -33.71471717 | BL71: 33.71471717 | BM71: 26.71522206
A72: 27.11595039 | B72: 170.3745411 | C72: 0.954097430104562i | D72: -26.0863179205516i | E72: 0.289636719853171i | H72: 4+0.289636719853171i | I72: 3.99429010763755-0.326460788094193i | M72: 3.99429010763755+0.627636642010369i | N72: 0.94155474151927-0.301286845338932i | O72: -0.09972503639 | P72: -345.260090124948i | Q72: 0.0681498164360402i | R72: 0.00154733400074042+0.0681146662600018i | S72: 0.00154733400074042-345.191975458688i | T72: 3.87925142999535E-06-1.57428796613506E-06i | U72: -107.5629305 | V72: 0.163559559446496i | W72: -117.388430642482i | X72: 0.0545198531488321i | Z72: 3.9+0.0545198531488321i | AA72: 3.89703341805268-0.109383821828888i | AB72: 3.89703341805268-0.109383821828888i | AC72: 3.89703341805268+0.054175737617608i | AD72: 0.998634884646161-0.0559225301369306i | AE72: 0.001732325316 | AF72: -65.215794801379i | AG72: 1.44818359926585i | AH72: 3.89775980567086+0.0101737003329837i | AI72: 0.471988097226965+1.27158798505862i | AJ72: 0.471988097226965-63.9442068163204i | AK72: -0.0198303349199795+0.00752762139431786i | AL72: -33.46876992 | AM72: 0.471988097226965-63.9442068163204i | AN72: -0.0193823005910253+0.00862630782496257i | AO72: -33.4670376 | AP72: 0.960940921361725-0.309914727451861i | AQ72: 0.08367886705 | AR72: -17.87512059 | AS72: =IF($AU$1<>"MG 2.7",IMABS(IMPARA($M72,$AM72)),IMABS(IMDIV(1,IMSUM(IMDIV(1,$M72),IMDIV(1,$AM72),IMDIV(1,$S72))))) -> 4.073370528 | BI72: 33.36904488 | BJ72: 107.5646628 | BK72: -33.4670376 | BL72: 33.4670376 | BM72: 27.11595039
A73: 27.52268965 | B73: 172.9301592 | C73: 0.96840889155613i | D73: -25.7008058330558i | E73: 0.293981270650968i | H73: 4+0.293981270650968i | I73: 3.99410247046178-0.331440645233255i | M73: 3.99410247046178+0.636968246322875i | N73: 0.939837949306883-0.305519860322978i | O73: -0.1026649026 | P73: -340.157724261033i | Q73: 0.0691720636825807i | R73: 0.00159407732021966+0.0691353084766109i | S73: 0.00159407732021966-340.088588952556i | T73: 4.10259498078429E-06-1.69148802014128E-06i | U73: -107.0570097 | V73: 0.166012952838194i | W73: -115.653626248751i | X73: 0.0553376509460646i | Z73: 3.9+0.0553376509460646i | AA73: 3.89692351509208-0.111322803060156i | AB73: 3.89692351509208-0.111322803060156i | AC73: 3.89692351509208+0.054690149778038i | AD73: 0.998596844739052-0.0567618720205233i | AE73: 0.001813098165 | AF73: -64.2520145826395i | AG73: 1.46990635325484i | AH73: 3.89766502610332+0.0100301534741838i | AI73: 0.484489068677571+1.28594671202217i | AJ73: 0.484489068677571-62.9660678706173i | AK73: -0.0203624423645573+0.00785112467925702i | AL73: -33.22147487 | AM73: 0.484489068677571-62.9660678706173i | AN73: -0.0198882261621666+0.00899591867988125i | AO73: -33.21966177 | AP73: 0.95973027806403-0.314517470490879i | AQ73: 0.08601638941 | AR73: -18.14471707 | AS73: =IF($AU$1<>"MG 2.7",IMABS(IMPARA($M73,$AM73)),IMABS(IMDIV(1,IMSUM(IMDIV(1,$M73),IMDIV(1,$AM73),IMDIV(1,$S73))))) -> 4.075521355 | BI73: 33.11880997 | BJ73: 107.0588228 | BK73: -33.21966177 | BL73: 33.21966177 | BM73: 27.52268965
A74: 27.93552999 | B74: 175.5241116 | C74: 0.982935024929472i | D74: -25.3209909685279i | E74: 0.298390989710733i | H74: 4+0.298390989710733i | I74: 3.99390824103913-0.336498901622092i | M74: 3.99390824103913+0.64643612330738i | N74: 0.938072198253316-0.309803870486034i | O74: -0.1056892179 | P74: -335.130762818751i | Q74: 0.0702096446378195i | R74: 0.00164223193243817+0.0701712111310229i | S74: 0.00164223193243817-335.06059160762i | T74: 4.33835069696171E-06-1.81728037450781E-06i | U74: -106.5514038 | V74: 0.168503147130767i | W74: -113.944459358375i | X74: 0.0561677157102556i | Z74: 3.9+0.0561677157102556i | AA74: 3.89680999219211-0.113290699676931i | AB74: 3.89680999219211-0.113290699676931i | AC74: 3.89680999219211+0.055212447453836i | AD74: 0.998557699891903-0.0576138318808419i | AE74: 0.001896730135 | AF74: -63.3024774213197i | AG74: 1.49195494855366i | AH74: 3.89756698563082+0.00988472512974375i | AI74: 0.497273626839151+1.30034175390767i | AJ74: 0.497273626839151-62.002135667412i | AK74: -0.0209068621749512+0.0081879446982589i | AL74: -32.97449425 | AM74: 0.497273626839151-62.002135667412i | AN74: -0.0204049693360812+0.00938065966723908i | AO74: -32.97259752 | AP74: 0.958481505940094-0.319186347433648i | AQ74: 0.08841402862 | AR74: -18.41840442 | AS74: =IF($AU$1<>"MG 2.7",IMABS(IMPARA($M74,$AM74)),IMABS(IMDIV(1,IMSUM(IMDIV(1,$M74),IMDIV(1,$AM74),IMDIV(1,$S74))))) -> 4.077733228 | BI74: 32.86880503 | BJ74: 106.5533005 | BK74: -32.97259752 | BL74: 32.97259752 | BM74: 27.93552999
A75: 28.35456294 | B75: 178.1569733 | C75: 0.997679050303414i | D75: -24.9467891315546i | E75: 0.302866854556394i | H75: 4+0.302866854556394i | I75: 3.99370716389656-0.341636895515164i | M75: 3.99370716389656+0.65604215478825i | N75: 0.936256177725392-0.314139112152899i | O75: -0.108800278 | P75: -330.178091447046i | Q75: 0.0712627893073867i | R75: 0.00169184040027324+0.0712226008853912i | S75: 0.00169184040027324-330.106868846161i | T75: 4.58716884252069E-06-1.95228128094464E-06i | U75: -106.0461209 | V75: 0.171030694337728i | W75: -112.260551091996i | X75: 0.0570102314459094i | Z75: 3.9+0.0570102314459094i | AA75: 3.89669273582389-0.115287937220179i | AB75: 3.89669273582389-0.115287937220179i | AC75: 3.89669273582389+0.055742757117549i | AD75: 0.998517417159494-0.0584786003986095i | AE75: 0.001983313386 | AF75: -62.3669728288864i | AG75: 1.51433427278197i | AH75: 3.89746558039054+0.00973740016659736i | AI75: 0.510345676651655+1.31476781782469i | AJ75: 0.510345676651655-61.0522050110617i | AK75: -0.0214637650874294+0.00853858785729754i | AL75: -32.72783614 | AM75: 0.510345676651655-61.0522050110617i | AN75: -0.0209326186103428+0.00978109963505557i | AO75: -32.72585283 | AP75: 0.957193383504577-0.323922164069236i | AQ75: 0.09087305368 | AR75: -18.69624478 | AS75: =IF($AU$1<>"MG 2.7",IMABS(IMPARA($M75,$AM75)),IMABS(IMDIV(1,IMSUM(IMDIV(1,$M75),IMDIV(1,$AM75),IMDIV(1,$S75))))) -> 4.080007759 | BI75: 32.61903586 | BJ75: 106.0481042 | BK75: -32.72585283 | BL75: 32.72585283 | BM75: 28.35456294
A76: 28.77988139 | B76: 180.8293279 | C76: 1.01264423605797i | D76: -24.5781173709897i | E76: 0.30740985737474i | H76: 4+0.30740985737474i | I76: 3.9934989724178-0.346855992121086i | M76: 3.9934989724178+0.665788243936884i | N76: 0.934388546908168-0.318525804089602i | O76: -0.1120004336 | P76: -325.298612263099i | Q76: 0.0723317311469975i | R76: 0.00174294656733826+0.0722897076994932i | S76: 0.00174294656733826-325.2263225554i | T76: 4.84973026168128E-06-2.09714980150594E-06i | U76: -105.5411693 | V76: 0.173596154752794i | W76: -110.601528169454i | X76: 0.057865384917598i | Z76: 3.9+0.057865384917598i | AA76: 3.89657162898816-0.117314947227096i | AB76: 3.89657162898816-0.117314947227096i | AC76: 3.89657162898816+0.056281207525698i | AD76: 0.998475962593789-0.0593563711828758i | AE76: 0.002072942916 | AF76: -61.4452934274743i | AG76: 1.5370492868737i | AH76: 3.89736070334184+0.00958816384113014i | AI76: 0.52370903980837+1.3292194050896i | AJ76: 0.52370903980837-60.1160740223847i | AK76: -0.0220333170941024+0.00890357688607895i | AL76: -32.48150879 | AM76: 0.52370903980837-60.1160740223847i | AN76: -0.0214712534801627+0.010197825249683i | AO76: -32.47943584 | AP76: 0.955864650118592-0.328725726489086i | AQ76: 0.09339474605 | AR76: -18.97830121 | AS76: =IF($AU$1<>"MG 2.7",IMABS(IMPARA($M76,$AM76)),IMABS(IMDIV(1,IMSUM(IMDIV(1,$M76),IMDIV(1,$AM76),IMDIV(1,$S76))))) -> 4.082346599 | BI76: 32.36950835 | BJ76: 105.5432422 | BK76: -32.47943584 | BL76: 32.47943584 | BM76: 28.77988139
A77: 29.21157961 | B77: 183.5417678 | C77: 1.02783389959883i | D77: -24.2148939615662i | E77: 0.312021005235361i | H77: 4+0.312021005235361i | I77: 3.9932833882994-0.352157584279533i | M77: 3.9932833882994+0.675676315319297i | N77: 0.9324679343895-0.322964146487034i | O77: -0.1152920913 | P77: -320.491243608965i | Q77: 0.0734167071142025i | R77: 0.00179559559634222+0.0733727648755386i | S77: 0.00179559559634222-320.417870844089i | T77: 5.12674750692443E-06-2.25259064411169E-06i | U77: -105.0365574 | V77: 0.176200097074086i | W77: -108.967022827048i | X77: 0.058733365691362i | Z77: 3.9+0.058733365691362i | AA77: 3.89644655111123-0.119372167303049i | AB77: 3.89644655111123-0.119372167303049i | AC77: 3.89644655111123+0.056827929771037i | AD77: 0.998433301212651-0.0602473408181221i | AE77: 0.002165716649 | AF77: -60.5372349039156i | AG77: 1.5601050261768i | AH77: 3.89725224417215+0.00943700183360854i | AI77: 0.5373674459018+1.34369080970192i | AJ77: 0.5373674459018-59.1935440942137i | AK77: -0.0226156788843895+0.00928345115856911i | AL77: -32.23552061 | AM77: 0.5373674459018-59.1935440942137i | AN77: -0.0220209436817875+0.0106314413004776i | AO77: -32.23335489 | AP77: 0.954494004818795-0.333597840378156i | AQ77: 0.095980399 | AR77: -19.26463766 | AS77: =IF($AU$1<>"MG 2.7",IMABS(IMPARA($M77,$AM77)),IMABS(IMDIV(1,IMSUM(IMDIV(1,$M77),IMDIV(1,$AM77),IMDIV(1,$S77))))) -> 4.084751433 | BI77: 32.12022852 | BJ77: 105.0387231 | BK77: -32.23335489 | BL77: 32.23335489 | BM77: 29.21157961
A78: 29.6497533 | B78: 186.2948943 | C78: 1.04325140809282i | D78: -23.8570383857795i | E78: 0.316701320313891i | H78: 4+0.316701320313891i | I78: 3.99306012097788-0.357543093157468i | M78: 3.99306012097788+0.685708314935352i | N78: 0.93049293775563-0.327454319908833i | O78: -0.1186777142 | P78: -315.754919811788i | Q78: 0.0745179577209155i | R78: 0.00184983400858712+0.0744720091034345i | S78: 0.00184983400858712-315.680447802685i | T78: 5.41896597975872E-06-2.41935717233971E-06i | U78: -104.5322937 | V78: 0.178843098530197i | W78: -107.356672736008i | X78: 0.0596143661767324i | Z78: 3.9+0.0596143661767324i | AA78: 3.89631737793789-0.121460041193806i | AB78: 3.89631737793789-0.121460041193806i | AC78: 3.89631737793789+0.057383057336391i | AD78: 0.998389396967556-0.0611517089122168i | AE78: 0.002261735517 | AF78: -59.6425959644488i | AG78: 1.58350660156945i | AH78: 3.89714008920035+0.00928390028439197i | AI78: 0.551324523286883+1.35817611715501i | AJ78: 0.551324523286883-58.2844198472938i | AK78: -0.0232110052582611+0.00967876700452558i | AL78: -31.98988021 | AM78: 0.551324523286883-58.2844198472938i | AN78: -0.0225817484003162+0.0110825709901509i | AO78: -31.98761847 | AP78: 0.953080105121926-0.338539310256156i | AQ78: 0.09863131696 | AR78: -19.55531895 | AS78: =IF($AU$1<>"MG 2.7",IMABS(IMPARA($M78,$AM78)),IMABS(IMDIV(1,IMSUM(IMDIV(1,$M78),IMDIV(1,$AM78),IMDIV(1,$S78))))) -> 4.087223983 | BI78: 31.87120249 | BJ78: 104.5345555 | BK78: -31.98761847 | BL78: 31.98761847 | BM78: 29.6497533
A79: 30.0944996 | B79: 189.0893177 | C79: 1.05890017921421i | D79: -23.504471316039i | E79: 0.321451840118599i | H79: 4+0.321451840118599i | I79: 3.99282886702662-0.363013968965179i | M79: 3.99282886702662+0.695886210249031i | N79: 0.928462123199087-0.331996484202796i | O79: -0.1221598229 | P79: -311.088590947574i | Q79: 0.0756357270867292i | R79: 0.00190570972463658+0.0755876805065163i | S79: 0.00190570972463658-311.013003267067i | T79: 5.72716508114071E-06-2.59825459890316E-06i | U79: -104.0283872 | V79: 0.18152574500815i | W79: -105.770120922175i | X79: 0.0605085816693834i | Z79: 3.9+0.0605085816693834i | AA79: 3.89618398142123-0.123579018857966i | AB79: 3.89618398142123-0.123579018857966i | AC79: 3.89618398142123+0.057946726150184i | AD79: 0.998344212710248-0.0620696781452412i | AE79: 0.002361103555 | AF79: -58.7611782900974i | AG79: 1.607259200593i | AH79: 3.89702412127714+0.00912884583208141i | AI79: 0.565583789670102+1.37266920360449i | AJ79: 0.565583789670102-57.3885090864929i | AK79: -0.0238194445106303+0.0100900980105885i | AL79: -31.74459634 | AM79: 0.565583789670102-57.3885090864929i | AN79: -0.0231537154411895+0.0115518562089235i | AO79: -31.74223524 | AP79: 0.951621565805358-0.343550938666318i | AQ79: 0.1013488148 | AR79: -19.85041084 | AS79: =IF($AU$1<>"MG 2.7",IMABS(IMPARA($M79,$AM79)),IMABS(IMDIV(1,IMSUM(IMDIV(1,$M79),IMDIV(1,$AM79),IMDIV(1,$S79))))) -> 4.089766007 | BI79: 31.62243652 | BJ79: 104.0307483 | BK79: -31.74223524 | BL79: 31.74223524 | BM79: 30.0944996
A80: 30.54591709 | B80: 191.9256575 | C80: 1.07478368190242i | D80: -23.1571145970827i | E80: 0.326273617720378i | H80: 4+0.326273617720378i | I80: 3.99258930952034-0.368571691692491i | M80: 3.99258930952034+0.706211990209929i | N80: 0.926374025140099-0.336590777375311i | O80: -0.1257409963 | P80: -306.491222608448i | Q80: 0.0767702629930302i | R80: 0.00196327210618927+0.076720022687724i | S80: 0.00196327210618927-306.41450258576i | T80: 6.05215936806138E-06-2.79014337261415E-06i | U80: -103.5248468 | V80: 0.184248631183272i | W80: -104.207015686872i | X80: 0.0614162103944241i | Z80: 3.9+0.0614162103944241i | AA80: 3.89604622960916-0.125729556539576i | AB80: 3.89604622960916-0.125729556539576i | AC80: 3.89604622960916+0.058519074643696i | AD80: 0.998297710158317-0.0630014543192032i | AE80: 0.002463927989 | AF80: -57.8927864927068i | AG80: 1.63136808860189i | AH80: 3.89690421968298+0.00897182565365332i | AI80: 0.580148642434513+1.38716373541819i | AJ80: 0.580148642434513-56.5056227572886i | AK80: -0.0244411377863139+0.0105180353094i | AL80: -31.49967796 | AM80: 0.580148642434513-56.5056227572886i | AN80: -0.0237368803646682+0.0120399577904922i | AO80: -31.49721403 | AP80: 0.950116957664135-0.348633525309176i | AQ80: 0.104134217 | AR80: -20.14997998 | AS80: =IF($AU$1<>"MG 2.7",IMABS(IMPARA($M80,$AM80)),IMABS(IMDIV(1,IMSUM(IMDIV(1,$M80),IMDIV(1,$AM80),IMDIV(1,$S80))))) -> 4.0923793 | BI80: 31.37393696 | BJ80: 103.5273107 | BK80: -31.49721403 | BL80: 31.49721403 | BM80: 30.54591709
A81: 31.00410585 | B81: 194.8045423 | C81: 1.09090543713096i | D81: -22.8148912286529i | E81: 0.331167721986184i | H81: 4+0.331167721986184i | I81: 3.99234111736579-0.374217771865625i | M81: 3.99234111736579+0.716687665265335i | N81: 0.924227145862899-0.341237314428122i | O81: -0.1294238727 | P81: -301.961795673347i | Q81: 0.0779218169379256i | R81: 0.00202257199919251+0.0778692827762374i | S81: 0.00202257199919251-301.883926390571i | T81: 6.39479971237337E-06-0.0000029959427690271i | U81: -103.0216815 | V81: 0.187012360651022i | W81: -102.667010528938i | X81: 0.0623374535503405i | Z81: 3.9+0.0623374535503405i | AA81: 3.89590398652774-0.127912116840909i | AB81: 3.89590398652774-0.127912116840909i | AC81: 3.89590398652774+0.059100243810113i | AD81: 0.998249849859661-0.0639472464086627i | AE81: 0.002570319331 | AF81: -57.0372280716323i | AG81: 1.65583860993092i | AH81: 3.89678026002297+0.00881282750667831i | AI81: 0.595022348712588+1.40165316913163i | AJ81: 0.595022348712588-55.6355749025007i | AK81: -0.0250762184050331+0.0109631878551392i | AL81: -31.25513418 | AM81: 0.595022348712588-55.6355749025007i | AN81: -0.0243312655826753+0.0125475557477201i | AO81: -31.25256386 | AP81: 0.948564806245287-0.353787866118611i | AQ81: 0.1069888569 | AR81: -20.45409395 | AS81: =IF($AU$1<>"MG 2.7",IMABS(IMPARA($M81,$AM81)),IMABS(IMDIV(1,IMSUM(IMDIV(1,$M81),IMDIV(1,$AM81),IMDIV(1,$S81))))) -> 4.095065695 | BI81: 31.1257103 | BJ81: 103.0242518 | BK81: -31.25256386 | BL81: 31.25256386 | BM81: 31.00410585
A82: 31.46916744 | B82: 197.7266105 | C82: 1.10726901868792i | D82: -22.4777253484265i | E82: 0.336135237815977i | H82: 4+0.336135237815977i | I82: 3.99208394459652-0.379953751325161i | M82: 3.99208394459652+0.727315267362759i | N82: 0.922019955168309-0.345936186156926i | O82: -0.13321115 | P82: -297.499306082116i | Q82: 0.0790906441919945i | R82: 0.00208366177823173+0.0790357114745551i | S82: 0.00208366177823173-297.420270370641i | T82: 6.75597445745374E-06-3.21663469534631E-06i | U82: -102.5189008 | V82: 0.189817546060787i | W82: -101.149764067919i | X82: 0.0632725153535956i | Z82: 3.9+0.0632725153535956i | AA82: 3.89575711206105-0.130127168795334i | AB82: 3.89575711206105-0.130127168795334i | AC82: 3.89575711206105+0.059690377265453i | AD82: 0.99820059115576-0.0649072666122834i | AE82: 0.002680391479 | AF82: -56.1943133710663i | AG82: 1.68067618907988i | AH82: 3.89665211411896+0.00865183977373765i | AI82: 0.610208035220233+1.41613075183283i | AJ82: 0.610208035220233-54.7781826192335i | AK82: -0.0257248111559751+0.0114261826837674i | AL82: -31.0109743 | AM82: 0.610208035220233-54.7781826192335i | AN82: -0.0249368794174487+0.0130753494858418i | AO82: -31.00829391 | AP82: 0.946963590560215-0.359014752277463i | AQ82: 0.109914076 | AR82: -20.76282122 | AS82: =IF($AU$1<>"MG 2.7",IMABS(IMPARA($M82,$AM82)),IMABS(IMDIV(1,IMSUM(IMDIV(1,$M82),IMDIV(1,$AM82),IMDIV(1,$S82))))) -> 4.097827061 | BI82: 30.87776315 | BJ82: 102.5215812 | BK82: -31.00829391 | BL82: 31.00829391 | BM82: 31.46916744
A83: 31.94120495 | B83: 200.6925096 | C83: 1.12387805396824i | D83: -22.1455422151985i | E83: 0.341177266383216i | H83: 4+0.341177266383216i | I83: 3.9918174296299-0.385781204025441i | M83: 3.9918174296299+0.738096849942799i | N83: 0.919750890043983-0.35068745791128i | O83: -0.1371055873 | P83: -293.102764612922i | Q83: 0.0802770038548744i | R83: 0.00214659539223264+0.0802195631060153i | S83: 0.00214659539223264-293.022545049816i | T83: 7.13661056779118E-06-3.45326772058137E-06i | U83: -102.0165141 | V83: 0.192664809251699i | W83: -99.6549399683935i | X83: 0.0642216030838995i | Z83: 3.9+0.0642216030838995i | AA83: 3.89560546182754-0.132375187940256i | AB83: 3.89560546182754-0.132375187940256i | AC83: 3.89560546182754+0.060289621311443i | AD83: 0.998149892143787-0.0658817304053419i | AE83: 0.002794261815 | AF83: -55.3638555379964i | AG83: 1.70588633191608i | AH83: 3.89651964989826+0.0084888515091382i | AI83: 0.625708677867576+1.4305895220006i | AJ83: 0.625708677867576-53.9332660159958i | AK83: -0.0263870315615068+0.0119076651562007i | AL83: -30.76720781 | AM83: 0.625708677867576-53.9332660159958i | AN83: -0.0255537151215348+0.0136240579908785i | AO83: -30.76441355 | AP83: 0.945311741776086-0.364314969169879i | AQ83: 0.1129112227 | AR83: -21.07623122 | AS83: =IF($AU$1<>"MG 2.7",IMABS(IMPARA($M83,$AM83)),IMABS(IMDIV(1,IMSUM(IMDIV(1,$M83),IMDIV(1,$AM83),IMDIV(1,$S83))))) -> 4.100665306 | BI83: 30.63010222 | BJ83: 102.0193083 | BK83: -30.76441355 | BL83: 30.76441355 | BM83: 31.94120495
A84: 32.42032302 | B84: 203.7028973 | C84: 1.14073622477777i | D84: -21.8182681923138i | E84: 0.346294925378965i | H84: 4+0.346294925378965i | I84: 3.99154119448411-0.391701736855857i | M84: 3.99154119448411+0.749034487921913i | N84: 0.917418354353832-0.355491168315311i | O84: -0.1411100047 | P84: -288.771196662977i | Q84: 0.0814811589126975i | R84: 0.00221142841151433+0.0814210956627564i | S84: 0.00221142841151433-288.689775567314i | T84: 7.53767476603508E-06-3.70696134232659E-06i | U84: -101.514531 | V84: 0.195554781390474i | W84: -98.1822068654123i | X84: 0.065184927130158i | Z84: 3.9+0.065184927130158i | AA84: 3.89544888705287-0.134656656390081i | AB84: 3.89544888705287-0.134656656390081i | AC84: 3.89544888705287+0.060898125000393i | AD84: 0.998097709637437-0.0668708565932037i | AE84: 0.002912051308 | AF84: -54.5456704807846i | AG84: 1.73147462689482i | AH84: 3.89638273127979+0.00832385248800444i | AI84: 0.641527091163547+1.44502231081995i | AJ84: 0.641527091163547-53.1006481699646i | AK84: -0.0270629851096986+0.0124082991825298i | AL84: -30.52384436 | AM84: 0.641527091163547-53.1006481699646i | AN84: -0.0261817498587417+0.0141944199908337i | AO84: -30.52093231 | AP84: 0.94360764188734-0.369689295267487i | AQ84: 0.1159816519 | AR84: -21.39439427 | AS84: =IF($AU$1<>"MG 2.7",IMABS(IMPARA($M84,$AM84)),IMABS(IMDIV(1,IMSUM(IMDIV(1,$M84),IMDIV(1,$AM84),IMDIV(1,$S84))))) -> 4.103582375 | BI84: 30.38273436 | BJ84: 101.5174431 | BK84: -30.52093231 | BL84: 30.52093231 | BM84: 32.42032302
A85: 32.90662787 | B85: 206.7584407 | C85: 1.15784726814943i | D85: -21.4958307313437i | E85: 0.351489349259649i | H85: 4+0.351489349259649i | I85: 3.99125484395292-0.397716990484347i | M85: 3.99125484395292+0.760130277665083i | N85: 0.915020718548131-0.360347327948837i | O85: -0.145227285 | P85: -284.50364203249i | Q85: 0.082703376296388i | R85: 0.00227821807623183+0.0826405708541067i | S85: 0.00227821807623183-284.421001461636i | T85: 7.96017465145727E-06-3.97891050193676E-06i | U85: -101.0129615 | V85: 0.198488103111331i | W85: -96.7312382910466i | X85: 0.0661627010371104i | Z85: 3.9+0.0661627010371104i | AA85: 3.89528723443905-0.136972062909143i | AB85: 3.89528723443905-0.136972062909143i | AC85: 3.89528723443905+0.061516040202188i | AD85: 0.998043999126495-0.0678748673658006i | AE85: 0.00303388462 | AF85: -53.7395768283592i | AG85: 1.75744674629824i | AH85: 3.89624121805689+0.00815683325790259i | AI85: 0.657665917433628+1.45942174399821i | AJ85: 0.657665917433628-52.280155084361i | AK85: -0.0277527664553958+0.012928767425329i | AL85: -30.28089379 | AM85: 0.657665917433628-52.280155084361i | AN85: -0.0268209436457694+0.0147871940871457i | AO85: -30.27785991 | AP85: 0.941849622368552-0.375138500946485i | AQ85: 0.1191267234 | AR85: -21.71738165 | AS85: =IF($AU$1<>"MG 2.7",IMABS(IMPARA($M85,$AM85)),IMABS(IMDIV(1,IMSUM(IMDIV(1,$M85),IMDIV(1,$AM85),IMDIV(1,$S85))))) -> 4.10658025 | BI85: 30.13566651 | BJ85: 101.0159954 | BK85: -30.27785991 | BL85: 30.27785991 | BM85: 32.90662787
A86: 33.40022729 | B86: 209.8598174 | C86: 1.17521497717167i | D86: -21.1781583560036i | E86: 0.356761689498544i | H86: 4+0.356761689498544i | I86: 3.9909579647362-0.403828640223519i | M86: 3.9909579647362+0.771386336948151i | N86: 0.912556319395862-0.365255917988468i | O86: -0.1494603737 | P86: -280.299154711813i | Q86: 0.0839439269408338i | R86: 0.00234702334624848+0.0838782541553984i | S86: 0.00234702334624848-280.215276457658i | T86: 8.40515979314881E-06-4.27039036026198E-06i | U86: -100.5118156 | V86: 0.201465424658001i | W86: -95.3017126020164i | X86: 0.067155141552667i | Z86: 3.9+0.067155141552667i | AA86: 3.89512034602975-0.139321902984554i | AB86: 3.89512034602975-0.139321902984554i | AC86: 3.89512034602975+0.062143521673447i | AD86: 0.997988714735056-0.0688939883531238i | AE86: 0.003159890216 | AF86: -52.9453958900091i | AG86: 1.78380844749272i | AH86: 3.89609496577656+0.00798778519308252i | AI86: 0.674127615871891+1.47378024410473i | AJ86: 0.674127615871891-51.4716156459044i | AK86: -0.02845645858966+0.0134697714800072i | AL86: -30.03836613 | AM86: 0.674127615871891-51.4716156459044i | AN86: -0.0274712382543433+0.0154031588537545i | AO86: -30.03520624 | AP86: 0.940035962809998-0.380663347232583i | AQ86: 0.1223478015 | AR86: -22.04526555 | AS86: =IF($AU$1<>"MG 2.7",IMABS(IMPARA($M86,$AM86)),IMABS(IMDIV(1,IMSUM(IMDIV(1,$M86),IMDIV(1,$AM86),IMDIV(1,$S86))))) -> 4.109660951 | BI86: 29.88890575 | BJ86: 100.5149755 | BK86: -30.03520624 | BL86: 30.03520624 | BM86: 33.40022729
A87: 33.9012307 | B87: 213.0077146 | C87: 1.19284320182925i | D87: -20.865180646309i | E87: 0.362113114841022i | H87: 4+0.362113114841022i | I87: 3.99065012452307-0.410038396919565i | M87: 3.99065012452307+0.782804804909685i | N87: 0.910023459740925-0.370216888808384i | O87: -0.15381228 | P87: -276.156802671737i | Q87: 0.0852030858449463i | R87: 0.00241790495247917+0.0851344148572027i | S87: 0.00241790495247917-276.07166825688i | T87: 8.87372279060349E-06-4.58276134648846E-06i | U87: -100.0111036 | V87: 0.204487406027871i | W87: -93.8933129083905i | X87: 0.068162468675957i | Z87: 3.9+0.068162468675957i | AA87: 3.89494805907175-0.141706678898928i | AB87: 3.89494805907175-0.141706678898928i | AC87: 3.89494805907175+0.062780727128943i | AD87: 0.997931809178368-0.069928448681763i | AE87: 0.003290200473 | AF87: -52.1629516157725i | AG87: 1.81056557420511i | AH87: 3.89594382561602+0.00781670055146363i | AI87: 0.690914451450472+1.48809003345677i | AJ87: 0.690914451450472-50.6748615823157i | AK87: -0.0291741319774992+0.0140320320300667i | AL87: -29.79627156 | AM87: 0.690914451450472-50.6748615823157i | AN87: -0.0281325560737989+0.0160431129010368i | AO87: -29.79298136 | AP87: 0.938164889537515-0.386264584470767i | AQ87: 0.1256462536 | AR87: -22.37811911 | AS87: =IF($AU$1<>"MG 2.7",IMABS(IMPARA($M87,$AM87)),IMABS(IMDIV(1,IMSUM(IMDIV(1,$M87),IMDIV(1,$AM87),IMDIV(1,$S87))))) -> 4.112826538 | BI87: 29.64245928 | BJ87: 100.0143938 | BK87: -29.79298136 | BL87: 29.79298136 | BM87: 33.9012307
A88: 34.40974916 | B88: 216.2028303 | C88: 1.21073584985669i | D88: -20.5568282229645i | E88: 0.367544811563637i | H88: 4+0.367544811563637i | I88: 3.99033087102571-0.416348007864437i | M88: 3.99033087102571+0.794387841992253i | N88: 0.907420408283835-0.375230158540476i | O88: -0.1582860774 | P88: -272.075667656884i | Q88: 0.0864811321326205i | R88: 0.00249092544974647+0.08640932611497i | S88: 0.00249092544974647-271.989258330769i | T88: 9.36700029362333E-06-4.91747449301138E-06i | U88: -99.51083568 | V88: 0.207554717118289i | W88: -92.5057270033404i | X88: 0.0691849057060964i | Z88: 3.9+0.0691849057060964i | AA88: 3.89477020587244-0.144126899802896i | AB88: 3.89477020587244-0.144126899802896i | AC88: 3.89477020587244+0.063427817315393i | AD88: 0.997873233718249-0.0709784810325106i | AE88: 0.003424951797 | AF88: -51.3920705574114i | AG88: 1.83772405781818i | AH88: 3.8957876442554+0.00764357253451632i | AI88: 0.708028483711882+1.50234313757315i | AJ88: 0.708028483711882-49.8897274198383i | AK88: -0.0299058436639075+0.0146162889750606i | AL88: -29.55462047 | AM88: 0.708028483711882-49.8897274198383i | AN88: -0.0288047989341937+0.016707874901764i | AO88: -29.55119552 | AP88: 0.936234574218322-0.391942950916733i | AQ88: 0.1290234491 | AR88: -22.71601638 | AS88: =IF($AU$1<>"MG 2.7",IMABS(IMPARA($M88,$AM88)),IMABS(IMDIV(1,IMSUM(IMDIV(1,$M88),IMDIV(1,$AM88),IMDIV(1,$S88))))) -> 4.116079104 | BI88: 29.39633439 | BJ88: 99.51426063 | BK88: -29.55119552 | BL88: 29.55119552 | BM88: 34.40974916
A89: 34.9258954 | B89: 219.4458728 | C89: 1.22889688760454i | D89: -20.2530327319848i | E89: 0.373057983737091i | H89: 4+0.373057983737091i | I89: 3.9899997309607-0.422759257731353i | M89: 3.9899997309607+0.806137629873187i | N89: 0.9047453993906-0.380295611593652i | O89: -0.1628849042 | P89: -268.054844982151i | Q89: 0.0877783491146098i | R89: 0.00256614927119329+0.087703264999074i | S89: 0.00256614927119329-267.967141717152i | T89: 0.000009886173972724-5.27607706963277E-06i | U89: -99.0110226 | V89: 0.210668037875063i | W89: -91.1386472939315i | X89: 0.0702226792916878i | Z89: 3.9+0.0702226792916878i | AA89: 3.89458661365319-0.146583081787394i | AB89: 3.89458661365319-0.146583081787394i | AC89: 3.89458661365319+0.064084956087669i | AD89: 0.997812938117013-0.0720443216990613i | AE89: 0.003564284739 | AF89: -50.6325818299619i | AG89: 1.86528991868546i | AH89: 3.89562626374711+0.00746839535012752i | AI89: 0.725471555471358+1.51653138921644i | AJ89: 0.725471555471358-49.1160504407455i | AK89: -0.0306516363483474+0.015223301528953i | AL89: -29.31342342 | AM89: 0.725471555471358-49.1160504407455i | AN89: -0.029487846890165+0.0173982835761288i | AO89: -29.30985914 | AP89: 0.934243132454738-0.39769917124685i | AQ89: 0.1324807585 | AR89: -23.05903235 | AS89: =IF($AU$1<>"MG 2.7",IMABS(IMPARA($M89,$AM89)),IMABS(IMDIV(1,IMSUM(IMDIV(1,$M89),IMDIV(1,$AM89),IMDIV(1,$S89))))) -> 4.119420784 | BI89: 29.15053852 | BJ89: 99.01458689 | BK89: -29.30985914 | BL89: 29.30985914 | BM89: 34.9258954
A90: 35.44978383 | B90: 222.7375609 | C90: 1.2473303409186i | D90: -19.9537268295416i | E90: 0.378653853493148i | H90: 4+0.378653853493148i | I90: 3.98965620897501-0.429273969533919i | M90: 3.98965620897501+0.818056371384681i | N90: 0.901996632930489-0.38541309713212i | O90: -0.1676119642 | P90: -264.093443332169i | Q90: 0.0890950243513289i | R90: 0.00264364278429641+0.089016512545248i | S90: 0.00264364278429641-264.004426819624i | T90: 0.0000104324714304072-0.0000056602185307309i | U90: -98.51167508 | V90: 0.213828058443189i | W90: -89.7917707329374i | X90: 0.0712760194810631i | Z90: 3.9+0.0712760194810631i | AA90: 3.89439710439847-0.149075747955618i | AB90: 3.89439710439847-0.149075747955618i | AC90: 3.89439710439847+0.064752310487571i | AD90: 0.997750870589872-0.0731262106478301i | AE90: 0.00370834412 | AF90: -49.8843170738541i | AG90: 1.89326926746574i | AH90: 3.89545952138181+0.00729116427863559i | AI90: 0.743245281458638+1.53064643304339i | AJ90: 0.743245281458638-48.3536706408107i | AK90: -0.031411537427927+0.0158538482865104i | AL90: -29.07269116 | AM90: 0.743245281458638-48.3536706408107i | AN90: -0.0301815569659024+0.0181151976327923i | AO90: -29.06898281 | AP90: 0.932188622367822-0.403533954983443i | AQ90: 0.136019552 | AR90: -23.40724296 | AS90: =IF($AU$1<>"MG 2.7",IMABS(IMPARA($M90,$AM90)),IMABS(IMDIV(1,IMSUM(IMDIV(1,$M90),IMDIV(1,$AM90),IMDIV(1,$S90))))) -> 4.122853748 | BI90: 28.90507919 | BJ90: 98.51538342 | BK90: -29.06898281 | BL90: 29.06898281 | BM90: 35.44978383
A91: 35.98153058 | B91: 226.0786243 | C91: 1.26604029603238i | D91: -19.6588441670361i | E91: 0.384333661295545i | H91: 4+0.384333661295545i | I91: 3.98929978651378-0.435894005608976i | M91: 3.98929978651378+0.830146290423404i | N91: 0.89917227414441-0.390582427512542i | O91: -0.1724705272 | P91: -260.190584563713i | Q91: 0.0904314497165988i | R91: 0.00272347434852667+0.0903493538053976i | S91: 0.00272347434852667-260.100235209908i | T91: 0.0000110071670428132-6.07165678939015E-06i | U91: -98.01280405 | V91: 0.217035479319837i | W91: -88.4647987516625i | X91: 0.0723451597732791i | Z91: 3.9+0.0723451597732791i | AA91: 3.89420149470071-0.151605428494602i | AB91: 3.89420149470071-0.151605428494602i | AC91: 3.89420149470071+0.065430050825235i | AD91: 0.997686977755742-0.0742243915789162i | AE91: 0.003857279153 | AF91: -49.1471104175903i | AG91: 1.92166830647773i | AH91: 3.89528724955051+0.00711187574215234i | AI91: 0.761351036930763+1.54467973088191i | AJ91: 0.761351036930763-47.6024306867084i | AK91: -0.0321855580096562+0.0165087272552878i | AL91: -28.83243459 | AM91: 0.761351036930763-47.6024306867084i | AN91: -0.03088576186177+0.0188594956628166i | AO91: -28.82857731 | AP91: 0.930069043173223-0.409447994832148i | AQ91: 0.1396411985 | AR91: -23.76072506 | AS91: =IF($AU$1<>"MG 2.7",IMABS(IMPARA($M91,$AM91)),IMABS(IMDIV(1,IMSUM(IMDIV(1,$M91),IMDIV(1,$AM91),IMDIV(1,$S91))))) -> 4.126380203 | BI91: 28.65996407 | BJ91: 98.01666133 | BK91: -28.82857731 | BL91: 28.82857731 | BM91: 35.98153058
A92: 36.52125354 | B92: 229.4698037 | C92: 1.28503090047287i | D92: -19.3683193763903i | E92: 0.390098666214978i | H92: 4+0.390098666214978i | I92: 3.98892992062631-0.442621268623243i | M92: 3.98892992062631+0.842409631849627i | N92: 0.896270453545692-0.395803376680044i | O92: -0.1774639294 | P92: -256.345403511047i | Q92: 0.0917879214623478i | R92: 0.00280571437470277+0.0917020778987907i | S92: 0.00280571437470277-256.253701433148i | T92: 0.0000116115827203637-6.51226483279806E-06i | U92: -97.51442065 | V92: 0.220291011509635i | W92: -87.1574371937561i | X92: 0.0734303371698782i | Z92: 3.9+0.0734303371698782i | AA92: 3.89399959560074-0.154172660746341i | AB92: 3.89399959560074-0.154172660746341i | AC92: 3.89399959560074+0.066118350763294i | AD92: 0.9976212045864-0.0753391119882408i | AE92: 0.004011243569 | AF92: -48.4207984409756i | AG92: 1.95049333107489i | AH92: 3.89510927560314+0.00693052737733157i | AI92: 0.779789946289177+1.55862256765163i | AJ92: 0.779789946289177-46.862175873324i | AK92: -0.032973691892306+0.0171887558506937i | AL92: -28.59266483 | AM92: 0.779789946289177-46.862175873324i | AN92: -0.0316002686232892+0.0196320759832508i | AO92: -28.58865358 | AP92: 0.927882333751702-0.415441964928128i | AQ92: 0.1433470644 | AR92: -24.11955642 | AS92: =IF($AU$1<>"MG 2.7",IMABS(IMPARA($M92,$AM92)),IMABS(IMDIV(1,IMSUM(IMDIV(1,$M92),IMDIV(1,$AM92),IMDIV(1,$S92))))) -> 4.130002394 | BI92: 28.4152009 | BJ92: 97.5184319 | BK92: -28.58865358 | BL92: 28.58865358 | BM92: 36.52125354
A93: 37.06907235 | B93: 232.9118507 | C93: 1.30430636397996i | D93: -19.0820880555569i | E93: 0.395950146208203i | H93: 4+0.395950146208203i | I93: 3.98854604270714-0.449457702603765i | M93: 3.98854604270714+0.854848661376195i | N93: 0.893289266855015-0.401075678523088i | O93: -0.1825955739 | P93: -252.557047794135i | Q93: 0.093164740284283i | R93: 0.00289043538608683+0.0930749780635986i | S93: 0.00289043538608683-252.463972816071i | T93: 0.0000122470885750454-6.98403769351763E-06i | U93: -97.01653617 | V93: 0.223595376682279i | W93: -85.8693962500061i | X93: 0.0745317922274264i | Z93: 3.9+0.0745317922274264i | AA93: 3.89379121242356-0.156777989278395i | AB93: 3.89379121242356-0.156777989278395i | AC93: 3.89379121242356+0.066817387403884i | AD93: 0.997553494353942-0.0764706232308875i | AE93: 0.004170395752 | AF93: -47.7052201388923i | AG93: 1.97975073104101i | AH93: 3.8949254217034+0.00674711811173286i | AI93: 0.798562871736763+1.57246605794333i | AJ93: 0.798562871736763-46.132754080949i | AK93: -0.0337759145185415+0.0178947708515659i | AL93: -28.35339313 | AM93: 0.798562871736763-46.132754080949i | AN93: -0.032324857273378+0.0204338564270687i | AO93: -28.34922274 | AP93: 0.925626371216968-0.42151651898785i | AQ93: 0.1471385122 | AR93: -24.48381576 | AS93: =IF($AU$1<>"MG 2.7",IMABS(IMPARA($M93,$AM93)),IMABS(IMDIV(1,IMSUM(IMDIV(1,$M93),IMDIV(1,$AM93),IMDIV(1,$S93))))) -> 4.1337226 | BI93: 28.17079756 | BJ93: 97.02070657 | BK93: -28.34922274 | BL93: 28.34922274 | BM93: 37.06907235
A94: 37.62510843 | B94: 236.4055285 | C94: 1.32387095943966i | D94: -18.8000867542433i | E94: 0.401889398401326i | H94: 4+0.401889398401326i | I94: 3.98814755716847-0.45640529399213i | M94: 3.98814755716847+0.86746566544753i | N94: 0.890226774971273-0.406399025187317i | O94: -0.1878689312 | P94: -248.82467762969i | Q94: 0.0945622113885473i | R94: 0.00297771208127129+0.0944683517087862i | S94: 0.00297771208127129-248.730209277981i | T94: 0.0000129151034809817-7.48909979151735E-06i | U94: -96.51916209 | V94: 0.226949307332513i | W94: -84.6003903940946i | X94: 0.0756497691108378i | Z94: 3.9+0.0756497691108378i | AA94: 3.89357614460961-0.159421965953877i | AB94: 3.89357614460961-0.159421965953877i | AC94: 3.89357614460961+0.067527341378636i | AD94: 0.997483788576463-0.0776191805856735i | AE94: 0.004334898874 | AF94: -47.0002168856081i | AG94: 2.00944699200663i | AH94: 3.89473550467944+0.00656164824396702i | AI94: 0.817670402012148+1.58620115327044i | AJ94: 0.817670402012148-45.4140157323377i | AK94: -0.0345921818981551+0.0186276283136291i | AL94: -28.11463096 | AM94: 0.817670402012148-45.4140157323377i | AN94: -0.0330592794089395+0.0212657740760783i | AO94: -28.11029606 | AP94: 0.923298969483693-0.427672288363187i | AQ94: 0.1510168992 | AR94: -24.85358269 | AS94: =IF($AU$1<>"MG 2.7",IMABS(IMPARA($M94,$AM94)),IMABS(IMDIV(1,IMSUM(IMDIV(1,$M94),IMDIV(1,$AM94),IMDIV(1,$S94))))) -> 4.137543139 | BI94: 27.92676203 | BJ94: 96.52349699 | BK94: -28.11029606 | BL94: 28.11029606 | BM94: 37.62510843
A95: 38.18948506 | B95: 239.9516114 | C95: 1.34372902383126i | D95: -18.5222529598456i | E95: 0.407917739377346i | H95: 4+0.407917739377346i | I95: 3.98773384004019-0.463466072722273i | M95: 3.98773384004019+0.880262951108987i | N95: 0.887081003980205-0.411773065348549i | O95: -0.1932875393 | P95: -245.147465645015i | Q95: 0.0959806445593755i | R95: 0.00306762139890771+0.0958825004663316i | S95: 0.00306762139890771-245.051583144549i | T95: 0.0000136170955138794-8.02971266208553E-06i | U95: -96.02231006 | V95: 0.230353546942501i | W95: -83.3501383193051i | X95: 0.0767845156475004i | Z95: 3.9+0.0767845156475004i | AA95: 3.89335418554106-0.162105150000747i | AB95: 3.89335418554106-0.162105150000747i | AC95: 3.89335418554106+0.068248396941754i | AD95: 0.997412026961907-0.0787850433209835i | AE95: 0.004504921032 | AF95: -46.3056323996139i | AG95: 2.03958869688673i | AH95: 3.89453933587088+0.00637411952777722i | AI95: 0.837112841240533+1.59981865000434i | AJ95: 0.837112841240533-44.7058137496096i | AK95: -0.0354224295034+0.0193882034381565i | AL95: -27.87638994 | AM95: 0.837112841240533-44.7058137496096i | AN95: -0.0338032567631103+0.0221287849333613i | AO95: -27.87188502 | AP95: 0.920897877838829-0.433909879994572i | AQ95: 0.1549835764 | AR95: -25.22893775 | AS95: =IF($AU$1<>"MG 2.7",IMABS(IMPARA($M95,$AM95)),IMABS(IMDIV(1,IMSUM(IMDIV(1,$M95),IMDIV(1,$AM95),IMDIV(1,$S95))))) -> 4.141466361 | BI95: 27.6831024 | BJ95: 96.02681498 | BK95: -27.87188502 | BL95: 27.87188502 | BM95: 38.18948506
A96: 38.76232733 | B96: 243.5508856 | C96: 1.36388495918872i | D96: -18.2485250835917i | E96: 0.414036505468006i | H96: 4+0.414036505468006i | I96: 3.98730423749341-0.4706421133216i | M96: 3.98730423749341+0.89324284586712i | N96: 0.883849945202529-0.417197402445149i | O96: -0.1988550043 | P96: -241.524596694596i | Q96: 0.0974203542277661i | R96: 0.00316024258432984+0.0973177302437623i | S96: 0.00316024258432984-241.427278964352i | T96: 0.0000143545822538259-8.60828308497283E-06i | U96: -95.52599189 | V96: 0.233808850146639i | W96: -82.1183628761626i | X96: 0.0779362833822129i | Z96: 3.9+0.0779362833822129i | AA96: 3.89312512236334-0.164828108080345i | AB96: 3.89312512236334-0.164828108080345i | AC96: 3.89312512236334+0.068980742066294i | AD96: 0.997338147350013-0.0799684747618941i | AE96: 0.00468063539 | AF96: -45.6213127089793i | AG96: 2.07018252734003i | AH96: 3.8943367209717+0.00618453526022933i | AI96: 0.856890197942145+1.61330919800241i | AJ96: 0.856890197942145-44.0080035109769i | AK96: -0.0362665711375976+0.0201773903931234i | AL96: -27.63868186 | AM96: 0.856890197942145-44.0080035109769i | AN96: -0.0345564797346957+0.023023863531753i | AO96: -27.63400122 | AP96: 0.918420779519479-0.440229874259987i | AQ96: 0.1590398871 | AR96: -25.60996239 | AS96: =IF($AU$1<>"MG 2.7",IMABS(IMPARA($M96,$AM96)),IMABS(IMDIV(1,IMSUM(IMDIV(1,$M96),IMDIV(1,$AM96),IMDIV(1,$S96))))) -> 4.145494653 | BI96: 27.43982685 | BJ96: 95.53067253 | BK96: -27.63400122 | BL96: 27.63400122 | BM96: 38.76232733
A97: 39.34376224 | B97: 247.2041489 | C97: 1.38434323357656i | D97: -17.9788424468884i | E97: 0.420247053050026i | H97: 4+0.420247053050026i | I97: 3.98685806428335-0.477935536035114i | M97: 3.98685806428335+0.906407697541446i | N97: 0.880531555283369-0.422671592870145i | O97: -0.2045750002 | P97: -237.955267679405i | Q97: 0.0988816595411826i | R97: 0.00325565725812414+0.0987743512769891i | S97: 0.00325565725812414-237.856493328128i | T97: 0.0000151291309347467-9.22737163027933E-06i | U97: -95.0302196 | V97: 0.237315982898838i | W97: -80.9047910109977i | X97: 0.0791053276329461i | Z97: 3.9+0.0791053276329461i | AA97: 3.89288873580153-0.167591414355027i | AB97: 3.89288873580153-0.167591414355027i | AC97: 3.89288873580153+0.069724568543811i | AD97: 0.997262085652291-0.0811697423586242i | AE97: 0.004862220327 | AF97: -44.9471061172209i | AG97: 2.10123526525013i | AH97: 3.894127459869+0.00599290037423394i | AI97: 0.877002174240932+1.62666330993553i | AJ97: 0.877002174240932-43.3204428072854i | AK97: -0.0371244977783727+0.0209961020840997i | AL97: -27.40151869 | AM97: 0.877002174240932-43.3204428072854i | AN97: -0.0353186058865521+0.0239520024748215i | AO97: -27.39665647 | AP97: 0.915865290300856-0.446632822716597i | AQ97: 0.1631871655 | AR97: -25.99673894 | AS97: =IF($AU$1<>"MG 2.7",IMABS(IMPARA($M97,$AM97)),IMABS(IMDIV(1,IMSUM(IMDIV(1,$M97),IMDIV(1,$AM97),IMDIV(1,$S97))))) -> 4.149630433 | BI97: 27.19694369 | BJ97: 95.03508182 | BK97: -27.39665647 | BL97: 27.39665647 | BM97: 39.34376224
A98: 39.93391868 | B98: 250.9122111 | C98: 1.4051083820802i | D98: -17.7131452678703i | E98: 0.426550758845776i | H98: 4+0.426550758845776i | I98: 3.98639460210729-0.485348507972094i | M98: 3.98639460210729+0.919759874108106i | N98: 0.877123756324777-0.428195144123393i | O98: -0.2104512697 | P98: -234.438687368872i | Q98: 0.1003648844343i | R98: 0.00335394948670277+0.100252678183423i | S98: 0.00335394948670277-234.338434690689i | T98: 0.0000159423584226185-9.88970163674614E-06i | U98: -94.53500533 | V98: 0.240875722642321i | W98: -79.7091537054164i | X98: 0.0802919075474402i | Z98: 3.9+0.0802919075474402i | AA98: 3.89264479997155-0.170395650554861i | AB98: 3.89264479997155-0.170395650554861i | AC98: 3.89264479997155+0.07048007208746i | AD98: 0.99718377578995-0.0823891177563449i | AE98: 0.005049859587 | AF98: -44.2828631696758i | AG98: 2.13275379422888i | AH98: 3.89391134647742+0.00579922153555137i | AI98: 0.897448155317759+1.63987137131927i | AJ98: 0.897448155317759-42.6429917983565i | AK98: -0.0379960763970732+0.0218452698721183i | AL98: -27.16491256 | AM98: 0.897448155317759-42.6429917983565i | AN98: -0.0360892584149238+0.0249142119067869i | AO98: -27.1598627 | AP98: 0.913228957098123-0.453119245731817i | AQ98: 0.1674267354 | AR98: -26.38935064 | AS98: =IF($AU$1<>"MG 2.7",IMABS(IMPARA($M98,$AM98)),IMABS(IMDIV(1,IMSUM(IMDIV(1,$M98),IMDIV(1,$AM98),IMDIV(1,$S98))))) -> 4.153876154 | BI98: 26.95446129 | BJ98: 94.54005519 | BK98: -27.1598627 | BL98: 27.1598627 | BM98: 39.93391868
A99: 40.53292746 | B99: 254.6758943 | C99: 1.42618500781141i | D99: -17.4513746481481i | E99: 0.432949020228463i | H99: 4+0.432949020228463i | I99: 3.98591309787252-0.492883244274571i | M99: 3.98591309787252+0.933301763536839i | N99: 0.873624436062989-0.433767512924385i | O99: -0.2164876237 | P99: -230.97407622549i | Q99: 0.101870357700815i | R99: 0.00345520585493541+0.101753030015358i | S99: 0.00345520585493541-230.872323195475i | T99: 0.0000167959310032589-0.0000105981686381976i | U99: -94.04036142 | V99: 0.244488858481955i | W99: -78.5311859166664i | X99: 0.0814962861606518i | Z99: 3.9+0.0814962861606518i | AA99: 3.89239308218615-0.173241406043238i | AB99: 3.89239308218615-0.173241406043238i | AC99: 3.89239308218615+0.071247452438717i | AD99: 0.997103149629705-0.0836268768663746i | AE99: 0.005243742431 | AF99: -43.6284366203702i | AG99: 2.16474510114231i | AH99: 3.89368816856963+0.00560350724450286i | AI99: 0.918227199153615+1.65292365124997i | AJ99: 0.918227199153615-41.9755129691202i | AK99: -0.0388811487561297+0.022725843235736i | AL99: -26.92887577 | AM99: 0.918227199153615-41.9755129691202i | AN99: -0.0368680245919986+0.0259115189077953i | AO99: -26.92363203 | AP99: 0.910509256585991-0.459689630000818i | AQ99: 0.171759909 | AR99: -26.78788162 | AS99: =IF($AU$1<>"MG 2.7",IMABS(IMPARA($M99,$AM99)),IMABS(IMDIV(1,IMSUM(IMDIV(1,$M99),IMDIV(1,$AM99),IMDIV(1,$S99))))) -> 4.158234301 | BI99: 26.71238815 | BJ99: 94.04560516 | BK99: -26.92363203 | BL99: 26.92363203 | BM99: 40.53292746
A100: 41.14092137 | B100: 258.4960327 | C100: 1.44757778292858i | D100: -17.1934725597518i | E100: 0.43944325553189i | H100: 4+0.43944325553189i | I100: 3.98541276186982-0.500542009307068i | M100: 3.98541276186982+0.947035773621512i | N100: 0.870031448092204-0.439388103286102i | O100: -0.2226879418 | P100: -227.560666232009i | Q100: 0.103398413066327i | R100: 0.00355951554089702+0.103275730313589i | S100: 0.00355951554089702-227.457390501695i | T100: 0.0000176915639591912-0.0000113558502539302i | U100: -93.54630036 | V100: 0.248156191359185i | W100: -77.3706265188832i | X100: 0.0827187304530616i | Z100: 3.9+0.0827187304530616i | AA100: 3.8921333427553-0.176129277881297i | AB100: 3.8921333427553-0.176129277881297i | AC100: 3.8921333427553+0.072026913477888i | AD100: 0.997020136917383-0.0848832999388077i | AE100: 0.0054440638 | AF100: -42.9836813993796i | AG100: 2.19721627765945i | AH100: 3.89345770760193+0.00540576794263454i | AI100: 0.939338026609738+1.66581031384398i | AJ100: 0.939338026609738-41.3178710855356i | AK100: -0.0397795301863185+0.0236387893745169i | AL100: -26.69342079 | AM100: 0.939338026609738-41.3178710855356i | AN100: -0.037654454184205+0.0269449668109721i | AO100: -26.68797672 | AP100: 0.907703593840368-0.466344425947328i | AQ100: 0.1761879852 | AR100: -27.19241684 | AS100: =IF($AU$1<>"MG 2.7",IMABS(IMPARA($M100,$AM100)),IMABS(IMDIV(1,IMSUM(IMDIV(1,$M100),IMDIV(1,$AM100),IMDIV(1,$S100))))) -> 4.162707388 | BI100: 26.47073285 | BJ100: 93.55174442 | BK100: -26.68797672 | BL100: 26.68797672 | BM100: 41.14092137
A101: 41.75803519 | B101: 262.3734732 | C101: 1.46929144967251i | D101: -16.9393818322678i | E101: 0.446034904364868i | H101: 4+0.446034904364868i | I101: 3.98489276584702-0.50832711786646i | M101: 3.98489276584702+0.96096433180605i | N101: 0.866342612136442-0.445056264550619i | O101: -0.2290561719 | P101: -224.197700721192i | Q101: 0.104949389262322i | R101: 0.00366697039279178+0.104821107161266i | S101: 0.00366697039279178-224.092879614031i | T101: 0.0000186310209137121-0.0000121660165588309i | U101: -93.05283479 | V101: 0.251878534229573i | W101: -76.2272182452051i | X101: 0.0839595114098575i | Z101: 3.9+0.0839595114098575i | AA101: 3.89186533478113-0.17905987089108i | AB101: 3.89186533478113-0.17905987089108i | AC101: 3.89186533478113+0.072818663338493i | AD101: 0.996934665209247-0.0861586716365974i | AE101: 0.005651024471 | AF101: -42.3484545806695i | AG101: 2.23017452182434i | AH101: 3.89321973853584+0.00520601612447762i | AI101: 0.960779011892274+1.67852143037531i | AJ101: 0.960779011892274-40.6699331502942i | AK101: -0.040691008346115+0.0245850927511722i | AL101: -26.45856022 | AM101: 0.960779011892274-40.6699331502942i | AN101: -0.0384480578490573+0.0280156144376831i | AO101: -26.4529092 | AP101: 0.904809301006413-0.473084045004861i | AQ101: 0.1807122486 | AR101: -27.60304218 | AS101: =IF($AU$1<>"MG 2.7",IMABS(IMPARA($M101,$AM101)),IMABS(IMDIV(1,IMSUM(IMDIV(1,$M101),IMDIV(1,$AM101),IMDIV(1,$S101))))) -> 4.16729796 | BI101: 26.22950405 | BJ101: 93.05848581 | BK101: -26.4529092 | BL101: 26.4529092 | BM101: 41.75803519
A102: 42.38440572 | B102: 266.3090753 | C102: 1.49133082141759i | D102: -16.6890461401653i | E102: 0.452725427930341i | H102: 4+0.452725427930341i | I102: 3.98435224097715-0.516240936410973i | M102: 3.98435224097715+0.975089885006617i | N102: 0.862555714371108-0.450771289387086i | O102: -0.2355963307 | P102: -220.884434208071i | Q102: 0.106523630101257i | R102: 0.0037776650081126+0.106389493237933i | S102: 0.0037776650081126-220.778044714833i | T102: 0.0000196161129188587-0.0000130321409489427i | U102: -92.55997752 | V102: 0.255656712243016i | W102: -75.100707630744i | X102: 0.0852189040810054i | Z102: 3.9+0.0852189040810054i | AA102: 3.89158880394709-0.182033797717265i | AB102: 3.89158880394709-0.182033797717265i | AC102: 3.89158880394709+0.073622914525751i | AD102: 0.996846659800945-0.0874532811111428i | AE102: 0.005864831228 | AF102: -41.7226153504133i | AG102: 2.26362713965171i | AH102: 3.89297402965499+0.00500426645471141i | AI102: 0.982548173450209+1.69104699210339i | AJ102: 0.982548173450209-40.0315683583099i | AK102: -0.0416153419655441+0.0255657545696311i | AL102: -26.22430684 | AM102: 0.982548173450209-40.0315683583099i | AN102: -0.0392483055136303+0.0291245352474766i | AO102: -26.21844201 | AP102: 0.901823635997657-0.479908856775512i | AQ102: 0.1853339679 | AR102: -28.01984431 | AS102: =IF($AU$1<>"MG 2.7",IMABS(IMPARA($M102,$AM102)),IMABS(IMDIV(1,IMSUM(IMDIV(1,$M102),IMDIV(1,$AM102),IMDIV(1,$S102))))) -> 4.17200859 | BI102: 25.98871051 | BJ102: 92.56584235 | BK102: -26.21844201 | BL102: 26.21844201 | BM102: 42.38440572
A103: 43.0201718 | B103: 270.3037114 | C103: 1.51370078373886i | D103: -16.4424099903107i | E103: 0.459516309349296i | H103: 4+0.459516309349296i | I103: 3.98379027571587-0.52428588430702i | M103: 3.98379027571587+0.98941489943184i | N103: 0.858668507795758-0.456532411752815i | O103: -0.2423125031 | P103: -217.6201322247i | Q103: 0.108121484552776i | R103: 0.00389169681509949+0.10798122587375i | S103: 0.00389169681509949-217.512150998826i | T103: 0.0000206486972624979-0.0000139579115180618i | U103: -92.06774151 | V103: 0.259491562926661i | W103: -73.990844956398i | X103: 0.0864971876422205i | Z103: 3.9+0.0864971876422205i | AA103: 3.89130348830117-0.185051678887354i | AB103: 3.89130348830117-0.185051678887354i | AC103: 3.89130348830117+0.074439884039307i | AD103: 0.996756043654001-0.0887674220794111i | AE103: 0.006085697033 | AF103: -41.1060249757767i | AG103: 2.29758154674648i | AH103: 3.89272034237712+0.00480053589095331i | AI103: 1.00464316535561+1.70337692377929i | AJ103: 1.00464316535561-39.4026480519974i | AK103: -0.0425522595771675+0.0265817921863542i | AL103: -25.99067358 | AM103: 1.00464316535561-39.4026480519974i | AN103: -0.0400546247380423+0.0302728163992223i | AO103: -25.98458789 | AP103: 0.898743781231063-0.486819186063555i | AQ103: 0.1900543945 | AR103: -28.44291078 | AS103: =IF($AU$1<>"MG 2.7",IMABS(IMPARA($M103,$AM103)),IMABS(IMDIV(1,IMSUM(IMDIV(1,$M103),IMDIV(1,$AM103),IMDIV(1,$S103))))) -> 4.176841878 | BI103: 25.74836108 | BJ103: 92.07382721 | BK103: -25.98458789 | BL103: 25.98458789 | BM103: 43.0201718
A104: 43.66547438 | B104: 274.3582671 | C104: 1.53640629549494i | D104: -16.1994187096657i | E104: 0.466409053989536i | H104: 4+0.466409053989536i | I104: 3.98320591354143-0.532464435092226i | M104: 3.98320591354143+1.00394186040271i | N104: 0.854678712659475-0.462338804818267i | O104: -0.2492088421 | P104: -214.40407115734i | Q104: 0.109743306821067i | R104: 0.00400916615655976+0.109596647103862i | S104: 0.00400916615655976-214.294474510236i | T104: 0.0000217306759682463-0.0000149472429607604i | U104: -91.57613986 | V104: 0.263383936370561i | W104: -72.8973841934956i | X104: 0.0877946454568538i | Z104: 3.9+0.0877946454568538i | AA104: 3.89100911803326-0.188114142870221i | AB104: 3.89100911803326-0.188114142870221i | AC104: 3.89100911803326+0.07526979350034i | AD104: 0.996662737319751-0.090101392902632i | AE104: 0.006313841199 | AF104: -40.4985467741642i | AG104: 2.33204526994768i | AH104: 3.89245843106187+0.00459484381237873i | AI104: 1.02706126921572+1.71550109781529i | AJ104: 1.02706126921572-38.7830456763489i | AK104: -0.0435014582370861+0.0276342384522682i | AL104: -25.7576735 | AM104: 1.02706126921572-38.7830456763489i | AN104: -0.0408663990676222+0.0314615577200415i | AO104: -25.75135966 | AP104: 0.895566842403065-0.493815309781269i | AQ104: 0.1948747616 | AR104: -28.87232992 | AS104: =IF($AU$1<>"MG 2.7",IMABS(IMPARA($M104,$AM104)),IMABS(IMDIV(1,IMSUM(IMDIV(1,$M104),IMDIV(1,$AM104),IMDIV(1,$S104))))) -> 4.181800449 | BI104: 25.50846466 | BJ104: 91.5824537 | BK104: -25.75135966 | BL104: 25.75135966 | BM104: 43.66547438
A105: 44.3204565 | B105: 278.4736411 | C105: 1.55945238992736i | D105: -15.9600184331682i | E105: 0.473405189799379i | H105: 4+0.473405189799379i | I105: 3.98259815057176-0.540779117753035i | M105: 3.98259815057176+1.01867327217433i | N105: 0.850584016940199-0.468189578856738i | O105: -0.2562895688 | P105: -211.235538086049i | Q105: 0.111389456423383i | R105: 0.00413017637611606+0.111236103722894i | S105: 0.00413017637611606-211.124301982326i | T105: 0.0000228639939603507-0.0000160042890169484i | U105: -91.08518582 | V105: 0.26733469541612i | W105: -71.8200829492568i | X105: 0.0891115651387065i | Z105: 3.9+0.0891115651387065i | AA105: 3.89070541524617-0.191221826132825i | AB105: 3.89070541524617-0.191221826132825i | AC105: 3.89070541524617+0.076112869283295i | AD105: 0.99656665886063-0.0914554966666126i | AE105: 0.00654948957 | AF105: -39.9000460829204i | AG105: 2.36702594899689i | AH105: 3.89218804281325+0.00438721215451174i | AI105: 1.04979938666622+1.72740934909861i | AJ105: 1.04979938666622-38.1726367338218i | AK105: -0.0444626022390688+0.0287241409827704i | AL105: -25.52531982 | AM105: 1.04979938666622-38.1726367338218i | AN105: -0.0416829663777369+0.0326918705787053i | AO105: -25.51877033 | AP105: 0.892289847311896-0.50089745372446i | AQ105: 0.1997962823 | AR105: -29.30819091 | AS105: =IF($AU$1<>"MG 2.7",IMABS(IMPARA($M105,$AM105)),IMABS(IMDIV(1,IMSUM(IMDIV(1,$M105),IMDIV(1,$AM105),IMDIV(1,$S105))))) -> 4.186886951 | BI105: 25.26903025 | BJ105: 91.09173531 | BK105: -25.51877033 | BL105: 25.51877033 | BM105: 44.3204565
A106: 44.98526334 | B106: 282.6507457 | C106: 1.58284417577627i | D106: -15.7241560917913i | E106: 0.480506267646369i | H106: 4+0.480506267646369i | I106: 3.98196593305117-0.54923251801468i | M106: 3.98196593305117+1.03361165776159i | N106: 0.8463820768792-0.474083779099621i | O106: -0.2635589719 | P106: -208.11383062665i | Q106: 0.113060298269734i | R106: 0.00425483390694823+0.112899947339531i | S106: 0.00425483390694823-208.00093067931i | T106: 0.0000240506368640543-0.0000171334554727518i | U106: -90.59489277 | V106: 0.271344715847361i | W106: -70.7587024130608i | X106: 0.0904482386157871i | Z106: 3.9+0.0904482386157871i | AA106: 3.89039209372049-0.194375373194999i | AB106: 3.89039209372049-0.194375373194999i | AC106: 3.89039209372049+0.076969342652362i | AD106: 0.996467723768697-0.092830041263704i | AE106: 0.006792874709 | AF106: -39.3103902294783i | AG106: 2.40253133823185i | AH106: 3.8919089172776+0.0041776655503894i | AI106: 1.07285403249523+1.73909149042665i | AJ106: 1.07285403249523-37.5712987390516i | AK106: -0.0454353218251692+0.0298525613533634i | AL106: -25.29362587 | AM106: 1.07285403249523-37.5712987390516i | AN106: -0.0425036172155646+0.0339648766603115i | AO106: -25.286833 | AP106: 0.888909744731629-0.508065789215405i | AQ106: 0.2048201484 | AR106: -29.75058368 | AS106: =IF($AU$1<>"MG 2.7",IMABS(IMPARA($M106,$AM106)),IMABS(IMDIV(1,IMSUM(IMDIV(1,$M106),IMDIV(1,$AM106),IMDIV(1,$S106))))) -> 4.192104055 | BI106: 25.0300669 | BJ106: 90.60168565 | BK106: -25.286833 | BL106: 25.286833 | BM106: 44.98526334
A107: 45.66004229 | B107: 286.8905069 | C107: 1.60658683841292i | D107: -15.4917794007796i | E107: 0.487713861661065i | H107: 4+0.487713861661065i | I107: 3.98130815470049-0.557827279641311i | M107: 3.98130815470049+1.04875955877161i | N107: 0.842070517571819-0.4800203835581i | O107: -0.2710214072 | P107: -205.038256775024i | Q107: 0.11475620274378i | R107: 0.00438324836309863+0.114588534431169i | S107: 0.00438324836309863-204.923668240593i | T107: 0.0000252926284103294-0.0000183394137320486i | U107: -90.10527423 | V107: 0.275414886585072i | W107: -69.7130073035082i | X107: 0.0918049621950239i | Z107: 3.9+0.0918049621950239i | AA107: 3.89006885867287-0.197575436682128i | AB107: 3.89006885867287-0.197575436682128i | AC107: 3.89006885867287+0.077839449902944i | AD107: 0.996365844881303-0.0942253394764711i | AE107: 0.007044236083 | AF107: -38.729448501949i | AG107: 2.43856930830532i | AH107: 3.89162078643638+0.00396623147843696i | AI107: 1.09622132844639+1.75053732853703i | AJ107: 1.09622132844639-36.978911173412i | AK107: -0.0464192118964327+0.0310205742185753i | AL107: -25.06260515 | AM107: 1.09622132844639-36.978911173412i | AN107: -0.0433275931434131+0.0352817066391656i | AO107: -25.05556091 | AP107: 0.885423403343642-0.515320429610998i | AQ107: 0.2099475294 | AR107: -30.19959895 | AS107: =IF($AU$1<>"MG 2.7",IMABS(IMPARA($M107,$AM107)),IMABS(IMDIV(1,IMSUM(IMDIV(1,$M107),IMDIV(1,$AM107),IMDIV(1,$S107))))) -> 4.197454451 | BI107: 24.79158374 | BJ107: 90.11231847 | BK107: -25.05556091 | BL107: 25.05556091 | BM107: 45.66004229
A108: 46.34494293 | B108: 291.1938645 | C108: 1.63068564098911i | D108: -15.2628368480587i | E108: 0.495029569585981i | H108: 4+0.495029569585981i | I108: 3.98062365392273-0.566566105743538i | M108: 3.98062365392273+1.06411953524557i | N108: 0.837646933615399-0.485998300812142i | O108: -0.2786812975 | P108: -202.008134753718i | Q108: 0.116477545784937i | R108: 0.00451553263341049+0.116302226398587i | S108: 0.00451553263341049-201.891832527319i | T108: 0.0000265920274121607-0.0000196271149724912i | U108: -89.61634385 | V108: 0.279546109883848i | W108: -68.6827658162643i | X108: 0.0931820366279493i | Z108: 3.9+0.0931820366279493i | AA108: 3.88973540650773-0.200822677375558i | AB108: 3.88973540650773-0.200822677375558i | AC108: 3.88973540650773+0.07872343250829i | AD108: 0.996260932293786-0.0956417090631005i | AE108: 0.007303820257 | AF108: -38.1570921201468i | AG108: 2.4751478479299i | AH108: 3.89132337439397+0.00375294041732148i | AI108: 1.11989699774913+1.7617366807019i | AJ108: 1.11989699774913-36.3953554394449i | AK108: -0.0474138307275448+0.0322292663519756i | AL108: -24.83227124 | AM108: 1.11989699774913-36.3953554394449i | AN108: -0.0441540850884907+0.0366434987469749i | AO108: -24.82496742 | AP108: 0.881827610731302-0.522661426674089i | AQ108: 0.215179571 | AR108: -30.65532819 | AS108: =IF($AU$1<>"MG 2.7",IMABS(IMPARA($M108,$AM108)),IMABS(IMDIV(1,IMSUM(IMDIV(1,$M108),IMDIV(1,$AM108),IMDIV(1,$S108))))) -> 4.202940846 | BI108: 24.55358994 | BJ108: 89.62364767 | BK108: -24.82496742 | BL108: 24.82496742 | BM108: 46.34494293
A109: 47.04011707 | B109: 295.5617724 | C109: 1.65514592560395i | D109: -15.0372776828165i | E109: 0.50245501312977i | H109: 4+0.50245501312977i | I109: 3.979911210857-0.575451760090357i | M109: 3.979911210857+1.07969416551359i | N109: 0.833108889815206-0.492016367767703i | O109: -0.2865431321 | P109: -199.022792860806i | Q109: 0.118224708971711i | R109: 0.00465180297817118+0.118041389620615i | S109: 0.00465180297817118-198.904751471185i | T109: 0.0000279509242778535-0.000021001804899236i | U109: -89.12811537 | V109: 0.283739301532105i | W109: -67.6677495726742i | X109: 0.0945797671773685i | Z109: 3.9+0.0945797671773685i | AA109: 3.8893914245622-0.204117764260598i | AB109: 3.8893914245622-0.204117764260598i | AC109: 3.8893914245622+0.079621537271507i | AD109: 0.996152893269082-0.0970794728445994i | AE109: 0.007571881096 | AF109: -37.5931942070412i | AG109: 2.51227506564885i | AH109: 3.89101639716041+0.00353782600809852i | AI109: 1.14387636042267+1.77267939185186i | AJ109: 1.14387636042267-35.8205148151893i | AK109: -0.0484186986895113+0.0334797356052375i | AL109: -24.60263789 | AM109: 1.14387636042267-35.8205148151893i | AN109: -0.0449822317043476+0.0380513972336405i | AO109: -24.59506601 | AP109: 0.878119072443831-0.530088766806243i | AQ109: 0.2205173939 | AR109: -31.11786359 | AS109: =IF($AU$1<>"MG 2.7",IMABS(IMPARA($M109,$AM109)),IMABS(IMDIV(1,IMSUM(IMDIV(1,$M109),IMDIV(1,$AM109),IMDIV(1,$S109))))) -> 4.208565963 | BI109: 24.31609475 | BJ109: 89.13568725 | BK109: -24.59506601 | BL109: 24.59506601 | BM109: 47.04011707
A110: 47.74571883 | B110: 299.995199 | C110: 1.67997311448801i | D110: -14.8150519042527i | E110: 0.509991838326717i | H110: 4+0.509991838326717i | I110: 3.97916954427257-0.584487068422071i | M110: 3.97916954427257+1.09548604606594i | N110: 0.828453921948999-0.498073347382898i | O110: -0.2946114659 | P110: -196.081569320992i | Q110: 0.119998079606286i | R110: 0.00479217912853445+0.119806395508768i | S110: 0.00479217912853445-195.961762925483i | T110: 0.0000293714370250971-0.0000224690391089017i | U110: -88.64060269 | V110: 0.287995391055087i | W110: -66.6677335691371i | X110: 0.095998463685029i | Z110: 3.9+0.095998463685029i | AA110: 3.88903659084407-0.207461374571909i | AB110: 3.88903659084407-0.207461374571909i | AC110: 3.88903659084407+0.080534016483178i | AD110: 0.996041632144112-0.0985389587938249i | AE110: 0.007848679964 | AF110: -37.0376297606317i | AG110: 2.54995919163358i | AH110: 3.8906995624288+0.00332092522398536i | AI110: 1.16815432939885+1.78335535219108i | AJ110: 1.16815432939885-35.2542744084406i | AK110: -0.0494332969847092+0.0347730897843835i | AL110: -24.37371892 | AM110: 1.16815432939885-35.2542744084406i | AN110: -0.045811117749517+0.0395065507181503i | AO110: -24.36587024 | AP110: 0.874294411135541-0.537602367140157i | AQ110: 0.2259620924 | AR110: -31.58729808 | AS110: =IF($AU$1<>"MG 2.7",IMABS(IMPARA($M110,$AM110)),IMABS(IMDIV(1,IMSUM(IMDIV(1,$M110),IMDIV(1,$AM110),IMDIV(1,$S110))))) -> 4.214332539 | BI110: 24.07910745 | BJ110: 88.64845137 | BK110: -24.36587024 | BL110: 24.36587024 | BM110: 47.74571883
A111: 48.46190461 | B111: 304.495127 | C111: 1.70517271120533i | D111: -14.5961102504953i | E111: 0.517641715901617i | H111: 4+0.517641715901617i | I111: 3.97839730829474-0.593674919760342i | M111: 3.97839730829474+1.11149779144499i | N111: 0.8236795375907-0.504167926363979i | O111: -0.3028909192 | P111: -193.183812138908i | Q111: 0.121798050800381i | R111: 0.00493678438879673+0.121597620561789i | S111: 0.00493678438879673-193.062214518346i | T111: 0.0000308557067577326-0.0000240346990754685i | U111: -88.1538198 | V111: 0.292315321920913i | W111: -65.6824961272287i | X111: 0.0974384406403044i | Z111: 3.9+0.0974384406403044i | AA111: 3.88867057376267-0.210854193836098i | AB111: 3.88867057376267-0.210854193836098i | AC111: 3.88867057376267+0.081461128084815i | AD111: 0.995927050232847-0.100020500126394i | AE111: 0.008134485938 | AF111: -36.4902756262382i | AG111: 2.58820857950809i | AH111: 3.8903725693476+0.00310227854808687i | AI111: 1.19272540750711+1.79375451526125i | AJ111: 1.19272540750711-34.696521110977i | AK111: -0.0504570663988804+0.0361104454415444i | AL111: -24.14552828 | AM111: 1.19272540750711-34.696521110977i | AN111: -0.0466397724891897+0.0410101104273182i | AO111: -24.13739379 | AP111: 0.870350165786647-0.545202071490373i | AQ111: 0.2315147333 | AR111: -32.06372527 | AS111: =IF($AU$1<>"MG 2.7",IMABS(IMPARA($M111,$AM111)),IMABS(IMDIV(1,IMSUM(IMDIV(1,$M111),IMDIV(1,$AM111),IMDIV(1,$S111))))) -> 4.220243318 | BI111: 23.84263736 | BJ111: 88.16195428 | BK111: -24.13739379 | BL111: 24.13739379 | BM111: 48.46190461
